Workbook

Sheet Exhibit No. BCC-3
A2: AVISTA CORPORATION
A4: Summary of Natural Gas Margin
A8: Line No. | C8: Description | E8: Total | G8: Sch. 101 | I8: Sch. 111/112 | K8: Sch. 121/122 | M8: Sch. 131/132 | O8: Sch. 146
E9: -1 | G9: -2 | I9: -3 | K9: -4 | M9: -5 | O9: -6
A12: 1 | C12: Current Rates | E12: =SUM(G12:O12) -> 86885999.97 | G12: =Summary!D190 -> 67353651.18 | I12: =Summary!E190 -> 15223638.41 | K12: =Summary!F190 -> 1284359.71 | M12: =Summary!G190 -> 195654.1081 | O12: =Summary!H190 -> 2828696.563
A14: 2 | C14: Company's Proposed Cost of Service (Peak and Average) | E14: =SUM(G14:O14) -> 91283000.21 | G14: 75170268.94 | I14: 11635343.12 | K14: 1005798.42 | M14: 175265.0711 | O14: 3296324.665
A15: 3 | C15: Increase vs. Current Rates | E15: =SUM(G15:O15) -> 4397000.244 | G15: =G14-G12 -> 7816617.762 | I15: =I14-I12 -> -3588295.293 | K15: =K14-K12 -> -278561.2898 | M15: =M14-M12 -> -20389.03702 | O15: =O14-O12 -> 467628.1024
A16: 4 | C16: % Increase | E16: =E15/E12 -> 0.05060654473 | G16: =G15/G12 -> 0.1160533635 | I16: =I15/I12 -> -0.2357054994 | K16: =K15/K12 -> -0.2168872845 | M16: =M15/M12 -> -0.1042096034 | O16: =O15/O12 -> 0.165315753
A17: 5 | C17: Index | E17: =E16/$E$16 -> 1 | G17: =G16/$E$16 -> 2.293248118 | I17: =I16/$E$16 -> -4.657609023 | K17: =K16/$E$16 -> -4.285755641 | M17: =M16/$E$16 -> -2.059211985 | O17: =O16/$E$16 -> 3.266687222
A19: 6 | C19: Company's Proposed Rates | E19: =SUM(G19:O19) -> 91282999.97 | G19: 71520523.18 | I19: 15223638.41 | K19: 1284359.71 | M19: 201182.1081 | O19: 3053296.563
A20: 7 | C20: Increase vs. Current Rates | E20: =SUM(G20:O20) -> 4397000.001 | G20: =G19-G12 -> 4166872.001 | I20: =I19-I12 -> 0 | K20: =K19-K12 -> 0 | M20: =M19-M12 -> 5528 | O20: =O19-O12 -> 224600
A21: 8 | C21: % Increase | E21: =E20/E12 -> 0.05060654194 | G21: =G20/G12 -> 0.0618655697 | I21: =I20/I12 -> 0 | K21: =K20/K12 -> 0 | M21: =M20/M12 -> 0.02825394291 | O21: =O20/O12 -> 0.07940052778
A22: 9 | C22: Index | E22: =E21/$E$21 -> 1 | G22: =G21/$E$21 -> 1.222481666 | I22: =I21/$E$21 -> 0 | K22: =K21/$E$21 -> 0 | M22: =M21/$E$21 -> 0.5583061365 | O22: =O21/$E$21 -> 1.568977542
A24: 10 | C24: NWIGU Proposed Cost of Service (Coincident Demand) | E24: =SUM(G24:O24) -> 91283000.21 | G24: =Summary!D244 -> 79377835.16 | I24: =Summary!E244 -> 8851166.299 | K24: =Summary!F244 -> 669617.0556 | M24: =Summary!G244 -> 143436.4421 | O24: =Summary!H244 -> 2240945.248
A25: 11 | C25: Increase vs. Current Rates | E25: =SUM(G25:O25) -> 4397000.244 | G25: =G24-G12 -> 12024183.99 | I25: =I24-I12 -> -6372472.111 | K25: =K24-K12 -> -614742.6539 | M25: =M24-M12 -> -52217.66602 | O25: =O24-O12 -> -587751.3147
A26: 12 | C26: % Increase | E26: =E25/E12 -> 0.05060654473 | G26: =G25/G12 -> 0.1785231206 | I26: =I25/I12 -> -0.4185906115 | K26: =K25/K12 -> -0.4786374482 | M26: =M25/M12 -> -0.2668876546 | O26: =O25/O12 -> -0.2077816767
A27: 13 | C27: Index | E27: =E26/$E$26 -> 1 | G27: =G26/$E$26 -> 3.527668635 | I27: =I26/$E$26 -> -8.271471876 | K27: =K26/$E$26 -> -9.458014783 | M27: =M26/$E$26 -> -5.273777454 | O27: =O26/$E$26 -> -4.105826189
A29: 14 | C29: NWIGU Proposed Rates | E29: =SUM(G29:O29) -> 91282999.97 | G29: =Summary!D227 -> 71750651.18 | I29: =Summary!E227 -> 15223638.41 | K29: =Summary!F227 -> 1284359.71 | M29: =Summary!G227 -> 195654.1081 | O29: =Summary!H227 -> 2828696.563
A30: 15 | C30: Increase vs. Current Rates | E30: =SUM(G30:O30) -> 4397000.001 | G30: =G29-G12 -> 4397000.001 | I30: =I29-I12 -> 0 | K30: =K29-K12 -> 0 | M30: =M29-M12 -> 0 | O30: =O29-O12 -> 0
A31: 16 | C31: % Increase | E31: =E30/E12 -> 0.05060654194 | G31: =G30/G12 -> 0.06528228128 | I31: =I30/I12 -> 0 | K31: =K30/K12 -> 0 | M31: =M30/M12 -> 0 | O31: =O30/O12 -> 0
A32: 17 | C32: Index | E32: =E31/$E$31 -> 1 | G32: =G31/$E$31 -> 1.289996881 | I32: =I31/$E$31 -> 0 | K32: =K31/$E$31 -> 0 | M32: =M31/$E$31 -> 0 | O32: =O31/$E$31 -> 0

Sheet Exhibit No. BCC-4
A1: AVISTA CORPORATION
A4: Distribution Net Plant Allocation
A5: Coincident Demand Allocation vs. Peak & Average Allocation
A8: Large Distribution Mains Acct. 376 Net Plant 1 | K8: =Detail!AM28+Detail!AM75 -> 77985366.11
A11: Peak and Average Allocation (Company Proposal)
O13: Allocated
O14: Net Plant
G15: Allocator | I15: Peak Day | K15: Annual Volume | M15: Load Factor | O15: $/Therm
A16: Line No. | C16: Rate Schedule | E16: Amount | G16: Peak & Average | I16: Therms | K16: Therms | M16: % | O16: Peak Day | Q16: Index | T16: Check
E17: (1) | G17: (2) | I17: (3) | K17: (4) | M17: (5) | O17: (6) | Q17: (7)
A19: 1 | C19: Schedule 101 | E19: =$K$8*((I19/$I$24)*(1-$M$24)+(K19/$K$24*$M$24)) -> 49006618.08 | G19: =I19/$I$24*(1-$M$24)+K19/$K$24*$M$24 -> 0.6284078736 | I19: =Factors!E9 -> 913162.9205 | K19: =Factors!E4 -> 119361176 | M19: =K19/(365*I19) -> 0.3581145415 | O19: =E19/I19 -> 53.66689447 | Q19: =O19/$O$24 -> 0.9603510054 | T19: =E19/$E$24 -> 0.6284078736
A20: 2 | C20: Schedule 111 | E20: =$K$8*((I20/$I$24)*(1-$M$24)+(K20/$K$24*$M$24)) -> 17742766.01 | G20: 0.2275140439 | I20: =Factors!F9 -> 311678.1311 | K20: =Factors!F4 -> 47375864 | M20: 0.4164452835 | O20: =E20/I20 -> 56.92656699 | Q20: 1.018681747 | T20: 0.2275140439
A21: 3 | C21: Schedule 121 | E21: =$K$8*((I21/$I$24)*(1-$M$24)+(K21/$K$24*$M$24)) -> 1808211.187 | G21: 0.02318654482 | I21: =Factors!G9 -> 30183.90939 | K21: =Factors!G4 -> 5175510 | M21: 0.469769481 | O21: 59.90646086 | Q21: 1.072005945 | T21: 0.02318654482
A22: 4 | C22: Schedule 131 | E22: =$K$8*((I22/$I$24)*(1-$M$24)+(K22/$K$24*$M$24)) -> 341775.8621 | G22: 0.004382564052 | I22: =Factors!H9 -> 5917.258151 | K22: =Factors!H4 -> 931617 | M22: 0.4313442607 | O22: 57.75916031 | Q22: 1.033580725 | T22: 0.004382564052
A23: 5 | C23: Schedule 146 | E23: =$K$8*((I23/$I$24)*(1-$M$24)+(K23/$K$24*$M$24)) -> 9085994.965 | G23: 0.1165089737 | I23: =Factors!I9 -> 134579.6476 | K23: =Factors!I4 -> 29762848 | M23: 0.6059017896 | O23: 67.51388585 | Q23: 1.208138254 | T23: 0.1165089737
A24: 6 | C24: Total | E24: =SUM(E19:E23) -> 77985366.11 | G24: 1 | I24: =SUM(I19:I23) -> 1395521.867 | K24: =SUM(K19:K23) -> 202607015 | M24: 0.3977635361 | O24: 55.88258269 | Q24: 1 | T24: 1
A27: Coincident Demand Allocation (NWIGU Proposal)
O28: Allocated
O29: Net Plant
G30: Allocator | I30: Peak Day | K30: Annual Volume | M30: Load Factor | O30: $/Therm
C31: Rate Schedule | E31: Amount | G31: Coincident Demand | I31: Therms | K31: Therms | M31: % | O31: Peak Day | Q31: Index | T31: Check
E32: (1) | G32: (2) | I32: (3) | K32: (4) | M32: (5) | O32: (6) | Q32: (7)
A34: 7 | C34: Schedule 101 | E34: =$K$8*(I34/$I$39) -> 51029902.41 | G34: =I34/$I$39 -> 0.6543522837 | I34: =I19 -> 913162.9205 | K34: =K19 -> 119361176 | M34: =K34/(365*I34) -> 0.3581145415 | O34: =E34/I34 -> 55.88258269 | Q34: =O34/$O$39 -> 1 | T34: =E34/$E$39 -> 0.6543522837
A35: 8 | C35: Schedule 111 | E35: =$K$8*(I35/$I$39) -> 17417378.93 | G35: 0.2233416319 | I35: =I20 -> 311678.1311 | K35: =K20 -> 47375864 | M35: 0.4164452835 | O35: =E35/I35 -> 55.88258269 | Q35: 1 | T35: 0.2233416319
A36: 9 | C36: Schedule 121 | E36: =$K$8*(I36/$I$39) -> 1686754.813 | G36: 0.02162911963 | I36: =I21 -> 30183.90939 | K36: =K21 -> 5175510 | M36: 0.469769481 | O36: 55.88258269 | Q36: 1 | T36: 0.02162911963
A37: 10 | C37: Schedule 131 | E37: =$K$8*(I37/$I$39) -> 330671.6679 | G37: 0.004240175874 | I37: =I22 -> 5917.258151 | K37: =K22 -> 931617 | M37: 0.4313442607 | O37: 55.88258269 | Q37: 1 | T37: 0.004240175874
A38: 11 | C38: Schedule 146 | E38: =$K$8*(I38/$I$39) -> 7520658.284 | G38: 0.09643678885 | I38: =I23 -> 134579.6476 | K38: =K23 -> 29762848 | M38: 0.6059017896 | O38: 55.88258269 | Q38: 1 | T38: 0.09643678885
A39: 12 | C39: Total | E39: =SUM(E34:E38) -> 77985366.11 | G39: 1 | I39: =SUM(I34:I38) -> 1395521.867 | K39: =SUM(K34:K38) -> 202607015 | M39: 0.3977635361 | O39: 55.88258269 | Q39: 1 | T39: 1
A42: 1 NWIGU proposed Account 376 demand related rate base with AMI investment moved to Account 381.

Sheet Exhibit No. BCC-5
A1: AVISTA CORPORATION
A4: Allocation of System Peak Day Capacity
A5: Peak & Average Allocation
F8: Peak Day Capacity (Therms) | G8: =E24 -> 1395521.867
G13: Average and Peak | I13: Surplus/(Shortfall) | K13: Surplus/(Shortfall)
E14: Coincident | G14: Allocated | I14: in Allocated | K14: in Allocated
E15: Peak Day Demand | G15: Peak Day Capacity | I15: Peak Day Capacity | K15: Peak Day Capacity
A16: Line No. | C16: Rate Schedule | E16: Therms | G16: Therms | I16: Therms | K16: %
E17: (1) | G17: (2) | I17: (3) | K17: (4)
A19: 1 | C19: Schedule 101 | E19: =Factors!E9 -> 913162.9205 | G19: =$G$8*'Exhibit No. BCC-4'!G19 -> 876956.9288 | I19: =G19-E19 -> -36205.99169 | K19: =I19/E19 -> -0.03964899458 | O19: =G19/$G$24 -> 0.6284078736
A20: 2 | C20: Schedule 111 | E20: =Factors!F9 -> 311678.1311 | G20: =$G$8*'Exhibit No. BCC-4'!G20 -> 317500.8232 | I20: 5822.692141 | K20: 0.01868174748 | O20: 0.2275140439
A21: 3 | C21: Schedule 121 | E21: =Factors!G9 -> 30183.90939 | G21: =$G$8*'Exhibit No. BCC-4'!G21 -> 32357.33031 | I21: 2173.420919 | K21: 0.07200594498 | O21: 0.02318654482
A22: 4 | C22: Schedule 131 | E22: =Factors!H9 -> 5917.258151 | G22: =$G$8*'Exhibit No. BCC-4'!G22 -> 6115.963967 | I22: 198.7058167 | K22: 0.03358072467 | O22: 0.004382564052
A23: 5 | C23: Schedule 146 | E23: =Factors!I9 -> 134579.6476 | G23: =$G$8*'Exhibit No. BCC-4'!G23 -> 162590.8204 | I23: 28011.17281 | K23: 0.2081382535 | O23: 0.1165089737
A24: 6 | C24: Total | E24: =SUM(E19:E23) -> 1395521.867 | G24: =SUM(G19:G23) -> 1395521.867 | I24: =SUM(I19:I23) -> 1.382431947e-10 | K24: 0 | O24: 1

Sheet Diagram 2 Wkpp
E5: Avista Corporation
I6: Average Demand as %
E7: Average Demand | G7: Coincident Demand | I7: of Coincident Demand
E8: therms | G8: therms | I8: %
D9: Schedule 101 | E9: ='Exhibit No. BCC-4'!K19/365 -> 327016.9205 | G9: ='Exhibit No. BCC-5'!E19 -> 913162.9205 | I9: =E9/G9 -> 0.3581145415
D10: Schedule 111 | E10: ='Exhibit No. BCC-4'!K20/365 -> 129796.8877 | G10: ='Exhibit No. BCC-5'!E20 -> 311678.1311 | I10: =E10/G10 -> 0.4164452835
D11: Schedule 121 | E11: ='Exhibit No. BCC-4'!K21/365 -> 14179.47945 | G11: ='Exhibit No. BCC-5'!E21 -> 30183.90939 | I11: =E11/G11 -> 0.469769481
D12: Schedule 131 | E12: ='Exhibit No. BCC-4'!K22/365 -> 2552.375342 | G12: ='Exhibit No. BCC-5'!E22 -> 5917.258151 | I12: =E12/G12 -> 0.4313442607
D13: Schedule 146 | E13: ='Exhibit No. BCC-4'!K23/365 -> 81542.04932 | G13: ='Exhibit No. BCC-5'!E23 -> 134579.6476 | I13: =E13/G13 -> 0.6059017896
D14: Total | E14: =SUM(E9:E13) -> 555087.7123 | G14: =SUM(G9:G13) -> 1395521.867
K24: Schedule 101 | N24: 0.3581145415
K25: Schedule 111 | N25: 0.4164452835
K26: Schedule 121 | N26: 0.469769481
K27: Schedule 131 | N27: 0.4313442607
K28: Schedule 146 | N28: 0.6059017896
E30: Amount 1

Sheet Print
A2: Cost of Service Model Printing
A4: This worksheet has the Page Setup properties used by the print macros which are triggered by the buttons on the other worksheets.
A5: For example, when Rate Base button is hit, macro will print RB1 and RB2 below.
A6: There are 5 print buttons on Detail tab, 1 on Summary tab, 1 on Factors tab.
B9: RATE BASE | G9: REVENUE REQUIREMENTS | M9: SUMMARY PAGES
C11: Total $ By Schedule | D11: Classification %'s | E11: Classif. $'s/Commodity $ | F11: Demand $/Customer $ | G11: Total $ By Schedule | H11: Classification %'s | I11: Classif. $'s/Commodity $ | J11: Demand $/Customer $ | K11: Labor $ and Classif. %'s | L11: Labor $ by Schedule | M11: General Summary | N11: Allocation Factors
C12: GoTo | D12: GoTo | E12: GoTo | F12: GoTo | G12: GoTo | H12: GoTo | I12: GoTo | J12: GoTo | K12: GoTo | L12: GoTo | M12: GoTo | N12: GoTo
A14: Scenario Title | B14: Base Case
C15: RB1 | D15: RB2 | E15: RB3 | F15: RB4 | G15: RR1 | H15: RR2 | I15: RR3 | J15: RR4 | K15: RR5 | L15: RR6 | M15: SUM1 | N15: SUM2
C16: 1 print button | E16: 1 print button | G16: 1 print button | I16: 1 print button | K16: 1 print button | M16: 1 print button | N16: 1 print button
A18: Print Area | B18: 0 | C18: $E$7:$P$148 | D18: $Q$7:$AH$148 | E18: $AK$7:$AY$148 | F18: $BA$7:$BO$148 | G18: $E$165:$P$433 | H18: $Q$165:$AH$433 | I18: $AK$165:$AY$433 | J18: $BA$165:$BO$433 | K18: $BQ$165:$CK$333 | L18: $CK$165:$CR$333 | M18: $A$5:$K$52,$A$105:$K$179,$A$183:$K$257 | N18: $A$4:$Q$51,$A$67:$J$107
A19: Print Title Rows | B19: 1 | C19: $1:$6 | D19: =C19 -> $1:$6 | E19: =C19 -> $1:$6 | F19: =C19 -> $1:$6 | G19: $159:$164 | H19: =G19 -> $159:$164 | I19: =G19 -> $159:$164 | J19: =G19 -> $159:$164 | K19: =H19 -> $159:$164 | L19: =I19 -> $159:$164 | M19: $1:$4 | N19: $1:$3
A20: Print Title Columns | B20: 2 | C20: $A:$D | D20: =$C20 -> $A:$D | E20: =$C20 -> $A:$D | F20: =$C20 -> $A:$D | G20: $A:$D | H20: =$G20 -> $A:$D | I20: =$G20 -> $A:$D | J20: =$G20 -> $A:$D | L20: $BQ:$BR
A21: Fit Pgs Wide | B21: 3 | C21: 1 | D21: =C21 -> 1 | E21: =C21 -> 1 | F21: =C21 -> 1 | G21: 1 | H21: =G21 -> 1 | I21: =G21 -> 1 | J21: =G21 -> 1 | K21: =H21 -> 1 | L21: =I21 -> 1 | M21: =J21 -> 1 | N21: =K21 -> 1
A22: Fit Pgs Tall | B22: 4 | C22: 2 | D22: =C22 -> 2 | E22: =C22 -> 2 | F22: =C22 -> 2 | G22: 4 | H22: =G22 -> 4 | I22: =G22 -> 4 | J22: =G22 -> 4 | K22: 3 | L22: 3 | M22: 1 | N22: 1
A23: Zoom | B23: 5 | C23: FALSE | D23: =C23 -> FALSE | E23: =C23 -> FALSE | F23: =C23 -> FALSE | G23: FALSE | H23: =G23 -> FALSE | I23: =G23 -> FALSE | J23: =G23 -> FALSE | K23: =H23 -> FALSE | L23: =I23 -> FALSE | M23: =J23 -> FALSE | N23: =K23 -> FALSE
A24: Orientation | B24: 6 | C24: Landscape | D24: =C24 -> Landscape | E24: =C24 -> Landscape | F24: =C24 -> Landscape | G24: Landscape | H24: =G24 -> Landscape | I24: =G24 -> Landscape | J24: =G24 -> Landscape | K24: =H24 -> Landscape | L24: =I24 -> Landscape | M24: Portrait | N24: Landscape
A25: Left Header | B25: 7 | C25: ="AVISTA UTILITIES -- "&Scen&CHAR(10)&"Pro-Forma Rate Base Dollars" -> AVISTA UTILITIES -- Base Case Pro-Forma Rate Base Dollars | D25: ="AVISTA UTILITIES -- "&Scen&CHAR(10)&"Rate Base Classification %'s" -> AVISTA UTILITIES -- Base Case Rate Base Classification %'s | E25: ="AVISTA UTILITIES -- "&Scen&CHAR(10)&"Classification Dollars" -> AVISTA UTILITIES -- Base Case Classification Dollars | F25: =E25 -> AVISTA UTILITIES -- Base Case Classification Dollars | G25: ="AVISTA UTILITIES -- "&Scen&CHAR(10)&"Pro-Forma Revenue Requirement Dollars" -> AVISTA UTILITIES -- Base Case Pro-Forma Revenue Requirement Dollars | H25: ="AVISTA UTILITIES -- "&Scen&CHAR(10)&"Revenue Requirement Classification %'s" -> AVISTA UTILITIES -- Base Case Revenue Requirement Classification %'s | I25: ="AVISTA UTILITIES -- "&Scen&CHAR(10)&"Classification Dollars" -> AVISTA UTILITIES -- Base Case Classification Dollars | J25: =I25 -> AVISTA UTILITIES -- Base Case Classification Dollars | K25: ="AVISTA UTILITIES -- "&Scen&CHAR(10)&"Pro-Forma Labor Expense" -> AVISTA UTILITIES -- Base Case Pro-Forma Labor Expense | L25: ="AVISTA UTILITIES -- "&Scen&CHAR(10)&"Pro-Forma Labor Expense" -> AVISTA UTILITIES -- Base Case Pro-Forma Labor Expense | M25: ="AVISTA UTILITIES -- "&Scen&CHAR(10)&"Cost of Service General Summary" -> AVISTA UTILITIES -- Base Case Cost of Service General Summary | N25: ="AVISTA UTILITIES -- "&Scen&CHAR(10)&"Allocation Percentages" -> AVISTA UTILITIES -- Base Case Allocation Percentages
A26: Center Header | B26: 8
A27: Right Header | B27: 9 | C27: WA Gas | D27: =$C27 -> WA Gas | E27: =$C27 -> WA Gas | F27: =$C27 -> WA Gas | G27: WA Gas | H27: =$G27 -> WA Gas | I27: WA Gas | J27: WA Gas | K27: WA Gas | L27: WA Gas | M27: WA Gas | N27: WA Gas
A28: Left Footer | B28: 10 | C28: =MID(C42,C44+1,C46-1)&" "&C47 -> Exhibit Nos. BCC-3, BCC-4, BCC-5.xlsm Detail | D28: =MID(D42,D44+1,D46-1)&" "&D47 -> Exhibit Nos. BCC-3, BCC-4, BCC-5.xlsm Detail | E28: Exhibit Nos. BCC-3, BCC-4, BCC-5.xlsm Detail | F28: Exhibit Nos. BCC-3, BCC-4, BCC-5.xlsm Detail | G28: Exhibit Nos. BCC-3, BCC-4, BCC-5.xlsm Detail | H28: Exhibit Nos. BCC-3, BCC-4, BCC-5.xlsm Detail | I28: Exhibit Nos. BCC-3, BCC-4, BCC-5.xlsm Detail | J28: Exhibit Nos. BCC-3, BCC-4, BCC-5.xlsm Detail | K28: Exhibit Nos. BCC-3, BCC-4, BCC-5.xlsm Detail | L28: Exhibit Nos. BCC-3, BCC-4, BCC-5.xlsm Detail | M28: Exhibit Nos. BCC-3, BCC-4, BCC-5.xlsm Summary | N28: Exhibit Nos. BCC-3, BCC-4, BCC-5.xlsm Factors
A29: Center Footer | B29: 11 | C29: =TODAY() -> 2016-08-17 | D29: =$C$29 -> 2016-08-17 | E29: =$C$29 -> 2016-08-17 | F29: 2016-08-17 | G29: 2016-08-17 | H29: 2016-08-17 | I29: 2016-08-17 | J29: 2016-08-17 | K29: 2016-08-17 | L29: 2016-08-17 | M29: 2016-08-17 | N29: 2016-08-17
A30: Right Footer | B30: 12 | C30: ="Page &P of "&$P$35 -> Page &P of 35 | D30: Page &P of 35 | E30: Page &P of 35 | F30: Page &P of 35 | G30: Page &P of 35 | H30: Page &P of 35 | I30: Page &P of 35 | J30: Page &P of 35 | K30: Page &P of 35 | L30: Page &P of 35 | M30: Page &P of 35 | N30: Page &P of 35
A31: 1st Pg # | B31: 13 | C31: =M35+1 -> 4 | D31: =C31+C35 -> 6 | E31: =H31+H35 -> 16 | F31: =E31+E35 -> 18 | G31: =D31+D35 -> 8 | H31: =G31+G35 -> 12 | I31: =F31+F35 -> 20 | J31: =I31+I35 -> 24 | K31: =J31+J35 -> 28 | L31: =K31+K35 -> 31 | M31: 1 | N31: =L31+L35 -> 34
A32: Preview (False=Print) | B32: 14 | C32: TRUE | D32: =$C$32 -> TRUE | E32: TRUE | F32: TRUE | G32: TRUE | H32: TRUE | I32: TRUE | J32: TRUE | K32: TRUE | L32: TRUE | M32: TRUE | N32: TRUE
A33: Zoom % w/print to fit | B33: 15
A35: Total Pages | C35: =C21*C22 -> 2 | D35: =D21*D22 -> 2 | E35: 2 | F35: 2 | G35: 4 | H35: 4 | I35: 4 | J35: 4 | K35: 3 | L35: 3 | M35: 3 | N35: 2 | P35: =SUM(C35:O35) -> 35
A37: H/F examples: | C37: "&F" & Chr(10) & "&A" | D37: would print FileName on one line and TabName on next
C38: "Page &P of &N" | D38: would print: Page 1 of 3
C39: "&D , &T" | D39: would print: 1/31/08, 18:00 in whatever format
A42: Path of Filename | C42: =CELL("filename",$A$1) -> C:\Projwork\10223 Avista Gas BCC\[Exhibit Nos. BCC-3, BCC-4, BCC-5.xlsm]Print | D42: =CELL("filename",$A$1) -> C:\Projwork\10223 Avista Gas BCC\[Exhibit Nos. BCC-3, BCC-4, BCC-5.xlsm]Print | E42: C:\Projwork\10223 Avista Gas BCC\[Exhibit Nos. BCC-3, BCC-4, BCC-5.xlsm]Print | F42: C:\Projwork\10223 Avista Gas BCC\[Exhibit Nos. BCC-3, BCC-4, BCC-5.xlsm]Print | G42: C:\Projwork\10223 Avista Gas BCC\[Exhibit Nos. BCC-3, BCC-4, BCC-5.xlsm]Print | H42: C:\Projwork\10223 Avista Gas BCC\[Exhibit Nos. BCC-3, BCC-4, BCC-5.xlsm]Print | I42: C:\Projwork\10223 Avista Gas BCC\[Exhibit Nos. BCC-3, BCC-4, BCC-5.xlsm]Print | J42: C:\Projwork\10223 Avista Gas BCC\[Exhibit Nos. BCC-3, BCC-4, BCC-5.xlsm]Print | K42: C:\Projwork\10223 Avista Gas BCC\[Exhibit Nos. BCC-3, BCC-4, BCC-5.xlsm]Print | L42: C:\Projwork\10223 Avista Gas BCC\[Exhibit Nos. BCC-3, BCC-4, BCC-5.xlsm]Print | M42: C:\Projwork\10223 Avista Gas BCC\[Exhibit Nos. BCC-3, BCC-4, BCC-5.xlsm]Print | N42: C:\Projwork\10223 Avista Gas BCC\[Exhibit Nos. BCC-3, BCC-4, BCC-5.xlsm]Print
A43: Length of Path | C43: =LEN(C42) -> 77 | D43: =$C43 -> 77 | E43: =$C43 -> 77 | F43: 77 | G43: 77 | H43: 77 | I43: 77 | J43: 77 | K43: 77 | L43: 77 | M43: 77 | N43: 77
A44: Filename start pt | C44: =FIND("[",C42,1) -> 34 | D44: =$C44 -> 34 | E44: 34 | F44: 34 | G44: 34 | H44: 34 | I44: 34 | J44: 34 | K44: 34 | L44: 34 | M44: 34 | N44: 34
A45: Filename end pt | C45: =FIND("]",C42,1) -> 72 | D45: 72 | E45: 72 | F45: 72 | G45: 72 | H45: 72 | I45: 72 | J45: 72 | K45: 72 | L45: 72 | M45: 72 | N45: 72
A46: Filename length | C46: =C45-C44 -> 38 | D46: 38 | E46: 38 | F46: 38 | G46: 38 | H46: 38 | I46: 38 | J46: 38 | K46: 38 | L46: 38 | M46: 38 | N46: 38
A47: Tab Name | C47: Detail | D47: Detail | E47: Detail | F47: Detail | G47: Detail | H47: Detail | I47: Detail | J47: Detail | K47: Detail | L47: Detail | M47: Summary | N47: Factors

Sheet Detail
A1: =ColHdr -> A | B1: =ColHdr -> B | C1: C | D1: D | E1: E | F1: F | G1: G | H1: H | I1: I | J1: J | K1: K | L1: L | M1: M | N1: N | O1: O | P1: P | Q1: Q | R1: R | S1: S | T1: T | U1: U | V1: V | W1: W | X1: X | Y1: Y | Z1: Z | AA1: AA | AB1: AB | AC1: AC | AD1: AD | AE1: AE | AF1: AF | AG1: AG | AH1: AH | AI1: AI | AJ1: AJ | AK1: AK | AL1: AL | AM1: AM | AN1: AN | AO1: AO | AP1: AP | AQ1: AQ | AR1: AR | AS1: AS | AT1: AT | AU1: AU | AV1: AV | AW1: AW | AX1: AX | AY1: AY | AZ1: AZ | BA1: BA | BB1: BB | BC1: BC | BD1: BD | BE1: BE | BF1: BF | BG1: BG | BH1: BH | BI1: BI | BJ1: BJ | BK1: BK | BL1: BL | BM1: BM | BN1: BN | BO1: =ColHdr -> BO | BP1: BP | BQ1: BQ | BR1: BR | BS1: BS | BT1: BT | BU1: BU | BV1: BV | BW1: BW | BX1: BX | BY1: BY | BZ1: BZ | CA1: CA | CB1: CB | CC1: CC | CD1: CD | CE1: CE | CF1: CF | CG1: CG | CH1: CH | CI1: CI | CJ1: CJ | CK1: CK | CL1: CL | CM1: CM | CN1: CN | CO1: CO | CP1: CP | CQ1: CQ | CR1: CR
A2: =RowHdr -> 2
A3: 3 | E3: Pro Forma | AS3: COMMODITY | BA3: DEMAND | BI3: CUSTOMER | CM3: Pro Forma
A4: 4 | E4: Cross Check | I4: =MATCH(I5,Factors!$C$58:$C$64,0) -> 1 | J4: =MATCH(J5,Factors!$C$58:$C$64,0) -> 2 | K4: =MATCH(K5,Factors!$C$58:$C$64,0) -> 3 | L4: =MATCH(L5,Factors!$C$58:$C$64,0) -> 4 | M4: =MATCH(M5,Factors!$C$58:$C$64,0) -> 5 | N4: =MATCH(N5,Factors!$C$58:$C$64,0) -> 6 | R4: COMMODITY | S4: COMMODITY | T4: COMMODITY | U4: COMMODITY | V4: COMMODITY | W4: DEMAND | X4: DEMAND | Y4: DEMAND | Z4: DEMAND | AA4: DEMAND | AB4: CUSTOMER | AC4: CUSTOMER | AD4: CUSTOMER | AE4: CUSTOMER | AF4: CUSTOMER | AG4: CUSTOMER | AH4: REVENUE | AT4: =MATCH(AT5,Factors!$C$58:$C$64,0) -> 1 | AU4: =MATCH(AU5,Factors!$C$58:$C$64,0) -> 2 | AV4: =MATCH(AV5,Factors!$C$58:$C$64,0) -> 3 | AW4: =MATCH(AW5,Factors!$C$58:$C$64,0) -> 4 | AX4: =MATCH(AX5,Factors!$C$58:$C$64,0) -> 5 | AY4: =MATCH(AY5,Factors!$C$58:$C$64,0) -> 6 | BB4: =MATCH(BB5,Factors!$C$58:$C$64,0) -> 1 | BC4: =MATCH(BC5,Factors!$C$58:$C$64,0) -> 2 | BD4: =MATCH(BD5,Factors!$C$58:$C$64,0) -> 3 | BE4: =MATCH(BE5,Factors!$C$58:$C$64,0) -> 4 | BF4: =MATCH(BF5,Factors!$C$58:$C$64,0) -> 5 | BG4: =MATCH(BG5,Factors!$C$58:$C$64,0) -> 6 | BJ4: =MATCH(BJ5,Factors!$C$58:$C$64,0) -> 1 | BK4: =MATCH(BK5,Factors!$C$58:$C$64,0) -> 2 | BL4: =MATCH(BL5,Factors!$C$58:$C$64,0) -> 3 | BM4: =MATCH(BM5,Factors!$C$58:$C$64,0) -> 4 | BN4: =MATCH(BN5,Factors!$C$58:$C$64,0) -> 5 | BO4: =MATCH(BO5,Factors!$C$58:$C$64,0) -> 6 | BR4: Proforma | CM4: Cross Check
A5: 5 | B5: Acct | C5: Func | D5: Description | E5: Totals | F5: classif. basis (line) | G5: derived classif. | H5: Total | I5: Sch 101 | J5: Sch 111 | K5: Sch 121 | L5: Sch 131 | M5: Sch 146 | N5: Open | P5: source | R5: Throughput | S5: Sales | T5: Therms - Small Mains | U5: Purchased Gas - Commodity | V5: GTI Expense | W5: Coincident Peak - All | X5: Coincident Peak - Small Mains | Y5: Purchased Gas - Demand | Z5: DA 131 | AA5: DA 146 | AB5: All Customers | AC5: Service Cost | AD5: Meter Cost | AE5: 4-Factor | AF5: Ind Meas & Reg Cost | AG5: DA 101 | AH5: Revenues From Retail Rates | AK5: Total | AL5: Commodity | AM5: Demand | AN5: Customer | AO5: Revenue | AQ5: source | AS5: Total | AT5: Sch 101 | AU5: Sch 111 | AV5: Sch 121 | AW5: Sch 131 | AX5: Sch 146 | AY5: Open | BA5: Total | BB5: Sch 101 | BC5: Sch 111 | BD5: Sch 121 | BE5: Sch 131 | BF5: Sch 146 | BG5: Open | BI5: Total | BJ5: Sch 101 | BK5: Sch 111 | BL5: Sch 121 | BM5: Sch 131 | BN5: Sch 146 | BO5: Open | BR5: Labor Totals | CM5: Labor Totals
A6: 6 | R6: E01 | S6: E04 | T6: E06 | U6: E07 | V6: E08 | W6: D01 | X6: D02 | Y6: D05 | Z6: D06 | AA6: D07 | AB6: C01 | AC6: C02 | AD6: C03 | AE6: C04 | AF6: C06 | AG6: C10 | AH6: R01 | BR6: (see below) | CM6: (see below)
A7: 7 | D7: Rate Base | AI7: =IF(SUM(R7:AH7)<>0,(ROUND(SUM(R7:AH7),8)<>1)+0,0) -> 0
A8: 8 | D8: Plant In Service | AI8: 0
A9: 9 | D9: Intangible Plant | AI9: 0
A10: 10 | B10: 303 | C10: D | D10: Intangible Gas Plant | E10: =PROFORMA!AW250 -> 2278000 | F10: ="as Distrib Plant ("&A$40&")" -> as Distrib Plant (40) | H10: =SUM(I10:N10) -> 2278000 | I10: =$E10*SUMPRODUCT($R10:$AH10,INDEX(AllocFactors,I$4,0)) -> 1953365.039 | J10: 228372.2732 | K10: 16761.11093 | L10: 3714.841938 | M10: 75786.73479 | N10: 0 | P10: =E$1&$A10&"* Sum["&$R$1&$A10&":"&$AH$1&$A10&"* "&Factors!D$1&Factors!$A$58&":"&Factors!S$1&Factors!$A$64&"]" -> E10* Sum[R10:AH10* D1037:S1043] | R10: =R$40 -> 0 | S10: =S$40 -> 0 | T10: 0 | U10: 0 | V10: 0 | W10: 0.2997055275 | X10: 0 | Y10: 0 | Z10: 0 | AA10: 0 | AB10: 0.2001307384 | AC10: 0.3442913001 | AD10: 0.1487756598 | AE10: 0 | AF10: 0.007096774194 | AG10: 0 | AH10: 0 | AI10: =IF(SUM(R10:AH10)<>0,(ROUND(SUM(R10:AH10),8)<>1)+0,0) -> 0 | AK10: =SUM(AL10:AO10) -> 2278000 | AL10: =SUMIF($R$4:$AH$4,AL$5,$R10:$AH10)*$E10 -> 0 | AM10: 682729.1917 | AN10: 1595270.808 | AO10: 0 | AQ10: =E$1&$A10&"*["&R$1&$A10&":"&$AH$1&$A10&" when "&R$1&$A$4&":"&$AH$1&$A$4&" = E,D,C,or R]" -> E10*[R10:AH10 when R4:AH4 = E,D,C,or R] | AS10: =SUM(AT10:AY10) -> 0 | AT10: =$E10*SUMPRODUCT($R10:$V10,INDEX(AllocFactors_E,AT$4,0)) -> 0 | AU10: 0 | AV10: 0 | AW10: 0 | AX10: 0 | AY10: 0 | BA10: =SUM(BB10:BG10) -> 682729.1917 | BB10: =$E10*SUMPRODUCT($W10:$AA10,INDEX(AllocFactors_D,BB$4,0)) -> 446745.4058 | BC10: 152481.8518 | BD10: 14766.83136 | BE10: 2894.891847 | BF10: 65840.2109 | BG10: 0 | BI10: =SUM(BJ10:BO10) -> 1595270.808 | BJ10: =$E10*SUMPRODUCT($AB10:$AG10,INDEX(AllocFactors_C,BJ$4,0)) -> 1506619.633 | BK10: 75890.42136 | BL10: 1994.279568 | BM10: 819.9500907 | BN10: 9946.523891 | BO10: 0
A11: 11 | B11: 303.1 | C11: O | D11: Miscellaneous - Computer Software | E11: =PROFORMA!AW251 -> 17474000 | F11: 4-Factor | H11: =SUM(I11:N11) -> 17474000 | I11: 15747428.92 | J11: 1303186.152 | K11: 91759.92518 | L11: 19768.29745 | M11: 311856.7079 | N11: 0 | P11: Corporate Cost Allocator (4-Factor) | R11: =(R$114*0.25)+(R$251*0.25)+(BS$250*0.25) -> 0.008069056373 | S11: =(S$114*0.25)+(S$251*0.25)+(BT$250*0.25) -> 0.0438466321 | T11: 0 | U11: 0 | V11: 0 | W11: 0.1432533734 | X11: 0 | Y11: 0 | Z11: 0 | AA11: 0 | AB11: =(AB$114*0.25)+(AB$251*0.25)+(CC$250*0.25)+0.25 -> 0.5381044981 | AC11: 0.1518891359 | AD11: 0.110778312 | AE11: 0 | AF11: 0.004058992084 | AG11: 0 | AH11: 0 | AI11: 0 | AK11: =SUM(AL11:AO11) -> 17474000 | AL11: 907174.7403 | AM11: 2503209.447 | AN11: 14063615.81 | AO11: 0 | AQ11: =E$1&$A11&"* """ -> E11* " | AS11: =SUM(AT11:AY11) -> 907174.7403 | AT11: 612165.0658 | AU11: 242975.5627 | AV11: 26543.52551 | AW11: 4777.963834 | AX11: 20712.62246 | AY11: 0 | BA11: =SUM(BB11:BG11) -> 2503209.447 | BB11: 1637980.819 | BC11: 559070.883 | BD11: 54142.21659 | BE11: 10614.04831 | BF11: 241401.4809 | BG11: 0 | BI11: =SUM(BJ11:BO11) -> 14063615.81 | BJ11: 13497283.03 | BK11: 501139.7059 | BL11: 11074.18308 | BM11: 4376.285313 | BN11: 49742.60452 | BO11: 0
A12: 12 | D12: Total Intangible Plant | E12: =SUM(E9:E11) -> 19752000 | H12: =IF(ROUND(SUM(H10:H11),3)<>ROUND(SUM(I12:N12),3),#VALUE!,SUM(H10:H11)) -> 19752000 | I12: =SUM(I10:I11) -> 17700793.96 | J12: 1531558.425 | K12: 108521.0361 | L12: 23483.13939 | M12: 387643.4427 | N12: 0 | P12: =A10&":"&A11 -> 10:11 | R12: =SUMPRODUCT($E10:$E11,R$10:R$11)/$E12 -> 0.00713845135 | S12: =SUMPRODUCT($E10:$E11,S$10:S$11)/$E12 -> 0.03878979593 | T12: 0 | U12: 0 | V12: 0 | W12: 0.1612970149 | X12: 0 | Y12: 0 | Z12: 0 | AA12: 0 | AB12: 0.4991259529 | AC12: 0.1740788954 | AD12: 0.1151605497 | AE12: 0 | AF12: 0.004409339778 | AG12: 0 | AH12: 0 | AI12: 0 | AK12: =IF(ROUND(SUM(AK10:AK11),3)<>ROUND(SUM(AL12:AO12),3),#VALUE!,SUM(AK10:AK11)) -> 19752000 | AL12: =SUM(AL10:AL11) -> 907174.7403 | AM12: =SUM(AM10:AM11) -> 3185938.639 | AN12: =SUM(AN10:AN11) -> 15658886.62 | AO12: =SUM(AO10:AO11) -> 0 | AQ12: =$A10&":"&$A11 -> 10:11 | AS12: =IF(ROUND(SUM(AS10:AS11),3)<>ROUND(SUM(AT12:AY12),3),#VALUE!,SUM(AS10:AS11)) -> 907174.7403 | AT12: =SUM(AT10:AT11) -> 612165.0658 | AU12: 242975.5627 | AV12: 26543.52551 | AW12: 4777.963834 | AX12: 20712.62246 | AY12: 0 | BA12: =IF(ROUND(SUM(BA10:BA11),3)<>ROUND(SUM(BB12:BG12),3),#VALUE!,SUM(BA10:BA11)) -> 3185938.639 | BB12: =SUM(BB10:BB11) -> 2084726.224 | BC12: 711552.7349 | BD12: 68909.04795 | BE12: 13508.94015 | BF12: 307241.6918 | BG12: 0 | BI12: =IF(ROUND(SUM(BI10:BI11),3)<>ROUND(SUM(BJ12:BO12),3),#VALUE!,SUM(BI10:BI11)) -> 15658886.62 | BJ12: =SUM(BJ10:BJ11) -> 15003902.67 | BK12: 577030.1272 | BL12: 13068.46265 | BM12: 5196.235404 | BN12: 59689.12841 | BO12: 0
A13: 13 | AI13: 0
A14: 14 | D14: Underground Storage Plant | AI14: 0
A15: 15 | B15: 350 | C15: U | D15: Land & Land Rights | E15: =PROFORMA!AW255 -> 331000 | F15: Input - Settlement | H15: =SUM(I15:N15) -> 331000 | I15: =$E15*SUMPRODUCT($R15:$AH15,INDEX(AllocFactors,I$4,0)) -> 224213.8585 | J15: =$E15*SUMPRODUCT($R15:$AH15,INDEX(AllocFactors,J$4,0)) -> 88993.13513 | K15: =$E15*SUMPRODUCT($R15:$AH15,INDEX(AllocFactors,K$4,0)) -> 9721.930577 | L15: =$E15*SUMPRODUCT($R15:$AH15,INDEX(AllocFactors,L$4,0)) -> 1749.994841 | M15: =$E15*SUMPRODUCT($R15:$AH15,INDEX(AllocFactors,M$4,0)) -> 6321.080983 | N15: =$E15*SUMPRODUCT($R15:$AH15,INDEX(AllocFactors,N$4,0)) -> 0 | P15: =E$1&$A15&"* Sum["&$R$1&$A15&":"&$AH$1&$A15&"* "&Factors!D$1&Factors!$A$58&":"&Factors!S$1&Factors!$A$64&"]" -> E15* Sum[R15:AH15* D1037:S1043] | R15: 0.13 | S15: 0.87 | T15: 0 | U15: 0 | V15: 0 | W15: 0 | X15: 0 | Y15: 0 | Z15: 0 | AA15: 0 | AB15: 0 | AC15: 0 | AD15: 0 | AE15: 0 | AF15: 0 | AG15: 0 | AH15: 0 | AI15: 0 | AK15: =SUM(AL15:AO15) -> 331000 | AL15: =SUMIF($R$4:$AH$4,AL$5,$R15:$AH15)*$E15 -> 331000 | AM15: 0 | AN15: 0 | AO15: 0 | AQ15: =E$1&$A15&"*["&R$1&$A15&":"&$AH$1&$A15&" when "&R$1&$A$4&":"&$AH$1&$A$4&" = E,D,C,or R]" -> E15*[R15:AH15 when R4:AH4 = E,D,C,or R] | AS15: =SUM(AT15:AY15) -> 331000 | AT15: =$E15*SUMPRODUCT($R15:$V15,INDEX(AllocFactors_E,AT$4,0)) -> 224213.8585 | AU15: 88993.13513 | AV15: 9721.930577 | AW15: 1749.994841 | AX15: 6321.080983 | AY15: 0 | BA15: =SUM(BB15:BG15) -> 0 | BB15: =$E15*SUMPRODUCT($W15:$AA15,INDEX(AllocFactors_D,BB$4,0)) -> 0 | BC15: 0 | BD15: 0 | BE15: 0 | BF15: 0 | BG15: 0 | BI15: =SUM(BJ15:BO15) -> 0 | BJ15: =$E15*SUMPRODUCT($AB15:$AG15,INDEX(AllocFactors_C,BJ$4,0)) -> 0 | BK15: 0 | BL15: 0 | BM15: 0 | BN15: 0 | BO15: 0
A16: 16 | B16: 351 | C16: U | D16: Structures & Improvements | E16: =PROFORMA!AW256 -> 1174000 | F16: Input - Settlement | H16: 1174000 | I16: =$E16*SUMPRODUCT($R16:$AH16,INDEX(AllocFactors,I$4,0)) -> 795247.9451 | J16: 315643.3252 | K16: 34482.01359 | L16: 6206.930341 | M16: 22419.78572 | N16: 0 | P16: =E$1&$A16&"* """ -> E16* " | R16: 0.13 | S16: 0.87 | T16: 0 | U16: 0 | V16: 0 | W16: 0 | X16: 0 | Y16: 0 | Z16: 0 | AA16: 0 | AB16: 0 | AC16: 0 | AD16: 0 | AE16: 0 | AF16: 0 | AG16: 0 | AH16: 0 | AI16: 0 | AK16: 1174000 | AL16: 1174000 | AM16: 0 | AN16: 0 | AO16: 0 | AQ16: =E$1&$A16&"* """ -> E16* " | AS16: 1174000 | AT16: 795247.9451 | AU16: 315643.3252 | AV16: 34482.01359 | AW16: 6206.930341 | AX16: 22419.78572 | AY16: 0 | BA16: 0 | BB16: 0 | BC16: 0 | BD16: 0 | BE16: 0 | BF16: 0 | BG16: 0 | BI16: 0 | BJ16: 0 | BK16: 0 | BL16: 0 | BM16: 0 | BN16: 0 | BO16: 0
A17: 17 | B17: 352 | C17: U | D17: Wells | E17: =PROFORMA!AW257 -> 13174000 | F17: Input - Settlement | H17: =SUM(I17:N17) -> 13174000 | I17: 8923847.044 | J17: 3541980.551 | K17: 386938.7112 | L17: 69650.85206 | M17: 251582.8425 | N17: 0 | P17: E17* " | R17: 0.13 | S17: 0.87 | T17: 0 | U17: 0 | V17: 0 | W17: 0 | X17: 0 | Y17: 0 | Z17: 0 | AA17: 0 | AB17: 0 | AC17: 0 | AD17: 0 | AE17: 0 | AF17: 0 | AG17: 0 | AH17: 0 | AI17: 0 | AK17: 13174000 | AL17: 13174000 | AM17: 0 | AN17: 0 | AO17: 0 | AQ17: =E$1&$A17&"* """ -> E17* " | AS17: 13174000 | AT17: 8923847.044 | AU17: 3541980.551 | AV17: 386938.7112 | AW17: 69650.85206 | AX17: 251582.8425 | AY17: 0 | BA17: 0 | BB17: 0 | BC17: 0 | BD17: 0 | BE17: 0 | BF17: 0 | BG17: 0 | BI17: 0 | BJ17: 0 | BK17: 0 | BL17: 0 | BM17: 0 | BN17: 0 | BO17: 0
A18: 18 | B18: 353 | C18: U | D18: Lines | E18: =PROFORMA!AW258 -> 740000 | F18: Input - Settlement | H18: =SUM(I18:N18) -> 740000 | I18: 501263.6111 | J18: 198957.4622 | K18: 21734.82969 | L18: 3912.375173 | M18: 14131.72183 | N18: 0 | P18: E18* " | R18: 0.13 | S18: 0.87 | T18: 0 | U18: 0 | V18: 0 | W18: 0 | X18: 0 | Y18: 0 | Z18: 0 | AA18: 0 | AB18: 0 | AC18: 0 | AD18: 0 | AE18: 0 | AF18: 0 | AG18: 0 | AH18: 0 | AI18: 0 | AK18: 740000 | AL18: 740000 | AM18: 0 | AN18: 0 | AO18: 0 | AQ18: E18* " | AS18: 740000 | AT18: 501263.6111 | AU18: 198957.4622 | AV18: 21734.82969 | AW18: 3912.375173 | AX18: 14131.72183 | AY18: 0 | BA18: 0 | BB18: 0 | BC18: 0 | BD18: 0 | BE18: 0 | BF18: 0 | BG18: 0 | BI18: 0 | BJ18: 0 | BK18: 0 | BL18: 0 | BM18: 0 | BN18: 0 | BO18: 0
A19: 19 | B19: 354 | C19: U | D19: Compressor Station Equipment | E19: =PROFORMA!AW259 -> 8347000 | F19: Input - Settlement | H19: 8347000 | I19: 5654118.056 | J19: 2244186.402 | K19: 245163.0046 | L19: 44130.53455 | M19: 159402.0029 | N19: 0 | P19: E19* " | R19: 0.13 | S19: 0.87 | T19: 0 | U19: 0 | V19: 0 | W19: 0 | X19: 0 | Y19: 0 | Z19: 0 | AA19: 0 | AB19: 0 | AC19: 0 | AD19: 0 | AE19: 0 | AF19: 0 | AG19: 0 | AH19: 0 | AI19: 0 | AK19: 8347000 | AL19: 8347000 | AM19: 0 | AN19: 0 | AO19: 0 | AQ19: E19* " | AS19: 8347000 | AT19: 5654118.056 | AU19: 2244186.402 | AV19: 245163.0046 | AW19: 44130.53455 | AX19: 159402.0029 | AY19: 0 | BA19: 0 | BB19: 0 | BC19: 0 | BD19: 0 | BE19: 0 | BF19: 0 | BG19: 0 | BI19: 0 | BJ19: 0 | BK19: 0 | BL19: 0 | BM19: 0 | BN19: 0 | BO19: 0
A20: 20 | B20: 355 | C20: U | D20: Measuring & Regulating Equipment | E20: =PROFORMA!AW260 -> 320000 | F20: Input - Settlement | H20: 320000 | I20: 216762.6426 | J20: 86035.65934 | K20: 9398.845271 | L20: 1691.837912 | M20: 6111.014847 | N20: 0 | P20: E20* " | R20: 0.13 | S20: 0.87 | T20: 0 | U20: 0 | V20: 0 | W20: 0 | X20: 0 | Y20: 0 | Z20: 0 | AA20: 0 | AB20: 0 | AC20: 0 | AD20: 0 | AE20: 0 | AF20: 0 | AG20: 0 | AH20: 0 | AI20: 0 | AK20: 320000 | AL20: 320000 | AM20: 0 | AN20: 0 | AO20: 0 | AQ20: E20* " | AS20: 320000 | AT20: 216762.6426 | AU20: 86035.65934 | AV20: 9398.845271 | AW20: 1691.837912 | AX20: 6111.014847 | AY20: 0 | BA20: 0 | BB20: 0 | BC20: 0 | BD20: 0 | BE20: 0 | BF20: 0 | BG20: 0 | BI20: 0 | BJ20: 0 | BK20: 0 | BL20: 0 | BM20: 0 | BN20: 0 | BO20: 0
A21: 21 | B21: 356 | C21: U | D21: Purification Equipment | E21: =PROFORMA!AW261 -> 286000 | F21: Input - Settlement | H21: 286000 | I21: 193731.6118 | J21: 76894.37054 | K21: 8400.217961 | L21: 1512.080134 | M21: 5461.71952 | N21: 0 | P21: E21* " | R21: 0.13 | S21: 0.87 | T21: 0 | U21: 0 | V21: 0 | W21: 0 | X21: 0 | Y21: 0 | Z21: 0 | AA21: 0 | AB21: 0 | AC21: 0 | AD21: 0 | AE21: 0 | AF21: 0 | AG21: 0 | AH21: 0 | AI21: 0 | AK21: 286000 | AL21: 286000 | AM21: 0 | AN21: 0 | AO21: 0 | AQ21: E21* " | AS21: 286000 | AT21: 193731.6118 | AU21: 76894.37054 | AV21: 8400.217961 | AW21: 1512.080134 | AX21: 5461.71952 | AY21: 0 | BA21: 0 | BB21: 0 | BC21: 0 | BD21: 0 | BE21: 0 | BF21: 0 | BG21: 0 | BI21: 0 | BJ21: 0 | BK21: 0 | BL21: 0 | BM21: 0 | BN21: 0 | BO21: 0
A22: 22 | B22: 357 | C22: U | D22: Other Equipment | E22: =PROFORMA!AW262 -> 2980000 | F22: Input - Settlement | H22: 2980000 | I22: 2018602.109 | J22: 801207.0776 | K22: 87526.74658 | L22: 15755.24056 | M22: 56908.82576 | N22: 0 | P22: E22* " | R22: 0.13 | S22: 0.87 | T22: 0 | U22: 0 | V22: 0 | W22: 0 | X22: 0 | Y22: 0 | Z22: 0 | AA22: 0 | AB22: 0 | AC22: 0 | AD22: 0 | AE22: 0 | AF22: 0 | AG22: 0 | AH22: 0 | AI22: 0 | AK22: 2980000 | AL22: 2980000 | AM22: 0 | AN22: 0 | AO22: 0 | AQ22: E22* " | AS22: 2980000 | AT22: 2018602.109 | AU22: 801207.0776 | AV22: 87526.74658 | AW22: 15755.24056 | AX22: 56908.82576 | AY22: 0 | BA22: 0 | BB22: 0 | BC22: 0 | BD22: 0 | BE22: 0 | BF22: 0 | BG22: 0 | BI22: 0 | BJ22: 0 | BK22: 0 | BL22: 0 | BM22: 0 | BN22: 0 | BO22: 0
A23: 23 | D23: Total Underground Storage Plant | E23: =SUM(E15:E22) -> 27352000 | G23: UG Storage Plant (S14) | H23: =IF(ROUND(SUM(H14:H22),3)<>ROUND(SUM(I23:N23),3),#VALUE!,SUM(H14:H22)) -> 27352000 | I23: =SUM(I14:I22) -> 18527786.88 | J23: 7353897.982 | K23: 803366.2995 | L23: 144609.8456 | M23: 522338.9941 | N23: 0 | P23: =$A14&":"&A22 -> 14:22 | R23: =SUMPRODUCT($E15:$E22,R$15:R$22)/$E23 -> 0.13 | S23: 0.87 | T23: 0 | U23: 0 | V23: 0 | W23: 0 | X23: 0 | Y23: 0 | Z23: 0 | AA23: 0 | AB23: 0 | AC23: 0 | AD23: 0 | AE23: 0 | AF23: 0 | AG23: 0 | AH23: 0 | AI23: 0 | AK23: =IF(ROUND(SUM(AK14:AK22),3)<>ROUND(SUM(AL23:AO23),3),#VALUE!,SUM(AK14:AK22)) -> 27352000 | AL23: =SUM(AL14:AL22) -> 27352000 | AM23: =SUM(AM14:AM22) -> 0 | AN23: =SUM(AN14:AN22) -> 0 | AO23: =SUM(AO14:AO22) -> 0 | AQ23: =$A14&":"&$A22 -> 14:22 | AS23: =IF(ROUND(SUM(AS14:AS22),3)<>ROUND(SUM(AT23:AY23),3),#VALUE!,SUM(AS14:AS22)) -> 27352000 | AT23: =SUM(AT14:AT22) -> 18527786.88 | AU23: 7353897.982 | AV23: 803366.2995 | AW23: 144609.8456 | AX23: 522338.9941 | AY23: 0 | BA23: =IF(ROUND(SUM(BA14:BA22),3)<>ROUND(SUM(BB23:BG23),3),#VALUE!,SUM(BA14:BA22)) -> 0 | BB23: =SUM(BB14:BB22) -> 0 | BC23: 0 | BD23: 0 | BE23: 0 | BF23: 0 | BG23: 0 | BI23: =IF(ROUND(SUM(BI14:BI22),3)<>ROUND(SUM(BJ23:BO23),3),#VALUE!,SUM(BI14:BI22)) -> 0 | BJ23: =SUM(BJ14:BJ22) -> 0 | BK23: 0 | BL23: 0 | BM23: 0 | BN23: 0 | BO23: 0
A24: 24 | AI24: 0
A25: 25 | D25: Distribution Plant | AI25: 0
A26: 26 | B26: 374 | C26: D | D26: Land & Land Rights | E26: =PROFORMA!AW266 -> 201000 | F26: ="as other Dist Plt ("&A$28&"-"&A$38&")" -> as other Dist Plt (28-38) | H26: =SUM(I26:N26) -> 201000 | I26: =$E26*SUMPRODUCT($R26:$AH26,INDEX(AllocFactors,I$4,0)) -> 172355.7387 | J26: 20150.49469 | K26: 1478.921552 | L26: 327.780171 | M26: 6687.064835 | N26: 0 | P26: =E$1&$A26&"* Sum["&$R$1&$A26&":"&$AH$1&$A26&"* "&Factors!D$1&Factors!$A$58&":"&Factors!S$1&Factors!$A$64&"]" -> E26* Sum[R26:AH26* D1037:S1043] | R26: =SUMPRODUCT($E$28:$E$38,R$28:R$38)/SUM($E$28:$E$38) -> 0 | S26: 0 | T26: =SUMPRODUCT($E$28:$E$38,T$28:T$38)/SUM($E$28:$E$38) -> 0 | U26: 0 | V26: 0 | W26: 0.2997055275 | X26: 0 | Y26: 0 | Z26: 0 | AA26: 0 | AB26: =SUMPRODUCT($E$28:$E$38,AB$28:AB$38)/SUM($E$28:$E$38) -> 0.2001307384 | AC26: 0.3442913001 | AD26: 0.1487756598 | AE26: 0 | AF26: 0.007096774194 | AG26: 0 | AH26: 0 | AI26: 0 | AK26: =SUM(AL26:AO26) -> 201000 | AL26: =SUMIF($R$4:$AH$4,AL$5,$R26:$AH26)*$E26 -> 0 | AM26: 60240.81103 | AN26: 140759.189 | AO26: 0 | AQ26: =E$1&$A26&"*["&R$1&$A26&":"&$AH$1&$A26&" when "&R$1&$A$4&":"&$AH$1&$A$4&" = E,D,C,or R]" -> E26*[R26:AH26 when R4:AH4 = E,D,C,or R] | AS26: =SUM(AT26:AY26) -> 0 | AT26: =$E26*SUMPRODUCT($R26:$V26,INDEX(AllocFactors_E,AT$4,0)) -> 0 | AU26: 0 | AV26: 0 | AW26: 0 | AX26: 0 | AY26: 0 | BA26: =SUM(BB26:BG26) -> 60240.81103 | BB26: =$E26*SUMPRODUCT($W26:$AA26,INDEX(AllocFactors_D,BB$4,0)) -> 39418.71227 | BC26: 13454.28104 | BD26: 1302.955708 | BE26: 255.4316336 | BF26: 5809.430374 | BG26: 0 | BI26: =SUM(BJ26:BO26) -> 140759.189 | BJ26: =$E26*SUMPRODUCT($AB26:$AG26,INDEX(AllocFactors_C,BJ$4,0)) -> 132937.0265 | BK26: 6696.21365 | BL26: 175.9658443 | BM26: 72.34853742 | BN26: 877.634461 | BO26: 0
A27: 27 | B27: 375 | C27: D | D27: Structures & Improvements | E27: =PROFORMA!AW267 -> 614000 | F27: ="as other Dist Plt ("&A$28&"-"&A$38&")" -> as other Dist Plt (28-38) | H27: 614000 | I27: 526499.6199 | J27: 61554.24747 | K27: 4517.700663 | L27: 1001.278731 | M27: 20427.15328 | N27: 0 | P27: =E$1&$A27&"* """ -> E27* " | R27: =SUMPRODUCT($E$28:$E$38,R$28:R$38)/SUM($E$28:$E$38) -> 0 | S27: 0 | T27: =SUMPRODUCT($E$28:$E$38,T$28:T$38)/SUM($E$28:$E$38) -> 0 | U27: 0 | V27: 0 | W27: 0.2997055275 | X27: 0 | Y27: 0 | Z27: 0 | AA27: 0 | AB27: 0.2001307384 | AC27: 0.3442913001 | AD27: 0.1487756598 | AE27: 0 | AF27: 0.007096774194 | AG27: 0 | AH27: 0 | AI27: 0 | AK27: 614000 | AL27: 0 | AM27: 184019.1939 | AN27: 429980.8061 | AO27: 0 | AQ27: =E$1&$A27&"* """ -> E27* " | AS27: 0 | AT27: 0 | AU27: 0 | AV27: 0 | AW27: 0 | AX27: 0 | AY27: 0 | BA27: 184019.1939 | BB27: 120413.3798 | BC27: 41099.14707 | BD27: 3980.173158 | BE27: 780.2737463 | BF27: 17746.22015 | BG27: 0 | BI27: 429980.8061 | BJ27: 406086.2401 | BK27: 20455.1004 | BL27: 537.5275043 | BM27: 221.0049849 | BN27: 2680.93313 | BO27: 0
A28: 28 | B28: 376-All | C28: D | D28: Mains | E28: =PROFORMA!AW268+PROFORMA!AW269 -> 198598000 | F28: Input - Peak & Avg Calc | G28: oth Dist Plt (S05); (S06); (S21) | H28: 198598000 | I28: =$E28*SUMPRODUCT($R28:$AH28,INDEX(AllocFactors,I$4,0)) -> 156825686.1 | J28: 27462857.14 | K28: 2538636.894 | L28: 495915.8548 | M28: 11274904 | N28: 0 | P28: E28* " | R28: 0 | T28: 0 | W28: =1-AB28 -> 0.5876418789 | Z28: 0 | AB28: ='Mains - Weighted Cost'!I34 -> 0.4123581211 | AC28: 0 | AD28: 0 | AE28: 0 | AF28: 0 | AG28: 0 | AH28: 0 | AI28: 0 | AK28: 198598000 | AL28: =SUMIF($R$4:$AH$4,AL$5,$R28:$AH28)*$E28 -> 0 | AM28: 116704501.9 | AN28: 81893498.14 | AO28: 0 | AQ28: =E$1&$A28&"* """ -> E28* " | AS28: 0 | AT28: =$E28*SUMPRODUCT($R28:$V28,INDEX(AllocFactors_E,AT$4,0)) -> 0 | AU28: =$E28*SUMPRODUCT($R28:$V28,INDEX(AllocFactors_E,AU$4,0)) -> 0 | AV28: 0 | AW28: 0 | AX28: 0 | AY28: 0 | BA28: 116704501.9 | BB28: 76365857.32 | BC28: 26064973.9 | BD28: 2524215.632 | BE28: 494847.6132 | BF28: 11254607.4 | BG28: 0 | BI28: 81893498.14 | BJ28: 80459828.8 | BK28: 1397883.241 | BL28: 14421.2625 | BM28: 1068.241667 | BN28: 20296.59167 | BO28: 0
A29: 29 | B29: 376 | C29: D | D29: Mains | F29: Input - Peak & Avg w/131&146 | G29: oth Dist Plt (S05); (S06); (S21) | H29: =SUM(I29:N29) -> 0 | I29: 0 | J29: 0 | K29: 0 | L29: 0 | M29: =$E29*SUMPRODUCT($R29:$AH29,INDEX(AllocFactors,M$4,0)) -> 0 | N29: 0 | P29: =E$1&$A29&"* """ -> E29* " | AI29: =IF(SUM(R29:AH29)<>0,(ROUND(SUM(R29:AH29),8)<>1)+0,0) -> 0 | AK29: =SUM(AL29:AO29) -> 0 | AL29: 0 | AM29: 0 | AN29: 0 | AO29: 0 | AQ29: =E$1&$A29&"* """ -> E29* " | AS29: =SUM(AT29:AY29) -> 0 | AT29: 0 | AU29: 0 | AV29: 0 | AW29: 0 | AX29: 0 | AY29: 0 | BA29: =SUM(BB29:BG29) -> 0 | BB29: =$E29*SUMPRODUCT($W29:$AA29,INDEX(AllocFactors_D,BB$4,0)) -> 0 | BC29: 0 | BD29: 0 | BE29: 0 | BF29: 0 | BG29: 0 | BI29: =SUM(BJ29:BO29) -> 0 | BJ29: 0 | BK29: 0 | BL29: 0 | BM29: 0 | BN29: 0 | BO29: 0
A30: 30 | B30: 376 | C30: D | D30: Mains | F30: Input - Peak & Avg w/131&146 | G30: oth Dist Plt (S05); (S06); (S21) | H30: 0 | I30: 0 | J30: 0 | K30: 0 | L30: 0 | M30: =$E30*SUMPRODUCT($R30:$AH30,INDEX(AllocFactors,M$4,0)) -> 0 | N30: 0 | P30: E30* " | AI30: =IF(SUM(R30:AH30)<>0,(ROUND(SUM(R30:AH30),8)<>1)+0,0) -> 0 | AK30: 0 | AL30: =SUMIF($R$4:$AH$4,AL$5,$R30:$AH30)*$E30 -> 0 | AM30: 0 | AN30: 0 | AO30: 0 | AQ30: E30* " | AS30: 0 | AT30: 0 | AU30: 0 | AV30: 0 | AW30: 0 | AX30: 0 | AY30: 0 | BA30: 0 | BB30: 0 | BC30: 0 | BD30: 0 | BE30: 0 | BF30: 0 | BG30: 0 | BI30: 0 | BJ30: 0 | BK30: 0 | BL30: 0 | BM30: 0 | BN30: 0 | BO30: 0
A31: 31 | B31: 378 | C31: D | D31: Meas & Reg Station Equip-General | E31: =PROFORMA!AW270 -> 3772000 | F31: Input - Peak & Avg Calc | G31: oth Dist Plt (S05); (S08) | H31: 3772000 | I31: 2468216.814 | J31: 842444.6356 | K31: 81585.03923 | L31: 15993.9434 | M31: 363759.5675 | N31: 0 | P31: E31* " | R31: 0 | W31: 1 | AB31: 0 | AI31: 0 | AK31: 3772000 | AL31: 0 | AM31: 3772000 | AN31: 0 | AO31: 0 | AQ31: E31* " | AS31: 0 | AT31: 0 | AU31: 0 | AV31: 0 | AW31: 0 | AX31: 0 | AY31: 0 | BA31: 3772000 | BB31: 2468216.814 | BC31: 842444.6356 | BD31: 81585.03923 | BE31: 15993.9434 | BF31: 363759.5675 | BG31: 0 | BI31: 0 | BJ31: 0 | BK31: 0 | BL31: 0 | BM31: 0 | BN31: 0 | BO31: 0
A32: 32 | B32: 379 | C32: D | D32: Meas & Reg Station Equip-City Gate | E32: =PROFORMA!AW271 -> 2163000 | F32: Input - Peak & Avg Calc | G32: oth Dist Plt (S05); (S09) | H32: 2163000 | I32: 1415363.99 | J32: 483087.9498 | K32: 46783.78575 | L32: 9171.500415 | M32: 208592.7743 | N32: 0 | P32: E32* " | R32: 0 | W32: =1-AB32 -> 1 | AB32: =AB31 -> 0 | AI32: 0 | AK32: 2163000 | AL32: 0 | AM32: 2163000 | AN32: 0 | AO32: 0 | AQ32: E32* " | AS32: 0 | AT32: 0 | AU32: 0 | AV32: 0 | AW32: 0 | AX32: 0 | AY32: 0 | BA32: 2163000 | BB32: 1415363.99 | BC32: 483087.9498 | BD32: 46783.78575 | BE32: 9171.500415 | BF32: 208592.7743 | BG32: 0 | BI32: 0 | BJ32: 0 | BK32: 0 | BL32: 0 | BM32: 0 | BN32: 0 | BO32: 0
A33: 33 | B33: 380 | C33: D | D33: Services | E33: =PROFORMA!AW272 -> 140884000 | F33: Input - 100% Svcs cost | G33: oth Dist Plt (S05); (S06); (S20) | H33: 140884000 | I33: 137980169.9 | J33: 2397223.186 | K33: 66952.57116 | L33: 4959.449715 | M33: 434694.8782 | N33: 0 | P33: E33* " | AC33: 1 | AI33: 0 | AK33: 140884000 | AL33: 0 | AM33: 0 | AN33: 140884000 | AO33: 0 | AQ33: E33* " | AS33: 0 | AT33: 0 | AU33: 0 | AV33: 0 | AW33: 0 | AX33: 0 | AY33: 0 | BA33: 0 | BB33: 0 | BC33: 0 | BD33: 0 | BE33: 0 | BF33: 0 | BG33: 0 | BI33: 140884000 | BJ33: =$E33*SUMPRODUCT($AB33:$AG33,INDEX(AllocFactors_C,BJ$4,0)) -> 137980169.9 | BK33: 2397223.186 | BL33: 66952.57116 | BM33: 4959.449715 | BN33: 434694.8782 | BO33: 0
A34: 34 | B34: 381 | C34: D | D34: Meters | E34: =PROFORMA!AW273 -> 60879000 | F34: Input - 100% Mtrs cost | G34: oth Dist Plt (S05); (S07) | H34: 60879000 | I34: 52195977.57 | J34: 7489088.629 | K34: 189216.8398 | L34: 96310.42442 | M34: 908406.535 | N34: 0 | P34: E34* " | AD34: 1 | AI34: 0 | AK34: 60879000 | AL34: 0 | AM34: 0 | AN34: 60879000 | AO34: 0 | AQ34: E34* " | AS34: 0 | AT34: 0 | AU34: 0 | AV34: 0 | AW34: 0 | AX34: 0 | AY34: 0 | BA34: 0 | BB34: 0 | BC34: 0 | BD34: 0 | BE34: 0 | BF34: 0 | BG34: 0 | BI34: 60879000 | BJ34: 52195977.57 | BK34: 7489088.629 | BL34: 189216.8398 | BM34: 96310.42442 | BN34: 908406.535 | BO34: 0
A35: 35 | B35: 382 | C35: D | D35: Meter Installations | E35: =PROFORMA!AW274 -> 0 | F35: Input - 100% Install cost | G35: oth Dist Plt (S05); (S07) | H35: 0 | I35: 0 | J35: 0 | K35: 0 | L35: 0 | M35: 0 | N35: 0 | P35: E35* " | AB35: 1 | AI35: 0 | AK35: 0 | AL35: 0 | AM35: 0 | AN35: 0 | AO35: 0 | AQ35: E35* " | AS35: 0 | AT35: 0 | AU35: 0 | AV35: 0 | AW35: 0 | AX35: 0 | AY35: 0 | BA35: 0 | BB35: 0 | BC35: 0 | BD35: 0 | BE35: 0 | BF35: 0 | BG35: 0 | BI35: 0 | BJ35: 0 | BK35: 0 | BL35: 0 | BM35: 0 | BN35: 0 | BO35: 0
A36: 36 | B36: 383 | C36: D | D36: House Regulators | E36: =PROFORMA!AW275 -> 0 | F36: Input - 100% Reg. cost | G36: oth Dist Plt (S05); (S07) | H36: 0 | I36: 0 | J36: 0 | K36: 0 | L36: 0 | M36: 0 | N36: 0 | P36: E36* " | AI36: 0 | AK36: 0 | AL36: 0 | AM36: 0 | AN36: 0 | AO36: 0 | AQ36: E36* " | AS36: 0 | AT36: 0 | AU36: 0 | AV36: 0 | AW36: 0 | AX36: 0 | AY36: 0 | BA36: 0 | BB36: 0 | BC36: 0 | BD36: 0 | BE36: 0 | BF36: 0 | BG36: 0 | BI36: 0 | BJ36: 0 | BK36: 0 | BL36: 0 | BM36: 0 | BN36: 0 | BO36: 0
A37: 37 | B37: 384 | C37: D | D37: House Regulator Installations | E37: =PROFORMA!AW276 -> 0 | F37: Input - 100% Install cost | G37: oth Dist Plt (S05); (S07) | H37: 0 | I37: 0 | J37: 0 | K37: 0 | L37: 0 | M37: 0 | N37: 0 | P37: E37* " | AB37: 1 | AI37: 0 | AK37: 0 | AL37: 0 | AM37: 0 | AN37: 0 | AO37: 0 | AQ37: E37* " | AS37: 0 | AT37: 0 | AU37: 0 | AV37: 0 | AW37: 0 | AX37: 0 | AY37: 0 | BA37: 0 | BB37: 0 | BC37: 0 | BD37: 0 | BE37: 0 | BF37: 0 | BG37: 0 | BI37: 0 | BJ37: 0 | BK37: 0 | BL37: 0 | BM37: 0 | BN37: 0 | BO37: 0
A38: 38 | B38: 385 | C38: D | D38: Industrial Meas & Reg Station Equip | E38: =PROFORMA!AW277 -> 2904000 | F38: Input - 100% Ind Meas cost | G38: oth Dist Plt (S05); (S19) | H38: 2904000 | I38: 0 | J38: 2348096.613 | K38: 87644.26922 | L38: 44950.54843 | M38: 423308.5695 | N38: 0 | P38: E38* " | AF38: 1 | AI38: 0 | AK38: 2904000 | AL38: 0 | AM38: 0 | AN38: 2904000 | AO38: 0 | AQ38: E38* " | AS38: 0 | AT38: 0 | AU38: 0 | AV38: 0 | AW38: 0 | AX38: 0 | AY38: 0 | BA38: 0 | BB38: 0 | BC38: 0 | BD38: 0 | BE38: 0 | BF38: 0 | BG38: 0 | BI38: 2904000 | BJ38: 0 | BK38: 2348096.613 | BL38: 87644.26922 | BM38: 44950.54843 | BN38: 423308.5695 | BO38: 0
A39: 39 | B39: 387 | C39: D | D39: Other Equipment | E39: =PROFORMA!AW278 -> 0 | F39: ="as other Dist Plt ("&A$28&"-"&A$38&")" -> as other Dist Plt (28-38) | H39: 0 | I39: 0 | J39: 0 | K39: 0 | L39: 0 | M39: 0 | N39: 0 | P39: E39* " | R39: =SUMPRODUCT($E$28:$E$38,R$28:R$38)/SUM($E$28:$E$38) -> 0 | S39: =SUMPRODUCT($E$28:$E$38,S$28:S$38)/SUM($E$28:$E$38) -> 0 | T39: 0 | U39: 0 | V39: 0 | W39: 0.2997055275 | X39: 0 | Y39: 0 | Z39: 0 | AA39: 0 | AB39: 0.2001307384 | AC39: 0.3442913001 | AD39: 0.1487756598 | AE39: 0 | AF39: 0.007096774194 | AG39: 0 | AH39: 0 | AI39: 0 | AK39: 0 | AL39: 0 | AM39: 0 | AN39: 0 | AO39: 0 | AQ39: E39* " | AS39: 0 | AT39: 0 | AU39: 0 | AV39: 0 | AW39: 0 | AX39: 0 | AY39: 0 | BA39: 0 | BB39: 0 | BC39: 0 | BD39: 0 | BE39: 0 | BF39: 0 | BG39: 0 | BI39: 0 | BJ39: 0 | BK39: 0 | BL39: 0 | BM39: 0 | BN39: 0 | BO39: 0
A40: 40 | D40: Total Distribution Plant | E40: =SUM(E26:E39) -> 410015000 | G40: Distrib Plant (S15) | H40: =IF(ROUND(SUM(H25:H39),3)<>ROUND(SUM(I40:N40),3),#VALUE!,SUM(H25:H39)) -> 410015000 | I40: =SUM(I25:I39) -> 351584269.8 | J40: 41104502.9 | K40: 3016816.022 | L40: 668630.7801 | M40: 13640780.54 | N40: 0 | P40: =$A25&":"&A39 -> 25:39 | R40: =SUMPRODUCT($E26:$E39,R$26:R$39)/$E40 -> 0 | S40: =SUMPRODUCT($E26:$E39,S$26:S$39)/$E40 -> 0 | T40: =SUMPRODUCT($E26:$E39,T$26:T$39)/$E40 -> 0 | U40: 0 | V40: 0 | W40: 0.2997055275 | X40: 0 | Y40: 0 | Z40: =SUMPRODUCT($E26:$E39,Z$26:Z$39)/$E40 -> 0 | AA40: 0 | AB40: 0.2001307384 | AC40: 0.3442913001 | AD40: 0.1487756598 | AE40: 0 | AF40: 0.007096774194 | AG40: 0 | AH40: 0 | AI40: =IF(SUM(R40:AH40)<>0,(ROUND(SUM(R40:AH40),8)<>1)+0,0) -> 0 | AK40: =IF(ROUND(SUM(AK25:AK39),3)<>ROUND(SUM(AL40:AO40),3),#VALUE!,SUM(AK25:AK39)) -> 410015000 | AL40: =SUM(AL25:AL39) -> 0 | AM40: =SUM(AM25:AM39) -> 122883761.9 | AN40: =SUM(AN25:AN39) -> 287131238.1 | AO40: =SUM(AO25:AO39) -> 0 | AQ40: =$A25&":"&$A39 -> 25:39 | AS40: =IF(ROUND(SUM(AS25:AS39),3)<>ROUND(SUM(AT40:AY40),3),#VALUE!,SUM(AS25:AS39)) -> 0 | AT40: =SUM(AT25:AT39) -> 0 | AU40: 0 | AV40: 0 | AW40: 0 | AX40: 0 | AY40: 0 | BA40: =IF(ROUND(SUM(BA25:BA39),3)<>ROUND(SUM(BB40:BG40),3),#VALUE!,SUM(BA25:BA39)) -> 122883761.9 | BB40: =SUM(BB25:BB39) -> 80409270.21 | BC40: 27445059.91 | BD40: 2657867.586 | BE40: 521048.7624 | BF40: 11850515.4 | BG40: 0 | BI40: =IF(ROUND(SUM(BI25:BI39),3)<>ROUND(SUM(BJ40:BO40),3),#VALUE!,SUM(BI25:BI39)) -> 287131238.1 | BJ40: =SUM(BJ25:BJ39) -> 271174999.6 | BK40: 13659442.98 | BL40: 358948.436 | BM40: 147582.0178 | BN40: 1790265.142 | BO40: 0
A41: 41 | H41: =H40/$H40 -> 1 | I41: 0.8574912376 | J41: 0.1002512174 | K41: 0.007357818669 | L41: 0.001630747119 | M41: 0.03326897928 | N41: 0 | AI41: =IF(SUM(R41:AH41)<>0,(ROUND(SUM(R41:AH41),8)<>1)+0,0) -> 0 | AT41: =IF(I40,AT40/I40,0) -> 0 | AU41: 0 | AV41: 0 | AW41: 0 | AX41: 0 | AY41: 0 | BB41: =IF(I40,BB40/I40,0) -> 0.2287055398 | BC41: 0.6676898631 | BD41: 0.881017459 | BE41: 0.7792772601 | BF41: 0.8687564002 | BG41: 0 | BJ41: =IF(I40,BJ40/I40,0) -> 0.7712944602 | BK41: 0.3323101369 | BL41: 0.118982541 | BM41: 0.2207227399 | BN41: 0.1312435998 | BO41: 0
A42: 42 | D42: UG/D Plant | E42: =E23+E40 -> 437367000 | F42: ="("&A$23&"+"&A$40&")" -> (23+40) | G42: UG/D Plant (S03) | H42: =H23+H40 -> 437367000 | I42: =I23+I40 -> 370112056.6 | J42: 48458400.88 | K42: 3820182.321 | L42: 813240.6257 | M42: 14163119.53 | N42: 0 | R42: =($E23*R23+$E40*R40)/$E42 -> 0.008129922925 | S42: =($E23*S23+$E40*S40)/$E42 -> 0.05440794573 | T42: =($E23*T23+$E40*T40)/$E42 -> 0 | U42: =($E23*U23+$E40*U40)/$E42 -> 0 | V42: =($E23*V23+$E40*V40)/$E42 -> 0 | W42: 0.2809625826 | X42: 0 | Y42: =($E23*Y23+$E40*Y40)/$E42 -> 0 | Z42: 0 | AA42: 0 | AB42: 0.1876149885 | AC42: 0.322760056 | AD42: 0.1394715472 | AE42: 0 | AF42: 0.006652957061 | AG42: =($E23*AG23+$E40*AG40)/$E42 -> 0 | AH42: 0 | AI42: 0
A43: 43 | AI43: 0
A44: 44 | D44: General Plant | AI44: 0
A45: 45 | B45: 389 | C45: O | D45: Land & Land Rights | E45: =PROFORMA!AW282 -> 1336000 | F45: 4-Factor | H45: =SUM(I45:N45) -> 1336000 | I45: =$E45*SUMPRODUCT($R45:$AH45,INDEX(AllocFactors,I$4,0)) -> 1203992.505 | J45: 99636.9863 | K45: 7015.638093 | L45: 1511.413838 | M45: 23843.45667 | N45: 0 | P45: Corporate Cost Allocator (4-Factor) | R45: =(R$114*0.25)+(R$251*0.25)+(BS$250*0.25) -> 0.008069056373 | S45: =(S$114*0.25)+(S$251*0.25)+(BT$250*0.25) -> 0.0438466321 | T45: 0 | U45: 0 | V45: 0 | W45: 0.1432533734 | X45: 0 | Y45: 0 | Z45: 0 | AA45: 0 | AB45: =(AB$114*0.25)+(AB$251*0.25)+(CC$250*0.25)+0.25 -> 0.5381044981 | AC45: 0.1518891359 | AD45: 0.110778312 | AE45: 0 | AF45: 0.004058992084 | AG45: 0 | AH45: 0 | AI45: 0 | AK45: =SUM(AL45:AO45) -> 1336000 | AL45: =SUMIF($R$4:$AH$4,AL$5,$R45:$AH45)*$E45 -> 69359.3598 | AM45: 191386.5069 | AN45: 1075254.133 | AO45: 0 | AQ45: =E$1&$A45&"*["&R$1&$A45&":"&$AH$1&$A45&" when "&R$1&$A$4&":"&$AH$1&$A$4&" = E,D,C,or R]" -> E45*[R45:AH45 when R4:AH4 = E,D,C,or R] | AS45: =SUM(AT45:AY45) -> 69359.3598 | AT45: =$E45*SUMPRODUCT($R45:$V45,INDEX(AllocFactors_E,AT$4,0)) -> 46803.96749 | AU45: 18577.04886 | AV45: 2029.42372 | AW45: 365.306151 | AX45: 1583.613575 | AY45: 0 | BA45: =SUM(BB45:BG45) -> 191386.5069 | BB45: =$E45*SUMPRODUCT($W45:$AA45,INDEX(AllocFactors_D,BB$4,0)) -> 125234.1979 | BC45: 42744.57478 | BD45: 4139.521653 | BE45: 811.5124492 | BF45: 18456.70016 | BG45: 0 | BI45: =SUM(BJ45:BO45) -> 1075254.133 | BJ45: =$E45*SUMPRODUCT($AB45:$AG45,INDEX(AllocFactors_C,BJ$4,0)) -> 1031954.34 | BK45: 38315.36266 | BL45: 846.6927203 | BM45: 334.5952374 | BN45: 3803.142935 | BO45: 0
A46: 46 | B46: 390 | C46: O | D46: Structures & Improvements | E46: =PROFORMA!AW283 -> 16211000 | F46: 4-Factor | H46: 16211000 | I46: 14609223.43 | J46: 1208993.402 | K46: 85127.62659 | L46: 18339.46835 | M46: 289316.0749 | N46: 0 | P46: Corporate Cost Allocator (4-Factor) | R46: =(R$114*0.25)+(R$251*0.25)+(BS$250*0.25) -> 0.008069056373 | S46: 0.0438466321 | T46: 0 | U46: 0 | V46: 0 | W46: 0.1432533734 | X46: 0 | Y46: 0 | Z46: 0 | AA46: 0 | AB46: =(AB$114*0.25)+(AB$251*0.25)+(CC$250*0.25)+0.25 -> 0.5381044981 | AC46: 0.1518891359 | AD46: 0.110778312 | AE46: 0 | AF46: 0.004058992084 | AG46: 0 | AH46: 0 | AI46: 0 | AK46: 16211000 | AL46: 841605.2258 | AM46: 2322280.437 | AN46: 13047114.34 | AO46: 0 | AQ46: =E$1&$A46&"* """ -> E46* " | AS46: 841605.2258 | AT46: 567918.5007 | AU46: 225413.5771 | AV46: 24624.99096 | AW46: 4432.618274 | AX46: 19215.53867 | AY46: 0 | BA46: 2322280.437 | BB46: 1519589.507 | BC46: 518661.9025 | BD46: 50228.88137 | BE46: 9846.877481 | BF46: 223953.2681 | BG46: 0 | BI46: 13047114.34 | BJ46: 12521715.42 | BK46: 464917.9222 | BL46: 10273.75426 | BM46: 4059.9726 | BN46: 46147.26805 | BO46: 0
A47: 47 | B47: 391 | C47: O | D47: Office Furniture & Equipment | E47: =PROFORMA!AW284 -> 7994000 | F47: 4-Factor | H47: 7994000 | I47: 7204128.807 | J47: 596181.189 | K47: 41978.30158 | L47: 9043.594474 | M47: 142668.1082 | N47: 0 | P47: Corporate Cost Allocator (4-Factor) | R47: 0.008069056373 | S47: 0.0438466321 | T47: 0 | U47: 0 | V47: 0 | W47: 0.1432533734 | X47: 0 | Y47: 0 | Z47: 0 | AA47: 0 | AB47: 0.5381044981 | AC47: 0.1518891359 | AD47: 0.110778312 | AE47: 0 | AF47: 0.004058992084 | AG47: 0 | AH47: 0 | AI47: 0 | AK47: 7994000 | AL47: 415014.0136 | AM47: 1145167.467 | AN47: 6433818.519 | AO47: 0 | AQ47: =E$1&$A47&"* """ -> E47* " | AS47: 415014.0136 | AT47: 280053.0809 | AU47: 111156.3837 | AV47: 12143.12366 | AW47: 2185.821385 | AX47: 9475.603982 | AY47: 0 | BA47: 1145167.467 | BB47: 749342.9475 | BC47: 255763.571 | BD47: 24768.96414 | BE47: 4855.711466 | BF47: 110436.2732 | BG47: 0 | BI47: 6433818.519 | BJ47: 6174732.778 | BK47: 229261.2343 | BL47: 5066.213777 | BM47: 2002.061622 | BN47: 22756.231 | BO47: 0
A48: 48 | B48: 392 | C48: O | D48: Transportation Equipment | E48: =PROFORMA!AW285 -> 8246000 | F48: 4-Factor | H48: 8246000 | I48: 7431229.189 | J48: 614974.9918 | K48: 43301.61056 | L48: 9328.681516 | M48: 147165.5267 | N48: 0 | P48: Corporate Cost Allocator (4-Factor) | R48: 0.008069056373 | S48: 0.0438466321 | T48: 0 | U48: 0 | V48: 0 | W48: 0.1432533734 | X48: 0 | Y48: 0 | Z48: 0 | AA48: 0 | AB48: 0.5381044981 | AC48: 0.1518891359 | AD48: 0.110778312 | AE48: 0 | AF48: 0.004058992084 | AG48: 0 | AH48: 0 | AI48: 0 | AK48: 8246000 | AL48: 428096.7671 | AM48: 1181267.317 | AN48: 6636635.915 | AO48: 0 | AQ48: E48* " | AS48: 428096.7671 | AT48: 288881.3742 | AU48: 114660.4378 | AV48: 12525.91916 | AW48: 2254.726438 | AX48: 9774.309536 | AY48: 0 | BA48: 1181267.317 | BB48: 772964.9668 | BC48: 263826.1704 | BD48: 25549.77212 | BE48: 5008.78118 | BF48: 113917.6269 | BG48: 0 | BI48: 6636635.915 | BJ48: 6369382.848 | BK48: 236488.3836 | BL48: 5225.91929 | BM48: 2065.173898 | BN48: 23473.5903 | BO48: 0
A49: 49 | B49: 393 | C49: O | D49: Stores Equipment | E49: =PROFORMA!AW286 -> 523000 | F49: 4-Factor | H49: 523000 | I49: 471323.4133 | J49: 39004.59868 | K49: 2746.391259 | L49: 591.6687403 | M49: 9333.928021 | N49: 0 | P49: Corporate Cost Allocator (4-Factor) | R49: 0.008069056373 | S49: 0.0438466321 | T49: 0 | U49: 0 | V49: 0 | W49: 0.1432533734 | X49: 0 | Y49: 0 | Z49: 0 | AA49: 0 | AB49: 0.5381044981 | AC49: 0.1518891359 | AD49: 0.110778312 | AE49: 0 | AF49: 0.004058992084 | AG49: 0 | AH49: 0 | AI49: 0 | AK49: 523000 | AL49: 27151.90507 | AM49: 74921.51431 | AN49: 420926.5806 | AO49: 0 | AQ49: E49* " | AS49: 27151.90507 | AT49: 18322.21182 | AU49: 7272.30281 | AV49: 794.452549 | AW49: 143.0053271 | AX49: 619.9325597 | AY49: 0 | BA49: 74921.51431 | BB49: 49025.06399 | BC49: 16733.09327 | BD49: 1620.486396 | BE49: 317.6803974 | BF49: 7225.190256 | BG49: 0 | BI49: 420926.5806 | BJ49: 403976.1375 | BK49: 14999.2026 | BL49: 331.4523149 | BM49: 130.9830158 | BN49: 1488.805206 | BO49: 0
A50: 50 | B50: 394 | C50: O | D50: Tools, Shop & Garage Equipment | E50: =PROFORMA!AW287 -> 4851000 | F50: 4-Factor | H50: 4851000 | I50: 4371682.367 | J50: 361780.704 | K50: 25473.6979 | L50: 5487.925544 | M50: 86575.3056 | N50: 0 | P50: Corporate Cost Allocator (4-Factor) | R50: 0.008069056373 | S50: 0.0438466321 | T50: 0 | U50: 0 | V50: 0 | W50: 0.1432533734 | X50: 0 | Y50: 0 | Z50: 0 | AA50: 0 | AB50: 0.5381044981 | AC50: 0.1518891359 | AD50: 0.110778312 | AE50: 0 | AF50: 0.004058992084 | AG50: 0 | AH50: 0 | AI50: 0 | AK50: 4851000 | AL50: 251843.0048 | AM50: 694922.1146 | AN50: 3904234.881 | AO50: 0 | AQ50: E50* " | AS50: 251843.0048 | AT50: 169944.6454 | AU50: 67453.04193 | AV50: 7368.813222 | AW50: 1326.422259 | AX50: 5750.081926 | AY50: 0 | BA50: 694922.1146 | BB50: 454723.8727 | BC50: 155205.0391 | BD50: 15030.55355 | BE50: 2946.591984 | BF50: 67016.05723 | BG50: 0 | BI50: 3904234.881 | BJ50: 3747013.849 | BK50: 139122.6229 | BL50: 3074.331127 | BM50: 1214.9113 | BN50: 13809.16645 | BO50: 0
A51: 51 | B51: 395 | C51: O | D51: Laboratory Equipment | E51: =PROFORMA!AW288 -> 298000 | F51: 4-Factor | H51: 298000 | I51: 268555.2145 | J51: 22224.4176 | K51: 1564.865383 | L51: 337.1267392 | M51: 5318.375813 | N51: 0 | P51: Corporate Cost Allocator (4-Factor) | R51: 0.008069056373 | S51: 0.0438466321 | T51: 0 | U51: 0 | V51: 0 | W51: 0.1432533734 | X51: 0 | Y51: 0 | Z51: 0 | AA51: 0 | AB51: 0.5381044981 | AC51: 0.1518891359 | AD51: 0.110778312 | AE51: 0 | AF51: 0.004058992084 | AG51: 0 | AH51: 0 | AI51: 0 | AK51: 298000 | AL51: 15470.87516 | AM51: 42689.50529 | AN51: 239839.6196 | AO51: 0 | AQ51: E51* " | AS51: 15470.87516 | AT51: 10439.80712 | AU51: 4143.683054 | AV51: 452.6708596 | AW51: 81.48295883 | AX51: 353.2311717 | AY51: 0 | BA51: 42689.50529 | BB51: 27933.97527 | BC51: 9534.343776 | BD51: 923.3364166 | BE51: 181.0110104 | BF51: 4116.838807 | BG51: 0 | BI51: 239839.6196 | BJ51: 230181.4321 | BK51: 8546.390772 | BL51: 188.8581068 | BM51: 74.63277001 | BN51: 848.3058343 | BO51: 0
A52: 52 | B52: 396 | C52: O | D52: Power Operated Equipment | E52: =PROFORMA!AW289 -> 3569000 | F52: 4-Factor | H52: 3569000 | I52: 3216354.23 | J52: 266170.9611 | K52: 18741.62601 | L52: 4037.601786 | M52: 63695.58147 | N52: 0 | P52: Corporate Cost Allocator (4-Factor) | R52: 0.008069056373 | S52: 0.0438466321 | T52: 0 | U52: 0 | V52: 0 | W52: 0.1432533734 | X52: 0 | Y52: 0 | Z52: 0 | AA52: 0 | AB52: 0.5381044981 | AC52: 0.1518891359 | AD52: 0.110778312 | AE52: 0 | AF52: 0.004058992084 | AG52: 0 | AH52: 0 | AI52: 0 | AK52: 3569000 | AL52: 185287.0922 | AM52: 511271.2898 | AN52: 2872441.618 | AO52: 0 | AQ52: E52* " | AS52: 185287.0922 | AT52: 125032.4551 | AU52: 49626.86181 | AV52: 5421.417108 | AW52: 975.8814767 | AX52: 4230.476684 | AY52: 0 | BA52: 511271.2898 | BB52: 334551.5361 | BC52: 114188.1642 | BD52: 11058.34789 | BE52: 2167.880188 | BF52: 49305.36142 | BG52: 0 | BI52: 2872441.618 | BJ52: 2756770.238 | BK52: 102355.9351 | BL52: 2261.861017 | BM52: 893.8401214 | BN52: 10159.74336 | BO52: 0
A53: 53 | B53: 397 | C53: O | D53: Communication Equipment | E53: =PROFORMA!AW290 -> 6876000 | F53: 4-Factor | H53: 6876000 | I53: 6196596.157 | J53: 512802.3337 | K53: 36107.43078 | L53: 7778.803553 | M53: 122715.2755 | N53: 0 | P53: Corporate Cost Allocator (4-Factor) | R53: 0.008069056373 | S53: 0.0438466321 | T53: 0 | U53: 0 | V53: 0 | W53: 0.1432533734 | X53: 0 | Y53: 0 | Z53: 0 | AA53: 0 | AB53: 0.5381044981 | AC53: 0.1518891359 | AD53: 0.110778312 | AE53: 0 | AF53: 0.004058992084 | AG53: 0 | AH53: 0 | AI53: 0 | AK53: 6876000 | AL53: 356972.2739 | AM53: 985010.1958 | AN53: 5534017.53 | AO53: 0 | AQ53: E53* " | AS53: 356972.2739 | AT53: 240886.2878 | AU53: 95610.61973 | AV53: 10444.84843 | AW53: 1880.123574 | AX53: 8150.394418 | AY53: 0 | BA53: 985010.1958 | BB53: 644543.6711 | BC53: 219993.7846 | BD53: 21304.90336 | BE53: 4176.616468 | BF53: 94991.22026 | BG53: 0 | BI53: 5534017.53 | BJ53: 5311166.198 | BK53: 197197.9294 | BL53: 4357.679001 | BM53: 1722.063512 | BN53: 19573.66079 | BO53: 0
A54: 54 | B54: 398 | C54: O | D54: Miscellaneous Equipment | E54: =PROFORMA!AW291 -> 24581000 | F54: 4-Factor | H54: 24581000 | I54: 22152200.43 | J54: 1833216.138 | K54: 129080.3892 | L54: 27808.43079 | M54: 438694.617 | N54: 0 | P54: Corporate Cost Allocator (4-Factor) | R54: 0.008069056373 | S54: 0.0438466321 | T54: 0 | U54: 0 | V54: 0 | W54: 0.1432533734 | X54: 0 | Y54: 0 | Z54: 0 | AA54: 0 | AB54: 0.5381044981 | AC54: 0.1518891359 | AD54: 0.110778312 | AE54: 0 | AF54: 0.004058992084 | AG54: 0 | AH54: 0 | AI54: 0 | AK54: 24581000 | AL54: 1276139.538 | AM54: 3521311.173 | AN54: 19783549.29 | AO54: 0 | AQ54: E54* " | AS54: 1276139.538 | AT54: 861143.9558 | AU54: 341798.2321 | AV54: 37339.2698 | AW54: 6721.250372 | AX54: 29136.83031 | AY54: 0 | BA54: 3521311.173 | BB54: 2304178.007 | BC54: 786455.3838 | BD54: 76162.86059 | BE54: 14930.97868 | BF54: 339583.942 | BG54: 0 | BI54: 19783549.29 | BJ54: 18986878.46 | BK54: 704962.522 | BL54: 15578.2588 | BM54: 6156.201744 | BN54: 69973.84467 | BO54: 0
A55: 55 | D55: Total General Plant | E55: =SUM(E45:E54) -> 74485000 | G55: Genl Plant | H55: =IF(ROUND(SUM(H44:H54),3)<>ROUND(SUM(I55:N55),3),#VALUE!,SUM(H44:H54)) -> 74485000 | I55: =SUM(I44:I54) -> 67125285.74 | J55: 5554985.722 | K55: 391137.5774 | L55: 84264.71534 | M55: 1329326.25 | N55: 0 | P55: Corporate Cost Allocator (4-Factor) | R55: =SUMPRODUCT($E45:$E54,R$45:R$54)/$E55 -> 0.008069056373 | S55: =SUMPRODUCT($E45:$E54,S$45:S$54)/$E55 -> 0.0438466321 | T55: =SUMPRODUCT($E45:$E54,T$45:T$54)/$E55 -> 0 | U55: =SUMPRODUCT($E45:$E54,U$45:U$54)/$E55 -> 0 | V55: =SUMPRODUCT($E45:$E54,V$45:V$54)/$E55 -> 0 | W55: 0.1432533734 | X55: 0 | Y55: =SUMPRODUCT($E45:$E54,Y$45:Y$54)/$E55 -> 0 | Z55: =SUMPRODUCT($E45:$E54,Z$45:Z$54)/$E55 -> 0 | AA55: 0 | AB55: =SUMPRODUCT($E45:$E54,AB$45:AB$54)/$E55 -> 0.5381044981 | AC55: 0.1518891359 | AD55: 0.110778312 | AE55: =SUMPRODUCT($E45:$E54,AE$45:AE$54)/$E55 -> 0 | AF55: 0.004058992084 | AG55: =SUMPRODUCT($E45:$E54,AG$45:AG$54)/$E55 -> 0 | AH55: =SUMPRODUCT($E45:$E54,AH$45:AH$54)/$E55 -> 0 | AI55: 0 | AK55: =SUM(AK44:AK54) -> 74485000 | AL55: =SUM(AL44:AL54) -> 3866940.056 | AM55: =SUM(AM44:AM54) -> 10670227.52 | AN55: =SUM(AN44:AN54) -> 59947832.42 | AO55: =SUM(AO44:AO54) -> 0 | AQ55: =$A44&":"&$A54 -> 44:54 | AS55: =IF(ROUND(SUM(AS44:AS54),3)<>ROUND(SUM(AT55:AY55),3),#VALUE!,SUM(AS44:AS54)) -> 3866940.056 | AT55: =SUM(AT44:AT54) -> 2609426.286 | AU55: 1035712.189 | AV55: 113144.9295 | AW55: 20366.63822 | AX55: 88290.01283 | AY55: 0 | BA55: =IF(ROUND(SUM(BA44:BA54),3)<>ROUND(SUM(BB55:BG55),3),#VALUE!,SUM(BA44:BA54)) -> 10670227.52 | BB55: =SUM(BB44:BB54) -> 6982087.746 | BC55: 2383106.027 | BD55: 230787.6275 | BE55: 45243.6413 | BF55: 1029002.478 | BG55: 0 | BI55: =IF(ROUND(SUM(BI44:BI54),3)<>ROUND(SUM(BJ55:BO55),3),#VALUE!,SUM(BI44:BI54)) -> 59947832.42 | BJ55: =SUM(BJ44:BJ54) -> 57533771.7 | BK55: 2136167.506 | BL55: 47205.02041 | BM55: 18654.43582 | BN55: 212033.7586 | BO55: 0
A56: 56 | AI56: 0
A57: 57 | D57: Total Plant In Service | E57: =E12+E23+E40+E55 -> 531604000 | F57: ="("&A$12&"+"&A$23&"+"&A$40&"+"&A$55&")" -> (12+23+40+55) | G57: Plant in Service (S17) | H57: =H12+H23+H40+H55 -> 531604000 | I57: =I12+I23+I40+I55 -> 454938136.3 | J57: 55544945.02 | K57: 4319840.935 | L57: 920988.4804 | M57: 15880089.22 | N57: 0 | P57: ="Sum("&$A12&","&$A23&","&$A40&","&$A55&")" -> Sum(12,23,40,55) | R57: =($E12*R12+$E23*R23+$E40*R40+$E55*R55)/$E57 -> 0.008084556089 | S57: =($E12*S12+$E23*S23+$E40*S40+$E55*S55)/$E57 -> 0.05234786127 | T57: 0 | U57: =($E12*U12+$E23*U23+$E40*U40+$E55*U55)/$E57 -> 0 | V57: =($E12*V12+$E23*V23+$E40*V40+$E55*V55)/$E57 -> 0 | W57: 0.2572214055 | X57: 0 | Y57: =($E12*Y12+$E23*Y23+$E40*Y40+$E55*Y55)/$E57 -> 0 | Z57: 0 | AA57: 0 | AB57: 0.2482977067 | AC57: 0.2932943808 | AD57: 0.1345479453 | AE57: 0 | AF57: 0.006206144378 | AG57: =($E12*AG12+$E23*AG23+$E40*AG40+$E55*AG55)/$E57 -> 0 | AH57: 0 | AI57: 0 | AK57: =AK12+AK23+AK40+AK55 -> 531604000 | AL57: =AL12+AL23+AL40+AL55 -> 32126114.8 | AM57: =AM12+AM23+AM40+AM55 -> 136739928 | AN57: =AN12+AN23+AN40+AN55 -> 362737957.2 | AO57: =AO12+AO23+AO40+AO55 -> 0 | AQ57: ="Sum("&$A12&","&$A23&","&$A40&","&$A55&")" -> Sum(12,23,40,55) | AS57: =AS12+AS23+AS40+AS55 -> 32126114.8 | AT57: =AT12+AT23+AT40+AT55 -> 21749378.23 | AU57: 8632585.734 | AV57: 943054.7545 | AW57: 169754.4476 | AX57: 631341.6294 | AY57: 0 | BA57: =BA12+BA23+BA40+BA55 -> 136739928 | BB57: =BB12+BB23+BB40+BB55 -> 89476084.18 | BC57: 30539718.67 | BD57: 2957564.261 | BE57: 579801.3438 | BF57: 13186759.57 | BG57: 0 | BI57: =BI12+BI23+BI40+BI55 -> 362737957.2 | BJ57: =BJ12+BJ23+BJ40+BJ55 -> 343712673.9 | BK57: 16372640.62 | BL57: 419221.919 | BM57: 171432.689 | BN57: 2061988.029 | BO57: 0
A58: 58 | E58: =(E57/1000)-PROFORMA!AW294 -> 0 | AI58: 0
A59: 59 | AI59: 0
A60: 60 | D60: Accumulated Reserve For Depreciation | AI60: 0
A61: 61 | D61: Underground Storage Plant Accumulated Depreciation | AI61: 0
A62: 62 | B62: 350 | C62: U | D62: Land & Land Rights Accum. Depr. | E62: =PROFORMA!AW308 -> -17000 | F62: ="as 350 Plant ("&A$15&")" -> as 350 Plant (15) | H62: =SUM(I62:N62) -> -17000 | I62: =$E62*SUMPRODUCT($R62:$AH62,INDEX(AllocFactors,I$4,0)) -> -11515.51539 | J62: -4570.644403 | K62: -499.313655 | L62: -89.8788891 | M62: -324.6476638 | N62: 0 | P62: =E$1&$A62&"* Sum["&$R$1&$A62&":"&$AH$1&$A62&"* "&Factors!D$1&Factors!$A$58&":"&Factors!S$1&Factors!$A$64&"]" -> E62* Sum[R62:AH62* D1037:S1043] | R62: =R$15 -> 0.13 | S62: =S$15 -> 0.87 | T62: 0 | U62: 0 | V62: 0 | W62: 0 | X62: 0 | Y62: 0 | Z62: 0 | AA62: 0 | AB62: 0 | AC62: 0 | AD62: 0 | AE62: 0 | AF62: 0 | AG62: 0 | AH62: 0 | AI62: 0 | AK62: =SUM(AL62:AO62) -> -17000 | AL62: =SUMIF($R$4:$AH$4,AL$5,$R62:$AH62)*$E62 -> -17000 | AM62: 0 | AN62: 0 | AO62: 0 | AQ62: =E$1&$A62&"*["&R$1&$A62&":"&$AH$1&$A62&" when "&R$1&$A$4&":"&$AH$1&$A$4&" = E,D,C,or R]" -> E62*[R62:AH62 when R4:AH4 = E,D,C,or R] | AS62: =SUM(AT62:AY62) -> -17000 | AT62: =$E62*SUMPRODUCT($R62:$V62,INDEX(AllocFactors_E,AT$4,0)) -> -11515.51539 | AU62: -4570.644403 | AV62: -499.313655 | AW62: -89.8788891 | AX62: -324.6476638 | AY62: 0 | BA62: =SUM(BB62:BG62) -> 0 | BB62: =$E62*SUMPRODUCT($W62:$AA62,INDEX(AllocFactors_D,BB$4,0)) -> 0 | BC62: 0 | BD62: 0 | BE62: 0 | BF62: 0 | BG62: 0 | BI62: =SUM(BJ62:BO62) -> 0 | BJ62: =$E62*SUMPRODUCT($AB62:$AG62,INDEX(AllocFactors_C,BJ$4,0)) -> 0 | BK62: 0 | BL62: 0 | BM62: 0 | BN62: 0 | BO62: 0
A63: 63 | B63: 351 | C63: U | D63: Structures & Improvements Accum. Depr. | E63: =PROFORMA!AW309 -> -545000 | F63: ="as 351 Plant ("&A$16&")" -> as 351 Plant (16) | H63: -545000 | I63: -369173.8757 | J63: -146529.4823 | K63: -16007.40835 | L63: -2881.411445 | M63: -10407.82216 | N63: 0 | P63: =E$1&$A63&"* """ -> E63* " | R63: =R$16 -> 0.13 | S63: =S$16 -> 0.87 | T63: 0 | U63: 0 | V63: 0 | W63: 0 | X63: 0 | Y63: 0 | Z63: 0 | AA63: 0 | AB63: 0 | AC63: 0 | AD63: 0 | AE63: 0 | AF63: 0 | AG63: 0 | AH63: 0 | AI63: 0 | AK63: -545000 | AL63: -545000 | AM63: 0 | AN63: 0 | AO63: 0 | AQ63: =E$1&$A63&"* """ -> E63* " | AS63: -545000 | AT63: -369173.8757 | AU63: -146529.4823 | AV63: -16007.40835 | AW63: -2881.411445 | AX63: -10407.82216 | AY63: 0 | BA63: 0 | BB63: 0 | BC63: 0 | BD63: 0 | BE63: 0 | BF63: 0 | BG63: 0 | BI63: 0 | BJ63: 0 | BK63: 0 | BL63: 0 | BM63: 0 | BN63: 0 | BO63: 0
A64: 64 | B64: 352 | C64: U | D64: Wells Accum. Depr. | E64: =PROFORMA!AW310 -> -6480000 | F64: ="as 352 Plant ("&A$17&")" -> as 352 Plant (17) | H64: -6480000 | I64: -4389443.513 | J64: -1742222.102 | K64: -190326.6167 | L64: -34259.71773 | M64: -123748.0507 | N64: 0 | P64: E64* " | R64: =R$17 -> 0.13 | S64: =S$17 -> 0.87 | T64: 0 | U64: 0 | V64: 0 | W64: 0 | X64: 0 | Y64: 0 | Z64: 0 | AA64: 0 | AB64: 0 | AC64: 0 | AD64: 0 | AE64: 0 | AF64: 0 | AG64: 0 | AH64: 0 | AI64: 0 | AK64: -6480000 | AL64: -6480000 | AM64: 0 | AN64: 0 | AO64: 0 | AQ64: =E$1&$A64&"* """ -> E64* " | AS64: -6480000 | AT64: -4389443.513 | AU64: -1742222.102 | AV64: -190326.6167 | AW64: -34259.71773 | AX64: -123748.0507 | AY64: 0 | BA64: 0 | BB64: 0 | BC64: 0 | BD64: 0 | BE64: 0 | BF64: 0 | BG64: 0 | BI64: 0 | BJ64: 0 | BK64: 0 | BL64: 0 | BM64: 0 | BN64: 0 | BO64: 0
A65: 65 | B65: 353 | C65: U | D65: Lines Accum. Depr. | E65: =PROFORMA!AW311 -> -378000 | F65: ="as 353 Plant ("&A$18&")" -> as 353 Plant (18) | H65: -378000 | I65: -256050.8716 | J65: -101629.6226 | K65: -11102.38598 | L65: -1998.483534 | M65: -7218.636288 | N65: 0 | P65: E65* " | R65: =R$18 -> 0.13 | S65: =S$18 -> 0.87 | T65: 0 | U65: 0 | V65: 0 | W65: 0 | X65: 0 | Y65: 0 | Z65: 0 | AA65: 0 | AB65: 0 | AC65: 0 | AD65: 0 | AE65: 0 | AF65: 0 | AG65: 0 | AH65: 0 | AI65: 0 | AK65: -378000 | AL65: -378000 | AM65: 0 | AN65: 0 | AO65: 0 | AQ65: E65* " | AS65: -378000 | AT65: -256050.8716 | AU65: -101629.6226 | AV65: -11102.38598 | AW65: -1998.483534 | AX65: -7218.636288 | AY65: 0 | BA65: 0 | BB65: 0 | BC65: 0 | BD65: 0 | BE65: 0 | BF65: 0 | BG65: 0 | BI65: 0 | BJ65: 0 | BK65: 0 | BL65: 0 | BM65: 0 | BN65: 0 | BO65: 0
A66: =RowHdr -> 66 | B66: 354 | C66: U | D66: Compressor Station Equip. Accum. Depr. | E66: =PROFORMA!AW312 -> -1784000 | F66: ="as 354 Plant ("&A$19&")" -> as 354 Plant (19) | H66: -1784000 | I66: -1208451.733 | J66: -479648.8008 | K66: -52398.56238 | L66: -9431.996362 | M66: -34068.90777 | N66: 0 | P66: E66* " | R66: =R$19 -> 0.13 | S66: =S$19 -> 0.87 | T66: 0 | U66: 0 | V66: 0 | W66: 0 | X66: 0 | Y66: 0 | Z66: 0 | AA66: 0 | AB66: 0 | AC66: 0 | AD66: 0 | AE66: 0 | AF66: 0 | AG66: 0 | AH66: 0 | AI66: 0 | AK66: -1784000 | AL66: -1784000 | AM66: 0 | AN66: 0 | AO66: 0 | AQ66: E66* " | AS66: -1784000 | AT66: -1208451.733 | AU66: -479648.8008 | AV66: -52398.56238 | AW66: -9431.996362 | AX66: -34068.90777 | AY66: 0 | BA66: 0 | BB66: 0 | BC66: 0 | BD66: 0 | BE66: 0 | BF66: 0 | BG66: 0 | BI66: 0 | BJ66: 0 | BK66: 0 | BL66: 0 | BM66: 0 | BN66: 0 | BO66: 0
A67: 67 | B67: 355 | C67: U | D67: Measuring & Regulating Equip. Accum. Depr. | E67: =PROFORMA!AW313 -> 187000 | F67: ="as 355 Plant ("&A$20&")" -> as 355 Plant (20) | H67: 187000 | I67: 126670.6693 | J67: 50277.08843 | K67: 5492.450205 | L67: 988.6677801 | M67: 3571.124301 | N67: 0 | P67: E67* " | R67: =R$20 -> 0.13 | S67: =S$20 -> 0.87 | T67: 0 | U67: 0 | V67: 0 | W67: 0 | X67: 0 | Y67: 0 | Z67: 0 | AA67: 0 | AB67: 0 | AC67: 0 | AD67: 0 | AE67: 0 | AF67: 0 | AG67: 0 | AH67: 0 | AI67: 0 | AK67: 187000 | AL67: 187000 | AM67: 0 | AN67: 0 | AO67: 0 | AQ67: E67* " | AS67: 187000 | AT67: 126670.6693 | AU67: 50277.08843 | AV67: 5492.450205 | AW67: 988.6677801 | AX67: 3571.124301 | AY67: 0 | BA67: 0 | BB67: 0 | BC67: 0 | BD67: 0 | BE67: 0 | BF67: 0 | BG67: 0 | BI67: 0 | BJ67: 0 | BK67: 0 | BL67: 0 | BM67: 0 | BN67: 0 | BO67: 0
A68: 68 | B68: 356 | C68: U | D68: Purification Equipment Accum. Depr. | E68: =PROFORMA!AW314 -> -267000 | F68: ="as 356 Plant ("&A$21&")" -> as 356 Plant (21) | H68: -267000 | I68: -180861.3299 | J68: -71786.00327 | K68: -7842.161523 | L68: -1411.627258 | M68: -5098.878013 | N68: 0 | P68: E68* " | R68: =R$21 -> 0.13 | S68: =S$21 -> 0.87 | T68: 0 | U68: 0 | V68: 0 | W68: 0 | X68: 0 | Y68: 0 | Z68: 0 | AA68: 0 | AB68: 0 | AC68: 0 | AD68: 0 | AE68: 0 | AF68: 0 | AG68: 0 | AH68: 0 | AI68: 0 | AK68: -267000 | AL68: -267000 | AM68: 0 | AN68: 0 | AO68: 0 | AQ68: E68* " | AS68: -267000 | AT68: -180861.3299 | AU68: -71786.00327 | AV68: -7842.161523 | AW68: -1411.627258 | AX68: -5098.878013 | AY68: 0 | BA68: 0 | BB68: 0 | BC68: 0 | BD68: 0 | BE68: 0 | BF68: 0 | BG68: 0 | BI68: 0 | BJ68: 0 | BK68: 0 | BL68: 0 | BM68: 0 | BN68: 0 | BO68: 0
A69: 69 | B69: 357 | C69: U | D69: Other Equipment Accum. Depr. | E69: =PROFORMA!AW315 -> -1511000 | F69: ="as 357 Plant ("&A$22&")" -> as 357 Plant (22) | H69: -1511000 | I69: -1023526.103 | J69: -406249.629 | K69: -44380.17251 | L69: -7988.647143 | M69: -28855.44823 | N69: 0 | P69: E69* " | R69: =R$22 -> 0.13 | S69: =S$22 -> 0.87 | T69: 0 | U69: 0 | V69: 0 | W69: 0 | X69: 0 | Y69: 0 | Z69: 0 | AA69: 0 | AB69: 0 | AC69: 0 | AD69: 0 | AE69: 0 | AF69: 0 | AG69: 0 | AH69: 0 | AI69: 0 | AK69: -1511000 | AL69: -1511000 | AM69: 0 | AN69: 0 | AO69: 0 | AQ69: E69* " | AS69: -1511000 | AT69: -1023526.103 | AU69: -406249.629 | AV69: -44380.17251 | AW69: -7988.647143 | AX69: -28855.44823 | AY69: 0 | BA69: 0 | BB69: 0 | BC69: 0 | BD69: 0 | BE69: 0 | BF69: 0 | BG69: 0 | BI69: 0 | BJ69: 0 | BK69: 0 | BL69: 0 | BM69: 0 | BN69: 0 | BO69: 0
A70: 70 | D70: Total Transmission Plant Accum Depr | E70: =SUM(E62:E69) -> -10795000 | H70: =IF(ROUND(SUM(H61:H69),3)<>ROUND(SUM(I70:N70),3),#VALUE!,SUM(H61:H69)) -> -10795000 | I70: =SUM(I61:I69) -> -7312352.272 | J70: -2902359.196 | K70: -317064.1709 | L70: -57073.09458 | M70: -206151.2665 | N70: 0 | P70: =$A61&":"&A69 -> 61:69 | R70: =SUMPRODUCT($E62:$E69,R$62:R$69)/$E70 -> 0.13 | S70: 0.87 | T70: 0 | U70: 0 | V70: 0 | W70: 0 | X70: 0 | Y70: 0 | Z70: 0 | AA70: 0 | AB70: 0 | AC70: 0 | AD70: 0 | AE70: 0 | AF70: 0 | AG70: 0 | AH70: 0 | AI70: 0 | AK70: =IF(ROUND(SUM(AK61:AK69),3)<>ROUND(SUM(AL70:AO70),3),#VALUE!,SUM(AK61:AK69)) -> -10795000 | AL70: =SUM(AL61:AL69) -> -10795000 | AM70: =SUM(AM61:AM69) -> 0 | AN70: =SUM(AN61:AN69) -> 0 | AO70: =SUM(AO61:AO69) -> 0 | AQ70: =$A61&":"&$A69 -> 61:69 | AS70: =IF(ROUND(SUM(AS61:AS69),3)<>ROUND(SUM(AT70:AY70),3),#VALUE!,SUM(AS61:AS69)) -> -10795000 | AT70: =SUM(AT61:AT69) -> -7312352.272 | AU70: -2902359.196 | AV70: -317064.1709 | AW70: -57073.09458 | AX70: -206151.2665 | AY70: 0 | BA70: =IF(ROUND(SUM(BA61:BA69),3)<>ROUND(SUM(BB70:BG70),3),#VALUE!,SUM(BA61:BA69)) -> 0 | BB70: =SUM(BB61:BB69) -> 0 | BC70: 0 | BD70: 0 | BE70: 0 | BF70: 0 | BG70: 0 | BI70: =IF(ROUND(SUM(BI61:BI69),3)<>ROUND(SUM(BJ70:BO70),3),#VALUE!,SUM(BI61:BI69)) -> 0 | BJ70: =SUM(BJ61:BJ69) -> 0 | BK70: 0 | BL70: 0 | BM70: 0 | BN70: 0 | BO70: 0
A71: 71 | AI71: 0
A72: 72 | D72: Distribution Plant Accumulated Depreciation | AI72: =IF(SUM(R72:AH72)<>0,(ROUND(SUM(R72:AH72),8)<>1)+0,0) -> 0
A73: 73 | B73: 374 | C73: D | D73: Land & Land Rights Accum. Depr. | E73: =PROFORMA!AW319 -> -3000 | F73: ="as 374 Plant ("&A$26&")" -> as 374 Plant (26) | H73: =SUM(I73:N73) -> -3000 | I73: =$E73*SUMPRODUCT($R73:$AH73,INDEX(AllocFactors,I$4,0)) -> -2572.473713 | J73: -300.7536521 | K73: -22.07345601 | L73: -4.892241358 | M73: -99.80693783 | N73: 0 | P73: =E$1&$A73&"* Sum["&$R$1&$A73&":"&$AH$1&$A73&"* "&Factors!D$1&Factors!$A$58&":"&Factors!S$1&Factors!$A$64&"]" -> E73* Sum[R73:AH73* D1037:S1043] | R73: =R$26 -> 0 | S73: =S$26 -> 0 | T73: 0 | U73: 0 | V73: 0 | W73: 0.2997055275 | X73: 0 | Y73: 0 | Z73: 0 | AA73: 0 | AB73: 0.2001307384 | AC73: 0.3442913001 | AD73: 0.1487756598 | AE73: 0 | AF73: 0.007096774194 | AG73: 0 | AH73: 0 | AI73: 0 | AK73: =SUM(AL73:AO73) -> -3000 | AL73: =SUMIF($R$4:$AH$4,AL$5,$R73:$AH73)*$E73 -> 0 | AM73: -899.1165826 | AN73: -2100.883417 | AO73: 0 | AQ73: =E$1&$A73&"*["&R$1&$A73&":"&$AH$1&$A73&" when "&R$1&$A$4&":"&$AH$1&$A$4&" = E,D,C,or R]" -> E73*[R73:AH73 when R4:AH4 = E,D,C,or R] | AS73: =SUM(AT73:AY73) -> 0 | AT73: =$E73*SUMPRODUCT($R73:$V73,INDEX(AllocFactors_E,AT$4,0)) -> 0 | AU73: 0 | AV73: 0 | AW73: 0 | AX73: 0 | AY73: 0 | BA73: =SUM(BB73:BG73) -> -899.1165826 | BB73: =$E73*SUMPRODUCT($W73:$AA73,INDEX(AllocFactors_D,BB$4,0)) -> -588.3389892 | BC73: -200.8101648 | BD73: -19.44710012 | BE73: -3.812412441 | BF73: -86.70791602 | BG73: 0 | BI73: =SUM(BJ73:BO73) -> -2100.883417 | BJ73: =$E73*SUMPRODUCT($AB73:$AG73,INDEX(AllocFactors_C,BJ$4,0)) -> -1984.134724 | BK73: -99.94348731 | BL73: -2.626355884 | BM73: -1.079828917 | BN73: -13.09902181 | BO73: 0
A74: 74 | B74: 375 | C74: D | D74: Structures & Improvements Accum. Depr. | E74: =PROFORMA!AW320 -> -192000 | F74: ="as 375 Plant ("&A$27&")" -> as 375 Plant (27) | H74: -192000 | I74: -164638.3176 | J74: -19248.23374 | K74: -1412.701184 | L74: -313.1034469 | M74: -6387.644021 | N74: 0 | P74: =E$1&$A74&"* """ -> E74* " | R74: =R$27 -> 0 | S74: =S$27 -> 0 | T74: 0 | U74: 0 | V74: 0 | W74: 0.2997055275 | X74: 0 | Y74: 0 | Z74: 0 | AA74: 0 | AB74: 0.2001307384 | AC74: 0.3442913001 | AD74: 0.1487756598 | AE74: 0 | AF74: 0.007096774194 | AG74: 0 | AH74: 0 | AI74: 0 | AK74: -192000 | AL74: 0 | AM74: -57543.46129 | AN74: -134456.5387 | AO74: 0 | AQ74: =E$1&$A74&"* """ -> E74* " | AS74: 0 | AT74: 0 | AU74: 0 | AV74: 0 | AW74: 0 | AX74: 0 | AY74: 0 | BA74: -57543.46129 | BB74: -37653.69531 | BC74: -12851.85055 | BD74: -1244.614408 | BE74: -243.9943962 | BF74: -5549.306626 | BG74: 0 | BI74: -134456.5387 | BJ74: -126984.6223 | BK74: -6396.383188 | BL74: -168.0867766 | BM74: -69.10905067 | BN74: -838.3373956 | BO74: 0
A75: 75 | B75: 376-All | C75: D | D75: Mains Accum. Depr. | E75: =PROFORMA!AW321+PROFORMA!AW322 -> -65889000 | F75: ="as 376-SM Plant ("&A$30&")" -> as 376-SM Plant (30) | H75: =SUM(I75:N75) -> -65889000 | I75: -52030169.65 | J75: -9111371.686 | K75: -842245.3717 | L75: -164530.3566 | M75: -3740682.934 | N75: 0 | P75: =E$1&$A75&"* """ -> E75* " | R75: =R$28 -> 0 | S75: =S$28 -> 0 | T75: 0 | U75: 0 | V75: 0 | W75: 0.5876418789 | X75: 0 | Y75: 0 | Z75: 0 | AA75: 0 | AB75: 0.4123581211 | AC75: 0 | AD75: 0 | AE75: 0 | AF75: 0 | AG75: 0 | AH75: 0 | AI75: =IF(SUM(R75:AH75)<>0,(ROUND(SUM(R75:AH75),8)<>1)+0,0) -> 0 | AK75: =SUM(AL75:AO75) -> -65889000 | AL75: 0 | AM75: -38719135.76 | AN75: -27169864.24 | AO75: 0 | AQ75: =E$1&$A75&"* """ -> E75* " | AS75: =SUM(AT75:AY75) -> 0 | AT75: 0 | AU75: 0 | AV75: 0 | AW75: 0 | AX75: 0 | AY75: 0 | BA75: =SUM(BB75:BG75) -> -38719135.76 | BB75: -25335954.91 | BC75: -8647594.967 | BD75: -837460.8191 | BE75: -164175.9453 | BF75: -3733949.119 | BG75: 0 | BI75: =SUM(BJ75:BO75) -> -27169864.24 | BJ75: -26694214.74 | BK75: -463776.7191 | BL75: -4784.552537 | BM75: -354.4112991 | BN75: -6733.814682 | BO75: 0
A76: 76 | B76: 376 | C76: D | D76: Mains Accum. Depr. | F76: ="as 376-SM Plant ("&A$30&")" -> as 376-SM Plant (30) | H76: 0 | I76: 0 | J76: 0 | K76: 0 | L76: 0 | M76: 0 | N76: 0 | P76: E76* " | R76: =R$29 -> 0 | S76: =S$29 -> 0 | T76: 0 | U76: 0 | V76: 0 | W76: 0 | X76: 0 | Y76: 0 | Z76: 0 | AA76: 0 | AB76: 0 | AC76: 0 | AD76: 0 | AE76: 0 | AF76: 0 | AG76: 0 | AH76: 0 | AI76: 0 | AK76: 0 | AL76: 0 | AM76: 0 | AN76: 0 | AO76: 0 | AQ76: =E$1&$A76&"* """ -> E76* " | AS76: 0 | AT76: 0 | AU76: 0 | AV76: 0 | AW76: 0 | AX76: 0 | AY76: 0 | BA76: 0 | BB76: 0 | BC76: 0 | BD76: 0 | BE76: 0 | BF76: 0 | BG76: 0 | BI76: 0 | BJ76: 0 | BK76: 0 | BL76: 0 | BM76: 0 | BN76: 0 | BO76: 0
A77: 77 | B77: 378 | C77: D | D77: Meas & Reg Station Equip-Gen. Accum. Depr. | E77: =PROFORMA!AW323 -> -842000 | F77: ="as 378 Plant ("&A$31&")" -> as 378 Plant (31) | H77: -842000 | I77: -550964.6229 | J77: -188053.6541 | K77: -18211.71873 | L77: -3570.228086 | M77: -81199.77621 | N77: 0 | P77: E77* " | R77: =R$31 -> 0 | S77: =S$31 -> 0 | T77: 0 | U77: 0 | V77: 0 | W77: 1 | X77: 0 | Y77: 0 | Z77: 0 | AA77: 0 | AB77: 0 | AC77: 0 | AD77: 0 | AE77: 0 | AF77: 0 | AG77: 0 | AH77: 0 | AI77: 0 | AK77: -842000 | AL77: 0 | AM77: -842000 | AN77: 0 | AO77: 0 | AQ77: E77* " | AS77: 0 | AT77: 0 | AU77: 0 | AV77: 0 | AW77: 0 | AX77: 0 | AY77: 0 | BA77: -842000 | BB77: -550964.6229 | BC77: -188053.6541 | BD77: -18211.71873 | BE77: -3570.228086 | BF77: -81199.77621 | BG77: 0 | BI77: 0 | BJ77: 0 | BK77: 0 | BL77: 0 | BM77: 0 | BN77: 0 | BO77: 0
A78: 78 | B78: 379 | C78: D | D78: Meas & Reg Station Equip-City Gate Accum. Depr. | E78: =PROFORMA!AW324 -> -542000 | F78: ="as 379 Plant ("&A$32&")" -> as 379 Plant (32) | H78: -542000 | I78: -354658.9378 | J78: -121051.1645 | K78: -11722.98284 | L78: -2298.175324 | M78: -52268.73956 | N78: 0 | P78: E78* " | R78: =R$32 -> 0 | S78: =S$32 -> 0 | T78: 0 | U78: 0 | V78: 0 | W78: 1 | X78: 0 | Y78: 0 | Z78: 0 | AA78: 0 | AB78: 0 | AC78: 0 | AD78: 0 | AE78: 0 | AF78: 0 | AG78: 0 | AH78: 0 | AI78: 0 | AK78: -542000 | AL78: 0 | AM78: -542000 | AN78: 0 | AO78: 0 | AQ78: E78* " | AS78: 0 | AT78: 0 | AU78: 0 | AV78: 0 | AW78: 0 | AX78: 0 | AY78: 0 | BA78: -542000 | BB78: -354658.9378 | BC78: -121051.1645 | BD78: -11722.98284 | BE78: -2298.175324 | BF78: -52268.73956 | BG78: 0 | BI78: 0 | BJ78: 0 | BK78: 0 | BL78: 0 | BM78: 0 | BN78: 0 | BO78: 0
A79: 79 | B79: 380 | C79: D | D79: Services Accum. Depr. | E79: =PROFORMA!AW325 -> -55525000 | F79: ="as 380 Plant ("&A$33&")" -> as 380 Plant (33) | H79: -55525000 | I79: -54380546.65 | J79: -944790.1634 | K79: -26387.25131 | L79: -1954.611208 | M79: -171321.3219 | N79: 0 | P79: E79* " | R79: =R$33 -> 0 | S79: =S$33 -> 0 | T79: 0 | U79: 0 | V79: 0 | W79: 0 | X79: 0 | Y79: 0 | Z79: 0 | AA79: 0 | AB79: 0 | AC79: 1 | AD79: 0 | AE79: 0 | AF79: 0 | AG79: 0 | AH79: 0 | AI79: 0 | AK79: -55525000 | AL79: 0 | AM79: 0 | AN79: -55525000 | AO79: 0 | AQ79: E79* " | AS79: 0 | AT79: 0 | AU79: 0 | AV79: 0 | AW79: 0 | AX79: 0 | AY79: 0 | BA79: 0 | BB79: 0 | BC79: 0 | BD79: 0 | BE79: 0 | BF79: 0 | BG79: 0 | BI79: -55525000 | BJ79: -54380546.65 | BK79: -944790.1634 | BL79: -26387.25131 | BM79: -1954.611208 | BN79: -171321.3219 | BO79: 0
A80: 80 | B80: 381 | C80: D | D80: Meters Accum. Depr. | E80: =PROFORMA!AW326 -> -12085000 | F80: ="as 381 Plant ("&A$34&")" -> as 381 Plant (34) | H80: -12085000 | I80: -10361346.1 | J80: -1486647.877 | K80: -37561.15423 | L80: -19118.43951 | M80: -180326.434 | N80: 0 | P80: E80* " | R80: =R$34 -> 0 | S80: =S$34 -> 0 | T80: 0 | U80: 0 | V80: 0 | W80: 0 | X80: 0 | Y80: 0 | Z80: 0 | AA80: 0 | AB80: 0 | AC80: 0 | AD80: 1 | AE80: 0 | AF80: 0 | AG80: 0 | AH80: 0 | AI80: 0 | AK80: -12085000 | AL80: 0 | AM80: 0 | AN80: -12085000 | AO80: 0 | AQ80: E80* " | AS80: 0 | AT80: 0 | AU80: 0 | AV80: 0 | AW80: 0 | AX80: 0 | AY80: 0 | BA80: 0 | BB80: 0 | BC80: 0 | BD80: 0 | BE80: 0 | BF80: 0 | BG80: 0 | BI80: -12085000 | BJ80: -10361346.1 | BK80: -1486647.877 | BL80: -37561.15423 | BM80: -19118.43951 | BN80: -180326.434 | BO80: 0
A81: 81 | B81: 382 | C81: D | D81: Meter Installations Accum. Depr. | E81: =PROFORMA!AW327 -> 0 | F81: ="as 382 Plant ("&A$35&")" -> as 382 Plant (35) | H81: 0 | I81: 0 | J81: 0 | K81: 0 | L81: 0 | M81: 0 | N81: 0 | P81: E81* " | R81: =R$35 -> 0 | S81: =S$35 -> 0 | T81: 0 | U81: 0 | V81: 0 | W81: 0 | X81: 0 | Y81: 0 | Z81: 0 | AA81: 0 | AB81: 1 | AC81: 0 | AD81: 0 | AE81: 0 | AF81: 0 | AG81: 0 | AH81: 0 | AI81: 0 | AK81: 0 | AL81: 0 | AM81: 0 | AN81: 0 | AO81: 0 | AQ81: E81* " | AS81: 0 | AT81: 0 | AU81: 0 | AV81: 0 | AW81: 0 | AX81: 0 | AY81: 0 | BA81: 0 | BB81: 0 | BC81: 0 | BD81: 0 | BE81: 0 | BF81: 0 | BG81: 0 | BI81: 0 | BJ81: 0 | BK81: 0 | BL81: 0 | BM81: 0 | BN81: 0 | BO81: 0
A82: 82 | B82: 383 | C82: D | D82: House Regulators Accum. Depr. | E82: =PROFORMA!AW328 -> 0 | F82: ="as 383 Plant ("&A$36&")" -> as 383 Plant (36) | H82: 0 | I82: 0 | J82: 0 | K82: 0 | L82: 0 | M82: 0 | N82: 0 | P82: E82* " | R82: =R$36 -> 0 | S82: =S$36 -> 0 | T82: 0 | U82: 0 | V82: 0 | W82: 0 | X82: 0 | Y82: 0 | Z82: 0 | AA82: 0 | AB82: 0 | AC82: 0 | AD82: 0 | AE82: 0 | AF82: 0 | AG82: 0 | AH82: 0 | AI82: 0 | AK82: 0 | AL82: 0 | AM82: 0 | AN82: 0 | AO82: 0 | AQ82: E82* " | AS82: 0 | AT82: 0 | AU82: 0 | AV82: 0 | AW82: 0 | AX82: 0 | AY82: 0 | BA82: 0 | BB82: 0 | BC82: 0 | BD82: 0 | BE82: 0 | BF82: 0 | BG82: 0 | BI82: 0 | BJ82: 0 | BK82: 0 | BL82: 0 | BM82: 0 | BN82: 0 | BO82: 0
A83: 83 | B83: 384 | C83: D | D83: House Regulator Installations Accum. Depr. | E83: =PROFORMA!AW329 -> 0 | F83: ="as 384 Plant ("&A$37&")" -> as 384 Plant (37) | H83: 0 | I83: 0 | J83: 0 | K83: 0 | L83: 0 | M83: 0 | N83: 0 | P83: E83* " | R83: =R$37 -> 0 | S83: =S$37 -> 0 | T83: 0 | U83: 0 | V83: 0 | W83: 0 | X83: 0 | Y83: 0 | Z83: 0 | AA83: 0 | AB83: 1 | AC83: 0 | AD83: 0 | AE83: 0 | AF83: 0 | AG83: 0 | AH83: 0 | AI83: 0 | AK83: 0 | AL83: 0 | AM83: 0 | AN83: 0 | AO83: 0 | AQ83: E83* " | AS83: 0 | AT83: 0 | AU83: 0 | AV83: 0 | AW83: 0 | AX83: 0 | AY83: 0 | BA83: 0 | BB83: 0 | BC83: 0 | BD83: 0 | BE83: 0 | BF83: 0 | BG83: 0 | BI83: 0 | BJ83: 0 | BK83: 0 | BL83: 0 | BM83: 0 | BN83: 0 | BO83: 0
A84: 84 | B84: 385 | C84: D | D84: Industrial Meas & Reg Station Equip Accum. Depr. | E84: =PROFORMA!AW330 -> -1109000 | F84: ="as 385 Plant ("&A$38&")" -> as 385 Plant (38) | H84: -1109000 | I84: 0 | J84: -896707.6941 | K84: -33470.21163 | L84: -17166.03244 | M84: -161656.0618 | N84: 0 | P84: E84* " | R84: =R$38 -> 0 | S84: =S$38 -> 0 | T84: 0 | U84: 0 | V84: 0 | W84: 0 | X84: 0 | Y84: 0 | Z84: 0 | AA84: 0 | AB84: 0 | AC84: 0 | AD84: 0 | AE84: 0 | AF84: 1 | AG84: 0 | AH84: 0 | AI84: 0 | AK84: -1109000 | AL84: 0 | AM84: 0 | AN84: -1109000 | AO84: 0 | AQ84: E84* " | AS84: 0 | AT84: 0 | AU84: 0 | AV84: 0 | AW84: 0 | AX84: 0 | AY84: 0 | BA84: 0 | BB84: 0 | BC84: 0 | BD84: 0 | BE84: 0 | BF84: 0 | BG84: 0 | BI84: -1109000 | BJ84: 0 | BK84: -896707.6941 | BL84: -33470.21163 | BM84: -17166.03244 | BN84: -161656.0618 | BO84: 0
A85: 85 | B85: 387 | C85: D | D85: Other Equipment Accum. Depr. | E85: =PROFORMA!AW331 -> 0 | F85: ="as 387 Plant ("&A$39&")" -> as 387 Plant (39) | H85: 0 | I85: 0 | J85: 0 | K85: 0 | L85: 0 | M85: 0 | N85: 0 | P85: E85* " | R85: =R$39 -> 0 | S85: =S$39 -> 0 | T85: 0 | U85: 0 | V85: 0 | W85: 0.2997055275 | X85: 0 | Y85: 0 | Z85: 0 | AA85: 0 | AB85: 0.2001307384 | AC85: 0.3442913001 | AD85: 0.1487756598 | AE85: 0 | AF85: 0.007096774194 | AG85: 0 | AH85: 0 | AI85: 0 | AK85: 0 | AL85: 0 | AM85: 0 | AN85: 0 | AO85: 0 | AQ85: E85* " | AS85: 0 | AT85: 0 | AU85: 0 | AV85: 0 | AW85: 0 | AX85: 0 | AY85: 0 | BA85: 0 | BB85: 0 | BC85: 0 | BD85: 0 | BE85: 0 | BF85: 0 | BG85: 0 | BI85: 0 | BJ85: 0 | BK85: 0 | BL85: 0 | BM85: 0 | BN85: 0 | BO85: 0
A86: 86 | D86: Total Distribution Plant Accum Depr | E86: =SUM(E73:E85) -> -136187000 | H86: =IF(ROUND(SUM(H72:H85),3)<>ROUND(SUM(I86:N86),3),#VALUE!,SUM(H72:H85)) -> -136187000 | I86: =SUM(I72:I85) -> -117844896.8 | J86: -12768171.23 | K86: -971033.465 | L86: -208955.8389 | M86: -4393942.719 | N86: 0 | P86: =$A72&":"&A85 -> 72:85 | R86: =SUMPRODUCT($E73:$E85,R$73:R$85)/$E86 -> 0 | S86: 0 | T86: 0 | U86: 0 | V86: 0 | W86: 0.2949002352 | X86: 0 | Y86: 0 | Z86: 0 | AA86: 0 | AB86: 0.1997906536 | AC86: 0.4082044307 | AD86: 0.08895130412 | AE86: 0 | AF86: 0.008153376394 | AG86: 0 | AH86: 0 | AI86: 0 | AK86: =IF(ROUND(SUM(AK72:AK85),3)<>ROUND(SUM(AL86:AO86),3),#VALUE!,SUM(AK72:AK85)) -> -136187000 | AL86: =SUM(AL72:AL85) -> 0 | AM86: =SUM(AM72:AM85) -> -40161578.34 | AN86: =SUM(AN72:AN85) -> -96025421.66 | AO86: =SUM(AO72:AO85) -> 0 | AQ86: =$A72&":"&$A85 -> 72:85 | AS86: =IF(ROUND(SUM(AS72:AS85),3)<>ROUND(SUM(AT86:AY86),3),#VALUE!,SUM(AS72:AS85)) -> 0 | AT86: =SUM(AT72:AT85) -> 0 | AU86: 0 | AV86: 0 | AW86: 0 | AX86: 0 | AY86: 0 | BA86: =IF(ROUND(SUM(BA72:BA85),3)<>ROUND(SUM(BB86:BG86),3),#VALUE!,SUM(BA72:BA85)) -> -40161578.34 | BB86: =SUM(BB72:BB85) -> -26279820.5 | BC86: -8969752.446 | BD86: -868659.5822 | BE86: -170292.1555 | BF86: -3873053.65 | BG86: 0 | BI86: =IF(ROUND(SUM(BI72:BI85),3)<>ROUND(SUM(BJ86:BO86),3),#VALUE!,SUM(BI72:BI85)) -> -96025421.66 | BJ86: =SUM(BJ72:BJ85) -> -91565076.25 | BK86: -3798418.78 | BL86: -102373.8828 | BM86: -38663.68334 | BN86: -520889.0688 | BO86: 0
A88: =RowHdr -> 88 | D88: UG/D Plant | E88: =E70+E86 -> -146982000 | F88: ="("&A$23&"+"&A$40&")" -> (23+40) | G88: UG/D Plant (S03) | H88: =H70+H86 -> -146982000 | I88: =I70+I86 -> -125157249 | J88: -15670530.42 | K88: -1288097.636 | L88: -266028.9334 | M88: -4600093.985 | N88: =N69+N86 -> 0 | R88: =($E70*R70+$E86*R86)/$E88 -> 0.009547767754 | S88: =($E70*S70+$E86*S86)/$E88 -> 0.06389659958 | T88: =($E70*T70+$E86*T86)/$E88 -> 0 | U88: =($E70*U70+$E86*U86)/$E88 -> 0 | V88: 0 | W88: =($E70*W70+$E86*W86)/$E88 -> 0.273241474 | X88: 0 | Y88: 0 | Z88: 0 | AA88: 0 | AB88: 0.1851171554 | AC88: 0.3782241145 | AD88: 0.08241833186 | AE88: 0 | AF88: 0.007554556823 | AG88: 0 | AH88: 0 | AI88: =IF(SUM(R88:AH88)<>0,(ROUND(SUM(R88:AH88),8)<>1)+0,0) -> 0
A89: 89 | AI89: 0
A90: 90 | D90: General Plant Accumulated Depreciation | AI90: 0
A91: 91 | B91: 389 | C91: O | D91: Land & Land Rights Accum. Depr. | E91: =PROFORMA!AW335 -> -6000 | F91: ="as 389 Plant ("&A$45&")" -> as 389 Plant (45) | H91: =SUM(I91:N91) -> -6000 | I91: =$E91*SUMPRODUCT($R91:$AH91,INDEX(AllocFactors,I$4,0)) -> -5407.151969 | J91: -447.4714953 | K91: -31.5073567 | L91: -6.787786696 | M91: -107.0813922 | N91: 0 | P91: Corporate Cost Allocator (4-Factor) | R91: =(R$114*0.25)+(R$251*0.25)+(BS$250*0.25) -> 0.008069056373 | S91: =(S$114*0.25)+(S$251*0.25)+(BT$250*0.25) -> 0.0438466321 | T91: 0 | U91: 0 | V91: 0 | W91: 0.1432533734 | X91: 0 | Y91: 0 | Z91: 0 | AA91: 0 | AB91: =(AB$114*0.25)+(AB$251*0.25)+(CC$250*0.25)+0.25 -> 0.5381044981 | AC91: 0.1518891359 | AD91: 0.110778312 | AE91: 0 | AF91: 0.004058992084 | AG91: 0 | AH91: 0 | AI91: 0 | AK91: =SUM(AL91:AO91) -> -6000 | AL91: =SUMIF($R$4:$AH$4,AL$5,$R91:$AH91)*$E91 -> -311.4941308 | AM91: -859.5202406 | AN91: -4828.985629 | AO91: 0 | AQ91: =E$1&$A91&"*["&R$1&$A91&":"&$AH$1&$A91&" when "&R$1&$A$4&":"&$AH$1&$A$4&" = E,D,C,or R]" -> E91*[R91:AH91 when R4:AH4 = E,D,C,or R] | AS91: =SUM(AT91:AY91) -> -311.4941308 | AT91: =$E91*SUMPRODUCT($R91:$V91,INDEX(AllocFactors_E,AT$4,0)) -> -210.1974588 | AU91: -83.42986015 | AV91: -9.114178382 | AW91: -1.640596486 | AX91: -7.112037014 | AY91: 0 | BA91: =SUM(BB91:BG91) -> -859.5202406 | BB91: =$E91*SUMPRODUCT($W91:$AA91,INDEX(AllocFactors_D,BB$4,0)) -> -562.4290324 | BC91: -191.9666532 | BD91: -18.59066611 | BE91: -3.644516988 | BF91: -82.88937196 | BG91: 0 | BI91: =SUM(BJ91:BO91) -> -4828.985629 | BJ91: =$E91*SUMPRODUCT($AB91:$AG91,INDEX(AllocFactors_C,BJ$4,0)) -> -4634.525478 | BK91: -172.074982 | BL91: -3.802512217 | BM91: -1.502673222 | BN91: -17.07998324 | BO91: 0
A92: 92 | B92: 390 | C92: O | D92: Structures & Improvements Accum. Depr. | E92: =PROFORMA!AW336 -> -866000 | F92: ="as 390 Plant ("&A$46&")" -> as 390 Plant (46) | H92: -866000 | I92: -780432.2675 | J92: -64585.0525 | K92: -4547.561818 | L92: -979.7038798 | M92: -15455.41428 | N92: 0 | P92: Corporate Cost Allocator (4-Factor) | R92: =(R$114*0.25)+(R$251*0.25)+(BS$250*0.25) -> 0.008069056373 | S92: 0.0438466321 | T92: 0 | U92: 0 | V92: 0 | W92: 0.1432533734 | X92: 0 | Y92: 0 | Z92: 0 | AA92: 0 | AB92: =(AB$114*0.25)+(AB$251*0.25)+(CC$250*0.25)+0.25 -> 0.5381044981 | AC92: 0.1518891359 | AD92: 0.110778312 | AE92: 0 | AF92: 0.004058992084 | AG92: 0 | AH92: 0 | AI92: 0 | AK92: -866000 | AL92: -44958.98622 | AM92: -124057.4214 | AN92: -696983.5924 | AO92: 0 | AQ92: =E$1&$A92&"* """ -> E92* " | AS92: -44958.98622 | AT92: -30338.49989 | AU92: -12041.70981 | AV92: -1315.479746 | AW92: -236.7927595 | AX92: -1026.504009 | AY92: 0 | BA92: -124057.4214 | BB92: -81177.25701 | BC92: -27707.18695 | BD92: -2683.252808 | BE92: -526.0252852 | BF92: -11963.69935 | BG92: 0 | BI92: -696983.5924 | BJ92: -668916.5106 | BK92: -24836.15573 | BL92: -548.8292633 | BM92: -216.885835 | BN92: -2465.210914 | BO92: 0
A93: 93 | B93: 391 | C93: O | D93: Office Furniture & Equipment Accum. Depr. | E93: =PROFORMA!AW337 -> -4340000 | F93: ="as 391 Plant ("&A$47&")" -> as 391 Plant (47) | H93: -4340000 | I93: -3911173.258 | J93: -323671.0483 | K93: -22790.32135 | L93: -4909.832377 | M93: -77455.54037 | N93: 0 | P93: Corporate Cost Allocator (4-Factor) | R93: 0.008069056373 | S93: 0.0438466321 | T93: 0 | U93: 0 | V93: 0 | W93: 0.1432533734 | X93: 0 | Y93: 0 | Z93: 0 | AA93: 0 | AB93: 0.5381044981 | AC93: 0.1518891359 | AD93: 0.110778312 | AE93: 0 | AF93: 0.004058992084 | AG93: 0 | AH93: 0 | AI93: 0 | AK93: -4340000 | AL93: -225314.088 | AM93: -621719.6407 | AN93: -3492966.271 | AO93: 0 | AQ93: =E$1&$A93&"* """ -> E93* " | AS93: -225314.088 | AT93: -152042.8285 | AU93: -60347.59884 | AV93: -6592.58903 | AW93: -1186.698125 | AX93: -5144.37344 | AY93: 0 | BA93: -621719.6407 | BB93: -406823.6668 | BC93: -138855.8792 | BD93: -13447.24848 | BE93: -2636.200621 | BF93: -59956.64572 | BG93: 0 | BI93: -3492966.271 | BJ93: -3352306.762 | BK93: -124467.5703 | BL93: -2750.483837 | BM93: -1086.93363 | BN93: -12354.52121 | BO93: 0
A94: 94 | B94: 392 | C94: O | D94: Transportation Equipment Accum. Depr. | E94: =PROFORMA!AW338 -> -2821000 | F94: ="as 392 Plant ("&A$48&")" -> as 392 Plant (48) | H94: -2821000 | I94: -2542262.617 | J94: -210386.1814 | K94: -14813.70888 | L94: -3191.391045 | M94: -50346.10124 | N94: 0 | P94: Corporate Cost Allocator (4-Factor) | R94: 0.008069056373 | S94: 0.0438466321 | T94: 0 | U94: 0 | V94: 0 | W94: 0.1432533734 | X94: 0 | Y94: 0 | Z94: 0 | AA94: 0 | AB94: 0.5381044981 | AC94: 0.1518891359 | AD94: 0.110778312 | AE94: 0 | AF94: 0.004058992084 | AG94: 0 | AH94: 0 | AI94: 0 | AK94: -2821000 | AL94: -146454.1572 | AM94: -404117.7665 | AN94: -2270428.076 | AO94: 0 | AQ94: E94* " | AS94: -146454.1572 | AT94: -98827.83854 | AU94: -39225.93925 | AV94: -4285.182869 | AW94: -771.3537814 | AX94: -3343.842736 | AY94: 0 | BA94: -404117.7665 | BB94: -264435.3834 | BC94: -90256.32145 | BD94: -8740.711514 | BE94: -1713.530404 | BF94: -38971.81972 | BG94: 0 | BI94: -2270428.076 | BJ94: -2178999.396 | BK94: -80903.9207 | BL94: -1787.814494 | BM94: -706.5068598 | BN94: -8030.438787 | BO94: 0
A95: 95 | B95: 393 | C95: O | D95: Stores Equipment Accum. Depr. | E95: =PROFORMA!AW339 -> -136000 | F95: ="as 393 Plant ("&A$49&")" -> as 393 Plant (49) | H95: -136000 | I95: -122562.1113 | J95: -10142.68723 | K95: -714.166752 | L95: -153.8564984 | M95: -2427.178223 | N95: 0 | P95: Corporate Cost Allocator (4-Factor) | R95: 0.008069056373 | S95: 0.0438466321 | T95: 0 | U95: 0 | V95: 0 | W95: 0.1432533734 | X95: 0 | Y95: 0 | Z95: 0 | AA95: 0 | AB95: 0.5381044981 | AC95: 0.1518891359 | AD95: 0.110778312 | AE95: 0 | AF95: 0.004058992084 | AG95: 0 | AH95: 0 | AI95: 0 | AK95: -136000 | AL95: -7060.533632 | AM95: -19482.45879 | AN95: -109457.0076 | AO95: 0 | AQ95: E95* " | AS95: -7060.533632 | AT95: -4764.475733 | AU95: -1891.07683 | AV95: -206.5880433 | AW95: -37.18685369 | AX95: -161.2061723 | AY95: 0 | BA95: -19482.45879 | BB95: -12748.3914 | BC95: -4351.244139 | BD95: -421.3884317 | BE95: -82.60905172 | BF95: -1878.825764 | BG95: 0 | BI95: -109457.0076 | BJ95: -105049.2442 | BK95: -3900.366258 | BL95: -86.19027692 | BM95: -34.06059303 | BN95: -387.1462868 | BO95: 0
A96: 96 | B96: 394 | C96: O | D96: Tools, Shop & Garage Equip. Accum. Depr. | E96: =PROFORMA!AW340 -> -1316000 | F96: ="as 394 Plant ("&A$50&")" -> as 394 Plant (50) | H96: -1316000 | I96: -1185968.665 | J96: -98145.41465 | K96: -6910.613571 | L96: -1488.787882 | M96: -23486.51869 | N96: 0 | P96: Corporate Cost Allocator (4-Factor) | R96: 0.008069056373 | S96: 0.0438466321 | T96: 0 | U96: 0 | V96: 0 | W96: 0.1432533734 | X96: 0 | Y96: 0 | Z96: 0 | AA96: 0 | AB96: 0.5381044981 | AC96: 0.1518891359 | AD96: 0.110778312 | AE96: 0 | AF96: 0.004058992084 | AG96: 0 | AH96: 0 | AI96: 0 | AK96: -1316000 | AL96: -68321.04603 | AM96: -188521.4394 | AN96: -1059157.515 | AO96: 0 | AQ96: E96* " | AS96: -68321.04603 | AT96: -46103.3093 | AU96: -18298.94933 | AV96: -1999.043125 | AW96: -359.837496 | AX96: -1559.906785 | AY96: 0 | BA96: -188521.4394 | BB96: -123359.4344 | BC96: -42104.68594 | BD96: -4077.552766 | BE96: -799.3640593 | BF96: -18180.40225 | BG96: 0 | BI96: -1059157.515 | BJ96: -1016505.921 | BK96: -37741.77938 | BL96: -834.0176796 | BM96: -329.5863266 | BN96: -3746.209657 | BO96: 0
A97: 97 | B97: 395 | C97: O | D97: Laboratory Equipment Accum. Depr. | E97: =PROFORMA!AW341 -> -87000 | F97: ="as 395 Plant ("&A$51&")" -> as 395 Plant (51) | H97: -87000 | I97: -78403.70355 | J97: -6488.336683 | K97: -456.8566722 | L97: -98.42290709 | M97: -1552.680187 | N97: 0 | P97: Corporate Cost Allocator (4-Factor) | R97: 0.008069056373 | S97: 0.0438466321 | T97: 0 | U97: 0 | V97: 0 | W97: 0.1432533734 | X97: 0 | Y97: 0 | Z97: 0 | AA97: 0 | AB97: 0.5381044981 | AC97: 0.1518891359 | AD97: 0.110778312 | AE97: 0 | AF97: 0.004058992084 | AG97: 0 | AH97: 0 | AI97: 0 | AK97: -87000 | AL97: -4516.664897 | AM97: -12463.04349 | AN97: -70020.29161 | AO97: 0 | AQ97: E97* " | AS97: -4516.664897 | AT97: -3047.863152 | AU97: -1209.732972 | AV97: -132.1555865 | AW97: -23.78864905 | AX97: -103.1245367 | AY97: 0 | BA97: -12463.04349 | BB97: -8155.22097 | BC97: -2783.516472 | BD97: -269.5646585 | BE97: -52.84549632 | BF97: -1201.895893 | BG97: 0 | BI97: -70020.29161 | BJ97: -67200.61943 | BK97: -2495.087239 | BL97: -55.13642715 | BM97: -21.78876172 | BN97: -247.659757 | BO97: 0
A98: 98 | B98: 396 | C98: O | D98: Power Operated Equipment Accum. Depr. | E98: =PROFORMA!AW342 -> -1588000 | F98: ="as 396 Plant ("&A$52&")" -> as 396 Plant (52) | H98: -1588000 | I98: -1431092.888 | J98: -118430.7891 | K98: -8338.947075 | L98: -1796.500879 | M98: -28340.87514 | N98: 0 | P98: Corporate Cost Allocator (4-Factor) | R98: 0.008069056373 | S98: 0.0438466321 | T98: 0 | U98: 0 | V98: 0 | W98: 0.1432533734 | X98: 0 | Y98: 0 | Z98: 0 | AA98: 0 | AB98: 0.5381044981 | AC98: 0.1518891359 | AD98: 0.110778312 | AE98: 0 | AF98: 0.004058992084 | AG98: 0 | AH98: 0 | AI98: 0 | AK98: -1588000 | AL98: -82442.11329 | AM98: -227486.357 | AN98: -1278071.53 | AO98: 0 | AQ98: E98* " | AS98: -82442.11329 | AT98: -55632.26076 | AU98: -22081.10299 | AV98: -2412.219212 | AW98: -434.2112034 | AX98: -1882.31913 | AY98: 0 | BA98: -227486.357 | BB98: -148856.2172 | BC98: -50807.17422 | BD98: -4920.329629 | BE98: -964.5821627 | BF98: -21938.05378 | BG98: 0 | BI98: -1278071.53 | BJ98: -1226604.41 | BK98: -45542.5119 | BL98: -1006.398233 | BM98: -397.7075127 | BN98: -4520.502231 | BO98: 0
A99: 99 | B99: 397 | C99: O | D99: Communication Equipment Accum. Depr. | E99: =PROFORMA!AW343 -> -3097000 | F99: ="as 397 Plant ("&A$53&")" -> as 397 Plant (53) | H99: -3097000 | I99: -2790991.608 | J99: -230969.8702 | K99: -16263.04729 | L99: -3503.629233 | M99: -55271.84528 | N99: 0 | P99: Corporate Cost Allocator (4-Factor) | R99: 0.008069056373 | S99: 0.0438466321 | T99: 0 | U99: 0 | V99: 0 | W99: 0.1432533734 | X99: 0 | Y99: 0 | Z99: 0 | AA99: 0 | AB99: 0.5381044981 | AC99: 0.1518891359 | AD99: 0.110778312 | AE99: 0 | AF99: 0.004058992084 | AG99: 0 | AH99: 0 | AI99: 0 | AK99: -3097000 | AL99: -160782.8872 | AM99: -443655.6975 | AN99: -2492561.415 | AO99: 0 | AQ99: E99* " | AS99: -160782.8872 | AT99: -108496.9216 | AU99: -43063.71281 | AV99: -4704.435075 | AW99: -846.8212198 | AX99: -3670.996439 | AY99: 0 | BA99: -443655.6975 | BB99: -290307.1189 | BC99: -99086.7875 | BD99: -9595.882155 | BE99: -1881.178185 | BF99: -42784.73083 | BG99: 0 | BI99: -2492561.415 | BJ99: -2392187.567 | BK99: -88819.36987 | BL99: -1962.730056 | BM99: -775.629828 | BN99: -8816.118016 | BO99: 0
A100: 100 | B100: 398 | C100: O | D100: Miscellaneous Equipment Accum. Depr. | E100: =PROFORMA!AW344 -> -8172000 | F100: ="as 398 Plant ("&A$54&")" -> as 398 Plant (54) | H100: -8172000 | I100: -7364540.982 | J100: -609456.1767 | K100: -42913.01983 | L100: -9244.96548 | M100: -145844.8562 | N100: 0 | P100: Corporate Cost Allocator (4-Factor) | R100: =(R$114*0.25)+(R$251*0.25)+(BS$250*0.25) -> 0.008069056373 | S100: 0.0438466321 | T100: 0 | U100: 0 | V100: 0 | W100: 0.1432533734 | X100: 0 | Y100: 0 | Z100: 0 | AA100: 0 | AB100: 0.5381044981 | AC100: 0.1518891359 | AD100: 0.110778312 | AE100: 0 | AF100: 0.004058992084 | AG100: 0 | AH100: 0 | AI100: 0 | AK100: -8172000 | AL100: -424255.0062 | AM100: -1170666.568 | AN100: -6577078.426 | AO100: 0 | AQ100: E100* " | AS100: -424255.0062 | AT100: -286288.9389 | AU100: -113631.4695 | AV100: -12413.51096 | AW100: -2234.492415 | AX100: -9686.594413 | AY100: 0 | BA100: -1170666.568 | BB100: -766028.3421 | BC100: -261458.5817 | BD100: -25320.48724 | BE100: -4963.832137 | BF100: -112895.3246 | BG100: 0 | BI100: -6577078.426 | BJ100: -6312223.701 | BK100: -234366.1255 | BL100: -5179.02164 | BM100: -2046.640928 | BN100: -23262.93717 | BO100: 0
A101: 101 | D101: Total General Plant Accum Depreciation | E101: =SUM(E91:E100) -> -22429000 | H101: =IF(ROUND(SUM(H90:H100),3)<>ROUND(SUM(I101:N101),3),#VALUE!,SUM(H90:H100)) -> -22429000 | I101: =SUM(I90:I100) -> -20212835.25 | J101: -1672723.028 | K101: -117779.7506 | L101: -25373.87797 | M101: -400288.091 | N101: 0 | P101: =$A90&":"&$A100 -> 90:100 | R101: =SUMPRODUCT($E91:$E100,R$91:R$100)/$E101 -> 0.008069056373 | S101: 0.0438466321 | T101: 0 | U101: =SUMPRODUCT($E91:$E100,U$91:U$100)/$E101 -> 0 | V101: =SUMPRODUCT($E91:$E100,V$91:V$100)/$E101 -> 0 | W101: 0.1432533734 | X101: 0 | Y101: =SUMPRODUCT($E91:$E100,Y$91:Y$100)/$E101 -> 0 | Z101: 0 | AA101: 0 | AB101: 0.5381044981 | AC101: 0.1518891359 | AD101: 0.110778312 | AE101: 0 | AF101: 0.004058992084 | AG101: =SUMPRODUCT($E91:$E100,AG$91:AG$100)/$E101 -> 0 | AH101: 0 | AI101: 0 | AK101: =IF(ROUND(SUM(AK90:AK100),3)<>ROUND(SUM(AL101:AO101),3),#VALUE!,SUM(AK90:AK100)) -> -22429000 | AL101: =SUM(AL90:AL100) -> -1164416.977 | AM101: =SUM(AM90:AM100) -> -3213029.913 | AN101: =SUM(AN90:AN100) -> -18051553.11 | AO101: =SUM(AO90:AO100) -> 0 | AQ101: =$A90&":"&$A100 -> 90:100 | AS101: =IF(ROUND(SUM(AS90:AS100),3)<>ROUND(SUM(AT101:AY101),3),#VALUE!,SUM(AS90:AS100)) -> -1164416.977 | AT101: =SUM(AT90:AT100) -> -785753.1339 | AU101: -311874.7222 | AV101: -34070.31782 | AW101: -6132.823099 | AX101: -26585.9797 | AY101: 0 | BA101: =IF(ROUND(SUM(BA90:BA100),3)<>ROUND(SUM(BB101:BG101),3),#VALUE!,SUM(BA90:BA100)) -> -3213029.913 | BB101: =SUM(BB90:BB100) -> -2102453.461 | BC101: -717603.3442 | BD101: -69495.00835 | BE101: -13623.81192 | BF101: -309854.2873 | BG101: 0 | BI101: =IF(ROUND(SUM(BI90:BI100),3)<>ROUND(SUM(BJ101:BO101),3),#VALUE!,SUM(BI90:BI100)) -> -18051553.11 | BJ101: =SUM(BJ90:BJ100) -> -17324628.66 | BK101: -643244.9618 | BL101: -14214.42442 | BM101: -5617.242948 | BN101: -63847.82402 | BO101: 0
A102: 102 | AI102: 0
A103: 103 | D103: Total Accumulated Reserve for Depreciation | E103: =E70+E86+E101 -> -169411000 | F103: ="("&A$70&"+"&A$86&"+"&A$101&")" -> (70+86+101) | H103: =H70+H86+H101 -> -169411000 | I103: -145370084.3 | J103: -17343253.45 | K103: -1405877.387 | L103: -291402.8114 | M103: -5000382.076 | N103: 0 | P103: ="Sum("&$A70&","&$A86&","&$A101&")" -> Sum(70,86,101) | R103: =($E70*R70+$E86*R86+$E101*R101)/$E103 -> 0.009351995239 | S103: 0.06124210418 | T103: 0 | U103: 0 | V103: 0 | W103: 0.2560318294 | X103: 0 | Y103: 0 | Z103: 0 | AA103: 0 | AB103: 0.2318505618 | AC103: 0.3482587213 | AD103: 0.08617302308 | AE103: 0 | AF103: 0.007091765024 | AG103: 0 | AH103: 0 | AI103: 0 | AK103: =AK70+AK86+AK101 -> -169411000 | AL103: =AL70+AL86+AL101 -> -11959416.98 | AM103: =AM70+AM86+AM101 -> -43374608.25 | AN103: =AN70+AN86+AN101 -> -114076974.8 | AO103: =AO70+AO86+AO101 -> 0 | AQ103: ="Sum("&$A70&","&$A86&","&$A101&")" -> Sum(70,86,101) | AS103: =AS70+AS86+AS101 -> -11959416.98 | AT103: -8098105.406 | AU103: -3214233.918 | AV103: -351134.4887 | AW103: -63205.91768 | AX103: -232737.2462 | AY103: 0 | BA103: =BA70+BA86+BA101 -> -43374608.25 | BB103: -28382273.96 | BC103: -9687355.79 | BD103: -938154.5905 | BE103: -183915.9674 | BF103: -4182907.937 | BG103: 0 | BI103: =BI70+BI86+BI101 -> -114076974.8 | BJ103: -108889704.9 | BK103: -4441663.742 | BL103: -116588.3073 | BM103: -44280.92629 | BN103: -584736.8928 | BO103: 0
A104: 104 | AI104: 0
A105: 105 | D105: Amortization | AI105: 0
A106: 106 | B106: 303.1 | C106: O | D106: Accum Amort of Intangible Plant-Software | E106: =PROFORMA!AW350 -> -4931000 | F106: 4-Factor | H106: =SUM(I106:N106) -> -4931000 | I106: =$E106*SUMPRODUCT($R106:$AH106,INDEX(AllocFactors,I$4,0)) -> -4443777.727 | J106: -367746.9906 | K106: -25893.79599 | L106: -5578.429366 | M106: -88003.0575 | N106: 0 | P106: Corporate Cost Allocator (4-Factor) | R106: =(R$114*0.25)+(R$251*0.25)+(BS$250*0.25) -> 0.008069056373 | S106: =(S$114*0.25)+(S$251*0.25)+(BT$250*0.25) -> 0.0438466321 | T106: 0 | U106: 0 | V106: 0 | W106: 0.1432533734 | X106: 0 | Y106: 0 | Z106: 0 | AA106: 0 | AB106: =(AB$114*0.25)+(AB$251*0.25)+(CC$250*0.25)+0.25 -> 0.5381044981 | AC106: 0.1518891359 | AD106: 0.110778312 | AE106: 0 | AF106: 0.004058992084 | AG106: 0 | AH106: =AH$42 -> 0 | AI106: =IF(SUM(R106:AH106)<>0,(ROUND(SUM(R106:AH106),8)<>1)+0,0) -> 0 | AK106: =SUM(AL106:AO106) -> -4931000 | AL106: =SUMIF($R$4:$AH$4,AL$5,$R106:$AH106)*$E106 -> -255996.2598 | AM106: -706382.3844 | AN106: -3968621.356 | AO106: 0 | AQ106: =E$1&$A106&"* """ -> E106* " | AS106: =SUM(AT106:AY106) -> -255996.2598 | AT106: =$E106*SUMPRODUCT($R106:$V106,INDEX(AllocFactors_E,AT$4,0)) -> -172747.2782 | AU106: -68565.44007 | AV106: -7490.3356 | AW106: -1348.296879 | AX106: -5844.909086 | AY106: 0 | BA106: =SUM(BB106:BG106) -> -706382.3844 | BB106: =$E106*SUMPRODUCT($W106:$AA106,INDEX(AllocFactors_D,BB$4,0)) -> -462222.9264 | BC106: -157764.5945 | BD106: -15278.42909 | BE106: -2995.185544 | BF106: -68121.24885 | BG106: 0 | BI106: =SUM(BJ106:BO106) -> -3968621.356 | BJ106: =$E106*SUMPRODUCT($AB106:$AG106,INDEX(AllocFactors_C,BJ$4,0)) -> -3808807.522 | BK106: -141416.956 | BL106: -3125.03129 | BM106: -1234.946943 | BN106: -14036.89956 | BO106: 0
A107: 107 | B107: 303 | C107: D | D107: Intangible Distribution Plant | E107: =PROFORMA!AW351 -> -255000 | F107: as Distrib Plant (40) | H107: =SUM(I107:N107) -> -255000 | I107: -218660.2656 | J107: -25564.06043 | K107: -1876.243761 | L107: -415.8405154 | M107: -8483.589716 | N107: 0 | P107: =E$1&$A107&"* """ -> E107* " | R107: =R$40 -> 0 | S107: =S$40 -> 0 | T107: 0 | U107: 0 | V107: 0 | W107: 0.2997055275 | X107: 0 | Y107: 0 | Z107: 0 | AA107: 0 | AB107: 0.2001307384 | AC107: 0.3442913001 | AD107: 0.1487756598 | AE107: 0 | AF107: 0.007096774194 | AG107: 0 | AH107: 0 | AI107: 0 | AK107: =SUM(AL107:AO107) -> -255000 | AL107: 0 | AM107: -76424.90952 | AN107: -178575.0905 | AO107: 0 | AQ107: =E$1&$A107&"* """ -> E107* " | AS107: =SUM(AT107:AY107) -> 0 | AT107: 0 | AU107: 0 | AV107: 0 | AW107: 0 | AX107: 0 | AY107: 0 | BA107: =SUM(BB107:BG107) -> -76424.90952 | BB107: -50008.81408 | BC107: -17068.86401 | BD107: -1653.00351 | BE107: -324.0550575 | BF107: -7370.172862 | BG107: 0 | BI107: =SUM(BJ107:BO107) -> -178575.0905 | BJ107: -168651.4515 | BK107: -8495.196421 | BL107: -223.2402502 | BM107: -91.78545792 | BN107: -1113.416854 | BO107: 0
A108: 108 | D108: Total Amortization | E108: =SUM(E105:E107) -> -5186000 | H108: =IF(ROUND(SUM(H105:H107),3)<>ROUND(SUM(I108:N108),3),#VALUE!,SUM(H105:H107)) -> -5186000 | I108: =SUM(I105:I107) -> -4662437.992 | J108: -393311.051 | K108: -27770.03975 | L108: -5994.269882 | M108: -96486.64721 | N108: 0 | P108: =$A105&":"&$A107 -> 105:107 | R108: =SUMPRODUCT($E106:$E107,R106:R107)/$E108 -> 0.007672294056 | S108: =SUMPRODUCT($E106:$E107,S106:S107)/$E108 -> 0.04169065617 | T108: 0 | U108: 0 | V108: 0 | W108: 0.150946258 | X108: 0 | Y108: 0 | Z108: 0 | AA108: 0 | AB108: 0.5214860429 | AC108: 0.1613497128 | AD108: 0.1126466737 | AE108: 0 | AF108: 0.004208362396 | AG108: 0 | AH108: 0 | AI108: 0 | AK108: =IF(ROUND(SUM(AK105:AK107),3)<>ROUND(SUM(AL108:AO108),3),#VALUE!,SUM(AK105:AK107)) -> -5186000 | AL108: =SUM(AL105:AL107) -> -255996.2598 | AM108: =SUM(AM105:AM107) -> -782807.294 | AN108: =SUM(AN105:AN107) -> -4147196.446 | AO108: =SUM(AO105:AO107) -> 0 | AQ108: =$A105&":"&$A107 -> 105:107 | AS108: =IF(ROUND(SUM(AS105:AS107),3)<>ROUND(SUM(AT108:AY108),3),#VALUE!,SUM(AS105:AS107)) -> -255996.2598 | AT108: =SUM(AT105:AT107) -> -172747.2782 | AU108: -68565.44007 | AV108: -7490.3356 | AW108: -1348.296879 | AX108: -5844.909086 | AY108: 0 | BA108: =IF(ROUND(SUM(BA105:BA107),3)<>ROUND(SUM(BB108:BG108),3),#VALUE!,SUM(BA105:BA107)) -> -782807.294 | BB108: =SUM(BB105:BB107) -> -512231.7405 | BC108: -174833.4585 | BD108: -16931.43261 | BE108: -3319.240602 | BF108: -75491.42172 | BG108: 0 | BI108: =IF(ROUND(SUM(BI105:BI107),3)<>ROUND(SUM(BJ108:BO108),3),#VALUE!,SUM(BI105:BI107)) -> -4147196.446 | BJ108: =SUM(BJ105:BJ107) -> -3977458.973 | BK108: -149912.1524 | BL108: -3348.271541 | BM108: -1326.732401 | BN108: -15150.31641 | BO108: 0
A109: 109 | AI109: 0
A110: 110 | D110: Total Accum Reserve for Depr & Amort | E110: =E103+E108 -> -174597000 | F110: ="("&A$103&"+"&A$108&")" -> (103+108) | H110: =H103+H108 -> -174597000 | I110: -150032522.3 | J110: -17736564.5 | K110: -1433647.426 | L110: -297397.0813 | M110: -5096868.723 | N110: 0 | P110: =$A103&"+"&$A108 -> 103+108 | R110: =($E103*R103+$E108*R108)/$E110 -> 0.009302103601 | S110: =($E103*S103+$E108*S108)/$E110 -> 0.06066137364 | T110: 0 | U110: 0 | V110: 0 | W110: 0.2529105056 | X110: 0 | Y110: 0 | Z110: 0 | AA110: 0 | AB110: 0.2404535138 | AC110: 0.3427070216 | AD110: 0.08695936163 | AE110: 0 | AF110: 0.007006120219 | AG110: 0 | AH110: 0 | AI110: 0 | AK110: =AK103+AK108 -> -174597000 | AL110: =AL103+AL108 -> -12215413.24 | AM110: =AM103+AM108 -> -44157415.54 | AN110: =AN103+AN108 -> -118224171.2 | AO110: =AO103+AO108 -> 0 | AQ110: =$A103&"+"&$A108 -> 103+108 | AS110: =AS103+AS108 -> -12215413.24 | AT110: -8270852.684 | AU110: -3282799.358 | AV110: -358624.8243 | AW110: -64554.21456 | AX110: -238582.1553 | AY110: 0 | BA110: =BA103+BA108 -> -44157415.54 | BB110: -28894505.7 | BC110: -9862189.249 | BD110: -955086.0232 | BE110: -187235.208 | BF110: -4258399.359 | BG110: 0 | BI110: =BI103+BI108 -> -118224171.2 | BJ110: -112867163.9 | BK110: -4591575.894 | BL110: -119936.5788 | BM110: -45607.65869 | BN110: -599887.2092 | BO110: 0
A111: 111 | AI111: 0
A112: 112 | D112: Total Net Plant | E112: =E57+E110 -> 357007000 | F112: ="("&A$57&"+"&A$110&")" -> (57+110) | G112: Net Plant (S18) | H112: =H57+H110 -> 357007000 | I112: =I57+I110 -> 304905614.1 | J112: 37808380.52 | K112: 2886193.508 | L112: 623591.3991 | M112: 10783220.5 | N112: 0 | P112: =$A57&"+"&$A110 -> 57+110 | R112: =($E57*R57+$E110*R110)/$E112 -> 0.007489105179 | S112: =($E57*S57+$E110*S110)/$E112 -> 0.04828207454 | T112: 0 | U112: 0 | V112: 0 | W112: 0.259329684 | X112: 0 | Y112: 0 | Z112: 0 | AA112: 0 | AB112: 0.2521339691 | AC112: 0.2691287515 | AD112: 0.1578215056 | AE112: 0 | AF112: 0.005814910083 | AG112: 0 | AH112: 0 | AI112: 0 | AK112: =AK57+AK110 -> 357007000 | AL112: =AL57+AL110 -> 19910701.56 | AM112: =AM57+AM110 -> 92582512.49 | AN112: =AN57+AN110 -> 244513786 | AO112: =AO57+AO110 -> 0 | AQ112: =$A57&"+"&$A110 -> 57+110 | AS112: =AS57+AS110 -> 19910701.56 | AT112: 13478525.55 | AU112: 5349786.376 | AV112: 584429.9301 | AW112: 105200.2331 | AX112: 392759.4741 | AY112: 0 | BA112: =BA57+BA110 -> 92582512.49 | BB112: 60581578.48 | BC112: 20677529.43 | BD112: 2002478.238 | BE112: 392566.1358 | BF112: 8928360.208 | BG112: 0 | BI112: =BI57+BI110 -> 244513786 | BJ112: 230845510 | BK112: 11781064.72 | BL112: 299285.3402 | BM112: 125825.0303 | BN112: 1462100.82 | BO112: 0
A114: =RowHdr -> 114 | D114: Net UG/D Plant | E114: =E42+E88 -> 290385000 | F114: ="("&A$23&"+"&A$40&")" -> (23+40) | G114: UG/D Plant (S03) | H114: =H42+H88 -> 290385000 | I114: =I42+I88 -> 244954807.6 | J114: 32787870.46 | K114: 2532084.685 | L114: 547211.6923 | M114: 9563025.547 | N114: =N42+N88 -> 0 | R114: =($E42*R42+$E88*R88)/$E114 -> 0.00741226303 | S114: =($E42*S42+$E88*S88)/$E114 -> 0.04960514489 | T114: 0 | U114: 0 | V114: 0 | W114: 0.2848707183 | X114: 0 | Y114: 0 | Z114: 0 | AA114: 0 | AB114: 0.188879298 | AC114: 0.294686229 | AD114: 0.1683497457 | AE114: 0 | AF114: 0.006196601064 | AG114: 0 | AH114: 0 | AI114: =(AI42+AI88)/2 -> 0
A116: 116 | E116: =(E112/1000)-PROFORMA!AW354 -> 0 | AI116: 0
A117: 117 | C117: A | D117: Accumulated Deferred Income Taxes | E117: =PROFORMA!AW365*1000 -> -78431000 | F117: ="as Plant in Service ("&A$57&")" -> as Plant in Service (57) | H117: =SUM(I117:N117) -> -78431000 | I117: =$E117*SUMPRODUCT($R117:$AH117,INDEX(AllocFactors,I$4,0)) -> -67119985.87 | J117: =$E117*SUMPRODUCT($R117:$AH117,INDEX(AllocFactors,J$4,0)) -> -8194907.456 | K117: -637334.2645 | L117: -135879.4281 | M117: -2342892.977 | N117: 0 | P117: =E$1&$A117&"* Sum["&$R$1&$A117&":"&$AH$1&$A117&"* "&Factors!D$1&Factors!$A$58&":"&Factors!S$1&Factors!$A$64&"]" -> E117* Sum[R117:AH117* D1037:S1043] | R117: =R$57 -> 0.008084556089 | S117: =S$57 -> 0.05234786127 | T117: 0 | U117: 0 | V117: 0 | W117: 0.2572214055 | X117: 0 | Y117: 0 | Z117: 0 | AA117: 0 | AB117: 0.2482977067 | AC117: 0.2932943808 | AD117: 0.1345479453 | AE117: 0 | AF117: 0.006206144378 | AG117: 0 | AH117: 0 | AI117: 0 | AK117: =SUM(AL117:AO117) -> -78431000 | AL117: =SUMIF($R$4:$AH$4,AL$5,$R117:$AH117)*$E117 -> -4739774.926 | AM117: =SUMIF($R$4:$AH$4,AM$5,$R117:$AH117)*$E117 -> -20174132.05 | AN117: =SUMIF($R$4:$AH$4,AN$5,$R117:$AH117)*$E117 -> -53517093.02 | AO117: =SUMIF($R$4:$AH$4,AO$5,$R117:$AH117)*$E117 -> 0 | AQ117: =E$1&$A117&"*["&R$1&$A117&":"&$AH$1&$A117&" when "&R$1&$A$4&":"&$AH$1&$A$4&" = E,D,C,or R]" -> E117*[R117:AH117 when R4:AH4 = E,D,C,or R] | AS117: =SUM(AT117:AY117) -> -4739774.926 | AT117: =$E117*SUMPRODUCT($R117:$V117,INDEX(AllocFactors_E,AT$4,0)) -> -3208827.405 | AU117: -1273621.59 | AV117: -139135.0092 | AW117: -25044.97912 | AX117: -93145.94196 | AY117: 0 | BA117: =SUM(BB117:BG117) -> -20174132.05 | BB117: =$E117*SUMPRODUCT($W117:$AA117,INDEX(AllocFactors_D,BB$4,0)) -> -13200989.38 | BC117: -4505723.575 | BD117: -436348.7155 | BE117: -85541.868 | BF117: -1945528.513 | BG117: 0 | BI117: =SUM(BJ117:BO117) -> -53517093.02 | BJ117: =$E117*SUMPRODUCT($AB117:$AG117,INDEX(AllocFactors_C,BJ$4,0)) -> -50710169.09 | BK117: -2415562.291 | BL117: -61850.53975 | BM117: -25292.581 | BN117: -304218.5219 | BO117: 0
A118: 118 | AI118: 0
A119: 119 | D119: Miscellaneous Rate Base Items | AI119: 0
A120: 120 | C120: D | D120: Customer Advances and Deposits | E120: =(PROFORMA!AW368+PROFORMA!AW369)*1000 -> -509000 | F120: input - DA 101 | H120: =SUM(I120:N120) -> -509000 | I120: =$E120*SUMPRODUCT($R120:$AH120,INDEX(AllocFactors,I$4,0)) -> -509000 | J120: 0 | K120: 0 | L120: 0 | M120: 0 | N120: 0 | P120: =E$1&$A120&"* Sum["&$R$1&$A120&":"&$AH$1&$A120&"* "&Factors!D$1&Factors!$A$58&":"&Factors!S$1&Factors!$A$64&"]" -> E120* Sum[R120:AH120* D1037:S1043] | S120: 0 | T120: 0 | U120: 0 | V120: 0 | W120: 0 | X120: 0 | Y120: 0 | Z120: 0 | AA120: 0 | AB120: 0 | AC120: 0 | AD120: 0 | AE120: 0 | AF120: 0 | AG120: 1 | AH120: 0 | AI120: 0 | AK120: =SUM(AL120:AO120) -> -509000 | AL120: =SUMIF($R$4:$AH$4,AL$5,$R120:$AH120)*$E120 -> 0 | AM120: 0 | AN120: -509000 | AO120: 0 | AQ120: =E$1&$A120&"*["&R$1&$A120&":"&$AH$1&$A120&" when "&R$1&$A$4&":"&$AH$1&$A$4&" = E,D,C,or R]" -> E120*[R120:AH120 when R4:AH4 = E,D,C,or R] | AS120: =SUM(AT120:AY120) -> 0 | AT120: =$E120*SUMPRODUCT($R120:$V120,INDEX(AllocFactors_E,AT$4,0)) -> 0 | AU120: 0 | AV120: 0 | AW120: 0 | AX120: 0 | AY120: 0 | BA120: =SUM(BB120:BG120) -> 0 | BB120: =$E120*SUMPRODUCT($W120:$AA120,INDEX(AllocFactors_D,BB$4,0)) -> 0 | BC120: 0 | BD120: 0 | BE120: 0 | BF120: 0 | BG120: 0 | BI120: =SUM(BJ120:BO120) -> -509000 | BJ120: =$E120*SUMPRODUCT($AB120:$AG120,INDEX(AllocFactors_C,BJ$4,0)) -> -509000 | BK120: 0 | BL120: 0 | BM120: 0 | BN120: 0 | BO120: 0
A121: 121 | C121: U | D121: Gas Inventory | E121: =PROFORMA!AW370*1000 -> 15143000 | F121: ="as UG Storage Plant ("&A$23&")" -> as UG Storage Plant (23) | H121: =SUM(I121:N121) -> 15143000 | I121: 10257614.68 | J121: 4071368.717 | K121: 444770.981 | L121: 80060.94221 | M121: 289184.6807 | N121: 0 | P121: =E$1&$A121&"* """ -> E121* " | R121: =R$23 -> 0.13 | S121: =S$23 -> 0.87 | T121: 0 | U121: 0 | V121: 0 | W121: 0 | X121: 0 | Y121: 0 | Z121: 0 | AA121: 0 | AB121: 0 | AC121: 0 | AD121: 0 | AE121: 0 | AF121: 0 | AG121: 0 | AH121: 0 | AI121: 0 | AK121: =SUM(AL121:AO121) -> 15143000 | AL121: 15143000 | AM121: 0 | AN121: 0 | AO121: 0 | AQ121: =E$1&$A121&"* """ -> E121* " | AS121: =SUM(AT121:AY121) -> 15143000 | AT121: 10257614.68 | AU121: 4071368.717 | AV121: 444770.981 | AW121: 80060.94221 | AX121: 289184.6807 | AY121: 0 | BA121: =SUM(BB121:BG121) -> 0 | BB121: 0 | BC121: 0 | BD121: 0 | BE121: 0 | BF121: 0 | BG121: 0 | BI121: =SUM(BJ121:BO121) -> 0 | BJ121: 0 | BK121: 0 | BL121: 0 | BM121: 0 | BN121: 0 | BO121: 0
A122: 122 | C122: O | D122: Working Capital | E122: =PROFORMA!AW371*1000 -> 12625000 | F122: as Plant in Service (56) | H122: =SUM(I122:N122) -> 12625000 | I122: =$E122*SUMPRODUCT($R122:$AH122,INDEX(AllocFactors,I$4,0)) -> 10804271.55 | J122: 1319130.275 | K122: 102591.3872 | L122: 21872.44559 | M122: 377134.3452 | N122: 0 | P122: =E$1&$A122&"* """ -> E122* " | R122: =R$57 -> 0.008084556089 | S122: =S$57 -> 0.05234786127 | T122: 0 | U122: 0 | V122: 0 | W122: 0.2572214055 | X122: 0 | Y122: 0 | Z122: 0 | AA122: 0 | AB122: 0.2482977067 | AC122: 0.2932943808 | AD122: 0.1345479453 | AE122: 0 | AF122: 0.006206144378 | AG122: =AG$55 -> 0 | AH122: 0 | AI122: 0 | AK122: =SUM(AL122:AO122) -> 12625000 | AL122: 762959.2691 | AM122: 3247420.244 | AN122: 8614620.487 | AO122: 0 | AQ122: =E$1&$A122&"* """ -> E122* " | AS122: =SUM(AT122:AY122) -> 762959.2691 | AT122: 516523.3899 | AU122: 205014.2491 | AV122: 22396.4949 | AW122: 4031.478133 | AX122: 14993.65707 | AY122: 0 | BA122: =SUM(BB122:BG122) -> 3247420.244 | BB122: 2124956.853 | BC122: 725284.1368 | BD122: 70238.84093 | BE122: 13769.63297 | BF122: 313170.7804 | BG122: 0 | BI122: =SUM(BJ122:BO122) -> 8614620.487 | BJ122: 8162791.304 | BK122: 388831.8895 | BL122: 9956.051361 | BM122: 4071.334486 | BN122: 48969.9078 | BO122: 0
A123: 123 | C123: M | D123: Demand Side Management Investment | E123: =0 -> 0 | F123: Input - Peak & Avg Calc | H123: =SUM(I123:N123) -> 0 | I123: 0 | J123: 0 | K123: 0 | L123: 0 | M123: 0 | N123: 0 | P123: =E$1&$A123&"* """ -> E123* " | R123: =PkAvg_E -> 0.3977635361 | S123: 0 | T123: 0 | U123: 0 | V123: 0 | W123: =PkAvg_D -> 0.6022364639 | X123: 0 | Y123: 0 | Z123: 0 | AA123: 0 | AB123: 0 | AC123: 0 | AD123: 0 | AE123: 0 | AF123: 0 | AG123: 0 | AH123: 0 | AI123: 0 | AK123: =SUM(AL123:AO123) -> 0 | AL123: 0 | AM123: 0 | AN123: 0 | AO123: 0 | AQ123: =E$1&$A123&"* """ -> E123* " | AS123: =SUM(AT123:AY123) -> 0 | AT123: 0 | AU123: 0 | AV123: 0 | AW123: 0 | AX123: 0 | AY123: 0 | BA123: =SUM(BB123:BG123) -> 0 | BB123: 0 | BC123: 0 | BD123: 0 | BE123: 0 | BF123: 0 | BG123: 0 | BI123: =SUM(BJ123:BO123) -> 0 | BJ123: 0 | BK123: 0 | BL123: 0 | BM123: 0 | BN123: 0 | BO123: 0
A124: 124 | C124: O | D124: Other | E124: =PROFORMA!AW373*1000 -> -7520000 | F124: as Plant in Service (56) | G124: Plant in Service (S17) | H124: =SUM(I124:N124) -> -7520000 | I124: =$E124*SUMPRODUCT($R124:$AH124,INDEX(AllocFactors,I$4,0)) -> -6435494.814 | J124: -785731.4591 | K124: -61107.89954 | L124: -13028.18145 | M124: -224637.6456 | N124: 0 | P124: =E$1&$A124&"* """ -> E124* " | R124: =R57 -> 0.008084556089 | S124: =S57 -> 0.05234786127 | T124: 0 | U124: 0 | V124: 0 | W124: 0.2572214055 | X124: 0 | Y124: 0 | Z124: 0 | AA124: 0 | AB124: 0.2482977067 | AC124: 0.2932943808 | AD124: 0.1345479453 | AE124: 0 | AF124: 0.006206144378 | AG124: 0 | AH124: 0 | AI124: 0 | AK124: =SUM(AL124:AO124) -> -7520000 | AL124: -454451.7785 | AM124: -1934304.969 | AN124: -5131243.252 | AO124: 0 | AQ124: =E$1&$A124&"* """ -> E124* " | AS124: =SUM(AT124:AY124) -> -454451.7785 | AT124: -307663.833 | AU124: -122115.4181 | AV124: -13340.32805 | AW124: -2401.324005 | AX124: -8930.875337 | AY124: 0 | BA124: =SUM(BB124:BG124) -> -1934304.969 | BB124: -1265716.874 | BC124: -432010.8284 | BD124: -41837.31357 | BE124: -8201.793263 | BF124: -186538.1599 | BG124: 0 | BI124: =SUM(BJ124:BO124) -> -5131243.252 | BJ124: -4862114.107 | BK124: -231605.2126 | BL124: -5930.25792 | BM124: -2425.064185 | BN124: -29168.61043 | BO124: 0
A125: 125 | AI125: 0
A126: 126 | D126: Total Other Rate Base Items | E126: =SUM(E117:E124) -> -58692000 | H126: =IF(ROUND(SUM(H117:H125),3)<>ROUND(SUM(I126:N126),3),#VALUE!,SUM(H117:H125)) -> -58692000 | I126: =SUM(I117:I125) -> -53002594.46 | J126: =SUM(J117:J125) -> -3590139.923 | K126: -151079.7958 | L126: -46974.22177 | M126: -1901211.596 | N126: 0 | P126: =$A117&":"&$A125 -> 117:125 | R126: =SUMPRODUCT($E117:$E125,R117:R125)/$E126 -> -0.0234407047 | S126: -0.1590668358 | T126: 0 | U126: 0 | V126: 0 | W126: 0.3213558369 | X126: 0 | Y126: 0 | Z126: 0 | AA126: 0 | AB126: 0.310207143 | AC126: 0.3664230861 | AD126: 0.1680955264 | AE126: 0 | AF126: 0.007753556577 | AG126: 0.008672391467 | AH126: 0 | AI126: 0 | AK126: =IF(ROUND(SUM(AK117:AK125),3)<>ROUND(SUM(AL126:AO126),3),#VALUE!,SUM(AK117:AK125)) -> -58692000 | AL126: =SUM(AL117:AL125) -> 10711732.56 | AM126: =SUM(AM117:AM125) -> -18861016.78 | AN126: =SUM(AN117:AN125) -> -50542715.79 | AO126: =SUM(AO117:AO125) -> 0 | AQ126: =$A117&":"&$A125 -> 117:125 | AS126: =IF(ROUND(SUM(AS117:AS125),3)<>ROUND(SUM(AT126:AY126),3),#VALUE!,SUM(AS117:AS125)) -> 10711732.56 | AT126: =SUM(AT117:AT125) -> 7257646.83 | AU126: 2880645.958 | AV126: 314692.1387 | AW126: 56646.11722 | AX126: 202101.5205 | AY126: 0 | BA126: =IF(ROUND(SUM(BA117:BA125),3)<>ROUND(SUM(BB126:BG126),3),#VALUE!,SUM(BA117:BA125)) -> -18861016.78 | BB126: =SUM(BB117:BB125) -> -12341749.4 | BC126: -4212450.267 | BD126: -407947.1881 | BE126: -79974.02829 | BF126: -1818895.892 | BG126: 0 | BI126: =IF(ROUND(SUM(BI117:BI125),3)<>ROUND(SUM(BJ126:BO126),3),#VALUE!,SUM(BI117:BI125)) -> -50542715.79 | BJ126: =SUM(BJ117:BJ125) -> -47918491.89 | BK126: -2258335.614 | BL126: -57824.74631 | BM126: -23646.3107 | BN126: -284417.2245 | BO126: 0
A127: 127 | AI127: 0
A128: 128 | D128: Total Rate Base | E128: =E112+E126 -> 298315000 | F128: ="("&A$112&"+"&A$126&")" -> (112+126) | G128: Total Rate Base (S01) | H128: =H112+H126 -> 298315000 | I128: =I112+I126 -> 251903019.6 | J128: 34218240.6 | K128: 2735113.712 | L128: 576617.1774 | M128: 8882008.905 | N128: 0 | P128: =$A112&"+"&$A126 -> 112+126 | R128: =($E112*R112+$E126*R126)/$E128 -> 0.01357439221 | S128: 0.08907694656 | T128: 0 | U128: 0 | V128: 0 | W128: 0.2471263453 | X128: 0 | Y128: 0 | Z128: 0 | AA128: 0 | AB128: 0.2407083595 | AC128: 0.2499865727 | AD128: 0.1558001428 | AE128: 0 | AF128: 0.005433490978 | AG128: -0.001706250105 | AH128: 0 | AI128: 0 | AK128: =AK112+AK126 -> 298315000 | AL128: =AL112+AL126 -> 30622434.12 | AM128: =AM112+AM126 -> 73721495.71 | AN128: =AN112+AN126 -> 193971070.2 | AO128: =AO112+AO126 -> 0 | AQ128: =$A112&"+"&$A126 -> 112+126 | AS128: =AS112+AS126 -> 30622434.12 | AT128: 20736172.38 | AU128: 8230432.334 | AV128: 899122.0688 | AW128: 161846.3503 | AX128: 594860.9946 | AY128: 0 | BA128: =BA112+BA126 -> 73721495.71 | BB128: 48239829.08 | BC128: 16465079.16 | BD128: 1594531.05 | BE128: 312592.1075 | BF128: 7109464.315 | BG128: 0 | BI128: =BI112+BI126 -> 193971070.2 | BJ128: 182927018.2 | BK128: 9522729.107 | BL128: 241460.5939 | BM128: 102178.7196 | BN128: 1177683.595 | BO128: 0
A129: 129 | D129: Rate of Return | E129: =-E430/E128 -> 0.06726111593 | H129: =IF(H128,-H430/H128,0) -> 0.06726111583 | I129: =IF(I128,-I430/I128,0) -> 0.04829397209 | J129: =IF(J128,-J430/J128,0) -> 0.1827918025 | K129: 0.2049411012 | L129: 0.1277946237 | M129: =IF(M128,-M430/M128,0) -> 0.1137763663 | N129: 0 | P129: ="-"&$A430&"/"&$A128 -> -430/128 | AI129: 0 | AK129: =IF(AK128<>0,-AK430/AK128,0) -> 0.06726111593 | AL129: =IF(AL128<>0,-AL430/AL128,0) -> -0.05548730927 | AM129: =IF(AM128<>0,-AM430/AM128,0) -> -0.06675413171 | AN129: =IF(AN128<>0,-AN430/AN128,0) -> -0.1199235044 | AO129: =IF(AO128<>0,-AO430/AO128,0) -> 0 | AQ129: ="-"&$A430&"/"&$A128 -> -430/128
A130: 130 | E130: =E128/1000-PROFORMA!AW376 -> 0 | AI130: 0
A131: 131 | AI131: 0
A132: 132 | C132: U | D132: Underground Storage | E132: =SUMIF($C$7:$C$128,$C132,E$7:E$128) -> 31700000 | F132: ="sum where Func = "&$C132&" ("&A$7&"-"&A$128&")" -> sum where Func = U (7-128) | H132: =SUMIF($C$7:$C$128,$C132,H$7:H$128) -> 31700000 | I132: 21473049.29 | J132: 8522907.504 | K132: 931073.1096 | L132: 167597.6932 | M132: 605372.4083 | N132: 0 | P132: =H$1&$A$7&":"&H$1&$A$128&", col "&C$1&"= T" -> H7:H128, col C= T | R132: =SUM(IF($C$7:$C$128=$C132,$E$7:$E$128*R$7:R$128))/$E132 -> 0.13 | S132: =SUM(IF($C$7:$C$128=$C132,$E$7:$E$128*S$7:S$128))/$E132 -> 0.87 | T132: =SUM(IF($C$7:$C$128=$C132,$E$7:$E$128*T$7:T$128))/$E132 -> 0 | U132: =SUM(IF($C$7:$C$128=$C132,$E$7:$E$128*U$7:U$128))/$E132 -> 0 | V132: =SUM(IF($C$7:$C$128=$C132,$E$7:$E$128*V$7:V$128))/$E132 -> 0 | W132: =SUM(IF($C$7:$C$128=$C132,$E$7:$E$128*W$7:W$128))/$E132 -> 0 | X132: =SUM(IF($C$7:$C$128=$C132,$E$7:$E$128*X$7:X$128))/$E132 -> 0 | Y132: =SUM(IF($C$7:$C$128=$C132,$E$7:$E$128*Y$7:Y$128))/$E132 -> 0 | Z132: =SUM(IF($C$7:$C$128=$C132,$E$7:$E$128*Z$7:Z$128))/$E132 -> 0 | AA132: =SUM(IF($C$7:$C$128=$C132,$E$7:$E$128*AA$7:AA$128))/$E132 -> 0 | AB132: =SUM(IF($C$7:$C$128=$C132,$E$7:$E$128*AB$7:AB$128))/$E132 -> 0 | AC132: =SUM(IF($C$7:$C$128=$C132,$E$7:$E$128*AC$7:AC$128))/$E132 -> 0 | AD132: =SUM(IF($C$7:$C$128=$C132,$E$7:$E$128*AD$7:AD$128))/$E132 -> 0 | AE132: =SUM(IF($C$7:$C$128=$C132,$E$7:$E$128*AE$7:AE$128))/$E132 -> 0 | AF132: =SUM(IF($C$7:$C$128=$C132,$E$7:$E$128*AF$7:AF$128))/$E132 -> 0 | AG132: =SUM(IF($C$7:$C$128=$C132,$E$7:$E$128*AG$7:AG$128))/$E132 -> 0 | AH132: =SUM(IF($C$7:$C$128=$C132,$E$7:$E$128*AH$7:AH$128))/$E132 -> 0 | AI132: 0 | AK132: =SUMIF($C$7:$C$128,$C132,AK$7:AK$128) -> 31700000 | AL132: 31700000 | AM132: 0 | AN132: 0 | AO132: 0 | AQ132: =E$1&$A132&"* """ -> E132* " | AS132: =SUM(AT132:AY132) -> 31700000 | AT132: =SUMIF($C$7:$C$128,$C132,AT$7:AT$128) -> 21473049.29 | AU132: 8522907.504 | AV132: 931073.1096 | AW132: 167597.6932 | AX132: 605372.4083 | AY132: 0 | BA132: =SUM(BB132:BG132) -> 0 | BB132: =SUMIF($C$7:$C$128,$C132,BB$7:BB$128) -> 0 | BC132: 0 | BD132: 0 | BE132: 0 | BF132: 0 | BG132: 0 | BI132: =SUM(BJ132:BO132) -> 0 | BJ132: =SUMIF($C$7:$C$128,$C132,BJ$7:BJ$128) -> 0 | BK132: 0 | BL132: 0 | BM132: 0 | BN132: 0 | BO132: 0
A133: 133 | C133: D | D133: Distribution | E133: =SUMIF($C$7:$C$128,$C133,E$7:E$128) -> 275342000 | F133: ="sum where Func = "&$C133&" ("&A$7&"-"&A$128&")" -> sum where Func = D (7-128) | H133: 275342000 | I133: 234965077.8 | J133: 28539139.88 | K133: 2060667.424 | L133: 462973.9427 | M133: 9314140.965 | N133: 0 | P133: =H$1&$A$7&":"&H$1&$A$128&", col "&C$1&"= D" -> H7:H128, col C= D | R133: =SUM(IF($C$7:$C$128=$C133,$E$7:$E$128*R$7:R$128))/$E133 -> 0 | S133: =SUM(IF($C$7:$C$128=$C133,$E$7:$E$128*S$7:S$128))/$E133 -> 0 | T133: =SUM(IF($C$7:$C$128=$C133,$E$7:$E$128*T$7:T$128))/$E133 -> 0 | U133: =SUM(IF($C$7:$C$128=$C133,$E$7:$E$128*U$7:U$128))/$E133 -> 0 | V133: =SUM(IF($C$7:$C$128=$C133,$E$7:$E$128*V$7:V$128))/$E133 -> 0 | W133: =SUM(IF($C$7:$C$128=$C133,$E$7:$E$128*W$7:W$128))/$E133 -> 0.3026363134 | X133: =SUM(IF($C$7:$C$128=$C133,$E$7:$E$128*X$7:X$128))/$E133 -> 0 | Y133: =SUM(IF($C$7:$C$128=$C133,$E$7:$E$128*Y$7:Y$128))/$E133 -> 0 | Z133: =SUM(IF($C$7:$C$128=$C133,$E$7:$E$128*Z$7:Z$128))/$E133 -> 0 | AA133: =SUM(IF($C$7:$C$128=$C133,$E$7:$E$128*AA$7:AA$128))/$E133 -> 0 | AB133: =SUM(IF($C$7:$C$128=$C133,$E$7:$E$128*AB$7:AB$128))/$E133 -> 0.2006689115 | AC133: =SUM(IF($C$7:$C$128=$C133,$E$7:$E$128*AC$7:AC$128))/$E133 -> 0.3133156653 | AD133: =SUM(IF($C$7:$C$128=$C133,$E$7:$E$128*AD$7:AD$128))/$E133 -> 0.1786404329 | AE133: =SUM(IF($C$7:$C$128=$C133,$E$7:$E$128*AE$7:AE$128))/$E133 -> 0 | AF133: =SUM(IF($C$7:$C$128=$C133,$E$7:$E$128*AF$7:AF$128))/$E133 -> 0.006587286989 | AG133: =SUM(IF($C$7:$C$128=$C133,$E$7:$E$128*AG$7:AG$128))/$E133 -> -0.001848610092 | AH133: =SUM(IF($C$7:$C$128=$C133,$E$7:$E$128*AH$7:AH$128))/$E133 -> 0 | AI133: 0 | AK133: 275342000 | AL133: 0 | AM133: 83328487.81 | AN133: 192013512.2 | AO133: 0 | AQ133: =E$1&$A133&"* """ -> E133* " | AS133: =SUM(AT133:AY133) -> 0 | AT133: 0 | AU133: 0 | AV133: 0 | AW133: 0 | AX133: 0 | AY133: 0 | BA133: =SUM(BB133:BG133) -> 83328487.81 | BB133: 54526186.3 | BC133: 18610720.45 | BD133: 1802321.831 | BE133: 353327.4436 | BF133: 8035931.784 | BG133: 0 | BI133: =SUM(BJ133:BO133) -> 192013512.2 | BJ133: 180438891.5 | BK133: 9928419.428 | BL133: 258345.5925 | BM133: 109646.499 | BN133: 1278209.18 | BO133: 0
A134: 134 | C134: M | D134: DSM | E134: =SUMIF($C$7:$C$128,$C134,E$7:E$128) -> 0 | F134: ="sum where Func = "&$C134&" ("&A$7&"-"&A$128&")" -> sum where Func = M (7-128) | H134: 0 | I134: 0 | J134: 0 | K134: 0 | L134: 0 | M134: 0 | N134: 0 | P134: =H$1&$A$7&":"&H$1&$A$128&", col "&C$1&"= D" -> H7:H128, col C= D | R134: =IF($E134,SUM(IF($C$7:$C$128=$C134,$E$7:$E$128*R$7:R$128))/$E134,0) -> 0 | S134: =IF($E134,SUM(IF($C$7:$C$128=$C134,$E$7:$E$128*S$7:S$128))/$E134,0) -> 0 | T134: =IF($E134,SUM(IF($C$7:$C$128=$C134,$E$7:$E$128*T$7:T$128))/$E134,0) -> 0 | U134: =IF($E134,SUM(IF($C$7:$C$128=$C134,$E$7:$E$128*U$7:U$128))/$E134,0) -> 0 | V134: =IF($E134,SUM(IF($C$7:$C$128=$C134,$E$7:$E$128*V$7:V$128))/$E134,0) -> 0 | W134: =IF($E134,SUM(IF($C$7:$C$128=$C134,$E$7:$E$128*W$7:W$128))/$E134,0) -> 0 | X134: =IF($E134,SUM(IF($C$7:$C$128=$C134,$E$7:$E$128*X$7:X$128))/$E134,0) -> 0 | Y134: =IF($E134,SUM(IF($C$7:$C$128=$C134,$E$7:$E$128*Y$7:Y$128))/$E134,0) -> 0 | Z134: =IF($E134,SUM(IF($C$7:$C$128=$C134,$E$7:$E$128*Z$7:Z$128))/$E134,0) -> 0 | AA134: =IF($E134,SUM(IF($C$7:$C$128=$C134,$E$7:$E$128*AA$7:AA$128))/$E134,0) -> 0 | AB134: =IF($E134,SUM(IF($C$7:$C$128=$C134,$E$7:$E$128*AB$7:AB$128))/$E134,0) -> 0 | AC134: =IF($E134,SUM(IF($C$7:$C$128=$C134,$E$7:$E$128*AC$7:AC$128))/$E134,0) -> 0 | AD134: =IF($E134,SUM(IF($C$7:$C$128=$C134,$E$7:$E$128*AD$7:AD$128))/$E134,0) -> 0 | AE134: =IF($E134,SUM(IF($C$7:$C$128=$C134,$E$7:$E$128*AE$7:AE$128))/$E134,0) -> 0 | AF134: =IF($E134,SUM(IF($C$7:$C$128=$C134,$E$7:$E$128*AF$7:AF$128))/$E134,0) -> 0 | AG134: =IF($E134,SUM(IF($C$7:$C$128=$C134,$E$7:$E$128*AG$7:AG$128))/$E134,0) -> 0 | AH134: =IF($E134,SUM(IF($C$7:$C$128=$C134,$E$7:$E$128*AH$7:AH$128))/$E134,0) -> 0 | AI134: 0 | AK134: 0 | AL134: 0 | AM134: 0 | AN134: 0 | AO134: 0 | AQ134: =E$1&$A134&"* """ -> E134* " | AS134: =SUM(AT134:AY134) -> 0 | AT134: 0 | AU134: 0 | AV134: 0 | AW134: 0 | AX134: 0 | AY134: 0 | BA134: =SUM(BB134:BG134) -> 0 | BB134: 0 | BC134: 0 | BD134: 0 | BE134: 0 | BF134: 0 | BG134: 0 | BI134: =SUM(BJ134:BO134) -> 0 | BJ134: 0 | BK134: 0 | BL134: 0 | BM134: 0 | BN134: 0 | BO134: 0
A135: =RowHdr -> 135 | C135: O | D135: Common | E135: =SUMIF($C$7:$C$128,$C135,E$7:E$128) -> 69704000 | F135: ="sum where Func = "&$C135&" ("&A$7&"-"&A$128&")" -> sum where Func = O (7-128) | H135: 69704000 | I135: 62584878.41 | J135: 5351100.671 | K135: 380707.4436 | L135: 81924.9696 | M135: 1305388.509 | N135: 0 | P135: =H$1&$A$7&":"&H$1&$A$128&", col "&C$1&"= O" -> H7:H128, col C= O | R135: =SUM(IF($C$7:$C$128=$C135,$E$7:$E$128*R$7:R$128))/$E135 -> 0.008070191545 | S135: =SUM(IF($C$7:$C$128=$C135,$E$7:$E$128*S$7:S$128))/$E135 -> 0.04446924737 | T135: =SUM(IF($C$7:$C$128=$C135,$E$7:$E$128*T$7:T$128))/$E135 -> 0 | U135: =SUM(IF($C$7:$C$128=$C135,$E$7:$E$128*U$7:U$128))/$E135 -> 0 | V135: =SUM(IF($C$7:$C$128=$C135,$E$7:$E$128*V$7:V$128))/$E135 -> 0 | W135: =SUM(IF($C$7:$C$128=$C135,$E$7:$E$128*W$7:W$128))/$E135 -> 0.1516001943 | X135: =SUM(IF($C$7:$C$128=$C135,$E$7:$E$128*X$7:X$128))/$E135 -> 0 | Y135: =SUM(IF($C$7:$C$128=$C135,$E$7:$E$128*Y$7:Y$128))/$E135 -> 0 | Z135: =SUM(IF($C$7:$C$128=$C135,$E$7:$E$128*Z$7:Z$128))/$E135 -> 0 | AA135: =SUM(IF($C$7:$C$128=$C135,$E$7:$E$128*AA$7:AA$128))/$E135 -> 0 | AB135: =SUM(IF($C$7:$C$128=$C135,$E$7:$E$128*AB$7:AB$128))/$E135 -> 0.5168795516 | AC135: =SUM(IF($C$7:$C$128=$C135,$E$7:$E$128*AC$7:AC$128))/$E135 -> 0.1622454106 | AD135: =SUM(IF($C$7:$C$128=$C135,$E$7:$E$128*AD$7:AD$128))/$E135 -> 0.1125191587 | AE135: =SUM(IF($C$7:$C$128=$C135,$E$7:$E$128*AE$7:AE$128))/$E135 -> 0 | AF135: =SUM(IF($C$7:$C$128=$C135,$E$7:$E$128*AF$7:AF$128))/$E135 -> 0.004216245792 | AG135: =SUM(IF($C$7:$C$128=$C135,$E$7:$E$128*AG$7:AG$128))/$E135 -> 0 | AH135: =SUM(IF($C$7:$C$128=$C135,$E$7:$E$128*AH$7:AH$128))/$E135 -> 0 | AI135: 0 | AK135: 69704000 | AL135: 3662209.05 | AM135: 10567139.95 | AN135: 55474651 | AO135: 0 | AQ135: =E$1&$A135&"* """ -> E135* " | AS135: =SUM(AT135:AY135) -> 3662209.05 | AT135: 2471950.497 | AU135: 981146.4203 | AV135: 107183.9684 | AW135: 19293.6362 | AX135: 82634.52824 | AY135: 0 | BA135: =SUM(BB135:BG135) -> 10567139.95 | BB135: 6914632.156 | BC135: 2360082.28 | BD135: 228557.934 | BE135: 44806.53185 | BF135: 1019061.044 | BG135: 0 | BI135: =SUM(BJ135:BO135) -> 55474651 | BJ135: 53198295.75 | BK135: 2009871.97 | BL135: 44965.54123 | BM135: 17824.80154 | BN135: 203692.9369 | BO135: 0
A136: 136 | C136: A | D136: Allocated | E136: =SUMIF($C$7:$C$128,$C136,E$7:E$128) -> -78431000 | F136: ="sum where Func = "&$C136&" ("&A$7&"-"&A$128&")" -> sum where Func = A (7-128) | H136: -78431000 | I136: -67119985.87 | J136: -8194907.456 | K136: -637334.2645 | L136: -135879.4281 | M136: -2342892.977 | N136: 0 | P136: =H$1&$A$7&":"&H$1&$A$128&", col "&C$1&"= O" -> H7:H128, col C= O | R136: =SUM(IF($C$7:$C$128=$C136,$E$7:$E$128*R$7:R$128))/$E136 -> 0.008084556089 | S136: =SUM(IF($C$7:$C$128=$C136,$E$7:$E$128*S$7:S$128))/$E136 -> 0.05234786127 | T136: =SUM(IF($C$7:$C$128=$C136,$E$7:$E$128*T$7:T$128))/$E136 -> 0 | U136: =SUM(IF($C$7:$C$128=$C136,$E$7:$E$128*U$7:U$128))/$E136 -> 0 | V136: =SUM(IF($C$7:$C$128=$C136,$E$7:$E$128*V$7:V$128))/$E136 -> 0 | W136: =SUM(IF($C$7:$C$128=$C136,$E$7:$E$128*W$7:W$128))/$E136 -> 0.2572214055 | X136: =SUM(IF($C$7:$C$128=$C136,$E$7:$E$128*X$7:X$128))/$E136 -> 0 | Y136: =SUM(IF($C$7:$C$128=$C136,$E$7:$E$128*Y$7:Y$128))/$E136 -> 0 | Z136: =SUM(IF($C$7:$C$128=$C136,$E$7:$E$128*Z$7:Z$128))/$E136 -> 0 | AA136: =SUM(IF($C$7:$C$128=$C136,$E$7:$E$128*AA$7:AA$128))/$E136 -> 0 | AB136: =SUM(IF($C$7:$C$128=$C136,$E$7:$E$128*AB$7:AB$128))/$E136 -> 0.2482977067 | AC136: =SUM(IF($C$7:$C$128=$C136,$E$7:$E$128*AC$7:AC$128))/$E136 -> 0.2932943808 | AD136: =SUM(IF($C$7:$C$128=$C136,$E$7:$E$128*AD$7:AD$128))/$E136 -> 0.1345479453 | AE136: =SUM(IF($C$7:$C$128=$C136,$E$7:$E$128*AE$7:AE$128))/$E136 -> 0 | AF136: =SUM(IF($C$7:$C$128=$C136,$E$7:$E$128*AF$7:AF$128))/$E136 -> 0.006206144378 | AG136: =SUM(IF($C$7:$C$128=$C136,$E$7:$E$128*AG$7:AG$128))/$E136 -> 0 | AH136: =SUM(IF($C$7:$C$128=$C136,$E$7:$E$128*AH$7:AH$128))/$E136 -> 0 | AI136: 0 | AK136: -78431000 | AL136: -4739774.926 | AM136: -20174132.05 | AN136: -53517093.02 | AO136: 0 | AQ136: =E$1&$A136&"* """ -> E136* " | AS136: =SUM(AT136:AY136) -> -4739774.926 | AT136: -3208827.405 | AU136: -1273621.59 | AV136: -139135.0092 | AW136: -25044.97912 | AX136: -93145.94196 | AY136: 0 | BA136: =SUM(BB136:BG136) -> -20174132.05 | BB136: -13200989.38 | BC136: -4505723.575 | BD136: -436348.7155 | BE136: -85541.868 | BF136: -1945528.513 | BG136: 0 | BI136: =SUM(BJ136:BO136) -> -53517093.02 | BJ136: -50710169.09 | BK136: -2415562.291 | BL136: -61850.53975 | BM136: -25292.581 | BN136: -304218.5219 | BO136: 0
A137: 137 | D137: Total Rate Base | E137: =SUM(E132:E136) -> 298315000 | H137: =SUM(H132:H136) -> 298315000 | I137: 251903019.6 | J137: 34218240.6 | K137: 2735113.712 | L137: 576617.1774 | M137: 8882008.905 | N137: 0 | P137: =A132&":"&$A135 -> 132:135 | AI137: 0 | AK137: =SUM(AK132:AK136) -> 298315000 | AL137: =SUM(AL132:AL136) -> 30622434.12 | AM137: =SUM(AM132:AM136) -> 73721495.71 | AN137: =SUM(AN132:AN136) -> 193971070.2 | AO137: =SUM(AO132:AO136) -> 0 | AQ137: =A132&":"&$A135 -> 132:135 | AS137: =IF(ROUND(SUM(AS132:AS136),3)<>ROUND(SUM(AT137:AY137),3),#VALUE!,SUM(AS132:AS136)) -> 30622434.12 | AT137: =SUM(AT132:AT136) -> 20736172.38 | AU137: 8230432.334 | AV137: 899122.0688 | AW137: 161846.3503 | AX137: 594860.9946 | AY137: 0 | BA137: =IF(ROUND(SUM(BA132:BA136),3)<>ROUND(SUM(BB137:BG137),3),#VALUE!,SUM(BA132:BA136)) -> 73721495.71 | BB137: =SUM(BB132:BB136) -> 48239829.08 | BC137: 16465079.16 | BD137: 1594531.05 | BE137: 312592.1075 | BF137: 7109464.315 | BG137: 0 | BI137: =IF(ROUND(SUM(BI132:BI136),3)<>ROUND(SUM(BJ137:BO137),3),#VALUE!,SUM(BI132:BI136)) -> 193971070.2 | BJ137: =SUM(BJ132:BJ136) -> 182927018.2 | BK137: 9522729.107 | BL137: 241460.5939 | BM137: 102178.7196 | BN137: 1177683.595 | BO137: 0
A138: 138 | H138: =H137-$E137 -> 0 | AI138: 0 | AK138: =AK137-$E137 -> 0
A139: 139 | D139: Allocated Rate Base - ADFIT | AI139: 0
A140: 140 | D140: Underground Storage | E140: =$E$136*$E$23/$E$57 -> -4035418.68 | H140: =SUM(I140:N140) -> -4035418.68 | I140: =I$136*IF(I$57,I$23/I$57,0) -> -2733525.054 | J140: -1084968.459 | K140: -118525.8618 | L140: -21335.23224 | M140: -77064.07334 | N140: 0 | AI140: 0 | AK140: =SUM(AL140:AQ140) -> -4035418.68 | AL140: =AL$136*IF(AL$57,AL$23/AL$57,0) -> -4035418.68 | AM140: =AM$136*IF(AM$57,AM$23/AM$57,0) -> 0 | AN140: =AN$136*IF(AN$57,AN$23/AN$57,0) -> 0 | AO140: =AO$136*IF(AO$57,AO$23/AO$57,0) -> 0 | AS140: =SUM(AT140:AY140) -> -4035418.68 | AT140: =AT$136*IF(AT$57,AT$23/AT$57,0) -> -2733525.054 | AU140: -1084968.459 | AV140: -118525.8618 | AW140: -21335.23224 | AX140: -77064.07334 | AY140: 0 | BA140: =SUM(BB140:BG140) -> 0 | BB140: =BB$136*IF(BB$57,BB$23/BB$57,0) -> 0 | BC140: 0 | BD140: 0 | BE140: 0 | BF140: 0 | BG140: 0 | BI140: =SUM(BJ140:BO140) -> 0 | BJ140: =BJ$136*IF(BJ$57,BJ$23/BJ$57,0) -> 0 | BK140: 0 | BL140: 0 | BM140: 0 | BN140: 0 | BO140: 0
A141: 141 | D141: Distribution | E141: =$E$136*$E$40/$E$57 -> -60492183.03 | H141: =SUM(I141:N141) -> -60492183.03 | I141: =I$136*IF(I$57,I$40/I$57,0) -> -51871516.88 | J141: -6064414.99 | K141: -445090.5136 | L141: -98647.45321 | M141: -2012513.183 | N141: 0 | AI141: =IF(SUM(R141:AH141)<>0,(ROUND(SUM(R141:AH141),8)<>1)+0,0) -> 0 | AK141: =SUM(AL141:AQ141) -> -60492183.03 | AL141: =AL$136*IF(AL$57,AL$40/AL$57,0) -> 0 | AM141: =AM$136*IF(AM$57,AM$40/AM$57,0) -> -18129841.62 | AN141: =AN$136*IF(AN$57,AN$40/AN$57,0) -> -42362341.4 | AO141: =AO$136*IF(AO$57,AO$40/AO$57,0) -> 0 | AS141: =SUM(AT141:AY141) -> 0 | AT141: =AT$136*IF(AT$57,AT$40/AT$57,0) -> 0 | AU141: 0 | AV141: 0 | AW141: 0 | AX141: 0 | AY141: 0 | BA141: =SUM(BB141:BG141) -> -18129841.62 | BB141: =BB$136*IF(BB$57,BB$40/BB$57,0) -> -11863303.27 | BC141: -4049148.415 | BD141: -392132.5133 | BE141: -76873.71706 | BF141: -1748383.709 | BG141: 0 | BI141: =SUM(BJ141:BO141) -> -42362341.4 | BJ141: =BJ$136*IF(BJ$57,BJ$40/BJ$57,0) -> -40008213.61 | BK141: -2015266.575 | BL141: -52958.00028 | BM141: -21773.73615 | BN141: -264129.4748 | BO141: 0
A142: 142 | D142: Common | E142: =$E$136*SUM($E$12,$E$55)/$E$57 -> -13903398.29 | H142: =SUM(I142:N142) -> -13903398.29 | I142: =I$136*IF(I$57,SUM(I$12,I$55)/I$57,0) -> -12514943.94 | J142: -1045524.007 | K142: -73717.88909 | L142: -15896.74268 | M142: -253315.7199 | N142: 0 | AI142: 0 | AK142: =SUM(AL142:AQ142) -> -13903398.29 | AL142: =AL$136*IF(AL$57,SUM(AL$12,AL$55)/AL$57,0) -> -704356.2456 | AM142: =AM$136*IF(AM$57,SUM(AM$12,AM$55)/AM$57,0) -> -2044290.427 | AN142: =AN$136*IF(AN$57,SUM(AN$12,AN$55)/AN$57,0) -> -11154751.62 | AO142: =AO$136*IF(AO$57,SUM(AO$12,AO$55)/AO$57,0) -> 0 | AS142: =SUM(AT142:AY142) -> -704356.2456 | AT142: =AT$136*IF(AT$57,SUM(AT$12,AT$55)/AT$57,0) -> -475302.3516 | AU142: -188653.131 | AV142: -20609.14743 | AW142: -3709.746886 | AX142: -16081.86863 | AY142: 0 | BA142: =SUM(BB142:BG142) -> -2044290.427 | BB142: =BB$136*IF(BB$57,SUM(BB$12,BB$55)/BB$57,0) -> -1337686.109 | BC142: -456575.1601 | BD142: -44216.20219 | BE142: -8668.150947 | BF142: -197144.8042 | BG142: 0 | BI142: =SUM(BJ142:BO142) -> -11154751.62 | BJ142: =BJ$136*IF(BJ$57,SUM(BJ$12,BJ$55)/BJ$57,0) -> -10701955.48 | BK142: -400295.7155 | BL142: -8892.539466 | BM142: -3518.844845 | BN142: -40089.04702 | BO142: 0
A143: 143 | D143: Total Allocated Rate Base | E143: =SUM(E140:E142) -> -78431000 | H143: =SUM(H140:H142) -> -78431000 | I143: =SUM(I140:I142) -> -67119985.87 | J143: -8194907.456 | K143: -637334.2645 | L143: -135879.4281 | M143: -2342892.977 | N143: 0 | AI143: 0 | AK143: =SUM(AK140:AK142) -> -78431000 | AL143: =SUM(AL140:AL142) -> -4739774.926 | AM143: =SUM(AM140:AM142) -> -20174132.05 | AN143: =SUM(AN140:AN142) -> -53517093.02 | AO143: =SUM(AO140:AO142) -> 0 | AS143: =SUM(AS140:AS142) -> -4739774.926 | AT143: -3208827.405 | AU143: -1273621.59 | AV143: -139135.0092 | AW143: -25044.97912 | AX143: -93145.94196 | AY143: 0 | BA143: =SUM(BA140:BA142) -> -20174132.05 | BB143: -13200989.38 | BC143: -4505723.575 | BD143: -436348.7155 | BE143: -85541.868 | BF143: -1945528.513 | BG143: 0 | BI143: =SUM(BI140:BI142) -> -53517093.02 | BJ143: -50710169.09 | BK143: -2415562.291 | BL143: -61850.53975 | BM143: -25292.581 | BN143: -304218.5219 | BO143: 0
A144: 144 | H144: =H143-$E143 -> 0 | AI144: 0
A145: 145 | D145: Rate Base by Function | AI145: 0
A146: 146 | D146: Underground Storage | E146: =E132+E140 -> 27664581.32 | H146: =H132+H140 -> 27664581.32 | I146: 18739524.23 | J146: 7437939.045 | K146: 812547.2478 | L146: 146262.461 | M146: 528308.335 | N146: 0 | AI146: 0 | AK146: =AK132+AK140 -> 27664581.32 | AL146: 27664581.32 | AM146: 0 | AN146: 0 | AO146: 0 | AS146: =AS132+AS140 -> 27664581.32 | AT146: 18739524.23 | AU146: 7437939.045 | AV146: 812547.2478 | AW146: 146262.461 | AX146: 528308.335 | AY146: 0 | BA146: =BA132+BA140 -> 0 | BB146: 0 | BC146: 0 | BD146: 0 | BE146: 0 | BF146: 0 | BG146: 0 | BI146: =BI132+BI140 -> 0 | BJ146: 0 | BK146: 0 | BL146: 0 | BM146: 0 | BN146: 0 | BO146: 0
A147: 147 | D147: Distribution | E147: =E133+E141 -> 214849817 | H147: 214849817 | I147: 183093560.9 | J147: 22474724.89 | K147: 1615576.91 | L147: 364326.4895 | M147: 7301627.781 | N147: 0 | AI147: 0 | AK147: 214849817 | AL147: 0 | AM147: 65198646.19 | AN147: 149651170.8 | AO147: 0 | AS147: =AS133+AS141 -> 0 | AT147: 0 | AU147: 0 | AV147: 0 | AW147: 0 | AX147: 0 | AY147: 0 | BA147: =BA133+BA141 -> 65198646.19 | BB147: 42662883.03 | BC147: 14561572.04 | BD147: 1410189.318 | BE147: 276453.7266 | BF147: 6287548.076 | BG147: 0 | BI147: =BI133+BI141 -> 149651170.8 | BJ147: 140430677.9 | BK147: 7913152.852 | BL147: 205387.5922 | BM147: 87872.76289 | BN147: 1014079.705 | BO147: 0
A148: 148 | D148: DSM | E148: =E134 -> 0 | H148: =H134 -> 0 | I148: 0 | J148: 0 | K148: 0 | L148: 0 | M148: 0 | N148: 0 | AI148: 0 | AK148: =AK134 -> 0 | AL148: =AL134 -> 0 | AM148: =AM134 -> 0 | AN148: =AN134 -> 0 | AO148: =AO134 -> 0 | AS148: =AS134 -> 0 | AT148: 0 | AU148: 0 | AV148: 0 | AW148: 0 | AX148: 0 | AY148: 0 | BA148: =BA134 -> 0 | BB148: 0 | BC148: 0 | BD148: 0 | BE148: 0 | BF148: 0 | BG148: 0 | BI148: =BI134 -> 0 | BJ148: 0 | BK148: 0 | BL148: 0 | BM148: 0 | BN148: 0 | BO148: 0
A149: 149 | D149: Common | E149: =E135+E142 -> 55800601.71 | H149: =H135+H142 -> 55800601.71 | I149: 50069934.47 | J149: 4305576.664 | K149: 306989.5545 | L149: 66028.22692 | M149: 1052072.789 | N149: 0 | AI149: 0 | AK149: =AK135+AK142 -> 55800601.71 | AL149: =AL135+AL142 -> 2957852.805 | AM149: =AM135+AM142 -> 8522849.519 | AN149: =AN135+AN142 -> 44319899.38 | AO149: =AO135+AO142 -> 0 | AS149: =AS135+AS142 -> 2957852.805 | AT149: 1996648.145 | AU149: 792493.2893 | AV149: 86574.82097 | AW149: 15583.88931 | AX149: 66552.65961 | AY149: 0 | BA149: =BA135+BA142 -> 8522849.519 | BB149: 5576946.047 | BC149: 1903507.12 | BD149: 184341.7318 | BE149: 36138.38091 | BF149: 821916.2394 | BG149: 0 | BI149: =BI135+BI142 -> 44319899.38 | BJ149: 42496340.28 | BK149: 1609576.255 | BL149: 36073.00176 | BM149: 14305.9567 | BN149: 163603.8899 | BO149: 0
A150: 150 | D150: Total Allocated Rate Base | E150: =SUM(E146:E149) -> 298315000 | H150: =SUM(H146:H149) -> 298315000 | I150: 251903019.6 | J150: 34218240.6 | K150: 2735113.712 | L150: 576617.1774 | M150: 8882008.905 | N150: 0 | AI150: 0 | AK150: =SUM(AK146:AK149) -> 298315000 | AL150: =SUM(AL146:AL149) -> 30622434.12 | AM150: =SUM(AM146:AM149) -> 73721495.71 | AN150: =SUM(AN146:AN149) -> 193971070.2 | AO150: =SUM(AO146:AO149) -> 0 | AS150: =SUM(AS146:AS149) -> 30622434.12 | AT150: 20736172.38 | AU150: 8230432.334 | AV150: 899122.0688 | AW150: 161846.3503 | AX150: 594860.9946 | AY150: 0 | BA150: =SUM(BA146:BA149) -> 73721495.71 | BB150: 48239829.08 | BC150: 16465079.16 | BD150: 1594531.05 | BE150: 312592.1075 | BF150: 7109464.315 | BG150: 0 | BI150: =SUM(BI146:BI149) -> 193971070.2 | BJ150: 182927018.2 | BK150: 9522729.107 | BL150: 241460.5939 | BM150: 102178.7196 | BN150: 1177683.595 | BO150: 0
A151: 151 | H151: =H150-$E150 -> 0 | AI151: 0 | AK151: =AK150-$E150 -> 0
A152: 152 | AI152: 0
A153: 153 | D153: Interest Expenses | AI153: 0
A154: 154 | C154: R | D154: Interest Expenses | E154: =PROFORMA!AW404*1000 -> 8472000 | F154: ="as Total Rate Base ("&A$128&")" -> as Total Rate Base (128) | H154: =SUM(I154:N154) -> 8472000 | I154: =$E154*SUMPRODUCT($R154:$AH154,INDEX(AllocFactors,I$4,0)) -> 7153922.472 | J154: 971781.2861 | K154: 77675.89083 | L154: 16375.64563 | M154: 252244.7059 | N154: 0 | P154: =E$1&$A154&"* Sum["&$R$1&$A154&":"&$AH$1&$A154&"* "&Factors!D$1&Factors!$A$58&":"&Factors!S$1&Factors!$A$64&"]" -> E154* Sum[R154:AH154* D1037:S1043] | R154: =R$128 -> 0.01357439221 | S154: 0.08907694656 | T154: 0 | U154: 0 | V154: 0 | W154: 0.2471263453 | X154: 0 | Y154: 0 | Z154: 0 | AA154: 0 | AB154: 0.2407083595 | AC154: 0.2499865727 | AD154: 0.1558001428 | AE154: 0 | AF154: 0.005433490978 | AG154: -0.001706250105 | AH154: 0 | AI154: 0 | AK154: =SUM(AL154:AO154) -> 8472000 | AL154: =SUMIF($R$4:$AH$4,AL$5,$R154:$AH154)*$E154 -> 869662.142 | AM154: =SUMIF($R$4:$AH$4,AM$5,$R154:$AH154)*$E154 -> 2093654.398 | AN154: =SUMIF($R$4:$AH$4,AN$5,$R154:$AH154)*$E154 -> 5508683.46 | AO154: =SUMIF($R$4:$AH$4,AO$5,$R154:$AH154)*$E154 -> 0 | AQ154: =E$1&$A154&"*["&R$1&$A154&":"&$AH$1&$A154&" when "&R$1&$A$4&":"&$AH$1&$A$4&" = E,D,C,or R]" -> E154*[R154:AH154 when R4:AH4 = E,D,C,or R]
A155: 155 | H155: =H154-E154 -> 0 | AI155: 0
A156: 156 | D156: Peak-Average Energy | E156: ='Demand - Pk-Avg'!R25 -> 0.3977635361 | H156: =H143-$E143 -> 0 | AI156: 0 | AK156: =AK143-$E143 -> 0
A157: 157 | D157: Peak-Average Demand | E157: ='Demand - Pk-Avg'!R24 -> 0.6022364639
A158: 158
A159: 159
A160: 160
A161: 161
A162: 162
A163: 163
A164: 164
A165: 165
A166: 166
A167: 167 | AS167: COMMODITY | BA167: DEMAND | BI167: CUSTOMER
A168: 168 | E168: Proforma | R168: COMMODITY | S168: COMMODITY | T168: COMMODITY | U168: COMMODITY | V168: COMMODITY | W168: DEMAND | X168: DEMAND | Y168: DEMAND | Z168: DEMAND | AA168: DEMAND | AB168: CUSTOMER | AC168: CUSTOMER | AD168: CUSTOMER | AE168: CUSTOMER | AF168: CUSTOMER | AG168: CUSTOMER | AH168: REVENUE | BR168: Proforma | BS168: COMMODITY | BT168: COMMODITY | BU168: COMMODITY | BV168: COMMODITY | BW168: COMMODITY | BX168: DEMAND | BY168: DEMAND | BZ168: DEMAND | CA168: DEMAND | CB168: DEMAND | CC168: CUSTOMER | CD168: CUSTOMER | CE168: CUSTOMER | CF168: COMMON | CG168: CUSTOMER | CH168: CUSTOMER | CI168: REVENUE | CM168: =MATCH(CM169,Factors!$C$58:$C$64,0) -> 1 | CN168: =MATCH(CN169,Factors!$C$58:$C$64,0) -> 2 | CO168: =MATCH(CO169,Factors!$C$58:$C$64,0) -> 3 | CP168: =MATCH(CP169,Factors!$C$58:$C$64,0) -> 4 | CQ168: =MATCH(CQ169,Factors!$C$58:$C$64,0) -> 5 | CR168: =MATCH(CR169,Factors!$C$58:$C$64,0) -> 6
A169: 169 | B169: Acct | C169: Func | D169: Description | E169: Totals | F169: classif. basis (line) | G169: derived classif. | H169: Total | I169: Sch 101 | J169: Sch 111 | K169: Sch 121 | L169: Sch 131 | M169: Sch 146 | N169: Open | P169: source | R169: Throughput | S169: Sales | T169: Therms - Small Mains | U169: Purchased Gas - Commodity | V169: GTI Expense | W169: Coincident Peak - All | X169: Coincident Peak - Small Mains | Y169: Purchased Gas - Demand | Z169: DA 131 | AA169: DA 146 | AB169: All Customers | AC169: Service Cost | AD169: Meter Cost | AE169: Regulator Cost | AF169: Ind Meas & Reg Cost | AG169: DA 101 | AH169: Revenues From Retail Rates | AK169: Total | AL169: Commodity | AM169: Demand | AN169: Customer | AO169: Revenue | AQ169: source | AS169: Total | AT169: Sch 101 | AU169: Sch 111 | AV169: Sch 121 | AW169: Sch 131 | AX169: Sch 146 | AY169: Open | BA169: Total | BB169: Sch 101 | BC169: Sch 111 | BD169: Sch 121 | BE169: Sch 131 | BF169: Sch 146 | BG169: Open | BI169: Total | BJ169: Sch 101 | BK169: Sch 111 | BL169: Sch 121 | BM169: Sch 131 | BN169: Sch 146 | BO169: Open | BQ169: Description | BR169: Labor Totals | BS169: Throughput | BT169: Sales | BU169: Therms - Small Mains | BV169: Purchased Gas - Commodity | BW169: GTI Expense | BX169: Coincident Peak - All | BY169: Coincident Peak - Small Mains | BZ169: Purchased Gas - Demand | CA169: DA 131 | CB169: DA 146 | CC169: All Customers | CD169: Service Cost | CE169: Meter Cost | CF169: 4-Factor | CG169: Ind Meas & Reg Cost | CH169: DA 101 | CI169: Revenues From Retail Rates | CK169: source | CM169: Sch 101 | CN169: Sch 111 | CO169: Sch 121 | CP169: Sch 131 | CQ169: Sch 146 | CR169: Open
A170: 170 | R170: E01 | S170: E04 | T170: E06 | U170: E07 | V170: E08 | W170: D01 | X170: D02 | Y170: D05 | Z170: D06 | AA170: D07 | AB170: C01 | AC170: C02 | AD170: C03 | AE170: C04 | AF170: C06 | AG170: C10 | AH170: R01 | BS170: E01 | BT170: E04 | BU170: E06 | BV170: E07 | BW170: E08 | BX170: D01 | BY170: D02 | BZ170: D05 | CA170: D06 | CB170: D07 | CC170: C01 | CD170: C02 | CE170: C03 | CF170: C04 | CG170: C06 | CH170: C10 | CI170: R01
A171: 171 | D171: Operation & Maintenance Expenses | BQ171: Operation & Maintenance Expenses
A172: 172 | D172: Purchased Gas Expenses | AI172: =IF(SUM(R172:AH172)<>0,(ROUND(SUM(R172:AH172),8)<>1)+0,0) -> 0 | BQ172: Purchased Gas Expenses
A173: 173 | B173: 804 | C173: P | D173: Proforma Purchased Gas Expense | E173: =PROFORMA!AW28*1000 -> 0 | F173: Input - from PF Gas Costs | H173: =SUM(I173:N173) -> 0 | I173: =$E173*SUMPRODUCT($R173:$AH173,INDEX(AllocFactors,I$4,0)) -> 0 | J173: 0 | K173: 0 | L173: 0 | M173: 0 | N173: 0 | P173: =E$1&$A173&"* Sum["&$R$1&$A173&":"&$AH$1&$A173&"* "&Factors!D$1&Factors!$A$58&":"&Factors!S$1&Factors!$A$64&"]" -> E173* Sum[R173:AH173* D1037:S1043] | R173: 0 | T173: 0 | U173: =ROUND((Factors!D7/(Factors!D7+Factors!D11)),4) -> 0.5 | V173: 0 | W173: 0 | X173: 0 | Y173: =ROUND((Factors!D11/(Factors!D7+Factors!D11)),4) -> 0.5 | Z173: 0 | AA173: 0 | AB173: 0 | AC173: 0 | AD173: 0 | AE173: 0 | AF173: 0 | AG173: 0 | AH173: 0 | AI173: =IF(SUM(R173:AH173)<>0,(ROUND(SUM(R173:AH173),8)<>1)+0,0) -> 0 | AK173: =SUM(AL173:AO173) -> 0 | AL173: =SUMIF($R$4:$AH$4,AL$5,$R173:$AH173)*$E173 -> 0 | AM173: 0 | AN173: 0 | AO173: 0 | AQ173: =E$1&$A173&"*["&R$1&$A173&":"&$AH$1&$A173&" when "&R$1&$A$4&":"&$AH$1&$A$4&" = E,D,C,or R]" -> E173*[R173:AH173 when R4:AH4 = E,D,C,or R] | AS173: =SUM(AT173:AY173) -> 0 | AT173: =$E173*SUMPRODUCT($R173:$V173,INDEX(AllocFactors_E,AT$4,0)) -> 0 | AU173: 0 | AV173: 0 | AW173: 0 | AX173: 0 | AY173: 0 | BA173: =SUM(BB173:BG173) -> 0 | BB173: =$E173*SUMPRODUCT($W173:$AA173,INDEX(AllocFactors_D,BB$4,0)) -> 0 | BC173: 0 | BD173: 0 | BE173: 0 | BF173: 0 | BG173: 0 | BI173: =SUM(BJ173:BO173) -> 0 | BJ173: =$E173*SUMPRODUCT($AB173:$AG173,INDEX(AllocFactors_C,BJ$4,0)) -> 0 | BK173: 0 | BL173: 0 | BM173: 0 | BN173: 0 | BO173: 0 | BQ173: Proforma Purchased Gas Expense | BR173: 0 | BS173: =R173 -> 0 | BT173: 0 | BU173: 0 | BV173: 0.5 | BW173: 0 | BX173: 0 | BY173: 0 | BZ173: 0.5 | CA173: 0 | CB173: 0 | CC173: 0 | CD173: 0 | CE173: 0 | CF173: 0 | CG173: =AF173 -> 0 | CH173: 0 | CI173: 0 | CK173: =F173 -> Input - from PF Gas Costs | CL173: =IF(SUM(BS173:CI173)<>0,(ROUND(SUM(BS173:CI173),4)<>1)+0,0) -> 0 | CM173: =$BR173*SUMPRODUCT($BS173:$CI173,INDEX(AllocFactors,CM$168,0)) -> 0 | CN173: 0 | CO173: 0 | CP173: 0 | CQ173: 0 | CR173: 0
A174: 174 | B174: 813-010 | C174: P | D174: Gas Research Institute Expense | E174: =PROFORMA!AW30 -> 76000 | F174: Input - 100% GTI | H174: =SUM(I174:N174) -> 76000 | I174: 56123.50042 | J174: 18010.44913 | K174: 1605.087265 | L174: 260.9631821 | M174: 0 | N174: 0 | P174: =E$1&$A174&"* """ -> E174* " | R174: 0 | S174: 0 | T174: 0 | V174: 1 | W174: 0 | X174: 0 | Z174: 0 | AA174: 0 | AB174: 0 | AC174: 0 | AD174: 0 | AE174: 0 | AF174: 0 | AG174: 0 | AH174: 0 | AI174: 0 | AK174: =SUM(AL174:AO174) -> 76000 | AL174: 76000 | AM174: 0 | AN174: 0 | AO174: 0 | AQ174: =E$1&$A174&"* """ -> E174* " | AS174: =SUM(AT174:AY174) -> 76000 | AT174: 56123.50042 | AU174: 18010.44913 | AV174: 1605.087265 | AW174: 260.9631821 | AX174: 0 | AY174: 0 | BA174: =SUM(BB174:BG174) -> 0 | BB174: 0 | BC174: 0 | BD174: 0 | BE174: 0 | BF174: 0 | BG174: 0 | BI174: =SUM(BJ174:BO174) -> 0 | BJ174: 0 | BK174: 0 | BL174: 0 | BM174: 0 | BN174: 0 | BO174: 0 | BQ174: Gas Research Contributions | BR174: 0 | BS174: 0 | BT174: 0 | BU174: 0 | BV174: 0 | BW174: 1 | BX174: 0 | BY174: 0 | BZ174: 0 | CA174: 0 | CB174: 0 | CC174: 0 | CD174: 0 | CE174: 0 | CF174: 0 | CG174: 0 | CH174: 0 | CI174: 0 | CK174: =F174 -> Input - 100% GTI | CL174: 0 | CM174: 0 | CN174: 0 | CO174: 0 | CP174: 0 | CQ174: 0 | CR174: 0
A175: 175 | B175: 813 | C175: P | D175: Other Gas Expenses | E175: =PROFORMA!AW31 -> 741000 | F175: Input - purch vs. sched analysis | H175: =SUM(I175:N175) -> 741000 | I175: 496664.0357 | J175: 197131.8363 | K175: 21535.39174 | L175: 3876.47537 | M175: 21792.26088 | N175: 0 | P175: =E$1&$A175&"* """ -> E175* " | R175: ='Acct 813'!E29 -> 0.2002 | S175: ='Acct 813'!E30 -> 0.7998 | T175: 0 | U175: 0 | V175: 0 | W175: 0 | X175: 0 | Y175: 0 | Z175: 0 | AA175: 0 | AB175: 0 | AC175: 0 | AD175: 0 | AE175: 0 | AF175: 0 | AG175: 0 | AH175: 0 | AI175: 0 | AK175: =SUM(AL175:AO175) -> 741000 | AL175: 741000 | AM175: 0 | AN175: 0 | AO175: 0 | AQ175: =E$1&$A175&"* """ -> E175* " | AS175: =SUM(AT175:AY175) -> 741000 | AT175: 496664.0357 | AU175: 197131.8363 | AV175: 21535.39174 | AW175: 3876.47537 | AX175: 21792.26088 | AY175: 0 | BA175: =SUM(BB175:BG175) -> 0 | BB175: 0 | BC175: 0 | BD175: 0 | BE175: 0 | BF175: 0 | BG175: 0 | BI175: =SUM(BJ175:BO175) -> 0 | BJ175: 0 | BK175: 0 | BL175: 0 | BM175: 0 | BN175: 0 | BO175: 0 | BQ175: Other Gas Expenses | BR175: 416885 | BS175: 0.2002 | BT175: 0.7998 | BU175: 0 | BV175: 0 | BW175: 0 | BX175: 0 | BY175: 0 | BZ175: 0 | CA175: 0 | CB175: 0 | CC175: 0 | CD175: 0 | CE175: 0 | CF175: 0 | CG175: 0 | CH175: 0 | CI175: 0 | CK175: =F175 -> Input - purch vs. sched analysis | CL175: 0 | CM175: 279422.1141 | CN175: 110905.9455 | CO175: 12115.76489 | CP175: 2180.896673 | CQ175: 12260.27892 | CR175: 0
A176: 176 | D176: Total Purchased Gas Expenses | E176: =SUM(E172:E175) -> 817000 | H176: =IF(ROUND(SUM(H173:H175),3)<>ROUND(SUM(I176:N176),3),#VALUE!,SUM(H173:H175)) -> 817000 | I176: =SUM(I173:I175) -> 552787.5361 | J176: 215142.2854 | K176: 23140.479 | L176: 4137.438553 | M176: 21792.26088 | N176: 0 | P176: =A173&":"&A175 -> 173:175 | R176: =SUMPRODUCT($E173:$E175,R$173:R$175)/$E176 -> 0.1815767442 | S176: =SUMPRODUCT($E173:$E175,S$173:S$175)/$E176 -> 0.7254 | T176: 0 | U176: =SUMPRODUCT($E173:$E175,U$173:U$175)/$E176 -> 0 | V176: 0.09302325581 | W176: 0 | X176: 0 | Y176: 0 | Z176: 0 | AA176: 0 | AB176: 0 | AC176: 0 | AD176: 0 | AE176: 0 | AF176: 0 | AG176: 0 | AH176: 0 | AI176: 0 | AK176: =IF(ROUND(SUM(AK173:AK175),3)<>ROUND(SUM(AL176:AO176),3),#VALUE!,SUM(AK173:AK175)) -> 817000 | AL176: =SUM(AL173:AL175) -> 817000 | AM176: =SUM(AM173:AM175) -> 0 | AN176: =SUM(AN173:AN175) -> 0 | AO176: =SUM(AO173:AO175) -> 0 | AQ176: =$A173&":"&$A175 -> 173:175 | AS176: =IF(ROUND(SUM(AS173:AS175),3)<>ROUND(SUM(AT176:AY176),3),#VALUE!,SUM(AS173:AS175)) -> 817000 | AT176: =SUM(AT173:AT175) -> 552787.5361 | AU176: 215142.2854 | AV176: 23140.479 | AW176: 4137.438553 | AX176: 21792.26088 | AY176: 0 | BA176: =IF(ROUND(SUM(BA173:BA175),3)<>ROUND(SUM(BB176:BG176),3),#VALUE!,SUM(BA173:BA175)) -> 0 | BB176: =SUM(BB173:BB175) -> 0 | BC176: 0 | BD176: 0 | BE176: 0 | BF176: 0 | BG176: 0 | BI176: =IF(ROUND(SUM(BI173:BI175),3)<>ROUND(SUM(BJ176:BO176),3),#VALUE!,SUM(BI173:BI175)) -> 0 | BJ176: =SUM(BJ173:BJ175) -> 0 | BK176: 0 | BL176: 0 | BM176: 0 | BN176: 0 | BO176: 0 | BQ176: Total Purchased Gas Expenses | BR176: =IF(ROUND(SUM(BR173:BR175),3)<>ROUND(SUM(CM176:CR176),3),#VALUE!,SUM(BR173:BR175)) -> 416885 | BS176: =SUMPRODUCT($BR$173:$BR$175,BS$173:BS$175)/$BR$176 -> 0.2002 | BT176: =SUMPRODUCT($BR$173:$BR$175,BT$173:BT$175)/$BR$176 -> 0.7998 | BU176: 0 | BV176: 0 | BW176: 0 | BX176: 0 | BY176: 0 | BZ176: 0 | CA176: 0 | CB176: 0 | CC176: 0 | CD176: 0 | CE176: 0 | CF176: 0 | CG176: 0 | CH176: 0 | CI176: 0 | CL176: 0 | CM176: =SUM(CM173:CM175) -> 279422.1141 | CN176: 110905.9455 | CO176: 12115.76489 | CP176: 2180.896673 | CQ176: 12260.27892 | CR176: 0
A177: 177 | AI177: 0 | CL177: 0
A178: 178 | D178: Underground Storage Expenses | AI178: 0 | BQ178: Underground Storage Expenses | CL178: 0
A179: 179 | B179: 814-OP | C179: U | D179: Supervision & Engineering | E179: =PROFORMA!AW35 -> 8000 | F179: ="as UG Storage Plant ("&A$23&")" -> as UG Storage Plant (23) | H179: =SUM(I179:N179) -> 8000 | I179: =$E179*SUMPRODUCT($R179:$AH179,INDEX(AllocFactors,I$4,0)) -> 5419.066066 | J179: 2150.891484 | K179: 234.9711318 | L179: 42.29594781 | M179: 152.7753712 | N179: 0 | P179: =E$1&$A179&"* Sum["&$R$1&$A179&":"&$AH$1&$A179&"* "&Factors!D$1&Factors!$A$58&":"&Factors!S$1&Factors!$A$64&"]" -> E179* Sum[R179:AH179* D1037:S1043] | R179: =R$23 -> 0.13 | S179: =S$23 -> 0.87 | T179: 0 | U179: 0 | V179: 0 | W179: 0 | X179: 0 | Y179: 0 | Z179: 0 | AA179: 0 | AB179: 0 | AC179: 0 | AD179: 0 | AE179: 0 | AF179: 0 | AG179: 0 | AH179: 0 | AI179: 0 | AK179: =SUM(AL179:AO179) -> 8000 | AL179: =SUMIF($R$4:$AH$4,AL$5,$R179:$AH179)*$E179 -> 8000 | AM179: 0 | AN179: 0 | AO179: 0 | AQ179: =E$1&$A179&"*["&R$1&$A179&":"&$AH$1&$A179&" when "&R$1&$A$4&":"&$AH$1&$A$4&" = E,D,C,or R]" -> E179*[R179:AH179 when R4:AH4 = E,D,C,or R] | AS179: =SUM(AT179:AY179) -> 8000 | AT179: =$E179*SUMPRODUCT($R179:$V179,INDEX(AllocFactors_E,AT$4,0)) -> 5419.066066 | AU179: 2150.891484 | AV179: 234.9711318 | AW179: 42.29594781 | AX179: 152.7753712 | AY179: 0 | BA179: =SUM(BB179:BG179) -> 0 | BB179: =$E179*SUMPRODUCT($W179:$AA179,INDEX(AllocFactors_D,BB$4,0)) -> 0 | BC179: 0 | BD179: 0 | BE179: 0 | BF179: 0 | BG179: 0 | BI179: =SUM(BJ179:BO179) -> 0 | BJ179: =$E179*SUMPRODUCT($AB179:$AG179,INDEX(AllocFactors_C,BJ$4,0)) -> 0 | BK179: 0 | BL179: 0 | BM179: 0 | BN179: 0 | BO179: 0 | BQ179: Supervision & Engineering | BR179: 3933 | BS179: =R179 -> 0.13 | BT179: =S179 -> 0.87 | BU179: =T179 -> 0 | BV179: =U179 -> 0 | BW179: =V179 -> 0 | BX179: =W179 -> 0 | BY179: =X179 -> 0 | BZ179: =Y179 -> 0 | CA179: =Z179 -> 0 | CB179: =AA179 -> 0 | CC179: =AB179 -> 0 | CD179: =AC179 -> 0 | CE179: =AD179 -> 0 | CF179: =AE179 -> 0 | CG179: =AF179 -> 0 | CH179: =AG179 -> 0 | CI179: =AH179 -> 0 | CK179: =F179 -> as UG Storage Plant (23) | CL179: 0 | CM179: =$BR179*SUMPRODUCT($BS179:$CI179,INDEX(AllocFactors,CM$168,0)) -> 2664.148355 | CN179: 1057.432026 | CO179: 115.5176827 | CP179: 20.79374534 | CQ179: 75.10819186 | CR179: 0
A180: 180 | B180: 815-OP | C180: U | D180: Maps & Records | E180: =PROFORMA!AW36 -> 0 | F180: ="as UG Storage Plant ("&A$23&")" -> as UG Storage Plant (23) | H180: 0 | I180: 0 | J180: 0 | K180: 0 | L180: 0 | M180: 0 | N180: 0 | P180: =E$1&$A180&"* """ -> E180* " | R180: 0.13 | S180: 0.87 | T180: 0 | U180: 0 | V180: 0 | W180: 0 | X180: 0 | Y180: 0 | Z180: 0 | AA180: 0 | AB180: 0 | AC180: 0 | AD180: 0 | AE180: 0 | AF180: 0 | AG180: 0 | AH180: 0 | AI180: 0 | AK180: =SUM(AL180:AO180) -> 0 | AL180: 0 | AM180: 0 | AN180: 0 | AO180: 0 | AQ180: =E$1&$A180&"* """ -> E180* " | AS180: 0 | AT180: 0 | AU180: 0 | AV180: 0 | AW180: 0 | AX180: 0 | AY180: 0 | BA180: =SUM(BB180:BG180) -> 0 | BB180: 0 | BC180: 0 | BD180: 0 | BE180: 0 | BF180: 0 | BG180: 0 | BI180: 0 | BJ180: 0 | BK180: 0 | BL180: 0 | BM180: 0 | BN180: 0 | BO180: 0 | BQ180: Maps & Records | BR180: 0 | BS180: 0.13 | BT180: 0.87 | BU180: 0 | BV180: 0 | BW180: 0 | BX180: 0 | BY180: 0 | BZ180: 0 | CA180: 0 | CB180: 0 | CC180: 0 | CD180: 0 | CE180: 0 | CF180: 0 | CG180: 0 | CH180: 0 | CI180: 0 | CK180: as UG Storage Plant (23) | CL180: 0 | CM180: 0 | CN180: 0 | CO180: 0 | CP180: 0 | CQ180: 0 | CR180: 0
A181: 181 | B181: 816-OP | C181: U | D181: Wells Expenses | E181: =PROFORMA!AW37 -> 0 | F181: as UG Storage Plant (23) | H181: 0 | I181: 0 | J181: 0 | K181: 0 | L181: 0 | M181: 0 | N181: 0 | P181: =E$1&$A181&"* """ -> E181* " | R181: 0.13 | S181: 0.87 | T181: 0 | U181: 0 | V181: 0 | W181: 0 | X181: 0 | Y181: 0 | Z181: 0 | AA181: 0 | AB181: 0 | AC181: 0 | AD181: 0 | AE181: 0 | AF181: 0 | AG181: 0 | AH181: 0 | AI181: 0 | AK181: =SUM(AL181:AO181) -> 0 | AL181: 0 | AM181: 0 | AN181: 0 | AO181: 0 | AQ181: =E$1&$A181&"* """ -> E181* " | AS181: 0 | AT181: 0 | AU181: 0 | AV181: 0 | AW181: 0 | AX181: 0 | AY181: 0 | BA181: =SUM(BB181:BG181) -> 0 | BB181: 0 | BC181: 0 | BD181: 0 | BE181: 0 | BF181: 0 | BG181: 0 | BI181: 0 | BJ181: 0 | BK181: 0 | BL181: 0 | BM181: 0 | BN181: 0 | BO181: 0 | BQ181: Wells Expenses | BR181: 0 | BS181: 0.13 | BT181: 0.87 | BU181: 0 | BV181: 0 | BW181: 0 | BX181: 0 | BY181: 0 | BZ181: 0 | CA181: 0 | CB181: 0 | CC181: 0 | CD181: 0 | CE181: 0 | CF181: 0 | CG181: 0 | CH181: 0 | CI181: 0 | CK181: as UG Storage Plant (23) | CL181: 0 | CM181: 0 | CN181: 0 | CO181: 0 | CP181: 0 | CQ181: 0 | CR181: 0
A182: 182 | B182: 817-OP | C182: U | D182: Lines Expenses | E182: =PROFORMA!AW38 -> 0 | F182: as UG Storage Plant (23) | H182: =SUM(I182:N182) -> 0 | I182: 0 | J182: 0 | K182: 0 | L182: 0 | M182: 0 | N182: 0 | R182: 0.13 | S182: 0.87 | T182: 0 | U182: 0 | V182: 0 | W182: 0 | X182: 0 | Y182: 0 | Z182: 0 | AA182: 0 | AB182: 0 | AC182: 0 | AD182: 0 | AE182: 0 | AF182: 0 | AG182: 0 | AH182: 0 | AI182: 0 | AK182: =SUM(AL182:AO182) -> 0 | AL182: 0 | AM182: 0 | AN182: 0 | AO182: 0 | AQ182: =E$1&$A182&"* """ -> E182* " | AS182: 0 | AT182: 0 | AU182: 0 | AV182: 0 | AW182: 0 | AX182: 0 | AY182: 0 | BA182: =SUM(BB182:BG182) -> 0 | BB182: 0 | BC182: 0 | BD182: 0 | BE182: 0 | BF182: 0 | BG182: 0 | BI182: 0 | BJ182: 0 | BK182: 0 | BL182: 0 | BM182: 0 | BN182: 0 | BO182: 0 | BQ182: Lines Expenses | BR182: 0 | BS182: 0.13 | BT182: 0.87 | BU182: 0 | BV182: 0 | BW182: 0 | BX182: 0 | BY182: 0 | BZ182: 0 | CA182: 0 | CB182: 0 | CC182: 0 | CD182: 0 | CE182: 0 | CF182: 0 | CG182: 0 | CH182: 0 | CI182: 0 | CK182: as UG Storage Plant (23) | CL182: 0 | CM182: 0 | CN182: 0 | CO182: 0 | CP182: 0 | CQ182: 0 | CR182: 0
A183: 183 | B183: 818-OP | C183: U | D183: Compressor Station Expenses | E183: =PROFORMA!AW39 -> 0 | F183: as UG Storage Plant (23) | H183: 0 | I183: 0 | J183: 0 | K183: 0 | L183: 0 | M183: 0 | N183: 0 | R183: 0.13 | S183: 0.87 | T183: 0 | U183: 0 | V183: 0 | W183: 0 | X183: 0 | Y183: 0 | Z183: 0 | AA183: 0 | AB183: 0 | AC183: 0 | AD183: 0 | AE183: 0 | AF183: 0 | AG183: 0 | AH183: 0 | AI183: 0 | AK183: 0 | AL183: 0 | AM183: 0 | AN183: 0 | AO183: 0 | AQ183: E183* " | AS183: 0 | AT183: 0 | AU183: 0 | AV183: 0 | AW183: 0 | AX183: 0 | AY183: 0 | BA183: 0 | BB183: 0 | BC183: 0 | BD183: 0 | BE183: 0 | BF183: 0 | BG183: 0 | BI183: 0 | BJ183: 0 | BK183: 0 | BL183: 0 | BM183: 0 | BN183: 0 | BO183: 0 | BQ183: Compressor Station Expenses | BR183: 0 | BS183: 0.13 | BT183: 0.87 | BU183: 0 | BV183: 0 | BW183: 0 | BX183: 0 | BY183: 0 | BZ183: 0 | CA183: 0 | CB183: 0 | CC183: 0 | CD183: 0 | CE183: 0 | CF183: 0 | CG183: 0 | CH183: 0 | CI183: 0 | CK183: as UG Storage Plant (23) | CL183: 0 | CM183: 0 | CN183: 0 | CO183: 0 | CP183: 0 | CQ183: 0 | CR183: 0
A184: 184 | B184: 819-OP | C184: U | D184: Compressor Station Fuel & Power | E184: =PROFORMA!AW40 -> 0 | F184: as UG Storage Plant (23) | H184: 0 | I184: 0 | J184: 0 | K184: 0 | L184: 0 | M184: 0 | N184: 0 | R184: 0.13 | S184: 0.87 | T184: 0 | U184: 0 | V184: 0 | W184: 0 | X184: 0 | Y184: 0 | Z184: 0 | AA184: 0 | AB184: 0 | AC184: 0 | AD184: 0 | AE184: 0 | AF184: 0 | AG184: 0 | AH184: 0 | AI184: 0 | AK184: 0 | AL184: 0 | AM184: 0 | AN184: 0 | AO184: 0 | AQ184: E184* " | AS184: 0 | AT184: 0 | AU184: 0 | AV184: 0 | AW184: 0 | AX184: 0 | AY184: 0 | BA184: 0 | BB184: 0 | BC184: 0 | BD184: 0 | BE184: 0 | BF184: 0 | BG184: 0 | BI184: 0 | BJ184: 0 | BK184: 0 | BL184: 0 | BM184: 0 | BN184: 0 | BO184: 0 | BQ184: Compressor Station Fuel & Power | BR184: 0 | BS184: 0.13 | BT184: 0.87 | BU184: 0 | BV184: 0 | BW184: 0 | BX184: 0 | BY184: 0 | BZ184: 0 | CA184: 0 | CB184: 0 | CC184: 0 | CD184: 0 | CE184: 0 | CF184: 0 | CG184: 0 | CH184: 0 | CI184: 0 | CK184: as UG Storage Plant (23) | CL184: 0 | CM184: 0 | CN184: 0 | CO184: 0 | CP184: 0 | CQ184: 0 | CR184: 0
A185: 185 | B185: 820-OP | C185: U | D185: Measuring & Regulator Station | E185: =PROFORMA!AW41 -> 0 | F185: as UG Storage Plant (23) | H185: 0 | I185: 0 | J185: 0 | K185: 0 | L185: 0 | M185: 0 | N185: 0 | R185: 0.13 | S185: 0.87 | T185: 0 | U185: 0 | V185: 0 | W185: 0 | X185: 0 | Y185: 0 | Z185: 0 | AA185: 0 | AB185: 0 | AC185: 0 | AD185: 0 | AE185: 0 | AF185: 0 | AG185: 0 | AH185: 0 | AI185: 0 | AK185: 0 | AL185: 0 | AM185: 0 | AN185: 0 | AO185: 0 | AQ185: E185* " | AS185: 0 | AT185: 0 | AU185: 0 | AV185: 0 | AW185: 0 | AX185: 0 | AY185: 0 | BA185: 0 | BB185: 0 | BC185: 0 | BD185: 0 | BE185: 0 | BF185: 0 | BG185: 0 | BI185: 0 | BJ185: 0 | BK185: 0 | BL185: 0 | BM185: 0 | BN185: 0 | BO185: 0 | BQ185: Measuring & Regulator Station | BR185: 0 | BS185: 0.13 | BT185: 0.87 | BU185: 0 | BV185: 0 | BW185: 0 | BX185: 0 | BY185: 0 | BZ185: 0 | CA185: 0 | CB185: 0 | CC185: 0 | CD185: 0 | CE185: 0 | CF185: 0 | CG185: 0 | CH185: 0 | CI185: 0 | CK185: as UG Storage Plant (23) | CL185: 0 | CM185: 0 | CN185: 0 | CO185: 0 | CP185: 0 | CQ185: 0 | CR185: 0
A186: 186 | B186: 821-OP | C186: U | D186: Purification Expenses | E186: =PROFORMA!AW42 -> 0 | F186: as UG Storage Plant (23) | H186: 0 | I186: 0 | J186: 0 | K186: 0 | L186: 0 | M186: 0 | N186: 0 | R186: 0.13 | S186: 0.87 | T186: 0 | U186: 0 | V186: 0 | W186: 0 | X186: 0 | Y186: 0 | Z186: 0 | AA186: 0 | AB186: 0 | AC186: 0 | AD186: 0 | AE186: 0 | AF186: 0 | AG186: 0 | AH186: 0 | AI186: 0 | AK186: 0 | AL186: 0 | AM186: 0 | AN186: 0 | AO186: 0 | AQ186: E186* " | AS186: 0 | AT186: 0 | AU186: 0 | AV186: 0 | AW186: 0 | AX186: 0 | AY186: 0 | BA186: 0 | BB186: 0 | BC186: 0 | BD186: 0 | BE186: 0 | BF186: 0 | BG186: 0 | BI186: 0 | BJ186: 0 | BK186: 0 | BL186: 0 | BM186: 0 | BN186: 0 | BO186: 0 | BQ186: Purification Expenses | BR186: 0 | BS186: 0.13 | BT186: 0.87 | BU186: 0 | BV186: 0 | BW186: 0 | BX186: 0 | BY186: 0 | BZ186: 0 | CA186: 0 | CB186: 0 | CC186: 0 | CD186: 0 | CE186: 0 | CF186: 0 | CG186: 0 | CH186: 0 | CI186: 0 | CK186: as UG Storage Plant (23) | CL186: 0 | CM186: 0 | CN186: 0 | CO186: 0 | CP186: 0 | CQ186: 0 | CR186: 0
A187: 187 | B187: 824-OP | C187: U | D187: Other Expenses | E187: =PROFORMA!AW43 -> 428000 | F187: as UG Storage Plant (23) | H187: 428000 | I187: 289920.0345 | J187: 115072.6944 | K187: 12570.95555 | L187: 2262.833208 | M187: 8173.482358 | N187: 0 | P187: =E$1&$A187&"* """ -> E187* " | R187: 0.13 | S187: 0.87 | T187: 0 | U187: 0 | V187: 0 | W187: 0 | X187: 0 | Y187: 0 | Z187: 0 | AA187: 0 | AB187: 0 | AC187: 0 | AD187: 0 | AE187: 0 | AF187: 0 | AG187: 0 | AH187: 0 | AI187: 0 | AK187: 428000 | AL187: 428000 | AM187: 0 | AN187: 0 | AO187: 0 | AQ187: E187* " | AS187: 428000 | AT187: 289920.0345 | AU187: 115072.6944 | AV187: 12570.95555 | AW187: 2262.833208 | AX187: 8173.482358 | AY187: 0 | BA187: 0 | BB187: 0 | BC187: 0 | BD187: 0 | BE187: 0 | BF187: 0 | BG187: 0 | BI187: 0 | BJ187: 0 | BK187: 0 | BL187: 0 | BM187: 0 | BN187: 0 | BO187: 0 | BQ187: Other Expenses | BR187: 0 | BS187: 0.13 | BT187: 0.87 | BU187: 0 | BV187: 0 | BW187: 0 | BX187: 0 | BY187: 0 | BZ187: 0 | CA187: 0 | CB187: 0 | CC187: 0 | CD187: 0 | CE187: 0 | CF187: 0 | CG187: 0 | CH187: 0 | CI187: 0 | CK187: as UG Storage Plant (23) | CL187: 0 | CM187: 0 | CN187: 0 | CO187: 0 | CP187: 0 | CQ187: 0 | CR187: 0
A188: 188 | B188: 825-OP | C188: U | D188: Storage Well Royalties & Rents | E188: =PROFORMA!AW44 -> 0 | F188: as UG Storage Plant (23) | H188: 0 | I188: 0 | J188: 0 | K188: 0 | L188: 0 | M188: 0 | N188: 0 | P188: =E$1&$A188&"* """ -> E188* " | R188: 0.13 | S188: 0.87 | T188: 0 | U188: 0 | V188: 0 | W188: 0 | X188: 0 | Y188: 0 | Z188: 0 | AA188: 0 | AB188: 0 | AC188: 0 | AD188: 0 | AE188: 0 | AF188: 0 | AG188: 0 | AH188: 0 | AI188: 0 | AK188: 0 | AL188: 0 | AM188: 0 | AN188: 0 | AO188: 0 | AQ188: E188* " | AS188: 0 | AT188: 0 | AU188: 0 | AV188: 0 | AW188: 0 | AX188: 0 | AY188: 0 | BA188: 0 | BB188: 0 | BC188: 0 | BD188: 0 | BE188: 0 | BF188: 0 | BG188: 0 | BI188: 0 | BJ188: 0 | BK188: 0 | BL188: 0 | BM188: 0 | BN188: 0 | BO188: 0 | BQ188: Storage Well Royalties & Rents | BR188: 0 | BS188: 0.13 | BT188: 0.87 | BU188: 0 | BV188: 0 | BW188: 0 | BX188: 0 | BY188: 0 | BZ188: 0 | CA188: 0 | CB188: 0 | CC188: 0 | CD188: 0 | CE188: 0 | CF188: 0 | CG188: 0 | CH188: 0 | CI188: 0 | CK188: as UG Storage Plant (23) | CL188: 0 | CM188: 0 | CN188: 0 | CO188: 0 | CP188: 0 | CQ188: 0 | CR188: 0
A189: 189 | B189: 826-OP | C189: U | D189: Rents | E189: =PROFORMA!AW45 -> 0 | F189: as UG Storage Plant (23) | H189: 0 | I189: 0 | J189: 0 | K189: 0 | L189: 0 | M189: 0 | N189: 0 | P189: =E$1&$A189&"* """ -> E189* " | R189: 0.13 | S189: 0.87 | T189: 0 | U189: 0 | V189: 0 | W189: 0 | X189: 0 | Y189: 0 | Z189: 0 | AA189: 0 | AB189: 0 | AC189: 0 | AD189: 0 | AE189: 0 | AF189: 0 | AG189: 0 | AH189: 0 | AI189: 0 | AK189: 0 | AL189: 0 | AM189: 0 | AN189: 0 | AO189: 0 | AQ189: E189* " | AS189: 0 | AT189: 0 | AU189: 0 | AV189: 0 | AW189: 0 | AX189: 0 | AY189: 0 | BA189: 0 | BB189: 0 | BC189: 0 | BD189: 0 | BE189: 0 | BF189: 0 | BG189: 0 | BI189: 0 | BJ189: 0 | BK189: 0 | BL189: 0 | BM189: 0 | BN189: 0 | BO189: 0 | BQ189: Rents | BR189: 0 | BS189: 0.13 | BT189: 0.87 | BU189: 0 | BV189: 0 | BW189: 0 | BX189: 0 | BY189: 0 | BZ189: 0 | CA189: 0 | CB189: 0 | CC189: 0 | CD189: 0 | CE189: 0 | CF189: 0 | CG189: 0 | CH189: 0 | CI189: 0 | CK189: as UG Storage Plant (23) | CL189: 0 | CM189: 0 | CN189: 0 | CO189: 0 | CP189: 0 | CQ189: 0 | CR189: 0
A190: 190 | D190: Total Underground Storage Operation | E190: =SUM(E178:E189) -> 436000 | H190: =IF(ROUND(SUM(H179:H189),3)<>ROUND(SUM(I190:N190),3),#VALUE!,SUM(H179:H189)) -> 436000 | I190: =SUM(I179:I189) -> 295339.1006 | J190: 117223.5859 | K190: 12805.92668 | L190: 2305.129156 | M190: 8326.257729 | N190: 0 | P190: =$A179&":"&$A189 -> 179:189 | R190: =SUMPRODUCT($E$179:$E$189,R$179:R$189)/$E190 -> 0.13 | S190: 0.87 | T190: 0 | U190: 0 | V190: 0 | W190: 0 | X190: 0 | Y190: 0 | Z190: 0 | AA190: 0 | AB190: 0 | AC190: 0 | AD190: 0 | AE190: 0 | AF190: 0 | AG190: 0 | AH190: 0 | AI190: 0 | AK190: =IF(ROUND(SUM(AK179:AK189),3)<>ROUND(SUM(AL190:AO190),3),#VALUE!,SUM(AK179:AK189)) -> 436000 | AL190: =SUM(AL179:AL189) -> 436000 | AM190: =SUM(AM179:AM189) -> 0 | AN190: =SUM(AN179:AN189) -> 0 | AO190: =SUM(AO179:AO189) -> 0 | AQ190: =$A179&":"&$A189 -> 179:189 | AS190: =IF(ROUND(SUM(AS179:AS189),3)<>ROUND(SUM(AT190:AY190),3),#VALUE!,SUM(AS179:AS189)) -> 436000 | AT190: =SUM(AT179:AT189) -> 295339.1006 | AU190: 117223.5859 | AV190: 12805.92668 | AW190: 2305.129156 | AX190: 8326.257729 | AY190: 0 | BA190: =IF(ROUND(SUM(BA179:BA189),3)<>ROUND(SUM(BB190:BG190),3),#VALUE!,SUM(BA179:BA189)) -> 0 | BB190: =SUM(BB179:BB189) -> 0 | BC190: 0 | BD190: 0 | BE190: 0 | BF190: 0 | BG190: 0 | BI190: =IF(ROUND(SUM(BI179:BI189),3)<>ROUND(SUM(BJ190:BO190),3),#VALUE!,SUM(BI179:BI189)) -> 0 | BJ190: =SUM(BJ179:BJ189) -> 0 | BK190: 0 | BL190: 0 | BM190: 0 | BN190: 0 | BO190: 0 | BQ190: Total Underground Storage Operation | BR190: =IF(ROUND(SUM(BR179:BR189),3)<>ROUND(SUM(CM190:CR190),3),#VALUE!,SUM(BR179:BR189)) -> 3933 | BS190: =SUMPRODUCT($BR$179:$BR$189,BS$179:BS$189)/$BR$190 -> 0.13 | BT190: =SUMPRODUCT($BR$179:$BR$189,BT$179:BT$189)/$BR$190 -> 0.87 | BU190: 0 | BV190: 0 | BW190: 0 | BX190: 0 | BY190: 0 | BZ190: 0 | CA190: 0 | CB190: 0 | CC190: 0 | CD190: 0 | CE190: 0 | CF190: 0 | CG190: 0 | CH190: 0 | CI190: 0 | CL190: 0 | CM190: =SUM(CM179:CM189) -> 2664.148355 | CN190: 1057.432026 | CO190: 115.5176827 | CP190: 20.79374534 | CQ190: 75.10819186 | CR190: 0
A191: 191 | B191: 830-MT | C191: U | D191: Supervision & Engineering | E191: =PROFORMA!AW47 -> 0 | F191: as UG Storage Plant (23) | H191: =SUM(I191:N191) -> 0 | I191: =$E191*SUMPRODUCT($R191:$AH191,INDEX(AllocFactors,I$4,0)) -> 0 | J191: 0 | K191: 0 | L191: 0 | M191: 0 | N191: 0 | P191: =E$1&$A191&"* Sum["&$R$1&$A191&":"&$AH$1&$A191&"* "&Factors!D$1&Factors!$A$58&":"&Factors!S$1&Factors!$A$64&"]" -> E191* Sum[R191:AH191* D1037:S1043] | R191: =R$23 -> 0.13 | S191: 0.87 | T191: 0 | U191: 0 | V191: 0 | W191: 0 | X191: 0 | Y191: 0 | Z191: 0 | AA191: 0 | AB191: 0 | AC191: 0 | AD191: 0 | AE191: 0 | AF191: 0 | AG191: 0 | AH191: 0 | AI191: 0 | AK191: =SUM(AL191:AO191) -> 0 | AL191: =SUMIF($R$4:$AH$4,AL$5,$R191:$AH191)*$E191 -> 0 | AM191: 0 | AN191: 0 | AO191: 0 | AQ191: =E$1&$A191&"*["&R$1&$A191&":"&$AH$1&$A191&" when "&R$1&$A$4&":"&$AH$1&$A$4&" = E,D,C,or R]" -> E191*[R191:AH191 when R4:AH4 = E,D,C,or R] | AS191: =SUM(AT191:AY191) -> 0 | AT191: =$E191*SUMPRODUCT($R191:$V191,INDEX(AllocFactors_E,AT$4,0)) -> 0 | AU191: 0 | AV191: 0 | AW191: 0 | AX191: 0 | AY191: 0 | BA191: =SUM(BB191:BG191) -> 0 | BB191: =$E191*SUMPRODUCT($W191:$AA191,INDEX(AllocFactors_D,BB$4,0)) -> 0 | BC191: 0 | BD191: 0 | BE191: 0 | BF191: 0 | BG191: 0 | BI191: =SUM(BJ191:BO191) -> 0 | BJ191: =$E191*SUMPRODUCT($AB191:$AG191,INDEX(AllocFactors_C,BJ$4,0)) -> 0 | BK191: 0 | BL191: 0 | BM191: 0 | BN191: 0 | BO191: 0 | BQ191: Supervision & Engineering | BR191: 0 | BS191: =R191 -> 0.13 | BT191: =S191 -> 0.87 | BU191: =T191 -> 0 | BV191: =U191 -> 0 | BW191: =V191 -> 0 | BX191: =W191 -> 0 | BY191: =X191 -> 0 | BZ191: =Y191 -> 0 | CA191: =Z191 -> 0 | CB191: =AA191 -> 0 | CC191: =AB191 -> 0 | CD191: =AC191 -> 0 | CE191: =AD191 -> 0 | CF191: =AE191 -> 0 | CG191: =AF191 -> 0 | CH191: =AG191 -> 0 | CI191: =AH191 -> 0 | CK191: =F191 -> as UG Storage Plant (23) | CL191: 0 | CM191: =$BR191*SUMPRODUCT($BS191:$CI191,INDEX(AllocFactors,CM$168,0)) -> 0 | CN191: 0 | CO191: 0 | CP191: 0 | CQ191: 0 | CR191: 0
A192: 192 | B192: 831-MT | C192: U | D192: Maps & Records | E192: =PROFORMA!AW48 -> 0 | F192: as UG Storage Plant (23) | H192: 0 | I192: 0 | J192: 0 | K192: 0 | L192: 0 | M192: 0 | N192: 0 | R192: =R$23 -> 0.13 | S192: 0.87 | T192: 0 | U192: 0 | V192: 0 | W192: 0 | X192: 0 | Y192: 0 | Z192: 0 | AA192: 0 | AB192: 0 | AC192: 0 | AD192: 0 | AE192: 0 | AF192: 0 | AG192: 0 | AH192: 0 | AI192: 0 | AK192: =SUM(AL192:AO192) -> 0 | AL192: 0 | AM192: 0 | AN192: 0 | AO192: 0 | AQ192: =E$1&$A192&"* """ -> E192* " | AS192: =SUM(AT192:AY192) -> 0 | AT192: 0 | AU192: 0 | AV192: 0 | AW192: 0 | AX192: 0 | AY192: 0 | BA192: =SUM(BB192:BG192) -> 0 | BB192: 0 | BC192: 0 | BD192: 0 | BE192: 0 | BF192: 0 | BG192: 0 | BI192: 0 | BJ192: 0 | BK192: 0 | BL192: 0 | BM192: 0 | BN192: 0 | BO192: 0 | BQ192: Maps & Records | BR192: 0 | BS192: 0.13 | BT192: 0.87 | BU192: 0 | BV192: 0 | BW192: 0 | BX192: 0 | BY192: 0 | BZ192: 0 | CA192: 0 | CB192: 0 | CC192: 0 | CD192: 0 | CE192: 0 | CF192: 0 | CG192: 0 | CH192: 0 | CI192: 0 | CK192: as UG Storage Plant (23) | CL192: 0 | CM192: 0 | CN192: 0 | CO192: 0 | CP192: 0 | CQ192: 0 | CR192: 0
A193: 193 | B193: 832-MT | C193: U | D193: Wells Expenses | E193: =PROFORMA!AW49 -> 0 | F193: as UG Storage Plant (23) | H193: 0 | I193: 0 | J193: 0 | K193: 0 | L193: 0 | M193: 0 | N193: 0 | R193: =R$23 -> 0.13 | S193: 0.87 | T193: 0 | U193: 0 | V193: 0 | W193: 0 | X193: 0 | Y193: 0 | Z193: 0 | AA193: 0 | AB193: 0 | AC193: 0 | AD193: 0 | AE193: 0 | AF193: 0 | AG193: 0 | AH193: 0 | AI193: 0 | AK193: 0 | AL193: 0 | AM193: 0 | AN193: 0 | AO193: 0 | AQ193: E193* " | AS193: 0 | AT193: 0 | AU193: 0 | AV193: 0 | AW193: 0 | AX193: 0 | AY193: 0 | BA193: 0 | BB193: 0 | BC193: 0 | BD193: 0 | BE193: 0 | BF193: 0 | BG193: 0 | BI193: 0 | BJ193: 0 | BK193: 0 | BL193: 0 | BM193: 0 | BN193: 0 | BO193: 0 | BQ193: Wells Expenses | BR193: 0 | BS193: 0.13 | BT193: 0.87 | BU193: 0 | BV193: 0 | BW193: 0 | BX193: 0 | BY193: 0 | BZ193: 0 | CA193: 0 | CB193: 0 | CC193: 0 | CD193: 0 | CE193: 0 | CF193: 0 | CG193: 0 | CH193: 0 | CI193: 0 | CK193: as UG Storage Plant (23) | CL193: 0 | CM193: 0 | CN193: 0 | CO193: 0 | CP193: 0 | CQ193: 0 | CR193: 0
A194: 194 | B194: 833-MT | C194: U | D194: Lines Expenses | E194: =PROFORMA!AW50 -> 0 | F194: as UG Storage Plant (23) | H194: 0 | I194: 0 | J194: 0 | K194: 0 | L194: 0 | M194: 0 | N194: 0 | R194: =R$23 -> 0.13 | S194: 0.87 | T194: 0 | U194: 0 | V194: =V$23 -> 0 | W194: 0 | X194: 0 | Y194: 0 | Z194: 0 | AA194: 0 | AB194: 0 | AC194: 0 | AD194: 0 | AE194: 0 | AF194: 0 | AG194: 0 | AH194: 0 | AI194: 0 | AK194: 0 | AL194: 0 | AM194: 0 | AN194: 0 | AO194: 0 | AQ194: E194* " | AS194: 0 | AT194: 0 | AU194: 0 | AV194: 0 | AW194: 0 | AX194: 0 | AY194: 0 | BA194: 0 | BB194: 0 | BC194: 0 | BD194: 0 | BE194: 0 | BF194: 0 | BG194: 0 | BI194: 0 | BJ194: 0 | BK194: 0 | BL194: 0 | BM194: 0 | BN194: 0 | BO194: 0 | BQ194: Lines Expenses | BR194: 0 | BS194: 0.13 | BT194: 0.87 | BU194: 0 | BV194: 0 | BW194: 0 | BX194: 0 | BY194: 0 | BZ194: 0 | CA194: 0 | CB194: 0 | CC194: 0 | CD194: 0 | CE194: 0 | CF194: 0 | CG194: 0 | CH194: 0 | CI194: 0 | CK194: as UG Storage Plant (23) | CL194: 0 | CM194: 0 | CN194: 0 | CO194: 0 | CP194: 0 | CQ194: 0 | CR194: 0
A195: 195 | B195: 834-MT | C195: U | D195: Compressor Station Expenses | E195: =PROFORMA!AW51 -> 0 | F195: as UG Storage Plant (23) | H195: 0 | I195: 0 | J195: 0 | K195: 0 | L195: 0 | M195: 0 | N195: 0 | P195: =E$1&$A195&"* """ -> E195* " | R195: =R$23 -> 0.13 | S195: =S$23 -> 0.87 | T195: =T$23 -> 0 | U195: =U$23 -> 0 | V195: 0 | W195: 0 | X195: 0 | Y195: 0 | Z195: 0 | AA195: 0 | AB195: 0 | AC195: 0 | AD195: 0 | AE195: 0 | AF195: 0 | AG195: 0 | AH195: 0 | AI195: 0 | AK195: 0 | AL195: 0 | AM195: 0 | AN195: 0 | AO195: 0 | AQ195: E195* " | AS195: 0 | AT195: 0 | AU195: 0 | AV195: 0 | AW195: 0 | AX195: 0 | AY195: 0 | BA195: 0 | BB195: 0 | BC195: 0 | BD195: 0 | BE195: 0 | BF195: 0 | BG195: 0 | BI195: 0 | BJ195: 0 | BK195: 0 | BL195: 0 | BM195: 0 | BN195: 0 | BO195: 0 | BQ195: Compressor Station Expenses | BR195: 0 | BS195: 0.13 | BT195: 0.87 | BU195: 0 | BV195: 0 | BW195: 0 | BX195: 0 | BY195: 0 | BZ195: 0 | CA195: 0 | CB195: 0 | CC195: 0 | CD195: 0 | CE195: 0 | CF195: 0 | CG195: 0 | CH195: 0 | CI195: 0 | CK195: as UG Storage Plant (23) | CL195: 0 | CM195: 0 | CN195: 0 | CO195: 0 | CP195: 0 | CQ195: 0 | CR195: 0
A196: 196 | B196: 835-MT | C196: U | D196: Compressor Station Fuel & Power | E196: =PROFORMA!AW52 -> 0 | F196: as UG Storage Plant (23) | H196: 0 | I196: 0 | J196: 0 | K196: 0 | L196: 0 | M196: 0 | N196: 0 | P196: =E$1&$A196&"* """ -> E196* " | R196: =R$23 -> 0.13 | S196: 0.87 | T196: 0 | U196: 0 | V196: 0 | W196: 0 | X196: 0 | Y196: 0 | Z196: 0 | AA196: 0 | AB196: 0 | AC196: 0 | AD196: 0 | AE196: 0 | AF196: =AF$23 -> 0 | AG196: 0 | AH196: 0 | AI196: 0 | AK196: 0 | AL196: 0 | AM196: 0 | AN196: 0 | AO196: 0 | AQ196: E196* " | AS196: 0 | AT196: 0 | AU196: 0 | AV196: 0 | AW196: 0 | AX196: 0 | AY196: 0 | BA196: 0 | BB196: 0 | BC196: 0 | BD196: 0 | BE196: 0 | BF196: 0 | BG196: 0 | BI196: 0 | BJ196: 0 | BK196: 0 | BL196: 0 | BM196: 0 | BN196: 0 | BO196: 0 | BQ196: Compressor Station Fuel & Power | BR196: 0 | BS196: 0.13 | BT196: 0.87 | BU196: 0 | BV196: 0 | BW196: 0 | BX196: 0 | BY196: 0 | BZ196: 0 | CA196: 0 | CB196: 0 | CC196: 0 | CD196: 0 | CE196: 0 | CF196: 0 | CG196: 0 | CH196: 0 | CI196: 0 | CK196: as UG Storage Plant (23) | CL196: 0 | CM196: 0 | CN196: 0 | CO196: 0 | CP196: 0 | CQ196: 0 | CR196: 0
A197: 197 | B197: 836-MT | C197: U | D197: Measuring and Regulator Station Expenses | E197: =PROFORMA!AW53 -> 0 | F197: as UG Storage Plant (23) | H197: 0 | I197: 0 | J197: 0 | K197: 0 | L197: 0 | M197: 0 | N197: 0 | P197: =E$1&$A197&"* """ -> E197* " | R197: 0.13 | S197: 0.87 | T197: 0 | U197: 0 | V197: 0 | W197: 0 | X197: 0 | Y197: 0 | Z197: 0 | AA197: 0 | AB197: 0 | AC197: 0 | AD197: 0 | AE197: 0 | AF197: 0 | AG197: 0 | AH197: 0 | AI197: 0 | AK197: 0 | AL197: 0 | AM197: 0 | AN197: 0 | AO197: 0 | AQ197: E197* " | AS197: 0 | AT197: 0 | AU197: 0 | AV197: 0 | AW197: 0 | AX197: 0 | AY197: 0 | BA197: 0 | BB197: 0 | BC197: 0 | BD197: 0 | BE197: 0 | BF197: 0 | BG197: 0 | BI197: 0 | BJ197: 0 | BK197: 0 | BL197: 0 | BM197: 0 | BN197: 0 | BO197: 0 | BQ197: Measuring and Regulator Station Expenses | BR197: 0 | BS197: 0.13 | BT197: 0.87 | BU197: 0 | BV197: 0 | BW197: 0 | BX197: 0 | BY197: 0 | BZ197: 0 | CA197: 0 | CB197: 0 | CC197: 0 | CD197: 0 | CE197: 0 | CF197: 0 | CG197: 0 | CH197: 0 | CI197: 0 | CK197: as UG Storage Plant (23) | CL197: 0 | CM197: 0 | CN197: 0 | CO197: 0 | CP197: 0 | CQ197: 0 | CR197: 0
A198: 198 | B198: 837-MT | C198: U | D198: Other Equipment | E198: =PROFORMA!AW54 -> 397000 | F198: as UG Storage Plant (23) | H198: 397000 | I198: 268921.1535 | J198: 106737.9899 | K198: 11660.44241 | L198: 2098.93641 | M198: 7581.477795 | N198: 0 | P198: =E$1&$A198&"* """ -> E198* " | R198: 0.13 | S198: 0.87 | T198: 0 | U198: 0 | V198: 0 | W198: 0 | X198: 0 | Y198: 0 | Z198: 0 | AA198: 0 | AB198: 0 | AC198: 0 | AD198: 0 | AE198: 0 | AF198: 0 | AG198: 0 | AH198: 0 | AI198: 0 | AK198: 397000 | AL198: 397000 | AM198: 0 | AN198: 0 | AO198: 0 | AQ198: E198* " | AS198: 397000 | AT198: 268921.1535 | AU198: 106737.9899 | AV198: 11660.44241 | AW198: 2098.93641 | AX198: 7581.477795 | AY198: 0 | BA198: 0 | BB198: 0 | BC198: 0 | BD198: 0 | BE198: 0 | BF198: 0 | BG198: 0 | BI198: 0 | BJ198: 0 | BK198: 0 | BL198: 0 | BM198: 0 | BN198: 0 | BO198: 0 | BQ198: Other Equipment | BR198: 0 | BS198: 0.13 | BT198: 0.87 | BU198: 0 | BV198: 0 | BW198: 0 | BX198: 0 | BY198: 0 | BZ198: 0 | CA198: 0 | CB198: 0 | CC198: 0 | CD198: 0 | CE198: 0 | CF198: 0 | CG198: 0 | CH198: 0 | CI198: 0 | CK198: as UG Storage Plant (23) | CL198: 0 | CM198: 0 | CN198: 0 | CO198: 0 | CP198: 0 | CQ198: 0 | CR198: 0
A199: 199 | D199: Total Underground Storage Maintenance | E199: =SUM(E191:E198) -> 397000 | H199: =IF(ROUND(SUM(H191:H198),3)<>ROUND(SUM(I199:N199),3),#VALUE!,SUM(H191:H198)) -> 397000 | I199: =SUM(I191:I198) -> 268921.1535 | J199: 106737.9899 | K199: 11660.44241 | L199: 2098.93641 | M199: 7581.477795 | N199: 0 | P199: =$A191&":"&$A198 -> 191:198 | R199: =SUMPRODUCT($E$191:$E$198,R$191:R$198)/$E199 -> 0.13 | S199: 0.87 | T199: 0 | U199: 0 | V199: 0 | W199: 0 | X199: 0 | Y199: 0 | Z199: 0 | AA199: 0 | AB199: 0 | AC199: 0 | AD199: 0 | AE199: 0 | AF199: 0 | AG199: 0 | AH199: 0 | AI199: 0 | AK199: =IF(ROUND(SUM(AK191:AK198),3)<>ROUND(SUM(AL199:AO199),3),#VALUE!,SUM(AK191:AK198)) -> 397000 | AL199: =SUM(AL191:AL198) -> 397000 | AM199: =SUM(AM191:AM198) -> 0 | AN199: =SUM(AN191:AN198) -> 0 | AO199: =SUM(AO191:AO198) -> 0 | AQ199: =$A191&":"&$A198 -> 191:198 | AS199: =IF(ROUND(SUM(AS191:AS198),3)<>ROUND(SUM(AT199:AY199),3),#VALUE!,SUM(AS191:AS198)) -> 397000 | AT199: =SUM(AT191:AT198) -> 268921.1535 | AU199: 106737.9899 | AV199: 11660.44241 | AW199: 2098.93641 | AX199: 7581.477795 | AY199: 0 | BA199: =IF(ROUND(SUM(BA191:BA198),3)<>ROUND(SUM(BB199:BG199),3),#VALUE!,SUM(BA191:BA198)) -> 0 | BB199: =SUM(BB191:BB198) -> 0 | BC199: 0 | BD199: 0 | BE199: 0 | BF199: 0 | BG199: 0 | BI199: =IF(ROUND(SUM(BI191:BI198),3)<>ROUND(SUM(BJ199:BO199),3),#VALUE!,SUM(BI191:BI198)) -> 0 | BJ199: =SUM(BJ191:BJ198) -> 0 | BK199: 0 | BL199: 0 | BM199: 0 | BN199: 0 | BO199: 0 | BQ199: Total Underground Storage Maintenance | BR199: =IF(ROUND(SUM(BR191:BR198),3)<>ROUND(SUM(CM199:CR199),3),#VALUE!,SUM(BR191:BR198)) -> 0 | BS199: =IF(SUM($BR$191:$BR$198)=0,0,SUMPRODUCT($BR$191:$BR$198,BS$191:BS$198)/$BR$199) -> 0 | BT199: =IF(SUM($BR$191:$BR$198)=0,0,SUMPRODUCT($BR$191:$BR$198,BT$191:BT$198)/$BR$199) -> 0 | BU199: 0 | BV199: 0 | BW199: 0 | BX199: 0 | BY199: 0 | BZ199: 0 | CA199: 0 | CB199: 0 | CC199: 0 | CD199: 0 | CE199: 0 | CF199: 0 | CG199: 0 | CH199: 0 | CI199: 0 | CL199: 0 | CM199: =SUM(CM191:CM198) -> 0 | CN199: 0 | CO199: 0 | CP199: 0 | CQ199: 0 | CR199: 0
A200: =RowHdr -> 200 | D200: Total Underground Storage Expenses | E200: =E190+E199 -> 833000 | H200: =H190+H199 -> 833000 | I200: 564260.2541 | J200: 223961.5757 | K200: 24466.36909 | L200: 4404.065566 | M200: 15907.73552 | N200: 0 | P200: =$A190&"+"&$A199 -> 190+199 | R200: =($E$190*R$190+$E$199*R$199)/SUM($E190,$E199) -> 0.13 | S200: 0.87 | T200: 0 | U200: =($E$190*U$190+$E$199*U$199)/SUM($E190,$E199) -> 0 | V200: =($E$190*V$190+$E$199*V$199)/SUM($E190,$E199) -> 0 | W200: 0 | X200: 0 | Y200: =($E$190*Y$190+$E$199*Y$199)/SUM($E190,$E199) -> 0 | Z200: 0 | AA200: 0 | AB200: 0 | AC200: 0 | AD200: 0 | AE200: 0 | AF200: 0 | AG200: =($E$190*AG$190+$E$199*AG$199)/SUM($E190,$E199) -> 0 | AH200: 0 | AI200: 0 | AK200: =AK190+AK199 -> 833000 | AL200: =AL190+AL199 -> 833000 | AM200: =AM190+AM199 -> 0 | AN200: =AN190+AN199 -> 0 | AO200: =AO190+AO199 -> 0 | AQ200: =$A190&"+"&$A199 -> 190+199 | AS200: =AS190+AS199 -> 833000 | AT200: 564260.2541 | AU200: 223961.5757 | AV200: 24466.36909 | AW200: 4404.065566 | AX200: 15907.73552 | AY200: 0 | BA200: =BA190+BA199 -> 0 | BB200: 0 | BC200: 0 | BD200: 0 | BE200: 0 | BF200: 0 | BG200: 0 | BI200: =BI190+BI199 -> 0 | BJ200: 0 | BK200: 0 | BL200: 0 | BM200: 0 | BN200: 0 | BO200: 0 | BQ200: Total Underground Storage Expenses | BR200: =BR190+BR199 -> 3933 | BS200: =($BR$190*BS$190+$BR$199*BS$199)/($BR$190+$BR$199) -> 0.13 | BT200: =($BR$190*BT$190+$BR$199*BT$199)/($BR$190+$BR$199) -> 0.87 | BU200: 0 | BV200: 0 | BW200: 0 | BX200: 0 | BY200: 0 | BZ200: 0 | CA200: 0 | CB200: 0 | CC200: 0 | CD200: 0 | CE200: 0 | CF200: 0 | CG200: 0 | CH200: 0 | CI200: 0 | CL200: 0 | CM200: =CM190+CM199 -> 2664.148355 | CN200: 1057.432026 | CO200: 115.5176827 | CP200: 20.79374534 | CQ200: 75.10819186 | CR200: 0
A201: 201 | AI201: 0 | CL201: 0
A202: 202 | D202: Distribution Expenses | AI202: 0 | BQ202: Distribution Expenses | CL202: 0
A203: 203 | B203: 870-OP | C203: D | D203: Supervision & Engineering | E203: =PROFORMA!AW70 -> 1097000 | F203: ="as Distrib Plant ("&A$40&")" -> as Distrib Plant (40) | G203: all oth Dist Exp (S04) | H203: =SUM(I203:N203) -> 1097000 | I203: =$E203*SUMPRODUCT($R203:$AH203,INDEX(AllocFactors,I$4,0)) -> 940667.8876 | J203: 109975.5855 | K203: 8071.52708 | L203: 1788.92959 | M203: 36496.07027 | N203: 0 | P203: =E$1&$A203&"* Sum["&$R$1&$A203&":"&$AH$1&$A203&"* "&Factors!D$1&Factors!$A$58&":"&Factors!S$1&Factors!$A$64&"]" -> E203* Sum[R203:AH203* D1037:S1043] | R203: =R$40 -> 0 | S203: =S$40 -> 0 | T203: =T$40 -> 0 | U203: 0 | V203: 0 | W203: 0.2997055275 | X203: 0 | Y203: 0 | Z203: =Z$40 -> 0 | AA203: 0 | AB203: =AB$40 -> 0.2001307384 | AC203: 0.3442913001 | AD203: 0.1487756598 | AE203: =AE$40 -> 0 | AF203: 0.007096774194 | AG203: 0 | AH203: 0 | AI203: 0 | AK203: =SUM(AL203:AO203) -> 1097000 | AL203: =SUMIF($R$4:$AH$4,AL$5,$R203:$AH203)*$E203 -> 0 | AM203: 328776.9637 | AN203: 768223.0363 | AO203: 0 | AQ203: =E$1&$A203&"*["&R$1&$A203&":"&$AH$1&$A203&" when "&R$1&$A$4&":"&$AH$1&$A$4&" = E,D,C,or R]" -> E203*[R203:AH203 when R4:AH4 = E,D,C,or R] | AS203: =SUM(AT203:AY203) -> 0 | AT203: =$E203*SUMPRODUCT($R203:$V203,INDEX(AllocFactors_E,AT$4,0)) -> 0 | AU203: 0 | AV203: 0 | AW203: 0 | AX203: 0 | AY203: 0 | BA203: =SUM(BB203:BG203) -> 328776.9637 | BB203: =$E203*SUMPRODUCT($W203:$AA203,INDEX(AllocFactors_D,BB$4,0)) -> 215135.957 | BC203: 73429.58361 | BD203: 7111.156278 | BE203: 1394.072149 | BF203: 31706.19463 | BG203: 0 | BI203: =SUM(BJ203:BO203) -> 768223.0363 | BJ203: =$E203*SUMPRODUCT($AB203:$AG203,INDEX(AllocFactors_C,BJ$4,0)) -> 725531.9306 | BK203: 36546.00186 | BL203: 960.3708017 | BM203: 394.8574405 | BN203: 4789.87564 | BO203: 0 | BQ203: Supervision & Engineering | BR203: 672016 | BS203: =R203 -> 0 | BT203: =S203 -> 0 | BU203: =T203 -> 0 | BV203: =U203 -> 0 | BW203: =V203 -> 0 | BX203: =W203 -> 0.2997055275 | BY203: =X203 -> 0 | BZ203: =Y203 -> 0 | CA203: =Z203 -> 0 | CB203: =AA203 -> 0 | CC203: =AB203 -> 0.2001307384 | CD203: =AC203 -> 0.3442913001 | CE203: =AD203 -> 0.1487756598 | CF203: =AE203 -> 0 | CG203: =AF203 -> 0.007096774194 | CH203: =AG203 -> 0 | CI203: =AH203 -> 0 | CK203: =F203 -> as Distrib Plant (40) | CL203: 0 | CM203: =$BR203*SUMPRODUCT($BS203:$CI203,INDEX(AllocFactors,CM$168,0)) -> 576247.8315 | CN203: 67370.4221 | CO203: 4944.571871 | CP203: 1095.888156 | CQ203: 22357.28638 | CR203: 0
... 242 more rows

Sheet Summary
A1: =ColHdr -> A | B1: =ColHdr -> B | C1: C | D1: D | E1: E | F1: F | G1: G | H1: H | I1: I | J1: J | K1: K | L1: L
A2: =Pg1Row+ROW(A2) -> 447
A3: 448
A4: 449 | C4: Total | D4: Sch 101 | E4: Sch 111 | F4: Sch 121 | G4: Sch 132 | H4: Sch 146 | I4: Open | K4: source
A5: 450 | B5: Plant In Service
A6: 451 | B6: Underground Storage Plant | C6: =Detail!H23 -> 27352000 | D6: =Detail!I23 -> 18527786.88 | E6: =Detail!J23 -> 7353897.982 | F6: =Detail!K23 -> 803366.2995 | G6: =Detail!L23 -> 144609.8456 | H6: =Detail!M23 -> 522338.9941 | I6: =Detail!N23 -> 0 | K6: =Detail!A$23 -> 23
A7: 452 | B7: Distribution Plant | C7: =Detail!H40 -> 410015000 | D7: =Detail!I40 -> 351584269.8 | E7: =Detail!J40 -> 41104502.9 | F7: =Detail!K40 -> 3016816.022 | G7: =Detail!L40 -> 668630.7801 | H7: =Detail!M40 -> 13640780.54 | I7: =Detail!N40 -> 0 | K7: =Detail!A$40 -> 40
A8: 453 | B8: Intangible Plant | C8: =Detail!H12 -> 19752000 | D8: =Detail!I12 -> 17700793.96 | E8: =Detail!J12 -> 1531558.425 | F8: =Detail!K12 -> 108521.0361 | G8: =Detail!L12 -> 23483.13939 | H8: =Detail!M12 -> 387643.4427 | I8: =Detail!N12 -> 0 | K8: =Detail!A$12 -> 12
A9: 454 | B9: General Plant | C9: =Detail!H55 -> 74485000 | D9: =Detail!I55 -> 67125285.74 | E9: =Detail!J55 -> 5554985.722 | F9: =Detail!K55 -> 391137.5774 | G9: =Detail!L55 -> 84264.71534 | H9: =Detail!M55 -> 1329326.25 | I9: =Detail!N55 -> 0 | K9: =Detail!A$55 -> 55
A10: 455 | B10: Total Plant In Service | C10: =Detail!H57 -> 531604000 | D10: =Detail!I57 -> 454938136.3 | E10: =Detail!J57 -> 55544945.02 | F10: =Detail!K57 -> 4319840.935 | G10: =Detail!L57 -> 920988.4804 | H10: =Detail!M57 -> 15880089.22 | I10: =Detail!N57 -> 0 | K10: =Detail!A57 -> 57
A11: 456 | C11: =ABS(ROUND(SUM(C6:C9)-C10,0)) -> 0 | D11: 0 | E11: 0 | F11: 0 | G11: 0 | H11: 0 | I11: 0
A12: 457 | B12: Accum Depreciation
A13: 458 | B13: Underground Storage Plant | C13: =Detail!H70 -> -10795000 | D13: =Detail!I70 -> -7312352.272 | E13: =Detail!J70 -> -2902359.196 | F13: =Detail!K70 -> -317064.1709 | G13: =Detail!L70 -> -57073.09458 | H13: =Detail!M70 -> -206151.2665 | I13: =Detail!N70 -> 0 | K13: =Detail!A$70 -> 70
A14: 459 | B14: Distribution Plant | C14: =Detail!H86 -> -136187000 | D14: =Detail!I86 -> -117844896.8 | E14: =Detail!J86 -> -12768171.23 | F14: =Detail!K86 -> -971033.465 | G14: =Detail!L86 -> -208955.8389 | H14: =Detail!M86 -> -4393942.719 | I14: =Detail!N86 -> 0 | K14: =Detail!A$86 -> 86
A15: 460 | B15: Intangible Plant | C15: =Detail!H108 -> -5186000 | D15: =Detail!I108 -> -4662437.992 | E15: =Detail!J108 -> -393311.051 | F15: =Detail!K108 -> -27770.03975 | G15: =Detail!L108 -> -5994.269882 | H15: =Detail!M108 -> -96486.64721 | I15: =Detail!N108 -> 0 | K15: =Detail!A$108 -> 108
A16: 461 | B16: General Plant | C16: =Detail!H101 -> -22429000 | D16: =Detail!I101 -> -20212835.25 | E16: =Detail!J101 -> -1672723.028 | F16: =Detail!K101 -> -117779.7506 | G16: =Detail!L101 -> -25373.87797 | H16: =Detail!M101 -> -400288.091 | I16: =Detail!N101 -> 0 | K16: =Detail!A$101 -> 101
A17: 462 | B17: Total Accumulated Depreciation | C17: =Detail!H110 -> -174597000 | D17: =Detail!I110 -> -150032522.3 | E17: =Detail!J110 -> -17736564.5 | F17: =Detail!K110 -> -1433647.426 | G17: =Detail!L110 -> -297397.0813 | H17: =Detail!M110 -> -5096868.723 | I17: =Detail!N110 -> 0 | K17: =Detail!A110 -> 110
A18: 463 | C18: =ABS(ROUND(SUM(C13:C16)-C17,0)) -> 0 | D18: 0 | E18: 0 | F18: 0 | G18: 0 | H18: 0 | I18: 0
A19: 464 | B19: Net Plant | C19: =C10+C17 -> 357007000 | D19: 304905614.1 | E19: 37808380.52 | F19: 2886193.508 | G19: 623591.3991 | H19: 10783220.5 | I19: 0 | K19: =A10&"+"&A17 -> 455+462
A20: 465 | B20: Accumulated Deferred FIT | C20: =Detail!H117 -> -78431000 | D20: =Detail!I117 -> -67119985.87 | E20: =Detail!J117 -> -8194907.456 | F20: =Detail!K117 -> -637334.2645 | G20: =Detail!L117 -> -135879.4281 | H20: =Detail!M117 -> -2342892.977 | I20: =Detail!N117 -> 0 | K20: =Detail!A$117 -> 117
A21: 466 | B21: Miscellaneous Rate Base | C21: =Detail!H126-C20 -> 19739000 | D21: =Detail!I126-D20 -> 14117391.41 | E21: =Detail!J126-E20 -> 4604767.533 | F21: =Detail!K126-F20 -> 486254.4687 | G21: =Detail!L126-G20 -> 88905.20635 | H21: =Detail!M126-H20 -> 441681.3803 | I21: =Detail!N126-I20 -> 0 | K21: =Detail!A$126&"-"&A20 -> 126-465
A22: 467 | B22: Total Rate Base | C22: =IF(ROUND(Detail!H128,3)<>ROUND(SUM(D22:I22),3),#VALUE!,SUM(D22:I22)) -> 298315000 | D22: =Detail!I128 -> 251903019.6 | E22: =Detail!J128 -> 34218240.6 | F22: =Detail!K128 -> 2735113.712 | G22: =Detail!L128 -> 576617.1774 | H22: =Detail!M128 -> 8882008.905 | I22: =Detail!N128 -> 0 | K22: =Detail!A128 -> 128
A23: 468 | C23: =ABS(ROUND(SUM(C19:C21)-C22,0)) -> 0 | D23: 0 | E23: 0 | F23: 0 | G23: 0 | H23: 0 | I23: 0
A24: 469 | B24: Revenue From Retail Rates | C24: =-Detail!H417 -> 86886000 | D24: =-Detail!I417 -> 67353651.21 | E24: =-Detail!J417 -> 15223638.41 | F24: =-Detail!K417 -> 1284359.71 | G24: =-Detail!L417 -> 195654.1081 | H24: =-Detail!M417 -> 2828696.563 | I24: =-Detail!N417 -> 0 | K24: =Detail!A$417 -> 417
A25: 470 | B25: Other Operating Revenues | C25: =C26-C24 -> 1870000 | D25: =D26-D24 -> 1579169.142 | E25: 214382.8354 | F25: 17130.68841 | G25: 3612.131455 | H25: 55705.20311 | I25: 0 | K25: =A26&"-"&A24 -> 471-469
A26: 471 | B26: Total Revenues | C26: =-Detail!H428 -> 88756000 | D26: =-Detail!I428 -> 68932820.35 | E26: =-Detail!J428 -> 15438021.25 | F26: =-Detail!K428 -> 1301490.398 | G26: =-Detail!L428 -> 199266.2395 | H26: =-Detail!M428 -> 2884401.766 | I26: =-Detail!N428 -> 0 | K26: =Detail!A$428 -> 428
A27: 472 | C27: =ABS(ROUND(C24+C25-C26,0)) -> 0 | D27: =ABS(ROUND(D24+D25-D26,0)) -> 0 | E27: 0 | F27: 0 | G27: 0 | H27: 0 | I27: 0
A28: 473 | B28: Operating Expenses
A29: 474 | B29: Purchased Gas Costs | C29: =Detail!H176 -> 817000 | D29: =Detail!I176 -> 552787.5361 | E29: =Detail!J176 -> 215142.2854 | F29: =Detail!K176 -> 23140.479 | G29: =Detail!L176 -> 4137.438553 | H29: =Detail!M176 -> 21792.26088 | I29: =Detail!N176 -> 0 | K29: =Detail!A$176 -> 176
A30: 475 | B30: Underground Storage Expenses | C30: =Detail!H200 -> 833000 | D30: =Detail!I200 -> 564260.2541 | E30: =Detail!J200 -> 223961.5757 | F30: =Detail!K200 -> 24466.36909 | G30: =Detail!L200 -> 4404.065566 | H30: =Detail!M200 -> 15907.73552 | I30: =Detail!N200 -> 0 | K30: =Detail!A$200 -> 200
A31: 476 | B31: Distribution Expenses | C31: =Detail!H224 -> 12151000 | D31: =Detail!I224 -> 10520046.33 | E31: =Detail!J224 -> 1187695.993 | F31: =Detail!K224 -> 76794.99973 | G31: =Detail!L224 -> 18550.90084 | H31: =Detail!M224 -> 347911.7763 | I31: =Detail!N224 -> 0 | K31: =Detail!A$224 -> 224
A32: 477 | B32: Customer Accounting Expenses | C32: =Detail!H232 -> 6075000 | D32: =Detail!I232 -> 5854426.855 | E32: =Detail!J232 -> 190834.9457 | F32: =Detail!K232 -> 9117.714943 | G32: =Detail!L232 -> 1312.825118 | H32: =Detail!M232 -> 19307.65934 | I32: =Detail!N232 -> 0 | K32: =Detail!A$232 -> 232
A33: 478 | B33: Customer Information Expenses | C33: =Detail!H240 -> 889000 | D33: =Detail!I240 -> 873436.7127 | E33: =Detail!J240 -> 15174.80911 | F33: =Detail!K240 -> 156.5509186 | G33: =Detail!L240 -> 11.59636434 | H33: =Detail!M240 -> 220.3309225 | I33: =Detail!N240 -> 0 | K33: =Detail!A$240 -> 240
A34: 479 | B34: Sales Expenses | C34: =Detail!H247 -> 0.2 | D34: =Detail!I247 -> 0.196498698 | E34: =Detail!J247 -> 0.00341390531 | F34: =Detail!K247 -> 3.521955424e-05 | G34: =Detail!L247 -> 2.60885587e-06 | H34: =Detail!M247 -> 4.956826153e-05 | I34: =Detail!N247 -> 0 | K34: =Detail!A$247 -> 247
A35: 480 | B35: Admin & General Expenses | C35: =Detail!H338 -> 12751000.03 | D35: =Detail!I338 -> 11457060.06 | E35: =Detail!J338 -> 976516.3323 | F35: =Detail!K338 -> 69390.06662 | G35: =Detail!L338 -> 14767.18485 | H35: =Detail!M338 -> 233266.391 | I35: =Detail!N338 -> 0 | K35: =Detail!A$338 -> 338
A36: 481 | B36: Total O&M Expenses | C36: =Detail!H340 -> 33516000.23 | D36: =Detail!I340 -> 29822017.94 | E36: =Detail!J340 -> 2809325.945 | F36: =Detail!K340 -> 203066.1803 | G36: =Detail!L340 -> 43184.01129 | H36: =Detail!M340 -> 638406.154 | I36: =Detail!N340 -> 0 | K36: =Detail!A$340 -> 340
A37: 482 | C37: =ABS(ROUND(SUM(C29:C35)-C36,0)) -> 0 | D37: =ABS(ROUND(SUM(D29:D35)-D36,0)) -> 0 | E37: =ABS(ROUND(SUM(E29:E35)-E36,0)) -> 0 | F37: 0 | G37: 0 | H37: 0 | I37: 0
A38: 483 | B38: Taxes Other Than Income Taxes | C38: =Detail!H348 -> 6561000 | D38: =Detail!I348 -> 5291482.719 | E38: =Detail!J348 -> 963878.5539 | F38: =Detail!K348 -> 80251.88689 | G38: =Detail!L348 -> 13940.64556 | H38: =Detail!M348 -> 211446.1943 | I38: =Detail!N348 -> 0 | K38: =Detail!A$348 -> 348
A39: 484 | B39: Depreciation Expense
A40: 485 | B40: Underground Storage Plant Depreciation | C40: =Detail!H360 -> 451000 | D40: =Detail!I360 -> 305499.8495 | E40: =Detail!J360 -> 121256.5074 | F40: =Detail!K360 -> 13246.49755 | G40: =Detail!L360 -> 2384.434058 | H40: =Detail!M360 -> 8612.71155 | I40: =Detail!N360 -> 0 | K40: =Detail!A$360 -> 360
A41: 486 | B41: Distribution Plant Depreciation | C41: =Detail!H376 -> 10671000 | D41: =Detail!I376 -> 9156439.905 | E41: =Detail!J376 -> 1081148.558 | F41: =Detail!K376 -> 75276.24421 | G41: =Detail!L376 -> 17240.43988 | H41: =Detail!M376 -> 340894.8535 | I41: =Detail!N376 -> 0 | K41: =Detail!A$376 -> 376
A42: 487 | B42: General Plant Depreciation | C42: =Detail!H389 -> 6250000 | D42: =Detail!I389 -> 5632449.968 | E42: =Detail!J389 -> 466116.141 | F42: =Detail!K389 -> 32820.16323 | G42: =Detail!L389 -> 7070.611141 | H42: =Detail!M389 -> 111543.1169 | I42: =Detail!N389 -> 0 | K42: =Detail!A$389 -> 389
A43: 488 | B43: Amortization Expense | C43: =Detail!H399 -> 3625000 | D43: =Detail!I399 -> 3266820.981 | E43: =Detail!J399 -> 270347.3618 | F43: =Detail!K399 -> 19035.69468 | G43: =Detail!L399 -> 4100.954462 | H43: =Detail!M399 -> 64695.00779 | I43: =Detail!N399 -> 0 | K43: =Detail!A$399 -> 399
A44: 489 | B44: Total Depreciation Expense | C44: =Detail!H401 -> 20997000 | D44: =Detail!I401 -> 18361210.7 | E44: =Detail!J401 -> 1938868.568 | F44: =Detail!K401 -> 140378.5997 | G44: =Detail!L401 -> 30796.43954 | H44: =Detail!M401 -> 525745.6897 | I44: =Detail!N401 -> 0 | K44: =Detail!A$401 -> 401
A45: 490 | B45: Income Tax | C45: =SUM(Detail!H408:H411) -> 7617000 | D45: =SUM(Detail!I408:I411) -> 3292711.587 | E45: =SUM(Detail!J408:J411) -> 3471134.301 | F45: =SUM(Detail!K408:K411) -> 317256.515 | G45: =SUM(Detail!L408:L411) -> 37656.56794 | H45: =SUM(Detail!M408:M411) -> 498241.0292 | I45: =SUM(Detail!N408:N411) -> 0 | K45: =Detail!A$408&":"&Detail!A$411 -> 408:411
A46: 491 | B46: Total Operating Expenses | C46: =Detail!H414 -> 68691000.23 | D46: =Detail!I414 -> 56767422.95 | E46: =Detail!J414 -> 9183207.367 | F46: =Detail!K414 -> 740953.1819 | G46: =Detail!L414 -> 125577.6643 | H46: =Detail!M414 -> 1873839.067 | I46: =Detail!N414 -> 0 | K46: =Detail!A$414 -> 414
A47: 492 | I47: 0
A48: 493 | B48: Net Operating Income | C48: =IF(ROUND(-Detail!H430,3)<>ROUND(SUM(D48:I48),3),#VALUE!,SUM(D48:I48)) -> 20064999.77 | D48: =-Detail!I430 -> 12165397.4 | E48: =-Detail!J430 -> 6254813.878 | F48: =-Detail!K430 -> 560537.2161 | G48: =-Detail!L430 -> 73688.57521 | H48: =-Detail!M430 -> 1010562.699 | I48: =-Detail!N430 -> 0 | K48: =Detail!A$430 -> 430
A49: 494 | B49: Rate of Return | C49: =Detail!H129 -> 0.06726111583 | D49: =Detail!I129 -> 0.04829397209 | E49: =Detail!J129 -> 0.1827918025 | F49: =Detail!K129 -> 0.2049411012 | G49: =Detail!L129 -> 0.1277946237 | H49: =Detail!M129 -> 0.1137763663 | I49: =Detail!N129 -> 0 | K49: =Detail!A$129 -> 129
A50: 495 | B50: Return Ratio | C50: =C49/$C49 -> 1 | D50: =D49/$C49 -> 0.7180072989 | E50: 2.717644515 | F50: 3.046947685 | G50: 1.899977753 | H50: =H49/$C49 -> 1.691562278 | I50: 0 | K50: ="% of "&C$1&$A49 -> % of C494
A51: 496
A52: 497 | B52: Interest Expense | C52: =Detail!H154 -> 8472000 | D52: =Detail!I154 -> 7153922.472 | E52: =Detail!J154 -> 971781.2861 | F52: =Detail!K154 -> 77675.89083 | G52: =Detail!L154 -> 16375.64563 | H52: =Detail!M154 -> 252244.7059 | I52: =Detail!N154 -> 0 | K52: =Detail!A$154 -> 154
A53: 498 | B53: Income Tax / Net Oper Income | C53: =C45/C48 -> 0.3796162516
A54: 499
A55: 500
A56: 501 | B56: Proposed Rate Revenue Increase | C56: =SUM(D56:I56) -> 4397000 | D56: 4166872 | E56: 0 | F56: 0 | G56: 5528 | H56: 224600 | I56: 0 | K56: input from Ehrbar "ROR" tab
A57: 502 | B57: Proposed Misc Revenue Increase | C57: =ROUND(SUM(D57:I57),-3) -> 0 | D57: 0 | E57: 0 | F57: 0 | G57: 0 | H57: 0 | I57: 0 | K57: input
A58: 503 | B58: Total Revenue Increase | C58: =C56+C57 -> 4397000 | D58: =D56+D57 -> 4166872 | E58: 0 | F58: 0 | G58: 5528 | H58: 224600 | I58: 0 | K58: =A56&"+"&A57 -> 501+502
A59: 504
A60: 505 | B60: allocated Misc Rev increase | C60: =C57 -> 0 | D60: =$C60*D61 -> 0 | E60: =$C60*E61 -> 0 | F60: =$C60*F61 -> 0 | G60: 0 | H60: 0 | I60: 0 | K60: =C$1&A60&" * "&A61 -> C505 * 506
A61: 506 | B61: allocation basis - Dist Plant | C61: =SUM(D61:H61) -> 1 | D61: =Detail!I421/Detail!$H421 -> 0.8574912376 | E61: =Detail!J421/Detail!$H421 -> 0.1002512174 | F61: =Detail!K421/Detail!$H421 -> 0.007357818669 | G61: =Detail!L421/Detail!$H421 -> 0.001630747119 | H61: =Detail!M421/Detail!$H421 -> 0.03326897928 | I61: =Detail!N421/Detail!$H421 -> 0 | K61: ="% of "&Detail!H$1&Detail!A421 -> % of H421
A62: 507
A63: 508 | B63: Proposed Rate Revenue | C63: =C24+C56 -> 91283000 | D63: =D24+D56 -> 71520523.21 | E63: 15223638.41 | F63: 1284359.71 | G63: =G24+G56 -> 201182.1081 | H63: =H24+H56 -> 3053296.563 | I63: 0 | K63: =A24&"+"&A56 -> 469+501
A64: 509
A65: 510 | B65: Present Return b4 conversion items | C65: =SUM(D65:I65) -> 31803999.77 | D65: =-(Detail!I428+Detail!I403)+D91 -> 18653465.55 | E65: =-(Detail!J428+Detail!J403)+E91 -> 10448180.04 | F65: =-(Detail!K428+Detail!K403)+F91 -> 938725.6501 | G65: =-(Detail!L428+Detail!L403)+G91 -> 120627.2626 | H65: =-(Detail!M428+Detail!M403)+H91 -> 1643001.265 | I65: =-(Detail!N428+Detail!N403)+I91 -> 0 | K65: ="-"&Detail!A428&"-"&Detail!A403&"+"&A91 -> -428-403+536
A66: 511
A67: 512
A68: 513 | B68: present conversion items, new spread
A69: 514 | B69: Uncollectibles | C69: =Detail!$E230 -> 551000 | D69: =$C69*D$63/$C$63 -> 431710.2668 | E69: =$C69*E$63/$C$63 -> 91892.51848 | F69: 7752.617683 | G69: 1214.370053 | H69: 18430.22694 | I69: 0 | K69: =Detail!A230&" * % of "&A$63 -> 230 * % of 508
A70: =Pg1Row+ROW(A70) -> 515 | B70: Commission Fees | C70: =Detail!$E315 -> 189000 | D70: =$C70*D$63/$C$63 -> 148082.1061 | E70: 31520.30126 | F70: 2659.246356 | G70: 416.5443558 | H70: 6321.801982 | I70: 0 | K70: =Detail!A315&" * % of "&A$63 -> 315 * % of 508
A71: 516 | B71: Washington ExciseTax | C71: =Detail!$E347 -> 3382000 | D71: =$C71*D$63/$C$63 -> 2649807.845 | E71: 564029.941 | F71: 47585.03267 | G71: 7453.719636 | H71: 113123.4619 | I71: 0 | K71: =Detail!A347&" * % of "&A$63 -> 347 * % of 508
A72: 517 | B72: incremental conversion items, new spread
A73: 518 | B73: Uncollectibles | C73: =ROUND($C$58*$L73,-3) -> 26000 | D73: =$C73*D$63/$C$63 -> 20371.08337 | E73: 4336.126099 | F73: 365.82225 | G73: 57.30239815 | H73: 869.6658812 | I73: 0 | K73: =C$1&$A$56&"*"&L$1&$A73&" * % of "&A$63 -> C501*L518 * % of 508 | L73: 0.005855
A74: 519 | B74: Commission Fees | C74: =ROUND($C$58*$L74,-3) -> 9000 | D74: 7051.52886 | E74: 1500.966726 | F74: 126.6307789 | G74: 19.83544551 | H74: 301.0381896 | I74: 0 | K74: =C$1&$A$56&"*"&L$1&$A74&" * % of "&A$63 -> C501*L519 * % of 508 | L74: 0.002
A75: 520 | B75: Washington ExciseTax | C75: =ROUND($C$58*$L75,-3) -> 168000 | D75: 131628.5387 | E75: 28018.04556 | F75: 2363.774539 | G75: 370.2616496 | H75: 5619.37954 | I75: 0 | K75: =C$1&$A$56&"*"&L$1&$A75&" * % of "&A$63 -> C501*L520 * % of 508 | L75: 0.038294
A76: 521 | B76: less: Interest Expense | C76: =Detail!H154 -> 8472000 | D76: =Detail!I154 -> 7153922.472 | E76: =Detail!J154 -> 971781.2861 | F76: =Detail!K154 -> 77675.89083 | G76: =Detail!L154 -> 16375.64563 | H76: =Detail!M154 -> 252244.7059 | I76: =Detail!N154 -> 0 | K76: =Detail!A154 -> 154
A77: 522 | B77: Proposed Return b4 Tax, new spread | C77: =C56+C60+C65-SUM(C69:C76) -> 23403999.77 | D77: =D56+D60+D65-SUM(D69:D76) -> 12277763.71 | E77: =E56+E60+E65-SUM(E69:E76) -> 8755100.856 | F77: 800196.635 | G77: 100247.5835 | H77: 1470690.985 | I77: 0 | K77: =A56&"+"&A60&"+"&A65&"+"&A69&":"&A75 -> 501+505+510+514:520 | L77: 0.333848
A78: 523 | B78: less: FIT--present | C78: =Detail!$E409 -> -4364000 | D78: =$C78*D$77/$C$77 -> -2289359.142 | E78: =$C78*E$77/$C$77 -> -1632509.849 | F78: -149207.7487 | G78: -18692.55079 | H78: =$C78*H$77/$C$77 -> -274230.7094 | I78: 0 | K78: =Detail!E$1&Detail!A409&" * % of "&A77 -> E409 * % of 522
A79: 524 | B79: less: FIT--incremental | C79: =ROUND($C$58*$L77,-3) -> 1468000 | D79: =$C79*D$77/$C$77 -> 770114.3951 | E79: 549157.7587 | F79: 50191.7908 | G79: 6287.96163 | H79: 92248.0938 | I79: 0 | K79: =C$1&A$58&"*"&L$1&A$77&"* % of "&A$77 -> C503*L522* % of 522
A80: 525 | B80: less: DFIT, SIT, ITC--present | C80: =Detail!E412-C78 -> 11981000 | D80: =$C80*D$77/$C$77 -> 6285245.618 | E80: 4481920.372 | F80: 409637.497 | G80: 51318.84761 | H80: 752877.6647 | I80: 0 | K80: =Detail!E$1&Detail!A412&" - "&C$1&A78&"* % of "&A77 -> E412 - C523* % of 522 | M80: =1-L73-L74-L75-L77 -> 0.620003
A81: 526 | B81: addback: Interest Expense | C81: =Detail!H154 -> 8472000 | D81: =Detail!I154 -> 7153922.472 | E81: =Detail!J154 -> 971781.2861 | F81: =Detail!K154 -> 77675.89083 | G81: =Detail!L154 -> 16375.64563 | H81: =Detail!M154 -> 252244.7059 | I81: =Detail!N154 -> 0 | K81: =Detail!A154 -> 154
A82: 527 | B82: Proposed Return | C82: =IF(ROUND(C77-C78-C79-C80+C81,0)<>ROUND(SUM(D82:I82),0),#VALUE!,ROUND(SUM(D82:I82),0)) -> 22791000 | D82: =D77-D78-D79-D80+D81 -> 14665685.31 | E82: 6328313.86 | F82: 567250.9868 | G82: 77708.97065 | H82: 1152040.642 | I82: 0 | K82: =A77&" - "&A78&":"&A80&" + "&A81 -> 522 - 523:525 + 526
A83: 528 | B83: Proposed Rate of Return | C83: =IF(C22,C82/C22,0) -> 0.07639910833 | D83: 0.05821956931 | E83: 0.1849397792 | F83: 0.2073957599 | G83: 0.1347670061 | H83: =IF(H22,H82/H22,0) -> 0.1297049636 | I83: 0 | K83: =A82&" / "&A22 -> 527 / 467
A84: 529 | B84: Proposed Return Ratio | C84: =C83/$C83 -> 1 | D84: =D83/$C83 -> 0.7620451414 | E84: =E83/$C83 -> 2.42070599 | F84: =F83/$C83 -> 2.71463587 | G84: 1.763986636 | H84: 1.697728762 | I84: 0 | K84: ="% of "&C$1&$A83 -> % of C528
A85: 530
A86: 531 | B86: Rate Revenues at Uniform Present Rates | C86: =C129 -> 86886000 | D86: =D129 -> 75665070.13 | E86: =E129 -> 8346703.812 | F86: 629292.1968 | G86: 134935.2939 | H86: 2109998.57 | I86: 0 | K86: =A129 -> 574
A87: 532 | B87: Rate Change to get to Uniform Present Rates | C87: =SUM(D87:J87) -> -1.140870154e-08 | D87: =D86-D24 -> 8311418.917 | E87: =E86-E24 -> -6876934.598 | F87: -655067.5128 | G87: -60718.81416 | H87: =H86-H24 -> -718697.9923 | I87: 0 | K87: =A86&"-"&A24 -> 531-469
A88: 533 | B88: % Change to get to Uniform Rates | C88: =IF(C86,C87/C86,0) -> -1.313065573e-16 | D88: =IF(D86,D87/D86,0) -> 0.1098448584 | E88: =IF(E86,E87/E86,0) -> -0.8239102228 | F88: -1.040959218 | G88: -0.4499846734 | H88: =IF(H86,H87/H86,0) -> -0.340615393 | I88: 0 | K88: =A87&"/"&A86 -> 532/531
A89: 534
A90: 535
A91: 536 | B91: Revenue Related Op Exp., current | C91: =SUMIF(Detail!$C$170:$C$405,$L91,Detail!H$170:H$405) -> 4122000 | D91: =SUMIF(Detail!$C$170:$C$405,$L91,Detail!I$170:I$405) -> 3195356.562 | E91: =SUMIF(Detail!$C$170:$C$405,$L91,Detail!J$170:J$405) -> 722231.8616 | F91: =SUMIF(Detail!$C$170:$C$405,$L91,Detail!K$170:K$405) -> 60931.9191 | G91: =SUMIF(Detail!$C$170:$C$405,$L91,Detail!L$170:L$405) -> 9282.119485 | H91: =SUMIF(Detail!$C$170:$C$405,$L91,Detail!M$170:M$405) -> 134197.5374 | I91: =SUMIF(Detail!$C$170:$C$405,$L91,Detail!N$170:N$405) -> 0 | K91: =Detail!A$170&":"&Detail!A$405&", col "&Detail!C$1&"= " -> 170:405, col C= | L91: R
A92: 537 | B92: Rate Rev. excl Rev. Conversion Items, current | C92: =C24-C91 -> 82764000 | D92: =D24-D91 -> 64158294.65 | E92: 14501406.55 | F92: 1223427.79 | G92: 186371.9886 | H92: 2694499.025 | I92: 0 | K92: =A24&" - "&A91 -> 469 - 536
A93: 538 | B93: Revenue Conversion Item Ratio, current | C93: =IF(C92,C91/C92,0) -> 0.04980426272 | D93: =IF(D92,D91/D92,0) -> 0.04980426272 | E93: =IF(E92,E91/E92,0) -> 0.04980426272 | F93: 0.04980426272 | G93: 0.04980426272 | H93: 0.04980426272 | I93: 0 | K93: =A91&"/"&A92 -> 536/537
A94: 539
A95: 540 | B95: Adj. Revenue Conversion Items | C95: =SUM(C69:C71,C73:C75) -> 4325000 | D95: =SUM(D69:D71,D73:D75) -> 3388651.369 | E95: 721297.8991 | F95: 60853.12428 | G95: 9532.033538 | H95: 144665.5745 | I95: 0 | K95: =A69&":"&A71&" + "&A73&":"&A75 -> 514:516 + 518:520
A96: 541 | B96: Adj. Rate Rev. excl Conversion Items | C96: =C63-C95 -> 86958000 | D96: =D63-D95 -> 68131871.84 | E96: 14502340.51 | F96: 1223506.585 | G96: 191650.0746 | H96: 2908630.988 | I96: 0 | K96: =A63&" - "&A95 -> 508 - 540
A97: 542 | B97: Adj. Revenue Conversion Ratio | C97: =IF(C96,C95/C96,0) -> 0.04973665448 | D97: =IF(D96,D95/D96,0) -> 0.04973665448 | E97: 0.04973665448 | F97: 0.04973665448 | G97: 0.04973665448 | H97: 0.04973665448 | I97: 0 | K97: =A95&"/"&A96 -> 540/541
A98: 543 | B98: Adj. Income Tax Items | C98: =SUM(C78:C80) -> 9085000 | D98: =SUM(D78:D80) -> 4766000.872 | E98: 3398568.282 | F98: 310621.5391 | G98: 38914.25845 | H98: 570895.0491 | I98: 0 | K98: =A78&":"&A80 -> 523:525
A99: 544 | B99: Adj. Return | C99: =C83*C22 -> 22791000 | D99: 14665685.31 | E99: 6328313.86 | F99: 567250.9868 | G99: 77708.97065 | H99: 1152040.642 | I99: 0 | K99: =A83&" * "&A22 -> 528 * 467
A100: 545 | B100: Adj. Income Tax Ratio | C100: =IF(C99,C98/C99,0) -> 0.3986222632 | D100: =IF(D99,D98/D99,0) -> 0.3249763493 | E100: 0.537041676 | F100: 0.5475910071 | G100: 0.5007691921 | H100: 0.4955511364 | I100: 0 | K100: =A98&"/"&A99 -> 543/544
A101: 546 | B101: Adj. Income Tax Items - Uniform | C101: =C98 -> 9085000 | D101: =$C101*D$82/$C$82 -> 5846068.669 | E101: 2522606.793 | F101: 226118.8721 | G101: 30976.52575 | H101: 459229.0478 | I101: 0 | K101: =C$1&A98&" * % of "&A82 -> C543 * % of 527
A102: 547
A103: 548
A104: 549
A105: 550 | B105: SUMMARY BY FUNCTION WITH MARGIN ANALYSIS
A106: 551
A107: 552 | C107: Total | D107: Sch 101 | E107: Sch 111 | F107: Sch 121 | G107: Sch 131 | H107: Sch 146 | I107: Open
A108: 553 | B108: Functional Cost Components at Current Rates
A109: 554 | B109: Production | C109: =SUM(D109:I109) -> 857690.0826 | D109: =D281 -> 580318.7118 | E109: 225857.2884 | F109: 24292.9735 | G109: 4343.500629 | H109: 22877.60837 | I109: 0 | K109: =A281 -> 726
A110: 555 | B110: Underground Storage | C110: =SUM(D110:I110) -> 5318662.454 | D110: =D290 -> 2219516.372 | E110: 2621186.76 | F110: 317655.387 | G110: 37550.93822 | H110: 122752.9974 | I110: 0 | K110: =A290 -> 735
A111: 556 | B111: Distribution | C111: =SUM(D111:I111) -> 52705680.61 | D111: =D301 -> 40439613.33 | E111: 9356511.805 | F111: 716638.6482 | G111: 114022.9441 | H111: 2078893.88 | I111: 0 | K111: =A301 -> 746
A112: 557 | B112: Common | C112: =SUM(D112:I112) -> 28003966.86 | D112: =D310 -> 24114202.8 | E112: 3020082.558 | F112: 225772.7008 | G112: 39736.72518 | H112: 604172.0766 | I112: 0 | K112: =A310 -> 755
A113: 558 | B113: Total Current Rate Revenue | C113: =IF(ROUND(SUM(C109:C112),3)<>ROUND(SUM(D113:I113),3),#VALUE!,SUM(D113:I113)) -> 86886000 | D113: =SUM(D109:D112) -> 67353651.21 | E113: 15223638.41 | F113: 1284359.71 | G113: 195654.1081 | H113: =SUM(H109:H112) -> 2828696.563 | I113: 0 | K113: =A109&":"&A112 -> 554:557
A114: 559 | B114: Exclude Cost of Gas w / Revenue Exp. | C114: =SUM(D114:I114) -> 0 | D114: =SUM(D$276:D$277)*(1+D$93) -> 0 | E114: =SUM(E$276:E$277)*(1+E$93) -> 0 | F114: 0 | G114: 0 | H114: 0 | I114: 0 | K114: =A276&":"&A277&"*(1+"&A93&")" -> 721:722*(1+538)
A115: 560 | B115: Total Margin Revenue at Current Rates | C115: =C113-C114 -> 86886000 | D115: =D113-D114 -> 67353651.21 | E115: 15223638.41 | F115: 1284359.71 | G115: 195654.1081 | H115: 2828696.563 | I115: 0 | K115: =A113&"-"&A114 -> 558-559
A116: 561 | C116: =ABS(ROUND(C113-Detail!$E$433,0)) -> 0
A117: 562 | B117: Margin per Therm at Current Rates
A118: 563 | B118: Production | C118: =IF(C$177,(C109-C114)/C$177,0) -> 0.004233269429 | D118: =IF(D$177,(D109-D114)/D$177,0) -> 0.004861871601 | E118: =IF(E$177,(E109-E114)/E$177,0) -> 0.004767349221 | F118: 0.004693831815 | G118: 0.004662324356 | H118: 0.0007686632801 | I118: 0 | K118: ="("&A109&"-"&A114&")/"&A$177 -> (554-559)/622
A119: 564 | B119: Underground Storage | C119: =IF(C$177,C110/C$177,0) -> 0.02625112686 | D119: 0.01859496066 | E119: 0.05532747138 | F119: 0.06137663477 | G119: 0.04030727028 | H119: 0.004124369999 | I119: 0 | K119: =A110&"/"&A$177 -> 555/622
A120: 565 | B120: Distribution | C120: 0.2601374913 | D120: 0.3388003929 | E120: 0.1974953281 | F120: 0.1384672522 | G120: 0.1223925112 | H120: 0.06984862068 | I120: 0 | K120: =A111&"/"&A$177 -> 556/622
A121: 566 | B121: Common | C121: 0.1382181503 | D121: 0.2020271885 | E121: 0.0637472819 | F121: 0.04362327594 | G121: 0.04265349943 | H121: 0.02029953842 | I121: 0 | K121: =A112&"/"&A$177 -> 557/622
A122: 567 | B122: Total Curr. Margin Melded Rate per Therm | C122: =IF(C$177,C115/C$177,0) -> 0.4288400379 | D122: =IF(D$177,D115/D$177,0) -> 0.5642844136 | E122: =IF(E$177,E115/E$177,0) -> 0.3213374306 | F122: 0.2481609947 | G122: 0.2100156052 | H122: 0.09504119239 | I122: 0 | K122: =A115&"/"&A$177 -> 560/622
A123: 568
A124: 569 | B124: Functional Cost Components at Uniform Current Return
A125: 570 | B125: Production | C125: =SUM(D125:I125) -> 857690.0826 | D125: =D$109 -> 580318.7118 | E125: 225857.2884 | F125: 24292.9735 | G125: 4343.500629 | H125: 22877.60837 | I125: 0 | K125: =A109 -> 554
A126: 571 | B126: Underground Storage | C126: =SUM(D126:I126) -> 4189383.073 | D126: =D319 -> 2837817.956 | E126: 1126363.547 | F126: 123048.0103 | G126: 22149.24098 | H126: 80004.31926 | I126: 0 | K126: =A319 -> 764
A127: 572 | B127: Distribution | C127: =SUM(D127:I127) -> 53213837.7 | D127: =D326 -> 46480697.27 | E127: 4839704.088 | F127: 329703.3835 | G127: 75658.71685 | H127: 1488074.249 | I127: 0 | K127: =A326 -> 771
A128: 573 | B128: Common | C128: =SUM(D128:I128) -> 28625089.14 | D128: =D333 -> 25766236.19 | E128: 2154778.889 | F128: 152247.8295 | G128: 32783.83547 | H128: 519042.3937 | I128: 0 | K128: =A333 -> 778
A129: 574 | B129: Total Uniform Current Cost | C129: =IF(ROUND(SUM(C125:C128),3)<>ROUND(SUM(D129:I129),3),#VALUE!,SUM(D129:I129)) -> 86886000 | D129: =SUM(D125:D128) -> 75665070.13 | E129: 8346703.812 | F129: 629292.1968 | G129: 134935.2939 | H129: 2109998.57 | I129: 0 | K129: =A125&":"&A128 -> 570:573
A130: 575 | B130: Exclude Cost of Gas w / Revenue Exp. | C130: =SUM(D130:I130) -> 0 | D130: =SUM(D$276:D$277)*(1+D$93) -> 0 | E130: =SUM(E$276:E$277)*(1+E$93) -> 0 | F130: 0 | G130: 0 | H130: 0 | I130: 0 | K130: =A276&":"&A277&"*(1+"&A93&")" -> 721:722*(1+538)
A131: 576 | B131: Total Uniform Current Margin | C131: =C129-C130 -> 86886000 | D131: 75665070.13 | E131: 8346703.812 | F131: 629292.1968 | G131: 134935.2939 | H131: 2109998.57 | I131: 0 | K131: =A129&"-"&A130 -> 574-575
A132: 577 | C132: =ABS(ROUND(C129-Detail!$E$433,0)) -> 0
A133: 578 | B133: Margin per Therm at Uniform Current Return
A134: =Pg1Row+ROW(A134) -> 579 | B134: Production | C134: =IF(C$177,(C125-C130)/C$177,0) -> 0.004233269429 | D134: 0.004861871601 | E134: 0.004767349221 | F134: 0.004693831815 | G134: 0.004662324356 | H134: 0.0007686632801 | I134: 0 | K134: ="("&A125&"-"&A130&")/"&A$177 -> (570-575)/622
A135: 580 | B135: Underground Storage | C135: =IF(C$177,C126/C$177,0) -> 0.02067738411 | D135: 0.02377505024 | E135: 0.02377505024 | F135: 0.02377505024 | G135: 0.02377505024 | H135: 0.002688059935 | I135: 0 | K135: =A126&"/"&A$177 -> 571/622
A136: 581 | B136: Distribution | C136: 0.2626455836 | D136: 0.3894121927 | E136: 0.1021554792 | F136: 0.06370452062 | G136: 0.08121225444 | H136: 0.0499977102 | I136: 0 | K136: =A127&"/"&A$177 -> 572/622
A137: 582 | B137: Common | C137: 0.1412838008 | D137: 0.2158678144 | E137: 0.04548262991 | F137: 0.02941697136 | G137: 0.03519025036 | H137: 0.01743927173 | I137: 0 | K137: =A128&"/"&A$177 -> 573/622
A138: 583 | B138: Total Curr. Uniform Margin @ Melded Rate | C138: =IF(C$177,C131/C$177,0) -> 0.4288400379 | D138: =IF(D$177,D131/D$177,0) -> 0.633916929 | E138: 0.1761805085 | F138: 0.121590374 | G138: 0.1448398794 | H138: 0.07089370515 | I138: 0 | K138: =A131&"/"&A$177 -> 576/622
A139: 584
A140: 585 | B140: Margin to Cost Ratio at Current Rates | C140: =IF(C131,C115/C131,0) -> 1 | D140: =IF(D131,D115/D131,0) -> 0.8901551416 | E140: =IF(E131,E115/E131,0) -> 1.823910223 | F140: 2.040959218 | G140: 1.449984673 | H140: =IF(H131,H115/H131,0) -> 1.340615393 | I140: 0 | K140: =A115&"/"&A131 -> 560/576
A141: 586
A142: 587
A143: 588 | B143: Functional Cost Components at Proposed Rates
A144: 589 | B144: Production | C144: =SUM(D144:I144) -> 857634.8467 | D144: =D342 -> 580281.3388 | E144: 225842.743 | F144: 24291.40901 | G144: 4343.220904 | H144: 22876.13503 | I144: 0 | K144: =A$342 -> 787
A145: 590 | B145: Underground Storage | C145: =SUM(D145:I145) -> 5643637.103 | D145: =D349 -> 2529677.311 | E145: 2621231.064 | F145: 317659.5023 | G145: 38953.92693 | H145: 136115.2986 | I145: 0 | K145: =A349 -> 794
A146: 591 | B146: Distribution | C146: =SUM(D146:I146) -> 55923074.54 | D146: =D356 -> 43468817.12 | E146: 9356553.179 | F146: 716641.3535 | G146: 117516.342 | H146: 2263546.543 | I146: 0 | K146: =A356 -> 801
A147: 592 | B147: Common | C147: =SUM(D147:I147) -> 28858653.51 | D147: =D363 -> 24941747.44 | E147: 3020011.424 | F147: 225767.4447 | G147: 40368.61826 | H147: 630758.586 | I147: 0 | K147: =A363 -> 808
A148: 593 | B148: Total Proposed Rate Revenue | C148: =IF(ROUND(SUM(C144:C147),3)<>ROUND(SUM(D148:I148),3),#VALUE!,SUM(D148:I148)) -> 91283000 | D148: =SUM(D144:D147) -> 71520523.21 | E148: 15223638.41 | F148: 1284359.71 | G148: 201182.1081 | H148: 3053296.563 | I148: 0 | K148: =A144&":"&A147 -> 589:592
A149: 594 | B149: Exclude Cost of Gas w / Revenue Exp. | C149: =SUM(D149:I149) -> 0 | D149: =SUM(D$276:D$277)*(1+D$97) -> 0 | E149: 0 | F149: 0 | G149: 0 | H149: 0 | I149: 0 | K149: =A276&":"&A277&"*(1+"&A97&")" -> 721:722*(1+542)
A150: 595 | B150: Total Margin Revenue at Proposed Rates | C150: =C148-C149 -> 91283000 | D150: 71520523.21 | E150: 15223638.41 | F150: 1284359.71 | G150: 201182.1081 | H150: 3053296.563 | I150: 0 | K150: =A148&"-"&A149 -> 593-594
A151: 596
A152: 597 | B152: Margin per Therm at Proposed Rates
A153: 598 | B153: Production | C153: =IF(C$177,(C144-C149)/C$177,0) -> 0.004232996803 | D153: =IF(D$177,(D144-D149)/D$177,0) -> 0.004861558492 | E153: 0.0047670422 | F153: 0.004693529529 | G153: 0.004662024098 | H153: 0.0007686137776 | I153: 0 | K153: ="("&A144&"-"&A$149&")/"&A$177 -> (589-594)/622
A154: 599 | B154: Underground Storage | C154: =IF(C$177,C145/C$177,0) -> 0.0278550923 | D154: 0.02119346839 | E154: 0.05532840654 | F154: 0.06137742992 | G154: 0.04181324185 | H154: 0.004573329091 | I154: 0 | K154: =A145&"/"&A$177 -> 590/622
A155: 600 | B155: Distribution | C155: 0.2760174643 | D155: 0.364178861 | E155: 0.1974962014 | F155: 0.1384677749 | G155: 0.1261423332 | H155: 0.07605275352 | I155: 0 | K155: =A146&"/"&A$177 -> 591/622
A156: 601 | B156: Common | C156: 0.1424365959 | D156: 0.2089603025 | E156: 0.06374578044 | F156: 0.04362226036 | G156: 0.04333177503 | H156: 0.02119281683 | I156: 0 | K156: =A147&"/"&A$177 -> 592/622
A157: 602 | B157: Total Proposed Margin @ Melded Rates | C157: =IF(C$177,C150/C$177,0) -> 0.4505421493 | D157: =IF(D$177,D150/D$177,0) -> 0.5991941903 | E157: 0.3213374306 | F157: 0.2481609947 | G157: 0.2159493741 | H157: 0.1025875132 | I157: 0 | K157: =A148&"/"&A$177 -> 593/622
A158: 603
A159: 604 | B159: Functional Cost Components at Uniform Proposed Return
A160: 605 | B160: Production | C160: =SUM(D160:I160) -> 857634.8467 | D160: =D373 -> 580281.3388 | E160: 225842.743 | F160: 24291.40901 | G160: 4343.220904 | H160: 22876.13503 | I160: 0 | K160: =A373 -> 818
A161: 606 | B161: Underground Storage | C161: =SUM(D161:I161) -> 4597393.008 | D161: =D380 -> 3114197.055 | E161: 1236061.683 | F161: 135031.8298 | G161: 24306.38684 | H161: 87796.0529 | I161: 0 | K161: =A380 -> 825
A162: 607 | B162: Distribution | C162: =SUM(D162:I162) -> 56381209.66 | D162: =D387 -> 49179837.31 | E162: 5171079.144 | F162: 353525.1756 | G162: 81030.65164 | H162: 1595737.381 | I162: 0 | K162: =A387 -> 832
A163: 608 | B163: Common | C163: =SUM(D163:I163) -> 29446762.73 | D163: =D394 -> 26503519.49 | E163: 2218182.729 | F163: 156768.6413 | G163: 33756.18268 | H163: 534535.6794 | I163: 0 | K163: =A394 -> 839
A164: 609 | B164: Total Uniform Proposed Cost | C164: =IF(ROUND(SUM(C160:C163),3)<>ROUND(SUM(D164:I164),3),#VALUE!,SUM(D164:I164)) -> 91283000.24 | D164: =SUM(D160:D163) -> 79377835.2 | E164: 8851166.299 | F164: 669617.0556 | G164: 143436.4421 | H164: 2240945.248 | I164: 0 | K164: =A160&":"&A163 -> 605:608
A165: 610 | B165: Exclude Cost of Gas w / Revenue Exp. | C165: =SUM(D165:I165) -> 0 | D165: =SUM(D$368:D$369)*(1+$C$97) -> 0 | E165: =SUM(E$368:E$369)*(1+$C$97) -> 0 | F165: 0 | G165: 0 | H165: 0 | I165: 0 | K165: =A368&":"&A369&"*(1+"&A97&")" -> 813:814*(1+542)
A166: 611 | B166: Total Uniform Proposed Margin | C166: =C164-C165 -> 91283000.24 | D166: 79377835.2 | E166: 8851166.299 | F166: 669617.0556 | G166: 143436.4421 | H166: 2240945.248 | I166: 0 | K166: =A164&"-"&A165 -> 609-610
A167: 612
A168: 613 | B168: Margin per Therm at Uniform Proposed Return
A169: 614 | B169: Production | C169: =IF(C$177,(C160-C165)/C$177,0) -> 0.004232996803 | D169: 0.004861558492 | E169: 0.0047670422 | F169: 0.004693529529 | G169: 0.004662024098 | H169: 0.0007686137776 | I169: 0 | K169: ="("&A160&"-"&A$165&")/"&A$177 -> (605-610)/622
A170: 615 | B170: Underground Storage | C170: =IF(C$177,C161/C$177,0) -> 0.02269118376 | D170: 0.02609053596 | E170: 0.02609053596 | F170: 0.02609053596 | G170: 0.02609053596 | H170: 0.002949853888 | I170: 0 | K170: =A161&"/"&A$177 -> 606/622
A171: 616 | B171: Distribution | C171: =IF(C$177,C162/C$177,0) -> 0.2782786651 | D171: 0.4120254086 | E171: 0.1091500757 | F171: 0.06830731186 | G171: 0.08697850258 | H171: 0.05361507678 | I171: 0 | K171: =A162&"/"&A$177 -> 607/622
A172: 617 | B172: Common | C172: =IF(C$177,C163/C$177,0) -> 0.1453393049 | D172: 0.2220447249 | E172: 0.04682094514 | F172: 0.0302904721 | G172: 0.03623397027 | H172: 0.01795982963 | I172: 0 | K172: =A163&"/"&A$177 -> 608/622
A173: 618 | B173: Total Prop. Uniform Margin @ Melded Rates | C173: =IF(C$177,C166/C$177,0) -> 0.4505421505 | D173: =IF(D$177,D166/D$177,0) -> 0.665022228 | E173: 0.186828599 | F173: 0.1293818494 | G173: 0.1539650329 | H173: 0.07529337408 | I173: 0 | K173: =A164&"/"&A$177 -> 609/622
A174: 619
A175: 620 | B175: Margin to Cost Ratio at Proposed Rates | C175: =IF(C166,C150/C166,0) -> 0.9999999973 | D175: =IF(D166,D150/D166,0) -> 0.9010137783 | E175: =IF(E166,E150/E166,0) -> 1.719958466 | F175: 1.918051069 | G175: 1.402587133 | H175: 1.362503865 | I175: 0 | K175: =A150&"/"&A166 -> 595/611
A176: 621
A177: 622 | B177: Throughput Therms | C177: =SUM(D177:I177) -> 202607015 | D177: =Factors!E41 -> 119361176 | E177: =Factors!F41 -> 47375864 | F177: =Factors!G41 -> 5175510 | G177: =Factors!H41 -> 931617 | H177: =Factors!I41 -> 29762848 | I177: =Factors!J41 -> 0 | K177: =Factors!A41 -> 1020
A178: 623 | B178: Peak Therms | C178: =SUM(D178:I178) -> 1395521.867 | D178: =Factors!E42 -> 913162.9205 | E178: =Factors!F42 -> 311678.1311 | F178: =Factors!G42 -> 30183.90939 | G178: =Factors!H42 -> 5917.258151 | H178: =Factors!I42 -> 134579.6476 | I178: =Factors!J42 -> 0 | K178: =Factors!A42 -> 1021
A179: 624 | B179: Number of Customers (Annualized) | C179: =SUM(D179:I179) -> 1839887 | D179: =Factors!E43 -> 1807677 | E179: =Factors!F43 -> 31406 | F179: =Factors!G43 -> 324 | G179: =Factors!H43 -> 24 | H179: =Factors!I43 -> 456 | I179: =Factors!J43 -> 0 | K179: =Factors!A43 -> 1022
A180: 625
A181: 626
A182: 627
A183: 628 | B183: SUMMARY BY CLASSIFICATION WITH UNIT COST ANALYSIS
A184: 629
A185: 630 | C185: Total | D185: Sch 101 | E185: Sch 111 | F185: Sch 121 | G185: Sch 131 | H185: Sch 146 | I185: Open
A186: 631 | B186: Cost by Classification at Curr. Return by Schedule
A187: 632 | B187: Commodity | C187: =SUM(D187:I187) -> 7789193.193 | D187: =D410 -> 3740578.362 | E187: 3405853.7 | F187: 406330.4736 | G187: 51392.15814 | H187: 185038.4991 | I187: 0 | K187: =A410 -> 855
A188: 633 | B188: Demand | C188: =SUM(D188:I188) -> 19893994.91 | D188: =D419 -> 9654395.577 | E188: 7147500.35 | F188: 753624.2468 | G188: 105790.4171 | H188: 2232684.322 | I188: 0 | K188: =A419 -> 864
A189: 634 | B189: Customer | C189: =SUM(D189:I189) -> 59202811.86 | D189: =D428 -> 53958677.24 | E189: 4670284.36 | F189: 124404.9891 | G189: 38471.5329 | H189: 410973.7416 | I189: 0 | K189: =A428 -> 873
A190: 635 | B190: Total Current Rate Revenue | C190: =IF(ROUND(SUM(C187:C189),3)<>ROUND(SUM(D190:I190),3),#VALUE!,SUM(D190:I190)) -> 86885999.97 | D190: =SUM(D186:D189) -> 67353651.18 | E190: 15223638.41 | F190: 1284359.71 | G190: 195654.1081 | H190: 2828696.563 | I190: 0 | K190: =A186&":"&A189 -> 631:634
A191: 636
A192: 637 | B192: Revenue per Therm at Current Rates
A193: 638 | B193: Commodity | C193: =IF(C$177,C187/C$177,0) -> 0.03844483466 | D193: =IF(D$177,D187/D$177,0) -> 0.03133831693 | E193: 0.07189005989 | F193: 0.07851022868 | G193: 0.05516447009 | H193: 0.006217096531 | I193: 0 | K193: =A187&"/"&A$177 -> 632/622
A194: 639 | B194: Demand | C194: =IF(C$177,C188/C$177,0) -> 0.09819005977 | D194: 0.08088388453 | E194: 0.1508679683 | F194: 0.1456135235 | G194: 0.1135556962 | H194: 0.07501581576 | I194: 0 | K194: =A188&"/"&A$177 -> 633/622
A195: 640 | B195: Customer | C195: =IF(C$177,C189/C$177,0) -> 0.2922051433 | D195: 0.4520622119 | E195: 0.09857940237 | F195: 0.02403724254 | G195: 0.0412954389 | H195: 0.01380828009 | I195: 0 | K195: =A189&"/"&A$177 -> 634/622
A196: 641 | B196: Total Revenue per Therm at Current Rates | C196: 0.4288400378 | D196: 0.5642844133 | E196: 0.3213374306 | F196: 0.2481609947 | G196: 0.2100156052 | H196: 0.09504119239 | I196: 0 | K196: =A190&"/"&A$177 -> 635/622
A197: 642
A198: =Pg1Row+ROW(A198) -> 643 | B198: Cost per Unit at Current Rates
A199: 644 | B199: Commodity | C199: =C193 -> 0.03844483466 | D199: =D193 -> 0.03133831693 | E199: 0.07189005989 | F199: 0.07851022868 | G199: 0.05516447009 | H199: 0.006217096531 | I199: 0 | K199: =A193 -> 638
A200: 645 | B200: Demand | C200: =IF(C$178,C188/C$178,0) -> 14.25559526 | D200: 10.57247876 | E200: 22.93231266 | F200: 24.96774811 | G200: 17.87828321 | H200: 16.59005921 | I200: 0 | K200: =A188&"/"&A$178 -> 633/623
... 334 more rows

Sheet Factors
A1: =ColHdr -> A | B1: =ColHdr -> B | C1: C | D1: D | E1: E | F1: F | G1: G | H1: H | I1: I | J1: J | K1: K | L1: L | M1: M | N1: N | O1: O | P1: P | Q1: Q | R1: R | S1: S | T1: T
A2: =Pg2Row+ROW(A2) -> 981 | E2: 1 | F2: 2 | G2: 3 | H2: 4 | I2: 5 | J2: 6
A3: 982 | B3: Allocation Factor | C3: Abbrev | D3: Total | E3: Sch 101 | F3: Sch 111 | G3: Sch 121 | H3: Sch 131 | I3: Sch 146 | J3: Open | K3: allocation basis
A4: 983 | B4: Throughput - All Schedules | C4: E01 | D4: =SUM(E4:J4) -> 202607015 | E4: =E$41 -> 119361176 | F4: 47375864 | G4: 5175510 | H4: 931617 | I4: 29762848 | J4: 0 | K4: =K41 -> Input from Proforma Revenue Study
A5: 984 | B5: Sales - Excludes 146 | C5: E04 | D5: =SUM(E5:J5) -> 172844167 | E5: =E$41 -> 119361176 | F5: =F$41 -> 47375864 | G5: =G$41 -> 5175510 | H5: =H$41 -> 931617 | I5: 0 | J5: =J$41 -> 0 | K5: same as Throughput, less Transport
A6: 985 | B6: Throughput - Excludes 132 & 146 | C6: E06 | D6: 171912550 | E6: =E$41 -> 119361176 | F6: =F$41 -> 47375864 | G6: =G$41 -> 5175510 | H6: 0 | I6: 0 | J6: =J$41 -> 0 | K6: same as Throughput, less Transport & Interruptible
A7: 986 | B7: Purchased Gas - Commodity | C7: E07 | D7: =SUM(E7:J7) -> 0.04 | E7: 0.04 | F7: 0 | G7: 0 | H7: 0 | I7: 0 | J7: 0 | K7: - not used -
A8: 987 | B8: GTI Expense | C8: E08 | D8: =SUM(E8:J8) -> 75967.8419 | E8: =GTI!E9 -> 56099.75272 | F8: =GTI!E10 -> 18002.82832 | G8: =GTI!E11 -> 1604.4081 | H8: =GTI!E12 -> 260.85276 | I8: 0 | J8: 0 | K8: Input GTI Contributions
A9: 988 | B9: Coincident Peak - All | C9: D01 | D9: 1395521.867 | E9: =E$42 -> 913162.9205 | F9: 311678.1311 | G9: 30183.90939 | H9: 5917.258151 | I9: 134579.6476 | J9: 0 | K9: Input from Peak Study
A10: 989 | B10: Coincident Peak - Small Mains | C10: D02 | D10: 1255024.961 | E10: =E$9 -> 913162.9205 | F10: =F$9 -> 311678.1311 | G10: =G$9 -> 30183.90939 | H10: 0 | I10: 0 | J10: =J$9 -> 0 | K10: - not used -
A11: 990 | B11: Purchased Gas - Demand | C11: D05 | D11: =SUM(E11:J11) -> 0.04 | E11: 0.04 | F11: 0 | G11: 0 | H11: 0 | I11: 0 | J11: 0 | K11: - not used -
A12: 991 | B12: DA 131/132 | C12: D06 | D12: 100 | E12: 0 | F12: 0 | G12: 0 | H12: 100 | I12: 0 | J12: 0 | K12: Direct Assignment Schedule 131/132
A13: 992 | B13: DA 146 | C13: D07 | D13: 100 | E13: 0 | F13: 0 | G13: 0 | H13: 0 | I13: 100 | J13: 0 | K13: Direct Assignment Schedule 146
A14: 993 | B14: All Customers | C14: C01 | D14: 1839887 | E14: =E$43*E46 -> 1807677 | F14: 31406 | G14: 324 | H14: 24 | I14: 456 | J14: 0 | K14: Unweighted Customers | R14: Corporate Cost Allocator (4-Factor)
A15: 994 | B15: Service Cost | C15: C02 | D15: 1845720.053 | E15: =E$43*E47 -> 1807677 | F15: =F$43*F47 -> 31406 | G15: 877.1450495 | H15: 64.97370737 | I15: =I$43*I47 -> 5694.9338 | J15: 0 | K15: Wtd Avg Service Cost
A16: 995 | B16: Meter Cost | C16: C03 | D16: 2108391.742 | E16: 1807677 | F16: 259365.8342 | G16: 6553.051502 | H16: 3335.470417 | I16: 31460.38596 | J16: 0 | K16: Weighted Average Meter Cost
A17: 996 | B17: Regulator Cost | C17: C04 | D17: 1839887 | E17: =E43*E49 -> 1807677 | F17: =F43*F49 -> 31406 | G17: 324 | H17: 24 | I17: 456 | J17: 0 | K17: - not used - | S17: Total | T17: Sch 101 | U17: Sch 111 | V17: Sch 121 | W17: Sch 131 | X17: Sch 146
A18: 997 | B18: Ind Meas & Reg Cost | C18: C06 | D18: 38841.257 | E18: =E$43*E51 -> 0 | F18: =F$43*F51 -> 31406 | G18: 1172.249857 | H18: 601.2175632 | I18: 5661.789579 | J18: 0 | K18: Direct Assigned to Handbilled Customers | R18: Net UG/Dist Plant | S18: =Detail!H42+Detail!H88 -> 290385000 | T18: =Detail!I42+Detail!I88 -> 244954807.6 | U18: =Detail!J42+Detail!J88 -> 32787870.46 | V18: =Detail!K42+Detail!K88 -> 2532084.685 | W18: =Detail!L42+Detail!L88 -> 547211.6923 | X18: =Detail!M42+Detail!M88 -> 9563025.547
A19: 998 | B19: DA 101 | C19: C10 | D19: =SUM(E19:J19) -> 100 | E19: 100 | F19: 0 | G19: 0 | H19: 0 | I19: 0 | J19: 0 | K19: Direct Assigned to Residential | R19: O&M (less PG/Uncoll/Labor) | S19: =Detail!H250-Detail!CL250 -> 11054562.2 | T19: =Detail!I250-Detail!CM250 -> 9673029.039 | U19: =Detail!J250-Detail!CN250 -> 1061155.25 | V19: =Detail!K250-Detail!CO250 -> 78146.58129 | W19: =Detail!L250-Detail!CP250 -> 17085.19433 | X19: =Detail!M250-Detail!CQ250 -> 225146.1354
A20: 999 | B20: Revenues From Retail Rates | C20: R01 | D20: 86885952 | E20: 67353614 | F20: 15223630 | G20: 1284359 | H20: 195654 | I20: 2828695 | J20: 0 | K20: Input Revenue From Rates | R20: O&M Labor | S20: =Detail!CL250 -> 9083438 | T20: =Detail!CM250 -> 8208672.53 | U20: =Detail!CN250 -> 657101.0318 | V20: =Detail!CO250 -> 45779.49432 | W20: =Detail!CP250 -> 9829.900412 | X20: =Detail!CQ250 -> 162055.0437
A21: 1000 | R21: Customers | S21: =D14 -> 1839887 | T21: =E14 -> 1807677 | U21: 31406 | V21: 324 | W21: 24 | X21: 456
A22: 1001 | B22: Throughput | C22: E01 | D22: =SUM(E22:J22) -> 1 | E22: =E4/$D4 -> 0.589126571 | F22: =F4/$D4 -> 0.2338313113 | G22: 0.02554457455 | H22: 0.004598147799 | I22: 0.1468993954 | J22: 0
A23: 1002 | B23: Sales | C23: E04 | D23: =SUM(E23:J23) -> 1 | E23: 0.6905710391 | F23: 0.2740958218 | G23: 0.02994321469 | H23: 0.00538992444 | I23: 0 | J23: 0
A24: 1003 | B24: Therms - Small Mains | C24: E06 | D24: 1 | E24: 0.6943133355 | F24: 0.2755811836 | G24: 0.03010548096 | H24: 0 | I24: 0 | J24: 0 | R24: Net UG/Dist Plant | S24: =SUM(T24:X24) -> 1 | T24: =T18/$S$18 -> 0.8435518626 | U24: =U18/$S$18 -> 0.1129117222 | V24: 0.00871975028 | W24: 0.00188443512 | X24: 0.03293222979
A25: 1004 | B25: Purchased Gas - Commodity | C25: E07 | D25: 1 | E25: 1 | F25: 0 | G25: 0 | H25: 0 | I25: 0 | J25: 0 | R25: O&M (less PG/Uncoll/Labor) | S25: =SUM(T25:X25) -> 1 | T25: =T19/$S$19 -> 0.8750259724 | U25: =U19/$S$19 -> 0.09599251705 | V25: 0.007069170165 | W25: 0.00154553333 | X25: 0.02036680705
A26: 1005 | B26: GTI Expense | C26: E08 | D26: 1 | E26: 0.7384671108 | F26: 0.2369795939 | G26: 0.02111956928 | H26: 0.00343372608 | I26: 0 | J26: 0 | R26: O&M Labor | S26: 1 | T26: =T20/$S$20 -> 0.9036966543 | U26: =U20/$S$20 -> 0.07234056442 | V26: 0.005039886254 | W26: 0.001082178401 | X26: 0.01784071666
A27: 1006 | B27: Coincident Peak - All | C27: D01 | D27: 1 | E27: 0.6543522837 | F27: 0.2233416319 | G27: 0.02162911963 | H27: 0.004240175874 | I27: 0.09643678885 | J27: 0 | R27: Customers | S27: 1 | T27: =T21/$S$21 -> 0.9824934901 | U27: =U21/$S$21 -> 0.01706952655 | V27: 0.0001760977712 | W27: 1.304427935e-05 | X27: 0.0002478413076
A28: 1007 | B28: Coincident Peak - Small Mains | C28: D02 | D28: 1 | E28: 0.7276053855 | F28: 0.2483441691 | G28: 0.02405044548 | H28: 0 | I28: 0 | J28: 0
A29: 1008 | B29: Purchased Gas - Demand | C29: D05 | D29: 1 | E29: 1 | F29: 0 | G29: 0 | H29: 0 | I29: 0 | J29: 0 | R29: Average | S29: =SUM(T29:X29) -> 1 | T29: =AVERAGE(T24:T27) -> 0.9011919948 | U29: =AVERAGE(U24:U27) -> 0.07457858256 | V29: 0.005251226117 | W29: 0.001131297783 | X29: 0.0178468987
A30: 1009 | B30: DA 131/132 | C30: D06 | D30: 1 | E30: 0 | F30: 0 | G30: 0 | H30: 1 | I30: 0 | J30: 0
A31: 1010 | B31: DA 146 | C31: D07 | D31: 1 | E31: 0 | F31: 0 | G31: 0 | H31: 0 | I31: 1 | J31: 0 | R31: Corporate Cost Allocator | S31: =SUM(T31:X31) -> 1000 | T31: =T29*1000 -> 901.1919948 | U31: =U29*1000 -> 74.57858256 | V31: 5.251226117 | W31: 1.131297783 | X31: 17.8468987
A32: 1011 | B32: All Customers | C32: C01 | D32: 1 | E32: =E14/$D14 -> 0.9824934901 | F32: 0.01706952655 | G32: 0.0001760977712 | H32: 1.304427935e-05 | I32: 0.0002478413076 | J32: 0
A33: 1012 | B33: Service Cost | C33: C02 | D33: 1 | E33: =E15/$D15 -> 0.9793885034 | F33: 0.01701558151 | G33: 0.0004752319011 | H33: 3.520236305e-05 | I33: 0.003085480808 | J33: 0
A34: 1013 | B34: Meter Cost | C34: C03 | D34: 1 | E34: 0.8573724531 | F34: 0.12301596 | G34: 0.003108080615 | H34: 0.001581997477 | I34: 0.01492150881 | J34: 0 | R34: ** 4-Factor consists of multiple functions so is calculated in the detail tab
A35: 1014 | B35: Regulator Cost | C35: C04 | D35: 1 | E35: 0.9824934901 | F35: 0.01706952655 | G35: 0.0001760977712 | H35: 1.304427935e-05 | I35: 0.0002478413076 | J35: 0
A36: 1015 | B36: Ind Meas & Reg Cost | C36: C06 | D36: 1 | E36: =E18/$D18 -> 0 | F36: 0.8085732138 | G36: 0.03018053348 | H36: 0.01547883899 | I36: 0.1457674137 | J36: 0
A37: 1016 | B37: DA 101 | C37: C10 | D37: 1 | E37: =E19/$D19 -> 1 | F37: 0 | G37: 0 | H37: 0 | I37: 0 | J37: 0
A38: 1017 | B38: Revenues From Retail Rates | C38: R01 | D38: 1 | E38: =E20/$D20 -> 0.7751956726 | F38: 0.1752139402 | G38: 0.01478212496 | H38: 0.002251848492 | I38: 0.03255641372 | J38: 0
A39: 1018
A40: 1019
A41: 1020 | C41: Throughput Therms | E41: 119361176 | F41: 47375864 | G41: 5175510 | H41: 931617 | I41: 29762848 | J41: 0 | K41: Input from Proforma Revenue Study
A42: 1021 | C42: Peak Therms | E42: ='Demand - Pk-Avg'!Q8 -> 913162.9205 | F42: ='Demand - Pk-Avg'!Q9 -> 311678.1311 | G42: ='Demand - Pk-Avg'!Q10 -> 30183.90939 | H42: ='Demand - Pk-Avg'!Q13 -> 5917.258151 | I42: ='Demand - Pk-Avg'!Q16 -> 134579.6476 | J42: 0 | K42: Input from Peak Study
A43: 1022 | C43: No. of Cust. Bills--Annual | E43: 1807677 | F43: 31406 | G43: 324 | H43: 24 | I43: 456 | K43: Input from Proforma Revenue Study
A44: 1023
A45: 1024 | C45: Customer Weightings
A46: 1025 | C46: All Customers | E46: 1 | F46: 1 | G46: 1 | H46: 1 | I46: 1
A47: 1026 | C47: Service Cost | E47: ='Typical Service Cost'!D20 -> 1 | F47: ='Typical Service Cost'!F20 -> 1 | G47: ='Typical Service Cost'!H20 -> 2.707237807 | H47: ='Typical Service Cost'!J20 -> 2.707237807 | I47: ='Typical Service Cost'!L20 -> 12.48888991 | K47: Input from Typical Service Cost Study
A48: 1027 | C48: Meter Cost | E48: ='Average Meter Type'!G15 -> 1 | F48: ='Average Meter Type'!G23 -> 8.258480362 | G48: ='Average Meter Type'!G31 -> 20.2254676 | H48: ='Average Meter Type'!G39 -> 138.9779341 | I48: ='Average Meter Type'!G47 -> 68.99207447 | K48: Input from Meter Cost Study
A49: 1028 | C49: Regulator Cost | E49: 1 | F49: 1 | G49: 1 | H49: 1 | I49: 1
A50: 1029 | C50: Installations Cost | E50: 1 | F50: 1 | G50: 1 | H50: 1 | I50: 1
A51: 1030 | C51: Ind Meas & Reg Cost | E51: ='Industrial Meter Installations'!G15 -> 0 | F51: ='Industrial Meter Installations'!G23 -> 1 | G51: ='Industrial Meter Installations'!G31 -> 3.618055115 | H51: ='Industrial Meter Installations'!G39 -> 25.0507318 | I51: ='Industrial Meter Installations'!G47 -> 12.41620522 | K51: Input from Meter Cost Study
A52: 1031
A53: 1032
A54: 1033
A55: 1034
A56: 1035
A57: 1036 | D57: E01 | E57: E04 | F57: E06 | G57: E07 | H57: E08 | I57: D01 | J57: D02 | K57: D05 | L57: D06 | M57: D07 | N57: C01 | O57: C02 | P57: C03 | Q57: C04 | R57: C06 | S57: C10 | T57: R01
A58: 1037 | C58: Sch 101 | D58: =INDEX($E$22:$J$38,COLUMN(D57)-COLUMN($C57),ROW(C58)-ROW(C$57)) -> 0.589126571 | E58: =INDEX($E$22:$J$38,COLUMN(E57)-COLUMN($C57),ROW(D58)-ROW(D$57)) -> 0.6905710391 | F58: =INDEX($E$22:$J$38,COLUMN(F57)-COLUMN($C57),ROW(E58)-ROW(E$57)) -> 0.6943133355 | G58: 1 | H58: 0.7384671108 | I58: 0.6543522837 | J58: 0.7276053855 | K58: 1 | L58: 0 | M58: 0 | N58: =INDEX($E$22:$J$38,COLUMN(N57)-COLUMN($C57),ROW(M58)-ROW(M$57)) -> 0.9824934901 | O58: =INDEX($E$22:$J$38,COLUMN(O57)-COLUMN($C57),ROW(N58)-ROW(N$57)) -> 0.9793885034 | P58: 0.8573724531 | Q58: 0.9824934901 | R58: 0 | S58: 1 | T58: 0.7751956726
A59: 1038 | C59: Sch 111 | D59: 0.2338313113 | E59: 0.2740958218 | F59: 0.2755811836 | G59: 0 | H59: 0.2369795939 | I59: 0.2233416319 | J59: 0.2483441691 | K59: 0 | L59: 0 | M59: 0 | N59: 0.01706952655 | O59: 0.01701558151 | P59: 0.12301596 | Q59: 0.01706952655 | R59: 0.8085732138 | S59: 0 | T59: 0.1752139402
A60: 1039 | C60: Sch 121 | D60: 0.02554457455 | E60: 0.02994321469 | F60: 0.03010548096 | G60: 0 | H60: 0.02111956928 | I60: 0.02162911963 | J60: 0.02405044548 | K60: 0 | L60: 0 | M60: 0 | N60: 0.0001760977712 | O60: 0.0004752319011 | P60: 0.003108080615 | Q60: 0.0001760977712 | R60: 0.03018053348 | S60: 0 | T60: 0.01478212496
A61: 1040 | C61: Sch 131 | D61: 0.004598147799 | E61: 0.00538992444 | F61: 0 | G61: 0 | H61: 0.00343372608 | I61: 0.004240175874 | J61: 0 | K61: 0 | L61: 1 | M61: 0 | N61: 1.304427935e-05 | O61: 3.520236305e-05 | P61: 0.001581997477 | Q61: 1.304427935e-05 | R61: 0.01547883899 | S61: 0 | T61: 0.002251848492
A62: 1041 | C62: Sch 146 | D62: 0.1468993954 | E62: 0 | F62: 0 | G62: 0 | H62: 0 | I62: 0.09643678885 | J62: 0 | K62: 0 | L62: 0 | M62: 1 | N62: 0.0002478413076 | O62: 0.003085480808 | P62: 0.01492150881 | Q62: 0.0002478413076 | R62: 0.1457674137 | S62: 0 | T62: 0.03255641372
A63: 1042 | C63: Open | D63: 0 | E63: 0 | F63: 0 | G63: 0 | H63: 0 | I63: 0 | J63: 0 | K63: 0 | L63: 0 | M63: 0 | N63: 0 | O63: 0 | P63: 0 | Q63: 0 | R63: 0 | S63: 0 | T63: 0
A64: 1043
A65: 1044 | D65: range name: AllocFactors_E | I65: range name: AllocFactors_D | N65: range name: AllocFactors_C
A66: 1045 | D66: all 3 ranges + R01, range name: AllocFactors
A67: 1046 | B67: Allocated Dollars - Rate Base
A68: =Pg2Row+ROW(A68) -> 1047 | B68: Throughput | C68: E01 | D68: =Detail!$E$128*INDEX(Detail!$R$128:$AH$128,$A68-$A$67) -> 4049444.813 | E68: =$D68*INDEX(AllocFactors,E$2,$A68-$A$67) -> 2385635.537 | F68: =$D68*INDEX(AllocFactors,F$2,$A68-$A$67) -> 946886.9907 | G68: 103441.3449 | H68: 18619.94575 | I68: 594860.9946 | J68: 0
A69: 1048 | B69: Sales | C69: E04 | D69: =Detail!$E$128*INDEX(Detail!$R$128:$AH$128,$A69-$A$67) -> 26572989.31 | E69: =$D69*INDEX(AllocFactors,E$2,$A69-$A$67) -> 18350536.84 | F69: 7283545.343 | G69: 795680.7239 | H69: 143226.4045 | I69: 0 | J69: 0
A70: 1049 | B70: Therms - Small Mains | C70: E06 | D70: =Detail!$E$128*INDEX(Detail!$R$128:$AH$128,$A70-$A$67) -> 0 | E70: 0 | F70: 0 | G70: 0 | H70: 0 | I70: 0 | J70: 0
A71: 1050 | B71: Purchased Gas - Commodity | C71: E07 | D71: =Detail!$E$128*INDEX(Detail!$R$128:$AH$128,$A71-$A$67) -> 0 | E71: 0 | F71: 0 | G71: 0 | H71: 0 | I71: 0 | J71: 0
A72: 1051 | B72: GTI Expense | C72: E08 | D72: =Detail!$E$128*INDEX(Detail!$R$128:$AH$128,$A72-$A$67) -> 0 | E72: 0 | F72: 0 | G72: 0 | H72: 0 | I72: 0 | J72: 0
A73: 1052 | B73: Coincident Peak - All | C73: D01 | D73: =Detail!$E$128*INDEX(Detail!$R$128:$AH$128,$A73-$A$67) -> 73721495.71 | E73: 48239829.08 | F73: 16465079.16 | G73: 1594531.05 | H73: 312592.1075 | I73: 7109464.315 | J73: 0
A74: 1053 | B74: Coincident Peak - Small Mains | C74: D02 | D74: =Detail!$E$128*INDEX(Detail!$R$128:$AH$128,$A74-$A$67) -> 0 | E74: 0 | F74: 0 | G74: 0 | H74: 0 | I74: 0 | J74: 0
A75: 1054 | B75: Purchased Gas - Demand | C75: D05 | D75: =Detail!$E$128*INDEX(Detail!$R$128:$AH$128,$A75-$A$67) -> 0 | E75: 0 | F75: 0 | G75: 0 | H75: 0 | I75: 0 | J75: 0
A76: 1055 | B76: DA 131 | C76: D06 | D76: =Detail!$E$128*INDEX(Detail!$R$128:$AH$128,$A76-$A$67) -> 0 | E76: 0 | F76: 0 | G76: 0 | H76: 0 | I76: 0 | J76: 0
A77: 1056 | B77: DA 146 | C77: D07 | D77: =Detail!$E$128*INDEX(Detail!$R$128:$AH$128,$A77-$A$67) -> 0 | E77: 0 | F77: 0 | G77: 0 | H77: 0 | I77: 0 | J77: 0
A78: 1057 | B78: All Customers | C78: C01 | D78: =Detail!$E$128*INDEX(Detail!$R$128:$AH$128,$A78-$A$67) -> 71806914.27 | E78: =$D78*INDEX(AllocFactors,E$2,$A78-$A$67) -> 70549825.82 | F78: 1225710.03 | G78: 12645.03756 | H78: 936.669449 | I78: 17796.71953 | J78: 0
A79: 1058 | B79: Service Cost | C79: C02 | D79: =Detail!$E$128*INDEX(Detail!$R$128:$AH$128,$A79-$A$67) -> 74574744.42 | E79: 73037647.33 | F79: 1268932.642 | G79: 35440.29757 | H79: 2625.207227 | I79: 230098.9427 | J79: 0
A80: 1059 | B80: Meter Cost | C80: C03 | D80: =Detail!$E$128*INDEX(Detail!$R$128:$AH$128,$A80-$A$67) -> 46477519.61 | E80: 39848545 | F80: 5717476.694 | G80: 144455.8777 | H80: 73527.31878 | I80: 693514.7184 | J80: 0
A81: 1060 | B81: Regulator Cost | C81: C04 | D81: =Detail!$E$128*INDEX(Detail!$R$128:$AH$128,$A81-$A$67) -> 0 | E81: 0 | F81: 0 | G81: 0 | H81: 0 | I81: 0 | J81: 0
A82: 1061 | B82: Ind Meas & Reg Cost | C82: C06 | D82: =Detail!$E$128*INDEX(Detail!$R$128:$AH$128,$A82-$A$67) -> 1620891.861 | E82: 0 | F82: 1310609.741 | G82: 48919.38108 | H82: 25089.52414 | I82: 236273.2146 | J82: 0
A83: 1062 | B83: DA 101 | C83: C10 | D83: =Detail!$E$128*INDEX(Detail!$R$128:$AH$128,$A83-$A$67) -> -509000 | E83: -509000 | F83: 0 | G83: 0 | H83: 0 | I83: 0 | J83: 0
A84: 1063 | B84: Revenues From Retail Rates | C84: R01 | D84: =Detail!$E$128*INDEX(Detail!$R$128:$AH$128,$A84-$A$67) -> 0 | E84: 0 | F84: 0 | G84: 0 | H84: 0 | I84: 0 | J84: 0
A85: 1064
A86: 1065 | B86: Total | D86: =IF(ROUND(SUM(D68:D85),3)<>ROUND(SUM(E86:J86),3),#VALUE!,SUM(E86:J86)) -> 298315000 | E86: =SUM(E68:E85) -> 251903019.6 | F86: 34218240.6 | G86: 2735113.712 | H86: 576617.1774 | I86: 8882008.905 | J86: 0
A87: 1066
A88: 1067 | B88: Allocated Dollars - Pre-tax Operating Expenses
A89: 1068 | B89: Throughput | C89: E01 | D89: =Detail!$E$403*INDEX(Detail!$R$403:$AH$403,$A89-$A$88) -> 537257.4241 | E89: =$D89*INDEX(AllocFactors,E$2,$A89-$A$88) -> 316512.624 | F89: 125627.608 | G89: 13724.01232 | H89: 2470.389042 | I89: 78922.79075 | J89: 0
A90: 1069 | B90: Sales | C90: E04 | D90: =Detail!$E$403*INDEX(Detail!$R$403:$AH$403,$A90-$A$88) -> 2964838.113 | E90: 2047431.336 | F90: 812649.7391 | G90: 88776.78413 | H90: 15980.2534 | I90: 0 | J90: 0
A91: 1070 | B91: Therms - Small Mains | C91: E06 | D91: =Detail!$E$403*INDEX(Detail!$R$403:$AH$403,$A91-$A$88) -> 0 | E91: 0 | F91: 0 | G91: 0 | H91: 0 | I91: 0 | J91: 0
A92: 1071 | B92: Purchased Gas - Commodity | C92: E07 | D92: =Detail!$E$403*INDEX(Detail!$R$403:$AH$403,$A92-$A$88) -> 0 | E92: 0 | F92: 0 | G92: 0 | H92: 0 | I92: 0 | J92: 0
A93: 1072 | B93: GTI Expense | C93: E08 | D93: =Detail!$E$403*INDEX(Detail!$R$403:$AH$403,$A93-$A$88) -> 76000 | E93: 56123.50042 | F93: 18010.44913 | G93: 1605.087265 | H93: 260.9631821 | I93: 0 | J93: 0
A94: 1073 | B94: Coincident Peak - All | C94: D01 | D94: =Detail!$E$403*INDEX(Detail!$R$403:$AH$403,$A94-$A$88) -> 9992771.669 | E94: 6538792.962 | F94: 2231801.932 | G94: 216134.8538 | H94: 42371.10934 | I94: 963670.8115 | J94: 0
A95: 1074 | B95: Coincident Peak - Small Mains | C95: D02 | D95: =Detail!$E$403*INDEX(Detail!$R$403:$AH$403,$A95-$A$88) -> 0 | E95: 0 | F95: 0 | G95: 0 | H95: 0 | I95: 0 | J95: 0
A96: 1075 | B96: Purchased Gas - Demand | C96: D05 | D96: =Detail!$E$403*INDEX(Detail!$R$403:$AH$403,$A96-$A$88) -> 0 | E96: 0 | F96: 0 | G96: 0 | H96: 0 | I96: 0 | J96: 0
A97: 1076 | B97: DA 131 | C97: D06 | D97: =Detail!$E$403*INDEX(Detail!$R$403:$AH$403,$A97-$A$88) -> 0 | E97: 0 | F97: 0 | G97: 0 | H97: 0 | I97: 0 | J97: 0
A98: 1077 | B98: DA 146 | C98: D07 | D98: =Detail!$E$403*INDEX(Detail!$R$403:$AH$403,$A98-$A$88) -> 0 | E98: 0 | F98: 0 | G98: 0 | H98: 0 | I98: 0 | J98: 0
A99: 1078 | B99: All Customers | C99: C01 | D99: =Detail!$E$403*INDEX(Detail!$R$403:$AH$403,$A99-$A$88) -> 24132704.3 | E99: =$D99*INDEX(AllocFactors,E$2,$A99-$A$88) -> 23710224.87 | F99: =$D99*INDEX(AllocFactors,F$2,$A99-$A$88) -> 411933.8368 | G99: 4249.71544 | H99: 314.7937363 | I99: 5981.08099 | J99: 0
A100: 1079 | B100: Service Cost | C100: C02 | D100: =Detail!$E$403*INDEX(Detail!$R$403:$AH$403,$A100-$A$88) -> 10991991.39 | E100: 10765430 | F100: 187035.1255 | G100: 5223.744966 | H100: 386.9440716 | I100: 33915.57849 | J100: 0
A101: 1080 | B101: Meter Cost | C101: C03 | D101: =Detail!$E$403*INDEX(Detail!$R$403:$AH$403,$A101-$A$88) -> 7983507.579 | E101: 6844839.477 | F101: 982098.849 | G101: 24813.38514 | H101: 12629.88885 | I101: 119125.9787 | J101: 0
A102: 1081 | B102: Regulator Cost | C102: C04 | D102: =Detail!$E$403*INDEX(Detail!$R$403:$AH$403,$A102-$A$88) -> 0 | E102: 0 | F102: 0 | G102: 0 | H102: 0 | I102: 0 | J102: 0
A103: 1082 | B103: Ind Meas & Reg Cost | C103: C06 | D103: =Detail!$E$403*INDEX(Detail!$R$403:$AH$403,$A103-$A$88) -> 272929.7254 | E103: 0 | F103: 220683.6652 | G103: 8237.164715 | H103: 4224.635275 | I103: 39784.26021 | J103: 0
A104: 1083 | B104: DA 101 | C104: C10 | D104: =Detail!$E$403*INDEX(Detail!$R$403:$AH$403,$A104-$A$88) -> 0 | E104: 0 | F104: 0 | G104: 0 | H104: 0 | I104: 0 | J104: 0
A105: 1084 | B105: Revenues From Retail Rates | C105: R01 | D105: =Detail!$E$403*INDEX(Detail!$R$403:$AH$403,$A105-$A$88) -> 4122000 | E105: 3195356.562 | F105: 722231.8616 | G105: 60931.9191 | H105: 9282.119485 | I105: 134197.5374 | J105: 0
A106: 1085
A107: 1086 | B107: Total | D107: =IF(ROUND(SUM(D89:D106),3)<>ROUND(SUM(E107:J107),3),#VALUE!,SUM(E107:J107)) -> 61074000.2 | E107: =SUM(E89:E106) -> 53474711.33 | F107: 5712073.066 | G107: 423696.6669 | H107: 87921.09639 | I107: 1375598.038 | J107: 0
A108: 1087
A109: 1088
A110: 1089
A111: 1090
A112: 1091
A113: 1092
A114: 1093

Sheet Avg Cust Unit Costs
B1: WASHINGTON GAS
B2: Meter, Services, Meter Reading & Billing Costs by Schedule at Proposed Rate of Return
C4: Total | D4: Sch 101 | E4: Sch 111 | F4: Sch 121 | G4: Sch 131 | H4: Sch 146
A5: 380 | B5: Services | C5: =SUM(D5:H5) -> 140884000 | D5: =SUMIF(Detail!$B$26:$B$39,'Avg Cust Unit Costs'!$A$5,Detail!BJ26:BJ39) -> 137980169.9 | E5: =SUMIF(Detail!$B$26:$B$39,'Avg Cust Unit Costs'!$A$5,Detail!BK26:BK39) -> 2397223.186 | F5: =SUMIF(Detail!$B$26:$B$39,'Avg Cust Unit Costs'!$A$5,Detail!BL26:BL39) -> 66952.57116 | G5: =SUMIF(Detail!$B$26:$B$39,'Avg Cust Unit Costs'!$A$5,Detail!BM26:BM39) -> 4959.449715 | H5: =SUMIF(Detail!$B$26:$B$39,'Avg Cust Unit Costs'!$A$5,Detail!BN26:BN39) -> 434694.8782 | J5: =C5-Detail!E33 -> 0
A6: 380 | B6: Services Accum. Depr. | C6: =SUM(D6:H6) -> -55525000 | D6: =SUMIF(Detail!$B$73:$B$85,'Avg Cust Unit Costs'!$A$6,Detail!BJ73:BJ85) -> -54380546.65 | E6: =SUMIF(Detail!$B$73:$B$85,'Avg Cust Unit Costs'!$A$6,Detail!BK73:BK85) -> -944790.1634 | F6: =SUMIF(Detail!$B$73:$B$85,'Avg Cust Unit Costs'!$A$6,Detail!BL73:BL85) -> -26387.25131 | G6: =SUMIF(Detail!$B$73:$B$85,'Avg Cust Unit Costs'!$A$6,Detail!BM73:BM85) -> -1954.611208 | H6: =SUMIF(Detail!$B$73:$B$85,'Avg Cust Unit Costs'!$A$6,Detail!BN73:BN85) -> -171321.3219 | J6: =C6-Detail!E79 -> 0
B7: Total Services | C7: =SUM(C5:C6) -> 85359000 | D7: 83599623.26 | E7: 1452433.022 | F7: 40565.31985 | G7: 3004.838507 | H7: 263373.5563
A9: 381 | B9: Meters | C9: =SUM(D9:H9) -> 60879000 | D9: =SUMIF(Detail!$B$26:$B$39,'Avg Cust Unit Costs'!$A$9,Detail!BJ26:BJ39) -> 52195977.57 | E9: =SUMIF(Detail!$B$26:$B$39,'Avg Cust Unit Costs'!$A$9,Detail!BK26:BK39) -> 7489088.629 | F9: =SUMIF(Detail!$B$26:$B$39,'Avg Cust Unit Costs'!$A$9,Detail!BL26:BL39) -> 189216.8398 | G9: =SUMIF(Detail!$B$26:$B$39,'Avg Cust Unit Costs'!$A$9,Detail!BM26:BM39) -> 96310.42442 | H9: =SUMIF(Detail!$B$26:$B$39,'Avg Cust Unit Costs'!$A$9,Detail!BN26:BN39) -> 908406.535 | J9: =C9-Detail!E34 -> 0
A10: 381 | B10: Meters Accum. Depr. | C10: =SUM(D10:H10) -> -12085000 | D10: =SUMIF(Detail!$B$73:$B$85,'Avg Cust Unit Costs'!$A$10,Detail!BJ73:BJ85) -> -10361346.1 | E10: =SUMIF(Detail!$B$73:$B$85,'Avg Cust Unit Costs'!$A$10,Detail!BK73:BK85) -> -1486647.877 | F10: =SUMIF(Detail!$B$73:$B$85,'Avg Cust Unit Costs'!$A$10,Detail!BL73:BL85) -> -37561.15423 | G10: =SUMIF(Detail!$B$73:$B$85,'Avg Cust Unit Costs'!$A$10,Detail!BM73:BM85) -> -19118.43951 | H10: =SUMIF(Detail!$B$73:$B$85,'Avg Cust Unit Costs'!$A$10,Detail!BN73:BN85) -> -180326.434 | J10: =C10-Detail!E80 -> 0
B11: Total Meters | C11: =SUM(C9:C10) -> 48794000 | D11: 41834631.48 | E11: 6002440.753 | F11: 151655.6855 | G11: 77191.98491 | H11: 728080.101
B13: Total Rate Base | C13: =C7+C11 -> 134153000 | D13: =D7+D11 -> 125434254.7 | E13: =E7+E11 -> 7454873.775 | F13: 192221.0054 | G13: 80196.82342 | H13: 991453.6573
B15: Return on Rate Base @ 7.64% | C15: =C13*$M$15 -> 10249289.2 | D15: =D13*$I$15 -> 9583177.062 | E15: =E13*$I$15 -> 569552.3564 | F15: 14685.68481 | G15: 6127.037309 | H15: 75747.05942 | I15: 0.0764 | M15: ='[6]RR SUMMARY'!$N$17 -> 0.0764
B16: Tax Benefit of Interest Expense | C16: =SUM(D16:H16) -> -1333480.82 | D16: =(D13*$I$16)*-0.35 -> -1246816.492 | E16: =(E13*$I$16)*-0.35 -> -74101.44532 | F16: -1910.676793 | G16: -797.1564248 | H16: -9855.049354 | I16: 0.0284 | M16: ='[6]RR SUMMARY'!$P$14 -> 0.0284
B17: Revenue Conversion Factor | C17: =1-SUM(Summary!L73:L77) -> 0.620003 | D17: =$C$17 -> 0.620003 | E17: =$C$17 -> 0.620003 | F17: 0.620003 | G17: 0.620003 | H17: 0.620003
B18: Rate Base Revenue Requirement | C18: =(C15+C16)/C17 -> 14380266.51 | D18: =(D15+D16)/D17 -> 13445677.8 | E18: =(E15+E16)/E17 -> 799110.506 | F18: 20604.75194 | G18: 8596.540475 | H18: 106276.9213
A21: 380 | B21: Services Depr Exp | C21: =SUM(D21:H21) -> 3407000 | D21: =SUMIF(Detail!$B$170:$B$404,'Avg Cust Unit Costs'!$A$21,Detail!BJ170:BJ404) -> 3336776.631 | E21: =SUMIF(Detail!$B$170:$B$404,'Avg Cust Unit Costs'!$A$21,Detail!BK170:BK404) -> 57972.08621 | F21: =SUMIF(Detail!$B$170:$B$404,'Avg Cust Unit Costs'!$A$21,Detail!BL170:BL404) -> 1619.115087 | G21: =SUMIF(Detail!$B$170:$B$404,'Avg Cust Unit Costs'!$A$21,Detail!BM170:BM404) -> 119.9344509 | H21: =SUMIF(Detail!$B$170:$B$404,'Avg Cust Unit Costs'!$A$21,Detail!BN170:BN404) -> 10512.23311 | J21: =C21-Detail!E369 -> 0
A22: 381 | B22: Meters Depr Exp | C22: 2256000 | D22: =SUMIF(Detail!$B$170:$B$404,'Avg Cust Unit Costs'!$A$22,Detail!BJ170:BJ404) -> 1934232.254 | E22: =SUMIF(Detail!$B$170:$B$404,'Avg Cust Unit Costs'!$A$22,Detail!BK170:BK404) -> 277524.0058 | F22: =SUMIF(Detail!$B$170:$B$404,'Avg Cust Unit Costs'!$A$22,Detail!BL170:BL404) -> 7011.829867 | G22: =SUMIF(Detail!$B$170:$B$404,'Avg Cust Unit Costs'!$A$22,Detail!BM170:BM404) -> 3568.986309 | H22: =SUMIF(Detail!$B$170:$B$404,'Avg Cust Unit Costs'!$A$22,Detail!BN170:BN404) -> 33662.92388 | J22: =C22-Detail!E370 -> 0
A23: 892-MT | B23: Services Exp | C23: 1006000 | D23: =SUMIF(Detail!$B$170:$B$404,'Avg Cust Unit Costs'!$A$23,Detail!BJ170:BJ404) -> 985264.8344 | E23: =SUMIF(Detail!$B$170:$B$404,'Avg Cust Unit Costs'!$A$23,Detail!BK170:BK404) -> 17117.675 | F23: =SUMIF(Detail!$B$170:$B$404,'Avg Cust Unit Costs'!$A$23,Detail!BL170:BL404) -> 478.0832925 | G23: =SUMIF(Detail!$B$170:$B$404,'Avg Cust Unit Costs'!$A$23,Detail!BM170:BM404) -> 35.41357722 | H23: =SUMIF(Detail!$B$170:$B$404,'Avg Cust Unit Costs'!$A$23,Detail!BN170:BN404) -> 3103.993693 | J23: =C23-Detail!E220 -> 0
A24: 893-MT | B24: Meters Exp | C24: 1394000 | D24: =SUMIF(Detail!$B$170:$B$404,'Avg Cust Unit Costs'!$A$24,Detail!BJ170:BJ404) -> 1195177.2 | E24: =SUMIF(Detail!$B$170:$B$404,'Avg Cust Unit Costs'!$A$24,Detail!BK170:BK404) -> 171484.2483 | F24: =SUMIF(Detail!$B$170:$B$404,'Avg Cust Unit Costs'!$A$24,Detail!BL170:BL404) -> 4332.664377 | G24: =SUMIF(Detail!$B$170:$B$404,'Avg Cust Unit Costs'!$A$24,Detail!BM170:BM404) -> 2205.304483 | H24: =SUMIF(Detail!$B$170:$B$404,'Avg Cust Unit Costs'!$A$24,Detail!BN170:BN404) -> 20800.58328 | J24: =C24-Detail!E221 -> 0
A25: 902-OP | B25: Meter Reading | C25: 1746000 | D25: =SUMIF(Detail!$B$170:$B$404,'Avg Cust Unit Costs'!$A$25,Detail!BJ170:BJ404) -> 1715433.634 | E25: =SUMIF(Detail!$B$170:$B$404,'Avg Cust Unit Costs'!$A$25,Detail!BK170:BK404) -> 29803.39336 | F25: =SUMIF(Detail!$B$170:$B$404,'Avg Cust Unit Costs'!$A$25,Detail!BL170:BL404) -> 307.4667086 | G25: =SUMIF(Detail!$B$170:$B$404,'Avg Cust Unit Costs'!$A$25,Detail!BM170:BM404) -> 22.77531174 | H25: =SUMIF(Detail!$B$170:$B$404,'Avg Cust Unit Costs'!$A$25,Detail!BN170:BN404) -> 432.7309231 | J25: =C25-Detail!E228 -> 0
A26: 903-OP | B26: Billing Exp | C26: 3638000 | D26: =SUMIF(Detail!$B$170:$B$404,'Avg Cust Unit Costs'!$A$26,Detail!BJ170:BJ404) -> 3574311.317 | E26: =SUMIF(Detail!$B$170:$B$404,'Avg Cust Unit Costs'!$A$26,Detail!BK170:BK404) -> 62098.9376 | F26: =SUMIF(Detail!$B$170:$B$404,'Avg Cust Unit Costs'!$A$26,Detail!BL170:BL404) -> 640.6436917 | G26: =SUMIF(Detail!$B$170:$B$404,'Avg Cust Unit Costs'!$A$26,Detail!BM170:BM404) -> 47.45508827 | H26: =SUMIF(Detail!$B$170:$B$404,'Avg Cust Unit Costs'!$A$26,Detail!BN170:BN404) -> 901.6466772 | J26: =C26-Detail!E229 -> 0
B27: Total Expenses | C27: =SUM(C21:C26) -> 13447000 | D27: 12741195.87 | E27: 616000.3462 | F27: 14389.80302 | G27: 5999.86922 | H27: 69414.11157
B28: Revenue Conversion Factor | C28: =1-Summary!L73-Summary!L74-Summary!L75 -> 0.953851 | D28: =$C$28 -> 0.953851 | E28: =$C$28 -> 0.953851 | F28: 0.953851 | G28: 0.953851 | H28: 0.953851
B29: Expense Revenue Requirement | C29: =C27/C28 -> 14097589.67 | D29: =D27/D28 -> 13357637.48 | E29: 645803.5335 | F29: 15086.00717 | G29: 6290.153515 | H29: 72772.48918
B31: Total Customer Costs | C31: =C18+C29 -> 28477856.18 | D31: 26803315.28 | E31: 1444914.04 | F31: 35690.75911 | G31: 14886.69399 | H31: 179049.4105
B33: Total Customers Bills | C33: =SUM(D33:H33) -> 1839887 | D33: =Factors!E43 -> 1807677 | E33: =Factors!F43 -> 31406 | F33: =Factors!G43 -> 324 | G33: =Factors!H43 -> 24 | H33: =Factors!I43 -> 456 | J33: =SUM(Factors!E43:I43)-'Avg Cust Unit Costs'!C33 -> 0
B35: Avg Unit Cost | C35: =C31/C33 -> 15.4780463 | D35: =D31/D33 -> 14.82749146 | E35: 46.00757943 | F35: 110.1566639 | G35: 620.2789163 | H35: 392.6522161
B37: Fixed Costs Per Customer
B39: Total Customer Related Costs | C39: =SUM(D39:H39) -> 66019306.25 | D39: =Summary!D243 -> 62690078.06 | E39: =Summary!E243 -> 2896836.041 | F39: =Summary!F243 -> 70133.72915 | G39: =Summary!G243 -> 29218.12248 | H39: =Summary!H243 -> 333040.2887
B40: Customer Related Unit Cost per Month | C40: =C39/C33 -> 35.88226138 | D40: =D39/D33 -> 34.67991133 | E40: 92.23829973 | F40: 216.462127 | G40: 1217.42177 | H40: 730.3515103
B42: Other Non-Gas Costs | C42: =Summary!C166-C39 -> 25263694 | D42: =Summary!D166-D39 -> 16687757.13 | E42: =Summary!E166-E39 -> 5954330.258 | F42: =Summary!F166-F39 -> 599483.3265 | G42: =Summary!G166-G39 -> 114218.3196 | H42: =Summary!H166-H39 -> 1907904.959
B43: Other Non-Gas Unit Cost per Month | C43: =C42/C33 -> 13.73111175 | D43: =D42/D33 -> 9.231603397 | E43: =E42/E33 -> 189.5921244 | F43: =F42/F33 -> 1850.257181 | G43: =G42/G33 -> 4759.096649 | H43: =H42/H33 -> 4184.002104
B45: Total Fixed Unit Cost per Month | C45: =C40+C43 -> 49.61337313 | D45: =D40+D43 -> 43.91151472 | E45: 281.8304241 | F45: 2066.719308 | G45: 5976.518419 | H45: 4914.353614

Sheet Acerno_Cache_XXXXX (hidden)

Sheet PROFORMA
A1: 1 | B1: Proforma | I1: Natural Gas Utility | AK1: =$I$1 -> Natural Gas Utility
A2: 2 | B2: Pro Forma Results of Operations
A3: 3 | B3: Company Base Case
A4: 4 | AB4: xxx
A5: 5 | F5: 1 | G5: =F5+0.01 -> 1.01 | H5: =G5+0.01 -> 1.02 | I5: =H5+0.01 -> 1.03 | J5: 2.01 | K5: 2.02 | L5: 2.03 | M5: 2.04 | N5: 2.05 | O5: 2.06 | P5: 2.07 | Q5: 2.08 | R5: 2.09 | S5: 2.1 | T5: 2.11 | U5: 2.12 | V5: 2.13 | W5: 2.14 | X5: 2.15 | Y5: =3 -> 3 | Z5: =Y5+0.01 -> 3.01 | AA5: 3.02 | AB5: 3.03 | AC5: 3.04 | AD5: =AC5+0.01 -> 3.05 | AE5: 3.06 | AF5: 3.07 | AG5: 3.08 | AH5: =AG5+0.01 -> 3.09 | AI5: =AH5+0.01 -> 3.1 | AK5: 4 | AL5: 4.01 | AM5: 4.02 | AN5: 4.03 | AO5: 4.04 | AP5: 4.05 | AQ5: 4.06 | AR5: 4.07 | AT5: =ColHdr -> (at) | AU5: (au) | AV5: (av) | AW5: (aw)
A6: 6 | E6: Notes | F6: Per Results | G6: Deferred FIT | H6: Deferred Debits | I6: Working | J6: Eliminate | K6: Restate | L6: Uncollectible | M6: Regulatory | N6: Injuries & | O6: FIT/DFIT | P6: Office Space | Q6: Restate | R6: Net Gains/ | S6: Weather Normalization | T6: Eliminate | U6: Misc. Restating | V6: Restate | W6: Restating | X6: Project | Y6: Pro Forma | Z6: Pro Forma | AA6: Pro Forma | AB6: Pro Forma | AC6: Pro Forma | AD6: Pro Forma Revenue | AE6: Pro Forma | AF6: Pro Forma | AG6: Pro Forma Capital | AH6: Pro Forma 2016 | AI6: Pro Forma | AK6: Cross Check | AL6: Cross Check | AM6: Cross Check | AN6: Cross Check | AO6: Cross Check | AP6: Cross Check | AQ6: Cross Check | AR6: Cross Check | AT6: Net Total | AU6: Total | AV6: check | AW6: Total
A7: 7 | B7: Account | C7: Description | F7: Report | G7: Rate Base | H7: and Credits | I7: Capital | J7: B & O Taxes | K7: Property Taxes | L7: Expense | M7: Expense | N7: Damages | O7: Expense | P7: Charges to Subs | Q7: Excise Tax | R7: Losses | S7: Gas Cost Adjust | T7: Adder Schedules | U7: Adjustments | V7: Debt Interest | W7: Incentive | X7: Compass | Y7: Non-Exec Labor | Z7: Exec Labor | AA7: Empl. Benefits | AB7: Pipeline Safety Labor | AC7: Property Tax | AD7: Normalization | AE7: Atmospheric Testing | AF7: Regulatory Amortization | AG7: Add Dec 2015 AMA | AH7: Limited Capital Adds | AI7: O&M Offsets | AK7: Labor Non- Exec | AL7: Capital Add 2016 AMA | AM7: Capital Add 2017 AMA | AN7: 2017 AMI Capital & Exp | AO7: Info Tech/Serv Exp | AP7: Insurance Exp. | AQ7: Property Tax Exp. | AR7: to Attrition | AT7: of All | AW7: $000's | AX7: Case
A8: 8 | F8: Adj G-ROO | G8: G-DFIT | H8: G-DDC | I8: G-WC | J8: G-EBO | K8: G-RPT | L8: G-UE | M8: G-RE | N8: G-ID | O8: G-FIT | P8: G-OSC | Q8: G-RET | R8: G-NGL | S8: G-WNGC | T8: G-EAS | U8: G-MR | V8: G_DI | W8: G-RI | X8: Deferral | Y8: G-PLN | Z8: G-PLE | AA8: G-PEB | AB8: G-PPS | AC8: G-PPT | AD8: G-PREV | AE8: G-PAT | AF8: G-PRA | AG8: G-PCAP15 | AH8: G-PCAP16 | AI8: G-POFF | AK8: G-CLN | AL8: G-CCAP16 | AM8: G-CCAP17 | AN8: G-CAMI | AO8: G-CIS | AP8: G-CI | AQ8: G-CPT | AR8: G-CREC | AT8: Adjustments | AW8: in bold | AX8: Pro Forma
A9: 9 | B9: Operation & Maintenance Expenses | AX9: Total | AY9: Diff
A10: 10 | C10: Purchased Gas Expenses
A11: 11 | B11: 804/805-000 | C11: Gas Purchases | F11: 164944000 | S11: 10600000 | T11: -88985000 | AD11: -86559000 | AT11: =SUM(G11:AR11) -> -164944000 | AU11: =F11+AT11 -> 0 | AW11: =ROUND(AU11/1000,0)*1000 -> 0
A12: 12 | B12: 804-001 | C12: Pipeline Demand Costs | T12: =-F12 -> 0 | AT12: 0 | AU12: 0 | AW12: 0
A13: 13 | B13: 804-002 | C13: Transport Variable Charges | T13: 0 | AT13: 0 | AU13: 0 | AW13: 0
A14: 14 | B14: 804-017 | C14: Transaction Fees | T14: 0 | AT14: 0 | AU14: 0 | AW14: 0
A15: 15 | B15: 804-730 | C15: Gas Costs - Intracompany LDC Gas | T15: 0 | AT15: 0 | AU15: 0 | AW15: 0
A16: 16 | B16: 804-170 | C16: Gas Transaction Fees | T16: 0 | AT16: 0 | AU16: 0 | AW16: 0
A17: 17 | B17: 804-600 | C17: Gas Purchases - Financial | T17: 0 | AT17: 0 | AU17: 0 | AW17: 0
A18: 18 | B18: 804-700 | C18: Off System Gas Purchases - Bookout | T18: 0 | AT18: 0 | AU18: 0 | AW18: 0
A19: 19 | B19: 804-711 | C19: Off System Bookout Offset | T19: 0 | AT19: 0 | AU19: 0 | AW19: 0
A20: 20 | B20: 804-010 | C20: Gas Costs - Fixed Hedge | T20: 0 | AT20: 0 | AU20: 0 | AW20: 0
A21: 21 | B21: 805-110 | C21: Gas Exp - Rate Amortizations | T21: 0 | AT21: 0 | AU21: 0 | AW21: 0
A22: 22 | B22: 805-120 | C22: Gas Expense - Rate Deferrals | T22: 0 | AT22: 0 | AU22: 0 | AW22: 0
A23: 23 | B23: 805-980 | C23: Gas Expense - Estimated Amortizations | T23: 0 | AT23: 0 | AU23: 0 | AW23: 0
A24: 24 | B24: 805-990 | C24: Gas Expense - Estimated Deferrals | T24: 0 | AT24: 0 | AU24: 0 | AW24: 0
A25: 25 | B25: Open | C25: Open | T25: 0 | AT25: 0 | AU25: 0 | AW25: 0
A26: 26 | B26: 808-xxx | C26: Net Natural Gas Storage Transactions | F26: =9011000-346000 -> 8665000 | T26: -8665000 | AT26: -8665000 | AU26: 0 | AW26: 0
A27: 27 | B27: 804.xx | C27: Proforma Purchased Gas Expense | AT27: =SUM(G27:AR27) -> 0 | AU27: 0 | AW27: 0
A28: 28 | C28: Total Purchased Gas Cost | F28: =SUM(F11:F27) -> 173609000 | G28: 0 | H28: 0 | I28: 0 | J28: =SUM(J11:J27) -> 0 | K28: =SUM(K11:K27) -> 0 | L28: 0 | M28: 0 | N28: 0 | O28: 0 | P28: =SUM(P11:P27) -> 0 | Q28: 0 | R28: 0 | S28: =SUM(S11:S27) -> 10600000 | T28: =SUM(T11:T27) -> -97650000 | U28: 0 | V28: =SUM(V11:V27) -> 0 | W28: 0 | X28: =SUM(X11:X27) -> 0 | Y28: 0 | Z28: 0 | AA28: 0 | AB28: 0 | AC28: 0 | AD28: =SUM(AD11:AD27) -> -86559000 | AE28: 0 | AF28: 0 | AG28: 0 | AH28: 0 | AI28: =SUM(AI11:AI27) -> 0 | AK28: =SUM(AK11:AK27) -> 0 | AL28: 0 | AM28: 0 | AN28: 0 | AO28: 0 | AP28: 0 | AQ28: 0 | AR28: =SUM(AR11:AR27) -> 0 | AT28: -173609000 | AU28: 0 | AV28: =IF(ROUND(SUM(F28:AQ28),0)=ROUND(AU28,0),"ok","crossfoot error") -> ok | AW28: =SUM(AW11:AW27)/1000 -> 0
A29: 29 | B29: 811-00 | C29: Gas Used for Products Extraction | F29: 0 | AT29: =SUM(G29:AR29) -> 0 | AU29: =F29+AT29 -> 0 | AW29: =ROUND(AU29/1000,0)*1000 -> 0
A30: 30 | B30: 813-010 | C30: GTI Expenses | F30: 67000 | S30: 9000 | W30: 0 | AT30: 9000 | AU30: =F30+AT30 -> 76000 | AW30: =ROUND(AU30/1000,0)*1000 -> 76000
A31: 31 | B31: 813-xxx | C31: Other Gas Expenses | F31: 743000 | W31: -16000 | Y31: 21000 | Z31: -25000 | AA31: 12000 | AK31: 6000 | AT31: =SUM(G31:AR31) -> -2000 | AU31: =F31+AT31 -> 741000 | AW31: =ROUND(AU31/1000,0)*1000 -> 741000
A32: 32 | C32: Total Purchased Gas Expenses | F32: =SUM(F28:F31) -> 174419000 | G32: 0 | H32: 0 | I32: 0 | J32: =SUM(J28:J31) -> 0 | K32: 0 | L32: 0 | M32: 0 | N32: 0 | O32: 0 | P32: =SUM(P28:P31) -> 0 | Q32: 0 | R32: 0 | S32: =SUM(S28:S31) -> 10609000 | T32: =SUM(T28:T31) -> -97650000 | U32: 0 | V32: =SUM(V28:V31) -> 0 | W32: -16000 | X32: =SUM(X28:X31) -> 0 | Y32: 21000 | Z32: -25000 | AA32: 12000 | AB32: 0 | AC32: 0 | AD32: =SUM(AD28:AD31) -> -86559000 | AE32: 0 | AF32: 0 | AG32: 0 | AH32: 0 | AI32: =SUM(AI28:AI31) -> 0 | AK32: =SUM(AK28:AK31) -> 6000 | AL32: 0 | AM32: 0 | AN32: 0 | AO32: 0 | AP32: 0 | AQ32: 0 | AR32: =SUM(AR28:AR31) -> 0 | AT32: -173602000 | AU32: 817000 | AV32: =IF(ROUND(SUM(F32:AQ32),0)=ROUND(AU32,0),"ok","crossfoot error") -> ok | AW32: =AW28+SUM(AW29:AW31)/1000 -> 817 | AX32: ='[6]ADJ DETAIL INPUT'!$AU$25 -> 817 | AY32: =AW32-AX32 -> 0
A33: 33
A34: 34 | C34: Underground Storage Expenses
A35: 35 | B35: 814-OP | C35: Supervision & Engineering | F35: 8000 | AT35: =SUM(G35:AR35) -> 0 | AU35: =F35+AT35 -> 8000 | AW35: =ROUND(AU35/1000,0)*1000 -> 8000
A36: 36 | B36: 815-OP | C36: Maps & Records | F36: 0 | AT36: 0 | AU36: 0
A37: 37 | B37: 816-OP | C37: Wells Expenses | F37: 0 | AT37: 0 | AU37: 0
A38: 38 | B38: 817-OP | C38: Lines Expenses | F38: 0 | AT38: 0 | AU38: 0
A39: 39 | B39: 818-OP | C39: Compressor Station Expenses | F39: 0 | AT39: 0 | AU39: 0
A40: 40 | B40: 819-OP | C40: Compressor Station Fuel & Power | F40: 0 | AT40: 0 | AU40: 0
A41: 41 | B41: 820-OP | C41: Measuring & Regulator Station | F41: 0 | AT41: 0 | AU41: 0
A42: 42 | B42: 821-OP | C42: Purification Expenses | F42: 0 | AT42: 0 | AU42: 0
A43: 43 | B43: 824-OP | C43: Other Expenses | F43: 428000 | AT43: 0 | AU43: 428000 | AW43: =ROUND(AU43/1000,0)*1000 -> 428000
A44: 44 | B44: 825-OP | C44: Storage Well Royalties & Rents | F44: 0 | AT44: 0 | AU44: 0
A45: 45 | B45: 826-OP | C45: Rents | F45: 0 | AT45: =SUM(G45:AR45) -> 0 | AU45: 0
A46: 46
A47: 47 | B47: 830-MT | C47: Supervision & Engineering | F47: 0 | AT47: =SUM(G47:AR47) -> 0 | AU47: =F47+AT47 -> 0
A48: 48 | B48: 831-MT | C48: Maps & Records | F48: 0 | AT48: 0 | AU48: 0
A49: 49 | B49: 832-MT | C49: Wells Expenses | F49: 0 | AT49: 0 | AU49: 0
A50: 50 | B50: 833-MT | C50: Lines Expenses | F50: 0 | AT50: 0 | AU50: 0
A51: 51 | B51: 834-MT | C51: Compressor Station Expenses | F51: 0 | AT51: 0 | AU51: 0
A52: 52 | B52: 835-MT | C52: Compressor Station Fuel & Power | F52: 0 | AT52: 0 | AU52: 0
A53: 53 | B53: 836-MT | C53: Measuring and Regulator Station Expenses | F53: 0 | AT53: 0 | AU53: 0
A54: 54 | B54: 837-MT | C54: Other Equipment | F54: 397000 | AT54: =SUM(G54:AR54) -> 0 | AU54: 397000 | AW54: =ROUND(AU54/1000,0)*1000 -> 397000
A55: 55 | C55: Total Underground Storage Expenses | F55: =SUM(F35:F54) -> 833000 | G55: 0 | H55: 0 | I55: 0 | J55: =SUM(J35:J54) -> 0 | K55: 0 | L55: 0 | M55: 0 | N55: 0 | O55: 0 | P55: =SUM(P35:P54) -> 0 | Q55: 0 | R55: 0 | S55: =SUM(S35:S54) -> 0 | T55: =SUM(T35:T54) -> 0 | U55: 0 | V55: =SUM(V35:V54) -> 0 | W55: 0 | X55: =SUM(X35:X54) -> 0 | Y55: 0 | Z55: 0 | AA55: 0 | AB55: 0 | AC55: 0 | AD55: =SUM(AD35:AD54) -> 0 | AE55: 0 | AF55: 0 | AG55: 0 | AH55: 0 | AI55: =SUM(AI35:AI54) -> 0 | AK55: =SUM(AK35:AK54) -> 0 | AL55: 0 | AM55: 0 | AN55: 0 | AO55: 0 | AP55: 0 | AQ55: 0 | AR55: =SUM(AR35:AR54) -> 0 | AT55: 0 | AU55: 833000 | AV55: =IF(ROUND(SUM(F55:AQ55),0)=ROUND(AU55,0),"ok","crossfoot error") -> ok | AW55: =SUM(AW35:AW54)/1000 -> 833 | AX55: ='[6]ADJ DETAIL INPUT'!$AU$28 -> 832.793 | AY55: =AW55-AX55 -> 0.207
A56: 56
A57: 57
A58: 59
A59: 60
A60: 61 | B60: =$B$1 -> Proforma | I60: =$I$1 -> Natural Gas Utility | AA60: Natural Gas Utility | AK60: =$I$1 -> Natural Gas Utility
A61: 62 | B61: =$B$2 -> Pro Forma Results of Operations | E61: Operation and Maintenance Expenses | O61: =$E61 -> Operation and Maintenance Expenses | AA61: =$E61 -> Operation and Maintenance Expenses
A62: 63 | B62: =$B$3 -> Company Base Case
A63: 64
A64: 65 | F64: =F5 -> 1 | G64: 1.01 | H64: 1.02 | I64: 1.03 | J64: =J5 -> 2.01 | K64: 2.02 | L64: 2.03 | M64: 2.04 | N64: 2.05 | O64: 2.06 | P64: =P5 -> 2.07 | Q64: 2.08 | R64: 2.09 | S64: =S5 -> 2.1 | T64: 2.11 | U64: 2.12 | V64: =V5 -> 2.13 | W64: 2.14 | X64: =X5 -> 2.15 | Y64: 3 | Z64: 3.01 | AA64: 3.02 | AB64: 3.03 | AC64: 3.04 | AD64: =AD5 -> 3.05 | AE64: 3.06 | AF64: 3.07 | AG64: 3.08 | AH64: 3.09 | AI64: =AI5 -> 3.1 | AK64: =AK$5 -> 4 | AL64: 4.01 | AM64: 4.02 | AN64: 4.03 | AO64: 4.04 | AP64: 4.05 | AQ64: 4.06 | AR64: 4.07 | AT64: (at) | AU64: (au) | AV64: (av) | AW64: (aw)
A65: 66 | B65: =IF(ISBLANK(B$6),"",B$6) ->  | C65: =IF(ISBLANK(C$6),"",C$6) ->  | D65: =IF(ISBLANK(D$6),"",D$6) ->  | E65: =IF(ISBLANK(E$6),"",E$6) -> Notes | F65: Balance | G65: =G6 -> Deferred FIT | H65: Deferred Debits | I65: Working | J65: =J6 -> Eliminate | K65: Restate | L65: Uncollectible | M65: Regulatory | N65: Injuries & | O65: FIT/DFIT | P65: =P6 -> Office Space | Q65: Restate | R65: Net Gains/ | S65: Weather Normalization | T65: Eliminate | U65: Misc. Restating | V65: =V6 -> Restate | W65: Restating | X65: =X6 -> Project | Y65: Pro Forma | Z65: Pro Forma | AA65: Pro Forma | AB65: Pro Forma | AC65: Pro Forma | AD65: =AD6 -> Pro Forma Revenue | AE65: Pro Forma | AF65: Pro Forma | AG65: Pro Forma Capital | AH65: Pro Forma 2016 | AI65: =AI6 -> Pro Forma | AK65: =IF(ISBLANK(AK$6),"",AK$6) -> Cross Check | AL65: Cross Check | AM65: Cross Check | AN65: Cross Check | AO65: Cross Check | AP65: Cross Check | AQ65: Cross Check | AR65: Cross Check | AT65: Net Total | AU65: Total | AV65: check | AW65: Total
A66: 67 | B66: =IF(ISBLANK(B$7),"",B$7) -> Account | C66: =IF(ISBLANK(C$7),"",C$7) -> Description | E66: =IF(ISBLANK(E$7),"",E$7) ->  | F66: per Books | G66: =G7 -> Rate Base | H66: and Credits | I66: Capital | J66: =J7 -> B & O Taxes | K66: Property Taxes | L66: Expense | M66: Expense | N66: Damages | O66: Expense | P66: =P7 -> Charges to Subs | Q66: Excise Tax | R66: Losses | S66: Gas Cost Adjust | T66: Adder Schedules | U66: Adjustments | V66: =V7 -> Debt Interest | W66: Incentive | X66: =X7 -> Compass | Y66: Non-Exec Labor | Z66: Exec Labor | AA66: Empl. Benefits | AB66: Pipeline Safety Labor | AC66: Property Tax | AD66: =AD7 -> Normalization | AE66: Atmospheric Testing | AF66: Regulatory Amortization | AG66: Add Dec 2015 AMA | AH66: Limited Capital Adds | AI66: =AI7 -> O&M Offsets | AK66: =IF(ISBLANK(AK$7),"",AK$7) -> Labor Non- Exec | AL66: Capital Add 2016 AMA | AM66: Capital Add 2017 AMA | AN66: 2017 AMI Capital & Exp | AO66: Info Tech/Serv Exp | AP66: Insurance Exp. | AQ66: Property Tax Exp. | AR66: to Attrition | AT66: of All | AW66: $000's
A67: 68 | B67: =IF(ISBLANK(B$8),"",B$8) ->  | C67: =IF(ISBLANK(C$8),"",C$8) ->  | D67: =IF(ISBLANK(D$8),"",D$8) ->  | E67: =IF(ISBLANK(E$8),"",E$8) ->  | G67: =G8 -> G-DFIT | H67: G-DDC | I67: G-WC | J67: =J8 -> G-EBO | K67: G-RPT | L67: G-UE | M67: G-RE | N67: G-ID | O67: G-FIT | P67: =P8 -> G-OSC | Q67: G-RET | R67: G-NGL | S67: G-WNGC | T67: G-EAS | U67: G-MR | V67: =V8 -> G_DI | W67: G-RI | X67: =X8 -> Deferral | Y67: G-PLN | Z67: G-PLE | AA67: G-PEB | AB67: G-PPS | AC67: G-PPT | AD67: =AD8 -> G-PREV | AE67: G-PAT | AF67: G-PRA | AG67: G-PCAP15 | AH67: G-PCAP16 | AI67: =AI8 -> G-POFF | AK67: =IF(ISBLANK(AK$8),"",AK$8) -> G-CLN | AL67: G-CCAP16 | AM67: G-CCAP17 | AN67: G-CAMI | AO67: G-CIS | AP67: G-CI | AQ67: G-CPT | AR67: G-CREC | AT67: Adjustments | AW67: in bold
A68: 69 | C68: Distribution Expenses
A69: 70 | C69: Operation Expense
A70: 71 | B70: 870-OP | C70: Supervision & Engineering | F70: 1150000 | W70: -218000 | Y70: 34000 | Z70: 0 | AA70: 18000 | AB70: 104000 | AK70: 9000 | AT70: =SUM(G70:AR70) -> -53000 | AU70: =F70+AT70 -> 1097000 | AW70: =ROUND(AU70/1000,0)*1000 -> 1097000
A71: 72 | B71: 871-OP | C71: Distribution Load Dispatching | F71: 0 | AT71: 0 | AU71: 0 | AW71: 0
A72: 73 | B72: 872-OP | C72: Compressor Station Labor & Expenses | F72: 0 | AT72: 0 | AU72: 0 | AW72: 0
A73: 74 | B73: 874-OP | C73: Mains & Services Expense | F73: 3045000 | Y73: 61000 | AA73: 31000 | AK73: 15000 | AT73: 107000 | AU73: 3152000 | AW73: 3152000
A74: 75 | B74: 875-OP | C74: Measuring & Regulating Stations-General | F74: 69000 | Y74: 2000 | AA74: 1000 | AK74: 1000 | AT74: 4000 | AU74: 73000 | AW74: 73000
A75: 76 | B75: 876-OP | C75: Measuring & Regulating Stations-Industrial | F75: 2000 | Y75: 0 | AT75: 0 | AU75: 2000 | AW75: 2000
A76: 77 | B76: 877-OP | C76: Measuring & Regulating Stations-City Gate | F76: 63000 | Y76: 2000 | AA76: 1000 | AT76: 3000 | AU76: 66000 | AW76: 66000
A77: 78 | B77: 878-OP | C77: Meters & House Regulators Expenses | F77: 624000 | Y77: 5000 | AA77: 2000 | AE77: 236000 | AK77: 1000 | AT77: 244000 | AU77: 868000 | AW77: 868000
A78: 79 | B78: 879-OP | C78: Customer Installations | F78: 1223000 | Y78: 40000 | AA78: 21000 | AK78: 10000 | AT78: 71000 | AU78: 1294000 | AW78: 1294000
A79: 80 | B79: 880-OP | C79: Other Distribution Expense | F79: 1432000 | Y79: 42000 | AA79: 21000 | AK79: 11000 | AT79: 74000 | AU79: 1506000 | AW79: 1506000
A80: 81 | B80: 881-OP | C80: Rents | F80: 29000 | Y80: 0 | AT80: =SUM(G80:AR80) -> 0 | AU80: 29000 | AW80: 29000
A81: 82 | C81: Total Distribution Operation Expense | F81: =SUM(F70:F80) -> 7637000 | G81: 0 | H81: 0 | I81: 0 | J81: =SUM(J70:J80) -> 0 | K81: 0 | L81: 0 | M81: 0 | N81: 0 | O81: 0 | P81: =SUM(P70:P80) -> 0 | Q81: 0 | R81: 0 | S81: =SUM(S70:S80) -> 0 | T81: =SUM(T70:T80) -> 0 | U81: 0 | V81: =SUM(V70:V80) -> 0 | W81: -218000 | X81: =SUM(X70:X80) -> 0 | Y81: 186000 | Z81: 0 | AA81: 95000 | AB81: 104000 | AC81: 0 | AD81: =SUM(AD70:AD80) -> 0 | AE81: 236000 | AF81: 0 | AG81: 0 | AH81: 0 | AI81: =SUM(AI70:AI80) -> 0 | AK81: =SUM(AK70:AK80) -> 47000 | AL81: 0 | AM81: 0 | AN81: 0 | AO81: 0 | AP81: 0 | AQ81: 0 | AR81: =SUM(AR70:AR80) -> 0 | AT81: 450000 | AU81: 8087000 | AV81: =IF(ROUND(SUM(F81:AQ81),0)=ROUND(AU81,0),"ok","crossfoot error") -> ok
A82: 83 | C82: Maintenance Expense
A83: 84 | B83: 885-MT | C83: Supervision & Engineering | F83: 42000 | Y83: 1000 | AA83: 1000 | AT83: =SUM(G83:AR83) -> 2000 | AU83: =F83+AT83 -> 44000 | AW83: =ROUND(AU83/1000,0)*1000 -> 44000
A84: 85 | B84: 887-MT | C84: Mains | F84: 1106000 | Y84: 26000 | AA84: 13000 | AK84: 6000 | AT84: 45000 | AU84: 1151000 | AW84: 1151000
A85: 86 | B85: 888-MT | C85: Compressor Station Equipment | F85: 0 | Y85: 0 | AT85: 0 | AU85: 0 | AW85: 0
A86: 87 | B86: 889-MT | C86: Measuring & Regulating Stations-General | F86: 210000 | Y86: 5000 | AA86: 2000 | AK86: 1000 | AT86: 8000 | AU86: 218000 | AW86: 218000
A87: 88 | B87: 890-MT | C87: Measuring & Regulating Stations-Industrial | F87: 81000 | Y87: 1000 | AT87: 1000 | AU87: 82000 | AW87: 82000
A88: 89 | B88: 891-MT | C88: Measuring & Regulating Stations-City Gate | F88: 38000 | Y88: 1000 | AT88: 1000 | AU88: 39000 | AW88: 39000
A89: 90 | B89: 892-MT | C89: Services | F89: 964000 | Y89: 24000 | AA89: 12000 | AK89: 6000 | AT89: 42000 | AU89: 1006000 | AW89: 1006000
A90: 91 | B90: 893-MT | C90: Meters & House Regulators | F90: 1329000 | Y90: 37000 | AA90: 19000 | AK90: 9000 | AT90: 65000 | AU90: 1394000 | AW90: 1394000
A91: 92 | B91: 894-MT | C91: Other Equipment | F91: 124000 | Y91: 3000 | AA91: 2000 | AK91: 1000 | AT91: =SUM(G91:AR91) -> 6000 | AU91: 130000 | AW91: 130000
A92: 93 | C92: Total Distribution Maintenance Expense | F92: =SUM(F83:F87)+SUM(F88:F91) -> 3894000 | G92: 0 | H92: 0 | I92: 0 | J92: =SUM(J83:J87)+SUM(J88:J91) -> 0 | K92: 0 | L92: 0 | M92: 0 | N92: 0 | O92: 0 | P92: =SUM(P83:P87)+SUM(P88:P91) -> 0 | Q92: 0 | R92: 0 | S92: =SUM(S83:S87)+SUM(S88:S91) -> 0 | T92: =SUM(T83:T87)+SUM(T88:T91) -> 0 | U92: 0 | V92: =SUM(V83:V87)+SUM(V88:V91) -> 0 | W92: 0 | X92: =SUM(X83:X87)+SUM(X88:X91) -> 0 | Y92: =SUM(Y83:Y91) -> 98000 | Z92: =SUM(Z83:Z87)+SUM(Z88:Z91) -> 0 | AA92: 49000 | AB92: 0 | AC92: 0 | AD92: =SUM(AD83:AD87)+SUM(AD88:AD91) -> 0 | AE92: 0 | AF92: 0 | AG92: 0 | AH92: 0 | AI92: =SUM(AI83:AI87)+SUM(AI88:AI91) -> 0 | AK92: =SUM(AK83:AK87)+SUM(AK88:AK91) -> 23000 | AL92: 0 | AM92: 0 | AN92: 0 | AO92: 0 | AP92: 0 | AQ92: 0 | AR92: =SUM(AR83:AR87)+SUM(AR88:AR91) -> 0 | AT92: 170000 | AU92: 4064000 | AV92: =IF(ROUND(SUM(F92:AQ92),0)=ROUND(AU92,0),"ok","crossfoot error") -> ok
A93: 94
A94: 95 | C94: Total Distribution Expense | F94: =F81+F92 -> 11531000 | G94: 0 | H94: 0 | I94: 0 | J94: =J81+J92 -> 0 | K94: 0 | L94: 0 | M94: 0 | N94: 0 | O94: 0 | P94: =P81+P92 -> 0 | Q94: 0 | R94: 0 | S94: =S81+S92 -> 0 | T94: =T81+T92 -> 0 | U94: 0 | V94: =V81+V92 -> 0 | W94: -218000 | X94: =X81+X92 -> 0 | Y94: 284000 | Z94: 0 | AA94: 144000 | AB94: 104000 | AC94: 0 | AD94: =AD81+AD92 -> 0 | AE94: 236000 | AF94: 0 | AG94: 0 | AH94: 0 | AI94: =AI81+AI92 -> 0 | AK94: =AK81+AK92 -> 70000 | AL94: 0 | AM94: 0 | AN94: 0 | AO94: 0 | AP94: 0 | AQ94: 0 | AR94: =AR81+AR92 -> 0 | AT94: 620000 | AU94: 12151000 | AV94: =IF(ROUND(SUM(F94:AQ94),0)=ROUND(AU94,0),"ok","crossfoot error") -> ok | AW94: =SUM(AW70:AW91)/1000 -> 12151 | AX94: ='[6]ADJ DETAIL INPUT'!$AU$34 -> 12151 | AY94: =AW94-AX94 -> 0
A95: 96
A96: 97 | C96: Customer Accounting Expenses
A97: 98 | B97: 901-OP | C97: Supervision | F97: 144000 | Y97: 5000 | AA97: 3000 | AK97: 1000 | AT97: =SUM(G97:AR97) -> 9000 | AU97: =F97+AT97 -> 153000 | AW97: =ROUND(AU97/1000,0)*1000 -> 153000
A98: 99 | B98: 902-OP | C98: Meter Reading | F98: 1657000 | Y98: 50000 | AA98: 27000 | AK98: 12000 | AT98: 89000 | AU98: =F98+AT98 -> 1746000 | AW98: =ROUND(AU98/1000,0)*1000 -> 1746000
A99: 100 | B99: 903-OP | C99: Customer Records & Collection | F99: 3469000 | Y99: 93000 | AA99: 51000 | AK99: 25000 | AT99: 169000 | AU99: =F99+AT99 -> 3638000 | AW99: =ROUND(AU99/1000,0)*1000 -> 3638000
A100: 101 | B100: 904-OP | C100: Uncollectible Accounts | F100: 1230000 | L100: -313000 | S100: 76000 | T100: -19000 | AD100: -423000 | AK100: 0 | AT100: -679000 | AU100: =F100+AT100 -> 551000 | AW100: =ROUND(AU100/1000,0)*1000 -> 551000
A101: 102 | B101: 905-OP | C101: Misc Customer Accounts Expenses | F101: 95000 | H101: 1000 | W101: -114000 | Y101: 3000 | AA101: 1000 | AK101: 1000 | AT101: =SUM(G101:AR101) -> -108000 | AU101: =F101+AT101 -> -13000 | AW101: =ROUND(AU101/1000,0)*1000 -> -13000
A102: 103 | C102: Total Customer Accounting Expenses | F102: =SUM(F97:F101) -> 6595000 | G102: 0 | H102: 1000 | I102: 0 | J102: =SUM(J97:J101) -> 0 | K102: 0 | L102: -313000 | M102: 0 | N102: 0 | O102: 0 | P102: =SUM(P97:P101) -> 0 | Q102: 0 | R102: 0 | S102: =SUM(S97:S101) -> 76000 | T102: =SUM(T97:T101) -> -19000 | U102: 0 | V102: =SUM(V97:V101) -> 0 | W102: -114000 | X102: =SUM(X97:X101) -> 0 | Y102: 151000 | Z102: 0 | AA102: 82000 | AB102: 0 | AC102: 0 | AD102: =SUM(AD97:AD101) -> -423000 | AE102: 0 | AF102: 0 | AG102: 0 | AH102: 0 | AI102: =SUM(AI97:AI101) -> 0 | AK102: =SUM(AK97:AK101) -> 39000 | AL102: 0 | AM102: 0 | AN102: 0 | AO102: 0 | AP102: 0 | AQ102: 0 | AR102: =SUM(AR97:AR101) -> 0 | AT102: -520000 | AU102: 6075000 | AV102: =IF(ROUND(SUM(F102:AQ102),0)=ROUND(AU102,0),"ok","crossfoot error") -> ok | AW102: =SUM(AW97:AW101)/1000 -> 6075 | AX102: ='[6]ADJ DETAIL INPUT'!$AU$39 -> 6075 | AY102: =AW102-AX102 -> 0
A103: 104
A104: 105 | C104: Customer Information Expense
A105: 106 | B105: 907-OP | C105: Supervision | F105: 0 | AT105: =SUM(G105:AR105) -> 0 | AU105: =F105+AT105 -> 0 | AW105: =ROUND(AU105/1000,0)*1000 -> 0
A106: 107 | B106: 908-OP | C106: Customer Assistance Expenses | F106: 5388000 | S106: 0 | T106: -4914000 | Y106: 8000 | AA106: 4000 | AK106: 2000 | AT106: -4900000 | AU106: =F106+AT106 -> 488000 | AW106: =ROUND(AU106/1000,0)*1000 -> 488000
A107: 108 | B107: 909-OP | C107: Advertising | F107: 352000 | Y107: 4000 | AA107: 2000 | AK107: 1000 | AT107: 7000 | AU107: =F107+AT107 -> 359000 | AW107: =ROUND(AU107/1000,0)*1000 -> 359000
A108: 109 | B108: 910-OP | C108: Misc Customer Service & Info Expense | F108: 50000 | W108: -9000 | Y108: 0 | AA108: 1000 | AT108: =SUM(G108:AR108) -> -8000 | AU108: =F108+AT108 -> 42000 | AW108: =ROUND(AU108/1000,0)*1000 -> 42000
A109: 110 | C109: Total Customer Information Expense | F109: =SUM(F105:F108) -> 5790000 | G109: 0 | H109: 0 | I109: 0 | J109: =SUM(J105:J108) -> 0 | K109: 0 | L109: 0 | M109: 0 | N109: 0 | O109: 0 | P109: =SUM(P105:P108) -> 0 | Q109: 0 | R109: 0 | S109: =SUM(S105:S108) -> 0 | T109: =SUM(T105:T108) -> -4914000 | U109: 0 | V109: =SUM(V105:V108) -> 0 | W109: -9000 | X109: =SUM(X105:X108) -> 0 | Y109: 12000 | Z109: 0 | AA109: 7000 | AB109: 0 | AC109: 0 | AD109: =SUM(AD105:AD108) -> 0 | AE109: 0 | AF109: 0 | AG109: 0 | AH109: 0 | AI109: =SUM(AI105:AI108) -> 0 | AK109: =SUM(AK105:AK108) -> 3000 | AL109: 0 | AM109: 0 | AN109: 0 | AO109: 0 | AP109: 0 | AQ109: 0 | AR109: =SUM(AR105:AR108) -> 0 | AT109: -4901000 | AU109: 889000 | AV109: =IF(ROUND(SUM(F109:AQ109),0)=ROUND(AU109,0),"ok","crossfoot error") -> ok | AW109: =SUM(AW105:AW108)/1000 -> 889 | AX109: ='[6]ADJ DETAIL INPUT'!$AU$40 -> 889 | AY109: =AW109-AX109 -> 0
A110: 111
A111: 112 | C111: Sales Expenses
A112: 113 | B112: 911-OP | C112: Supervision | F112: 0 | AT112: =SUM(G112:AR112) -> 0 | AU112: =F112+AT112 -> 0 | AW112: =ROUND(AU112/1000,0)*1000 -> 0
A113: 114 | B113: 912-OP | C113: Demonstrating & Selling Expenses | F113: 1000 | AT113: 0 | AU113: =F113+AT113 -> 1000 | AW113: =ROUND(AU113/1000,0)*1000-999.8 -> 0.2
A114: 115 | B114: 913-OP | C114: Advertising Expenses | F114: 0 | AT114: 0 | AU114: =F114+AT114 -> 0 | AW114: =ROUND(AU114/1000,0)*1000 -> 0
A115: 116 | B115: 916-OP | C115: Misc Sales Expenses | F115: 0 | AT115: =SUM(G115:AR115) -> 0 | AU115: =F115+AT115 -> 0 | AW115: =ROUND(AU115/1000,0)*1000 -> 0
A116: 117 | C116: Total Sales Expenses | F116: =SUM(F112:F115) -> 1000 | G116: 0 | H116: 0 | I116: 0 | J116: =SUM(J112:J115) -> 0 | K116: 0 | L116: 0 | M116: 0 | N116: 0 | O116: 0 | P116: =SUM(P112:P115) -> 0 | Q116: 0 | R116: 0 | S116: =SUM(S112:S115) -> 0 | T116: =SUM(T112:T115) -> 0 | U116: 0 | V116: =SUM(V112:V115) -> 0 | W116: 0 | X116: =SUM(X112:X115) -> 0 | Y116: 0 | Z116: 0 | AA116: 0 | AB116: 0 | AC116: 0 | AD116: =SUM(AD112:AD115) -> 0 | AE116: 0 | AF116: 0 | AG116: 0 | AH116: 0 | AI116: =SUM(AI112:AI115) -> 0 | AK116: =SUM(AK112:AK115) -> 0 | AL116: =SUM(AL112:AL115) -> 0 | AM116: 0 | AN116: 0 | AO116: 0 | AP116: 0 | AQ116: 0 | AR116: =SUM(AR112:AR115) -> 0 | AT116: 0 | AU116: 1000 | AV116: =IF(ROUND(SUM(F116:AQ116),0)=ROUND(AU116,0),"ok","crossfoot error") -> ok | AW116: =SUM(AW112:AW115)/1000 -> 0.0002 | AX116: ='[6]ADJ DETAIL INPUT'!$AU$41 -> 0.13 | AY116: =AW116-AX116 -> -0.1298
A117: 118
A118: 119 | C118: Subtotal Expenses | F118: =F116+F109+F102+F94+F55+F32 -> 199169000 | G118: 0 | H118: 1000 | I118: 0 | J118: =J116+J109+J102+J94+J55+J32 -> 0 | K118: 0 | L118: -313000 | M118: 0 | N118: 0 | O118: 0 | P118: =P116+P109+P102+P94+P55+P32 -> 0 | Q118: 0 | R118: 0 | S118: =S116+S109+S102+S94+S55+S32 -> 10685000 | T118: =T116+T109+T102+T94+T55+T32 -> -102583000 | U118: 0 | V118: =V116+V109+V102+V94+V55+V32 -> 0 | W118: -357000 | X118: =X116+X109+X102+X94+X55+X32 -> 0 | Y118: 468000 | Z118: -25000 | AA118: 245000 | AB118: 104000 | AC118: 0 | AD118: =AD116+AD109+AD102+AD94+AD55+AD32 -> -86982000 | AE118: 236000 | AF118: 0 | AG118: 0 | AH118: 0 | AI118: =AI116+AI109+AI102+AI94+AI55+AI32 -> 0 | AK118: =AK116+AK109+AK102+AK94+AK55+AK32 -> 118000 | AL118: =AL116+AL109+AL102+AL94+AL55+AL32 -> 0 | AM118: 0 | AN118: 0 | AO118: 0 | AP118: 0 | AQ118: 0 | AR118: =AR116+AR109+AR102+AR94+AR55+AR32 -> 0 | AT118: -178403000 | AU118: 20766000 | AV118: =IF(ROUND(SUM(F118:AQ118),0)=ROUND(AU118,0),"ok","crossfoot error") -> ok | AW118: =AW116+AW109+AW102+AW94+AW55+AW32 -> 20765.0002
A119: 120 | B119: =$B$1 -> Proforma | I119: =$I$1 -> Natural Gas Utility | AA119: Natural Gas Utility | AK119: =$I$1 -> Natural Gas Utility
A120: 121 | B120: =$B$2 -> Pro Forma Results of Operations | E120: Admin, & General, Other Taxes & Depreciation Expense | O120: =E120 -> Admin, & General, Other Taxes & Depreciation Expense | AA120: =O120 -> Admin, & General, Other Taxes & Depreciation Expense
A121: 122 | B121: =$B$3 -> Company Base Case
A122: 123
A123: 124 | F123: =F5 -> 1 | G123: 1.01 | H123: 1.02 | I123: 1.03 | J123: =J5 -> 2.01 | K123: 2.02 | L123: 2.03 | M123: 2.04 | N123: 2.05 | O123: 2.06 | P123: =P5 -> 2.07 | Q123: 2.08 | R123: 2.09 | S123: =S5 -> 2.1 | T123: =T5 -> 2.11 | U123: 2.12 | V123: =V5 -> 2.13 | W123: 2.14 | X123: =X5 -> 2.15 | Y123: 3 | Z123: 3.01 | AA123: 3.02 | AB123: 3.03 | AC123: 3.04 | AD123: =AD5 -> 3.05 | AE123: 3.06 | AF123: 3.07 | AG123: 3.08 | AH123: 3.09 | AI123: =AI5 -> 3.1 | AK123: =AK$5 -> 4 | AL123: 4.01 | AM123: 4.02 | AN123: 4.03 | AO123: 4.04 | AP123: 4.05 | AQ123: 4.06 | AR123: 4.07 | AT123: (at) | AU123: (au) | AV123: (av) | AW123: (aw)
A124: 125 | B124: =IF(ISBLANK(B$6),"",B$6) ->  | C124: =IF(ISBLANK(C$6),"",C$6) ->  | D124: =IF(ISBLANK(D$6),"",D$6) ->  | E124: =IF(ISBLANK(E$6),"",E$6) -> Notes | F124: Balance | G124: =IF(ISBLANK(G$6),"",G$6) -> Deferred FIT | H124: Deferred Debits | I124: Working | J124: Eliminate | K124: Restate | L124: Uncollectible | M124: Regulatory | N124: Injuries & | O124: FIT/DFIT | P124: Office Space | Q124: Restate | R124: Net Gains/ | S124: =IF(ISBLANK(S$6),"",S$6) -> Weather Normalization | T124: =IF(ISBLANK(T$6),"",T$6) -> Eliminate | U124: Misc. Restating | V124: Restate | W124: Restating | X124: Project | Y124: Pro Forma | Z124: Pro Forma | AA124: Pro Forma | AB124: Pro Forma | AC124: Pro Forma | AD124: Pro Forma Revenue | AE124: Pro Forma | AF124: Pro Forma | AG124: Pro Forma Capital | AH124: Pro Forma 2016 | AI124: Pro Forma | AK124: =IF(ISBLANK(AK$6),"",AK$6) -> Cross Check | AL124: Cross Check | AM124: Cross Check | AN124: Cross Check | AO124: Cross Check | AP124: Cross Check | AQ124: Cross Check | AR124: Cross Check | AT124: Net Total | AU124: Total | AV124: check | AW124: Total
A125: 126 | B125: =IF(ISBLANK(B$7),"",B$7) -> Account | C125: =IF(ISBLANK(C$7),"",C$7) -> Description | E125: =IF(ISBLANK(E$7),"",E$7) ->  | F125: per Books | G125: =IF(ISBLANK(G$7),"",G$7) -> Rate Base | H125: and Credits | I125: Capital | J125: B & O Taxes | K125: Property Taxes | L125: Expense | M125: Expense | N125: Damages | O125: Expense | P125: Charges to Subs | Q125: Excise Tax | R125: Losses | S125: =IF(ISBLANK(S$7),"",S$7) -> Gas Cost Adjust | T125: =IF(ISBLANK(T$7),"",T$7) -> Adder Schedules | U125: Adjustments | V125: Debt Interest | W125: Incentive | X125: Compass | Y125: Non-Exec Labor | Z125: Exec Labor | AA125: Empl. Benefits | AB125: Pipeline Safety Labor | AC125: Property Tax | AD125: Normalization | AE125: Atmospheric Testing | AF125: Regulatory Amortization | AG125: Add Dec 2015 AMA | AH125: Limited Capital Adds | AI125: O&M Offsets | AK125: =IF(ISBLANK(AK$7),"",AK$7) -> Labor Non- Exec | AL125: Capital Add 2016 AMA | AM125: Capital Add 2017 AMA | AN125: 2017 AMI Capital & Exp | AO125: Info Tech/Serv Exp | AP125: Insurance Exp. | AQ125: Property Tax Exp. | AR125: to Attrition | AT125: of All | AW125: $000's
A126: 127 | B126: =IF(ISBLANK(B$8),"",B$8) ->  | C126: =IF(ISBLANK(C$8),"",C$8) ->  | D126: =IF(ISBLANK(D$8),"",D$8) ->  | E126: =IF(ISBLANK(E$8),"",E$8) ->  | G126: =IF(ISBLANK(G$8),"",G$8) -> G-DFIT | H126: G-DDC | I126: G-WC | J126: G-EBO | K126: G-RPT | L126: G-UE | M126: G-RE | N126: G-ID | O126: G-FIT | P126: G-OSC | Q126: G-RET | R126: G-NGL | S126: =IF(ISBLANK(S$8),"",S$8) -> G-WNGC | T126: =IF(ISBLANK(T$8),"",T$8) -> G-EAS | U126: G-MR | V126: G_DI | W126: G-RI | X126: Deferral | Y126: G-PLN | Z126: G-PLE | AA126: G-PEB | AB126: G-PPS | AC126: G-PPT | AD126: G-PREV | AE126: G-PAT | AF126: G-PRA | AG126: G-PCAP15 | AH126: G-PCAP16 | AI126: G-POFF | AK126: =IF(ISBLANK(AK$8),"",AK$8) -> G-CLN | AL126: G-CCAP16 | AM126: G-CCAP17 | AN126: G-CAMI | AO126: G-CIS | AP126: G-CI | AQ126: G-CPT | AR126: G-CREC | AT126: Adjustments | AW126: in bold
A127: 128 | C127: Administrative & General Expenses | AV127: =AV$9 -> 0
A128: 129 | B128: 920-OP | C128: Admin. & General Salaries | F128: 5388000 | U128: -217000 | W128: -132000 | Y128: 147000 | Z128: 12000 | AA128: 83000 | AK128: 40000 | AO128: 459000 | AT128: =SUM(G128:AR128) -> 392000 | AU128: =F128+AT128 -> 5780000 | AW128: =ROUND(AU128/1000,0)*1000+1000 -> 5781000
A129: 130 | B129: 921-OP | C129: Office Supplies & Expenses | F129: 814000 | P129: -9000 | U129: -1000 | Y129: 1000 | AA129: 1000 | AT129: -8000 | AU129: 806000 | AW129: =ROUND(AU129/1000,0)*1000 -> 806000
A130: 131 | B130: 922-OP | C130: Admin. Expenses Transferred - Credit | F130: -14000 | AT130: 0 | AU130: -14000 | AW130: -14000
A131: 132 | B131: 923-OP | C131: Outside Services Employed | F131: 2106000 | AT131: 0 | AU131: 2106000 | AW131: 2106000
A132: 133 | B132: 924-OP | C132: Property Insurance Premium | F132: 232000 | U132: -5000 | AP132: 7000 | AT132: 2000 | AU132: 234000 | AW132: 234000
A133: 134 | B133: 925-OP | C133: Injuries & Damages | F133: 653000 | N133: 231000 | U133: -12000 | Y133: 0 | AP133: 15000 | AT133: 234000 | AU133: 887000 | AW133: 887000
A134: 135 | B134: 926-OP | C134: Employee Pension & Benefits | F134: 447000 | AT134: 0 | AU134: 447000 | AW134: 447000
A135: 136 | B135: 927-OP | C135: Franchise Requirements | F135: 0 | AT135: 0 | AU135: 0 | AW135: 0
A136: 137 | B136: 928-OP | C136: Regulatory Commission Expenses | F136: 762000 | M136: -12000 | S136: 26000 | T136: -7000 | U136: 6000 | Y136: 12000 | AA136: 7000 | AD136: -144000 | AK136: 3000 | AT136: -109000 | AU136: 653000 | AW136: 653000
A137: 138 | B137: 930-OP | C137: Miscellaneous & General Expense | F137: 807000 | U137: 6000 | Y137: 3000 | AA137: 2000 | AK137: 1000 | AR137: -1129000 | AT137: -1117000 | AU137: -310000 | AW137: =ROUND(AU137/1000,0)*1000 -> -310000
A138: 139 | B138: 931-OP | C138: Rents | F138: 195000 | AT138: 0 | AU138: 195000 | AW138: 195000
A139: 140 | B139: 935-MT | C139: Maintenance of General Plant | F139: 1997000 | U139: 1000 | Y139: 13000 | AA139: 7000 | AI139: -56000 | AK139: 4000 | AT139: =SUM(G139:AR139) -> -31000 | AU139: 1966000 | AW139: 1966000
A140: 141 | C140: Total Administrative & General Expenses | F140: =SUM(F128:F139) -> 13387000 | G140: 0 | H140: 0 | I140: 0 | J140: =SUM(J128:J139) -> 0 | K140: 0 | L140: 0 | M140: -12000 | N140: 231000 | O140: 0 | P140: =SUM(P128:P139) -> -9000 | Q140: 0 | R140: 0 | S140: =SUM(S128:S139) -> 26000 | T140: =SUM(T128:T139) -> -7000 | U140: -222000 | V140: =SUM(V128:V139) -> 0 | W140: -132000 | X140: =SUM(X128:X139) -> 0 | Y140: 176000 | Z140: 12000 | AA140: 100000 | AB140: 0 | AC140: 0 | AD140: =SUM(AD128:AD139) -> -144000 | AE140: 0 | AF140: 0 | AG140: 0 | AH140: 0 | AI140: =SUM(AI128:AI139) -> -56000 | AK140: =SUM(AK128:AK139) -> 48000 | AL140: =SUM(AL128:AL139) -> 0 | AM140: 0 | AN140: 0 | AO140: 459000 | AP140: 22000 | AQ140: 0 | AR140: =SUM(AR128:AR139) -> -1129000 | AT140: -637000 | AU140: 12750000 | AV140: =IF(ROUND(SUM(F140:AQ140),0)=ROUND(AU140,0),"ok","crossfoot error") -> crossfoot error | AW140: =SUM(AW128:AW139)/1000 -> 12751 | AX140: ='[6]ADJ DETAIL INPUT'!$AU$44 -> 12751 | AY140: =AW140-AX140 -> 0
A141: 142
A142: 143 | C142: Total Operating & Maintenance Expenses | F142: =F140+F118 -> 212556000 | G142: 0 | H142: 1000 | I142: 0 | J142: =J140+J118 -> 0 | K142: 0 | L142: -313000 | M142: -12000 | N142: 231000 | O142: 0 | P142: =P140+P118 -> -9000 | Q142: 0 | R142: 0 | S142: =S140+S118 -> 10711000 | T142: =T140+T118 -> -102590000 | U142: -222000 | V142: =V140+V118 -> 0 | W142: -489000 | X142: =X140+X118 -> 0 | Y142: 644000 | Z142: -13000 | AA142: 345000 | AB142: 104000 | AC142: 0 | AD142: =AD140+AD118 -> -87126000 | AE142: 236000 | AF142: 0 | AG142: 0 | AH142: 0 | AI142: =AI140+AI118 -> -56000 | AK142: =AK140+AK118 -> 166000 | AL142: =AL140+AL118 -> 0 | AM142: 0 | AN142: 0 | AO142: 459000 | AP142: 22000 | AQ142: 0 | AR142: =AR140+AR118 -> -1129000 | AT142: -179040000 | AU142: 33516000 | AV142: =IF(ROUND(SUM(F142:AQ142),0)=ROUND(AU142,0),"ok","crossfoot error") -> crossfoot error | AW142: =AW140+AW118 -> 33516.0002 | AX142: ='[6]ADJ DETAIL INPUT'!$AU$25+'[6]ADJ DETAIL INPUT'!$AU$28+'[6]ADJ DETAIL INPUT'!$AU$34+'[6]ADJ DETAIL INPUT'!$AU$39+'[6]ADJ DETAIL INPUT'!$AU$40+'[6]ADJ DETAIL INPUT'!$AU$41+'[6]ADJ DETAIL INPUT'!$AU$44 -> 33515.923 | AY142: =AW142-AX142 -> 0.07720000001
A143: 144
A144: 145 | B144: Taxes Other Than Income Taxes
A145: 146 | C145: Property Related
A146: 147 | C146: -Production | F146: 0 | AT146: =SUM(G146:AR146) -> 0 | AU146: =F146+AT146 -> 0
A147: 148 | C147: -Underground Storage | F147: 292000 | K147: -14000 | AC147: 15000 | AQ147: 19000 | AT147: 20000 | AU147: =F147+AT147 -> 312000 | AW147: =ROUND(AU147/1000,0) -> 312 | AX147: ='[6]ADJ DETAIL INPUT'!$AU$30 -> 312 | AY147: =AW147-AX147 -> 0
A148: 149 | C148: -Distribution | F148: 2612000 | J148: 9000 | K148: -174000 | AC148: 181000 | AQ148: 239000 | AT148: 255000 | AU148: =F148+AT148 -> 2867000 | AW148: =ROUND(AU148/1000,0) -> 2867 | AY148: =AW148-AX148 -> 2867 | AZ148: =AY148+AY153 -> 0
A149: 150 | C149: -Administrative & General | F149: 0 | AT149: =SUM(G149:AR149) -> 0 | AU149: =F149+AT149 -> 0 | AW149: =ROUND(AU149/1000,0) -> 0 | AX149: ='[6]ADJ DETAIL INPUT'!$AU$47 -> 0 | AY149: =AW149-AX149 -> 0
A150: 151 | C150: Total Property Related | F150: =SUM(F146:F149) -> 2904000 | G150: 0 | H150: 0 | I150: 0 | J150: =SUM(J146:J149) -> 9000 | K150: -188000 | L150: 0 | M150: 0 | N150: 0 | O150: 0 | P150: =SUM(P146:P149) -> 0 | Q150: 0 | R150: 0 | S150: =SUM(S146:S149) -> 0 | T150: =SUM(T146:T149) -> 0 | U150: 0 | V150: =SUM(V146:V149) -> 0 | W150: 0 | X150: =SUM(X146:X149) -> 0 | Y150: 0 | Z150: 0 | AA150: 0 | AB150: 0 | AC150: 196000 | AD150: =SUM(AD146:AD149) -> 0 | AE150: 0 | AF150: 0 | AG150: 0 | AH150: 0 | AI150: =SUM(AI146:AI149) -> 0 | AK150: =SUM(AK146:AK149) -> 0 | AL150: 0 | AM150: 0 | AN150: 0 | AO150: 0 | AP150: 0 | AQ150: 258000 | AR150: =SUM(AR146:AR149) -> 0 | AT150: 275000 | AU150: 3179000 | AV150: =IF(ROUND(SUM(F150:AQ150),0)=ROUND(AU150,0),"ok","crossfoot error") -> ok | AW150: =SUM(AW146:AW149) -> 3179
A151: 152
A152: 153 | C152: State Excise
A153: 154 | C153: -Distribution | F153: 5781000 | Q153: -5000 | S153: 497000 | T153: -127000 | AD153: -2764000 | AT153: =SUM(G153:AR153) -> -2399000 | AU153: =F153+AT153 -> 3382000 | AW153: =ROUND(AU153/1000,0) -> 3382 | AX153: ='[6]ADJ DETAIL INPUT'!$AU$36 -> 6249 | AY153: =AW153-AX153 -> -2867 | AZ153: =AY153+AY148 -> 0
A154: 155
A155: 156 | C155: Business & Occupation
A156: 157 | C156: -Distribution | F156: 5621000 | J156: -5621000 | AT156: =SUM(G156:AR156) -> -5621000 | AU156: =F156+AT156 -> 0 | AW156: =ROUND(AU156/1000,0) -> 0
A157: 158 | C157: -Open | AT157: 0 | AU157: =F157+AT157 -> 0 | AW157: =ROUND(AU157/1000,0) -> 0
A158: 159 | C158: -Open | AT158: =SUM(G158:AR158) -> 0 | AU158: =F158+AT158 -> 0 | AW158: =ROUND(AU158/1000,0) -> 0
A159: 160 | C159: Total Business & Occupation | F159: =SUM(F156:F158) -> 5621000 | G159: 0 | H159: 0 | I159: 0 | J159: =SUM(J156:J158) -> -5621000 | K159: 0 | L159: 0 | M159: 0 | N159: 0 | O159: 0 | P159: =SUM(P156:P158) -> 0 | Q159: 0 | R159: 0 | S159: =SUM(S156:S158) -> 0 | T159: =SUM(T156:T158) -> 0 | U159: 0 | V159: =SUM(V156:V158) -> 0 | W159: 0 | X159: =SUM(X156:X158) -> 0 | Y159: 0 | Z159: 0 | AA159: 0 | AB159: 0 | AC159: 0 | AD159: =SUM(AD156:AD158) -> 0 | AE159: 0 | AF159: 0 | AG159: 0 | AH159: 0 | AI159: =SUM(AI156:AI158) -> 0 | AK159: =SUM(AK156:AK158) -> 0 | AL159: 0 | AM159: 0 | AN159: 0 | AO159: 0 | AP159: 0 | AQ159: 0 | AR159: =SUM(AR156:AR158) -> 0 | AT159: -5621000 | AU159: 0 | AV159: =IF(ROUND(SUM(F159:AQ159),0)=ROUND(AU159,0),"ok","crossfoot error") -> ok | AW159: =SUM(AW156:AW158) -> 0
A160: 161
A161: 162 | C161: Miscellaneous
A162: 163 | C162: -Distribution | F162: 0 | AT162: =SUM(G162:AR162) -> 0 | AU162: =F162+AT162 -> 0
A163: 164
A164: 165 | C164: Total Taxes Other Than Income Taxes | F164: =F162+F159+F153+F150 -> 14306000 | G164: 0 | H164: 0 | I164: 0 | J164: =J162+J159+J153+J150 -> -5612000 | K164: -188000 | L164: 0 | M164: 0 | N164: 0 | O164: 0 | P164: =P162+P159+P153+P150 -> 0 | Q164: -5000 | R164: 0 | S164: =S162+S159+S153+S150 -> 497000 | T164: =T162+T159+T153+T150 -> -127000 | U164: 0 | V164: =V162+V159+V153+V150 -> 0 | W164: 0 | X164: =X162+X159+X153+X150 -> 0 | Y164: 0 | Z164: 0 | AA164: 0 | AB164: 0 | AC164: 196000 | AD164: =AD162+AD159+AD153+AD150 -> -2764000 | AE164: 0 | AF164: 0 | AG164: 0 | AH164: 0 | AI164: =AI162+AI159+AI153+AI150 -> 0 | AK164: =AK162+AK159+AK153+AK150 -> 0 | AL164: 0 | AM164: 0 | AN164: 0 | AO164: 0 | AP164: 0 | AQ164: 258000 | AR164: =AR162+AR159+AR153+AR150 -> 0 | AT164: -7745000 | AU164: 6561000 | AV164: =IF(ROUND(SUM(F164:AQ164),0)=ROUND(AU164,0),"ok","crossfoot error") -> ok | AW164: =AW162+AW159+AW153+AW150 -> 6561 | AX164: ='[6]ADJ DETAIL INPUT'!$AU$30+'[6]ADJ DETAIL INPUT'!$AU$36+'[6]ADJ DETAIL INPUT'!$AU$47 -> 6561 | AY164: =AW164-AX164 -> 0
A165: 166
A166: 167 | B166: Depreciation Expense
A167: 168 | C167: Underground Storage Plant Depreciation Expense
A168: 169 | B168: 350 | C168: Land & Land Rights Depr. Exp. | F168: 1000 | AT168: =SUM(G168:AR168) -> 0 | AU168: =F168+AT168 -> 1000 | AW168: =ROUND(AU168/1000,0)*1000 -> 1000
A169: 170 | B169: 351 | C169: Structures & Improvements Depr. Exp. | F169: 17000 | AG169: -2000 | AL169: 13000 | AM169: 11000 | AT169: 22000 | AU169: 39000 | AW169: 39000
A170: 171 | B170: 352 | C170: Wells Depr. Exp. | F170: 123000 | AT170: 0 | AU170: 123000 | AW170: 123000
A171: 172 | B171: 353 | C171: Lines Depr. Exp. | F171: 11000 | AT171: 0 | AU171: 11000 | AW171: 11000
A172: 173 | B172: 354 | C172: Compressor Station Equip. Depr. Exp. | F172: 156000 | AT172: 0 | AU172: 156000 | AW172: 156000
A173: 174 | B173: 355 | C173: Measuring & Regulating Equip. Depr. Exp. | F173: 89000 | AT173: 0 | AU173: 89000 | AW173: 89000
A174: 175 | B174: 356 | C174: Purification Equipment Depr. Exp. | F174: 4000 | AT174: 0 | AU174: 4000 | AW174: 4000
A175: 176 | B175: 357 | C175: Other Equipment Depr. Exp. | F175: 28000 | AT175: =SUM(G175:AR175) -> 0 | AU175: 28000 | AW175: 28000
A176: 177 | C176: Total Underground Storage Plant Depr. Exp. | F176: =SUM(F168:F175) -> 429000 | G176: 0 | H176: 0 | I176: 0 | J176: =SUM(J168:J175) -> 0 | K176: 0 | L176: 0 | M176: 0 | N176: 0 | O176: 0 | P176: =SUM(P168:P175) -> 0 | Q176: 0 | R176: 0 | S176: =SUM(S168:S175) -> 0 | T176: =SUM(T168:T175) -> 0 | U176: 0 | V176: =SUM(V168:V175) -> 0 | W176: 0 | X176: =SUM(X168:X175) -> 0 | Y176: 0 | Z176: 0 | AA176: 0 | AB176: 0 | AC176: 0 | AD176: =SUM(AD168:AD175) -> 0 | AE176: 0 | AF176: 0 | AG176: -2000 | AH176: 0 | AI176: =SUM(AI168:AI175) -> 0 | AK176: =SUM(AK168:AK175) -> 0 | AL176: 13000 | AM176: 11000 | AN176: 0 | AO176: 0 | AP176: 0 | AQ176: 0 | AR176: =SUM(AR168:AR175) -> 0 | AT176: 22000 | AU176: 451000 | AV176: =IF(ROUND(SUM(F176:AQ176),0)=ROUND(AU176,0),"ok","crossfoot error") -> ok | AW176: =SUM(AW168:AW175)/1000 -> 451 | AX176: ='[6]ADJ DETAIL INPUT'!$AU$29 -> 451 | AY176: =AW176-AX176 -> 0
A177: 178
A178: 179 | B178: =$B$1 -> Proforma | I178: =$I$1 -> Natural Gas Utility | AK178: =$I$1 -> Natural Gas Utility
A179: 180 | B179: =$B$2 -> Pro Forma Results of Operations | E179: Depreciation Expense & Income Tax | O179: =E179 -> Depreciation Expense & Income Tax | AA179: =E179 -> Depreciation Expense & Income Tax
A180: 181 | B180: =$B$3 -> Company Base Case
A181: 182
A182: 183 | F182: =F5 -> 1 | G182: 1.01 | H182: 1.02 | I182: 1.03 | J182: =J5 -> 2.01 | K182: 2.02 | L182: 2.03 | M182: 2.04 | N182: 2.05 | O182: 2.06 | P182: =P5 -> 2.07 | Q182: 2.08 | R182: 2.09 | S182: =S5 -> 2.1 | T182: =T5 -> 2.11 | U182: 2.12 | V182: =V5 -> 2.13 | W182: 2.14 | X182: =X5 -> 2.15 | Y182: 3 | Z182: 3.01 | AA182: 3.02 | AB182: 3.03 | AC182: 3.04 | AD182: =AD5 -> 3.05 | AE182: 3.06 | AF182: 3.07 | AG182: 3.08 | AH182: 3.09 | AI182: =AI5 -> 3.1 | AK182: =AK$5 -> 4 | AL182: 4.01 | AM182: 4.02 | AN182: 4.03 | AO182: 4.04 | AP182: 4.05 | AQ182: 4.06 | AR182: 4.07 | AT182: (at) | AU182: (au) | AV182: (av) | AW182: (aw)
A183: 184 | B183: =IF(ISBLANK(B$6),"",B$6) ->  | C183: =IF(ISBLANK(C$6),"",C$6) ->  | D183: =IF(ISBLANK(D$6),"",D$6) ->  | E183: =IF(ISBLANK(E$6),"",E$6) -> Notes | F183: Balance | G183: =IF(ISBLANK(G$6),"",G$6) -> Deferred FIT | H183: Deferred Debits | I183: Working | J183: Eliminate | K183: Restate | L183: Uncollectible | M183: Regulatory | N183: Injuries & | O183: FIT/DFIT | P183: Office Space | Q183: Restate | R183: Net Gains/ | S183: =IF(ISBLANK(S$6),"",S$6) -> Weather Normalization | T183: =IF(ISBLANK(T$6),"",T$6) -> Eliminate | U183: Misc. Restating | V183: Restate | W183: Restating | X183: Project | Y183: Pro Forma | Z183: Pro Forma | AA183: Pro Forma | AB183: Pro Forma | AC183: Pro Forma | AD183: Pro Forma Revenue | AE183: Pro Forma | AF183: Pro Forma | AG183: Pro Forma Capital | AH183: Pro Forma 2016 | AI183: Pro Forma | AK183: =IF(ISBLANK(AK$6),"",AK$6) -> Cross Check | AL183: Cross Check | AM183: Cross Check | AN183: Cross Check | AO183: Cross Check | AP183: Cross Check | AQ183: Cross Check | AR183: Cross Check | AT183: Net Total | AU183: Total | AV183: check | AW183: Total
